Workbook

Sheet 表紙・留意事項
A5: 地域少子化・働き方指標 （第３版）【データファイル】

Sheet １．（２）少子化関係指標
B5: ■都道府県別少子化関係指標（合計特殊出生率、未婚率と有配偶出生率、平均初婚年齢、出生順位ごとの母の平均年齢の状況）
AE7: ・・・上位10位を網掛け
AE8: ・・・下位10位を網掛け
E9: 合計特殊出生率（H27） | N9: 未婚率と有配偶出生率（H27） | U9: 平均初婚年齢（H27） | Z9: 出生順位ごとの母の平均年齢（H27）
E10: 合計特殊 | G10: 出生順位別内訳 | N10: 未婚率（25～39、H27） | R10: 有配偶 | U10: 男性 | W10: 女性 | Z10: 総数 | AB10: 第１子 | AD10: 第２子 | AF10: 第３子
E11: 出生率 | G11: 第１子 | I11: 第２子 | K11: 第３子以降 | N11: 男性 | P11: 女性 | R11: 出生率
R12: （15～49歳）
F13: （順位） | H13: （順位） | J13: （順位） | L13: （順位） | O13: （順位） | Q13: （順位） | R13: （H27） | S13: （順位） | V13: （順位） | X13: （順位） | AA13: （順位） | AC13: （順位） | AE13: （順位） | AG13: （順位）
F14: （降順） | H14: （降順） | J14: （降順） | L14: （降順） | N14: （％） | O14: （昇順） | P14: （％） | Q14: （昇順） | R14: （対1000人） | S14: （降順） | U14: （歳） | V14: （昇順） | W14: （歳） | X14: （昇順） | Z14: （歳） | AA14: （昇順） | AB14: （歳） | AC14: （昇順） | AD14: （歳） | AE14: （昇順） | AF14: （歳） | AG14: （昇順）
B15: （合計特殊出生率との相関係数） | E15: =CORREL($E$20:$E$66,E$20:E$66) -> 1 | G15: =CORREL($E$20:$E$66,G$20:G$66) -> 0.7726954184 | I15: =CORREL($E$20:$E$66,I$20:I$66) -> 0.8972336562 | K15: =CORREL($E$20:$E$66,K$20:K$66) -> 0.9115383672 | N15: =CORREL($E$20:$E$66,N$20:N$66) -> -0.6946791588 | P15: =CORREL($E$20:$E$66,P$20:P$66) -> -0.5977820452 | R15: =CORREL($E$20:$E$66,R$20:R$66) -> 0.8463104967 | U15: =CORREL($E$20:$E$66,U$20:U$66) -> -0.6610081845 | W15: =CORREL($E$20:$E$66,W$20:W$66) -> -0.5993820194 | Z15: =CORREL($E$20:$E$66,Z$20:Z$66) -> -0.5540365961 | AB15: =CORREL($E$20:$E$66,AB$20:AB$66) -> -0.6574769164 | AD15: =CORREL($E$20:$E$66,AD$20:AD$66) -> -0.6640009514 | AF15: =CORREL($E$20:$E$66,AF$20:AF$66) -> -0.5371865048
B16: （単純平均） | E16: =AVERAGE(E$20:E$66) -> 1.529574468 | G16: =AVERAGE(G$20:G$66) -> 0.6939447659 | I16: =AVERAGE(I$20:I$66) -> 0.5537588467 | K16: =AVERAGE(K$20:K$66) -> 0.2818708554 | N16: =AVERAGE(N$20:N$66) -> 0.4890045457 | P16: =AVERAGE(P$20:P$66) -> 0.3702444913 | R16: =AVERAGE(R$20:R$66) -> 81.15070408 | U16: =AVERAGE(U$20:U$66) -> 30.74255319 | W16: =AVERAGE(W$20:W$66) -> 29.15106383 | Z16: =AVERAGE(Z$20:Z$66) -> 31.54468085 | AB16: =AVERAGE(AB$20:AB$66) -> 30.18297872 | AD16: =AVERAGE(AD$20:AD$66) -> 32.16170213 | AF16: =AVERAGE(AF$20:AF$66) -> 33.40212766
B17: （標準偏差） | E17: =STDEVP(E$20:E$66) -> 0.129449858 | G17: =STDEVP(G$20:G$66) -> 0.03196537339 | I17: =STDEVP(I$20:I$66) -> 0.04264664144 | K17: =STDEVP(K$20:K$66) -> 0.07293862856 | N17: =STDEVP(N$20:N$66) -> 0.02362654207 | P17: =STDEVP(P$20:P$66) -> 0.02337841061 | R17: =STDEVP(R$20:R$66) -> 8.025914901 | U17: =STDEVP(U$20:U$66) -> 0.4836671446 | W17: =STDEVP(W$20:W$66) -> 0.3723829763 | Z17: =STDEVP(Z$20:Z$66) -> 0.4129852455 | AB17: =STDEVP(AB$20:AB$66) -> 0.5555595795 | AD17: =STDEVP(AD$20:AD$66) -> 0.4957492466 | AF17: =STDEVP(AF$20:AF$66) -> 0.3894837618
B18: （変動係数） | E18: =E17/E16 -> 0.08463128843 | G18: =G17/G16 -> 0.04606328192 | I18: =I17/I16 -> 0.07701302054 | K18: =K17/K16 -> 0.2587661234 | N18: =N17/N16 -> 0.04831558782 | P18: =P17/P16 -> 0.06314316934 | R18: =R17/R16 -> 0.0989013588 | U18: =U17/U16 -> 0.01573282289 | W18: =W17/W16 -> 0.01277424997 | Z18: =Z17/Z16 -> 0.0130920724 | AB18: =AB17/AB16 -> 0.01840638674 | AD18: =AD17/AD16 -> 0.01541427269 | AF18: =AF17/AF16 -> 0.01166044768
B19: 全 国 | E19: 1.45 | G19: 0.6893057115 | I19: 0.523703187 | K19: 0.2369911015 | N19: 0.5011569938 | P19: 0.3854176908 | R19: 78.54932615 | U19: 31.1 | W19: 29.4 | Z19: 31.8 | AB19: 30.7 | AD19: 32.5 | AF19: 33.5
B20: 1 | C20: 北海道 | E20: 1.31 | F20: 46 | G20: 0.6247445156 | H20: 45 | I20: 0.4686654858 | J20: 46 | K20: 0.2165899986 | L20: 41 | N20: 0.4942383577 | O20: 27 | P20: 0.3933623379 | Q20: 41 | R20: 73.13494781 | S20: 45 | U20: 30.7 | V20: 21 | W20: 29.3 | X20: 32 | Z20: 31.5 | AA20: 21 | AB20: 30.3 | AC20: 30 | AD20: 32.2 | AE20: 24 | AF20: 33.2 | AG20: 17
B21: 2 | C21: 青森県 | E21: 1.43 | F21: 37 | G21: 0.650889688 | H21: 43 | I21: 0.511721378 | J21: 40 | K21: 0.267388934 | L21: 24 | N21: 0.511087571 | O21: 39 | P21: 0.3752822346 | Q21: 34 | R21: 75.7104398 | S21: 39 | U21: 30.6 | V21: 16 | W21: 29 | X21: 14 | Z21: 31.1 | AA21: 5 | AB21: 29.8 | AC21: 12 | AD21: 31.6 | AE21: 5 | AF21: 33.1 | AG21: 11
B22: 3 | C22: 岩手県 | E22: 1.49 | F22: 30 | G22: 0.6697730883 | H22: 38 | I22: 0.5179668709 | J22: 37 | K22: 0.3022600408 | L22: 14 | N22: 0.4908883937 | O22: 25 | P22: 0.3532334557 | Q22: 11 | R22: 77.90150996 | S22: 27 | U22: 30.9 | V22: 34 | W22: 29 | X22: 14 | Z22: 31 | AA22: 2 | AB22: 29.6 | AC22: 6 | AD22: 31.6 | AE22: 5 | AF22: 33 | AG22: 3
B23: 4 | C23: 宮城県 | E23: 1.36 | F23: 43 | G23: 0.6445246958 | H23: 44 | I23: 0.483657981 | J23: 45 | K23: 0.2318173232 | L23: 39 | N23: 0.4952426394 | O23: 28 | P23: 0.3880680294 | Q23: 36 | R23: 78.05294204 | S23: 25 | U23: 30.8 | V23: 26 | W23: 29.3 | X23: 32 | Z23: 31.5 | AA23: 21 | AB23: 30.2 | AC23: 26 | AD23: 32.2 | AE23: 24 | AF23: 33.3 | AG23: 19
B24: 5 | C24: 秋田県 | E24: 1.35 | F24: 44 | G24: 0.6214468521 | H24: 46 | I24: 0.5046664392 | J24: 42 | K24: 0.2238867088 | L24: 40 | N24: 0.5020088098 | O24: 34 | P24: 0.3633817335 | Q24: 23 | R24: 69.12569772 | S24: 47 | U24: 30.8 | V24: 26 | W24: 29.3 | X24: 32 | Z24: 31.6 | AA24: 30 | AB24: 30.3 | AC24: 30 | AD24: 32.2 | AE24: 24 | AF24: 33.5 | AG24: 28
B25: 6 | C25: 山形県 | E25: 1.48 | F25: 33 | G25: 0.666954412 | H25: 39 | I25: 0.5490231133 | J25: 28 | K25: 0.2640224748 | L25: 27 | N25: 0.477358745 | O25: 14 | P25: 0.3394800362 | Q25: 3 | R25: 76.72298096 | S25: 33 | U25: 30.6 | V25: 16 | W25: 28.8 | X25: 7 | Z25: 31.4 | AA25: 16 | AB25: 29.9 | AC25: 15 | AD25: 32.1 | AE25: 21 | AF25: 33.3 | AG25: 19
B26: 7 | C26: 福島県 | E26: 1.58 | F26: 15 | G26: 0.7067981684 | H26: 14 | I26: 0.5508573441 | J26: 27 | K26: 0.3223444875 | L26: 11 | N26: 0.4977191931 | O26: 31 | P26: 0.346026158 | Q26: 5 | R26: 82.07540127 | S26: 16 | U26: 30.3 | V26: 8 | W26: 28.6 | X26: 1 | Z26: 30.8 | AA26: 1 | AB26: 29.4 | AC26: 3 | AD26: 31.4 | AE26: 1 | AF26: 32.9 | AG26: 2
B27: 8 | C27: 茨城県 | E27: 1.48 | F27: 33 | G27: 0.6846193548 | H27: 34 | I27: 0.5453493088 | J27: 30 | K27: 0.2500313364 | L27: 30 | N27: 0.5198286006 | O27: 43 | P27: 0.3632699776 | Q27: 22 | R27: 76.39802569 | S27: 37 | U27: 30.8 | V27: 26 | W27: 29.1 | X27: 23 | Z27: 31.4 | AA27: 16 | AB27: 30.1 | AC27: 20 | AD27: 32 | AE27: 17 | AF27: 33.3 | AG27: 19
B28: 9 | C28: 栃木県 | E28: 1.49 | F28: 30 | G28: 0.6947687181 | H28: 27 | I28: 0.5560486084 | J28: 26 | K28: 0.2391826735 | L28: 34 | N28: 0.5119942604 | O28: 40 | P28: 0.3549134558 | Q28: 13 | R28: 77.31435256 | S28: 29 | U28: 30.9 | V28: 34 | W28: 29.1 | X28: 23 | Z28: 31.5 | AA28: 21 | AB28: 30.2 | AC28: 26 | AD28: 32.2 | AE28: 24 | AF28: 33.5 | AG28: 28
B29: 10 | C29: 群馬県 | E29: 1.49 | F29: 30 | G29: 0.6972355499 | H29: 23 | I29: 0.5484027778 | J29: 29 | K29: 0.2443616723 | L29: 31 | N29: 0.5103736892 | O29: 38 | P29: 0.3615792823 | Q29: 20 | R29: 75.29096934 | S29: 40 | U29: 31 | V29: 36 | W29: 29.2 | X29: 30 | Z29: 31.5 | AA29: 21 | AB29: 30.1 | AC29: 20 | AD29: 32.3 | AE29: 32 | AF29: 33.6 | AG29: 34
B30: 11 | C30: 埼玉県 | E30: 1.39 | F30: 38 | G30: 0.6710182428 | H30: 37 | I30: 0.5179315941 | J30: 38 | K30: 0.2010501632 | L30: 45 | N30: 0.5219620164 | O30: 44 | P30: 0.3888872545 | Q30: 38 | R30: 73.39872386 | S30: 42 | U30: 31.5 | V30: 44 | W30: 29.6 | X30: 41 | Z30: 32.1 | AA30: 43 | AB30: 30.9 | AC30: 43 | AD30: 32.9 | AE30: 45 | AF30: 33.7 | AG30: 36
B31: 12 | C31: 千葉県 | E31: 1.38 | F31: 41 | G31: 0.6624082188 | H31: 41 | I31: 0.5124145999 | J31: 39 | K31: 0.2051771813 | L31: 44 | N31: 0.5186132274 | O31: 42 | P31: 0.390050835 | Q31: 39 | R31: 72.55662727 | S31: 46 | U31: 31.5 | V31: 44 | W31: 29.6 | X31: 41 | Z31: 32.1 | AA31: 43 | AB31: 30.9 | AC31: 43 | AD31: 32.8 | AE31: 43 | AF31: 33.7 | AG31: 36
B32: 13 | C32: 東京都 | E32: 1.24 | F32: 47 | G32: 0.6856730922 | H32: 31 | I32: 0.4201325159 | J32: 47 | K32: 0.1341943919 | L32: 47 | N32: 0.5399787197 | O32: 47 | P32: 0.4447947926 | Q32: 47 | R32: 75.89505633 | S32: 38 | U32: 32.4 | V32: 47 | W32: 30.5 | X32: 47 | Z32: 33.1 | AA32: 47 | AB32: 32.2 | AC32: 47 | AD32: 34 | AE32: 47 | AF32: 34.8 | AG32: 47
B33: 14 | C33: 神奈川県 | E33: 1.39 | F33: 38 | G33: 0.7015740048 | H33: 19 | I33: 0.5108616536 | J33: 41 | K33: 0.1775643416 | L33: 46 | N33: 0.5292464135 | O33: 46 | P33: 0.3966122022 | Q33: 42 | R33: 73.35403513 | S33: 43 | U33: 31.9 | V33: 46 | W33: 30.1 | X33: 46 | Z33: 32.5 | AA33: 46 | AB33: 31.5 | AC33: 46 | AD33: 33.3 | AE33: 46 | AF33: 34.2 | AG33: 45
B34: 15 | C34: 新潟県 | E34: 1.44 | F34: 36 | G34: 0.6625815533 | H34: 40 | I34: 0.5396364527 | J34: 33 | K34: 0.237781994 | L34: 35 | N34: 0.5001213385 | O34: 32 | P34: 0.3680266762 | Q34: 27 | R34: 76.48035332 | S34: 36 | U34: 30.8 | V34: 26 | W34: 29.3 | X34: 32 | Z34: 31.8 | AA34: 35 | AB34: 30.6 | AC34: 38 | AD34: 32.4 | AE34: 34 | AF34: 33.7 | AG34: 36
B35: 16 | C35: 富山県 | E35: 1.51 | F35: 27 | G35: 0.7163869433 | H35: 9 | I35: 0.5583428043 | J35: 24 | K35: 0.2352702524 | L35: 37 | N35: 0.5066202148 | O35: 37 | P35: 0.3615281263 | Q35: 19 | R35: 73.32865549 | S35: 44 | U35: 30.8 | V35: 26 | W35: 29.1 | X35: 23 | Z35: 31.8 | AA35: 35 | AB35: 30.5 | AC35: 34 | AD35: 32.5 | AE35: 37 | AF35: 34.2 | AG35: 45
B36: 17 | C36: 石川県 | E36: 1.54 | F36: 20 | G36: 0.7044753086 | H36: 18 | I36: 0.5674845679 | J36: 18 | K36: 0.2680401235 | L36: 23 | N36: 0.4783623149 | O36: 16 | P36: 0.3597103219 | Q36: 17 | R36: 77.31033013 | S36: 30 | U36: 30.7 | V36: 21 | W36: 29.1 | X36: 23 | Z36: 31.7 | AA36: 32 | AB36: 30.3 | AC36: 30 | AD36: 32.3 | AE36: 32 | AF36: 33.8 | AG36: 41
B37: 18 | C37: 福井県 | E37: 1.63 | F37: 9 | G37: 0.7315377207 | H37: 6 | I37: 0.5941781701 | J37: 9 | K37: 0.3042841091 | L37: 12 | N37: 0.4842658747 | O37: 20 | P37: 0.3472280785 | Q37: 8 | R37: 81.15540007 | S37: 19 | U37: 30.6 | V37: 16 | W37: 28.9 | X37: 9 | Z37: 31.7 | AA37: 32 | AB37: 30.2 | AC37: 26 | AD37: 32.2 | AE37: 24 | AF37: 33.7 | AG37: 36
B38: 19 | C38: 山梨県 | E38: 1.51 | F38: 27 | G38: 0.6963604476 | H38: 25 | I38: 0.5445281443 | J38: 32 | K38: 0.2691114081 | L38: 22 | N38: 0.5179812633 | O38: 41 | P38: 0.3675553418 | Q38: 26 | R38: 77.22260649 | S38: 31 | U38: 31.3 | V38: 40 | W38: 29.3 | X38: 32 | Z38: 31.8 | AA38: 35 | AB38: 30.5 | AC38: 34 | AD38: 32.4 | AE38: 34 | AF38: 33.8 | AG38: 41
B39: 20 | C39: 長野県 | E39: 1.58 | F39: 15 | G39: 0.7163448011 | H39: 10 | I39: 0.5848970457 | J39: 10 | K39: 0.2787581532 | L39: 19 | N39: 0.496016034 | O39: 29 | P39: 0.3570567065 | Q39: 16 | R39: 78.65305403 | S39: 23 | U39: 31.3 | V39: 40 | W39: 29.5 | X39: 40 | Z39: 32 | AA39: 42 | AB39: 30.6 | AC39: 38 | AD39: 32.6 | AE39: 40 | AF39: 33.9 | AG39: 44
B40: 21 | C40: 岐阜県 | E40: 1.56 | F40: 18 | G40: 0.6969762028 | H40: 24 | I40: 0.5997284014 | J40: 5 | K40: 0.2632953958 | L40: 28 | N40: 0.4878749886 | O40: 23 | P40: 0.347966321 | Q40: 9 | R40: 76.77514241 | S40: 32 | U40: 30.6 | V40: 16 | W40: 28.7 | X40: 3 | Z40: 31.5 | AA40: 21 | AB40: 30.1 | AC40: 20 | AD40: 32.2 | AE40: 24 | AF40: 33.4 | AG40: 25
B41: 22 | C41: 静岡県 | E41: 1.54 | F41: 20 | G41: 0.7134558409 | H41: 12 | I41: 0.5843439616 | J41: 12 | K41: 0.2422001975 | L41: 33 | N41: 0.4972946862 | O41: 30 | P41: 0.3463621738 | Q41: 6 | R41: 77.55249691 | S41: 28 | U41: 31 | V41: 36 | W41: 29.2 | X41: 30 | Z41: 31.6 | AA41: 30 | AB41: 30.4 | AC41: 33 | AD41: 32.2 | AE41: 24 | AF41: 33.4 | AG41: 25
B42: 23 | C42: 愛知県 | E42: 1.57 | F42: 17 | G42: 0.7557486855 | H42: 2 | I42: 0.5823224872 | J42: 14 | K42: 0.2319288272 | L42: 38 | N42: 0.5021937574 | O42: 35 | P42: 0.3492280902 | Q42: 10 | R42: 79.84925852 | S42: 20 | U42: 30.8 | V42: 26 | W42: 29 | X42: 14 | Z42: 31.7 | AA42: 32 | AB42: 30.5 | AC42: 34 | AD42: 32.5 | AE42: 37 | AF42: 33.5 | AG42: 28
B43: 24 | C43: 三重県 | E43: 1.56 | F43: 18 | G43: 0.7006021505 | H43: 21 | I43: 0.5945892473 | J43: 8 | K43: 0.2648086022 | L43: 26 | N43: 0.4855738023 | O43: 21 | P43: 0.3471625096 | Q43: 7 | R43: 76.59177829 | S43: 35 | U43: 30.7 | V43: 21 | W43: 28.9 | X43: 9 | Z43: 31.4 | AA43: 16 | AB43: 30.1 | AC43: 20 | AD43: 32 | AE43: 17 | AF43: 33.3 | AG43: 19
B44: 25 | C44: 滋賀県 | E44: 1.61 | F44: 11 | G44: 0.7367580415 | H44: 5 | I44: 0.603207891 | J44: 3 | K44: 0.2700340675 | L44: 21 | N44: 0.4766213138 | O44: 12 | P44: 0.3439255988 | Q44: 4 | R44: 81.48885489 | S44: 18 | U44: 30.7 | V44: 21 | W44: 29.1 | X44: 23 | Z44: 31.8 | AA44: 35 | AB44: 30.5 | AC44: 34 | AD44: 32.4 | AE44: 34 | AF44: 33.7 | AG44: 36
B45: 26 | C45: 京都府 | E45: 1.35 | F45: 44 | G45: 0.6511748551 | H45: 42 | I45: 0.4848794629 | J45: 44 | K45: 0.213945682 | L45: 43 | N45: 0.5232724058 | O45: 45 | P45: 0.4298026728 | Q45: 46 | R45: 78.23536303 | S45: 24 | U45: 31.3 | V45: 40 | W45: 29.7 | X45: 44 | Z45: 32.1 | AA45: 43 | AB45: 31 | AC45: 45 | AD45: 32.8 | AE45: 43 | AF45: 33.8 | AG45: 41
B46: 27 | C46: 大阪府 | E46: 1.39 | F46: 38 | G46: 0.68198524 | H46: 35 | I46: 0.4936945436 | J46: 43 | K46: 0.2143202164 | L46: 42 | N46: 0.4874019777 | O46: 22 | P46: 0.4083867207 | Q46: 44 | R46: 76.67349705 | S46: 34 | U46: 31.1 | V46: 39 | W46: 29.6 | X46: 41 | Z46: 31.8 | AA46: 35 | AB46: 30.7 | AC46: 41 | AD46: 32.6 | AE46: 40 | AF46: 33.5 | AG46: 28
B47: 28 | C47: 兵庫県 | E47: 1.48 | F47: 33 | G47: 0.6926393275 | H47: 29 | I47: 0.5445888902 | J47: 31 | K47: 0.2427717823 | L47: 32 | N47: 0.4828299545 | O47: 19 | P47: 0.3921237522 | Q47: 40 | R47: 77.93928923 | S47: 26 | U47: 30.8 | V47: 26 | W47: 29.3 | X47: 32 | Z47: 31.9 | AA47: 40 | AB47: 30.7 | AC47: 41 | AD47: 32.5 | AE47: 37 | AF47: 33.6 | AG47: 34
B48: 29 | C48: 奈良県 | E48: 1.38 | F48: 41 | G48: 0.6175752644 | H48: 47 | I48: 0.5257811229 | J48: 36 | K48: 0.2366436127 | L48: 36 | N48: 0.5023760174 | O48: 36 | P48: 0.4158676793 | Q48: 45 | R48: 74.39948218 | S48: 41 | U48: 31 | V48: 36 | W48: 29.4 | X48: 38 | Z48: 31.9 | AA48: 40 | AB48: 30.6 | AC48: 38 | AD48: 32.6 | AE48: 40 | AF48: 33.5 | AG48: 28
B49: 30 | C49: 和歌山県 | E49: 1.54 | F49: 20 | G49: 0.7071294452 | H49: 13 | I49: 0.5658349929 | J49: 21 | K49: 0.2670355619 | L49: 25 | N49: 0.4821752113 | O49: 18 | P49: 0.3727560124 | Q49: 31 | R49: 79.55342017 | S49: 22 | U49: 30.2 | V49: 3 | W49: 28.7 | X49: 3 | Z49: 31.1 | AA49: 5 | AB49: 29.7 | AC49: 8 | AD49: 31.7 | AE49: 9 | AF49: 33.1 | AG49: 11
B50: 31 | C50: 鳥取県 | E50: 1.65 | F50: 7 | G50: 0.7154519896 | H50: 11 | I50: 0.5823529412 | J50: 13 | K50: 0.3521950692 | L50: 8 | N50: 0.4881597768 | O50: 24 | P50: 0.363533232 | Q50: 24 | R50: 89.31395419 | S50: 9 | U50: 30.8 | V50: 26 | W50: 29 | X50: 14 | Z50: 31.4 | AA50: 16 | AB50: 29.8 | AC50: 12 | AD50: 31.9 | AE50: 13 | AF50: 33.3 | AG50: 19
B51: 32 | C51: 島根県 | E51: 1.78 | F51: 2 | G51: 0.739448748 | H51: 3 | I51: 0.6496631238 | J51: 1 | K51: 0.3908881283 | L51: 4 | N51: 0.4663223739 | O51: 7 | P51: 0.339372797 | Q51: 2 | R51: 91.51743079 | S51: 6 | U51: 30.4 | V51: 14 | W51: 29.1 | X51: 23 | Z51: 31.5 | AA51: 21 | AB51: 30.1 | AC51: 20 | AD51: 32 | AE51: 17 | AF51: 33.1 | AG51: 11
B52: 33 | C52: 岡山県 | E52: 1.54 | F52: 20 | G52: 0.6995602282 | H52: 22 | I52: 0.5629258286 | J52: 23 | K52: 0.2775139432 | L52: 20 | N52: 0.4801442623 | O52: 17 | P52: 0.3712300655 | Q52: 30 | R52: 83.90936933 | S52: 11 | U52: 30.2 | V52: 3 | W52: 28.8 | X52: 7 | Z52: 31.3 | AA52: 11 | AB52: 30 | AC52: 17 | AD52: 31.9 | AE52: 13 | AF52: 33 | AG52: 3
B53: 34 | C53: 広島県 | E53: 1.6 | F53: 12 | G53: 0.7256018245 | H53: 7 | I53: 0.5822789087 | J53: 15 | K53: 0.2921192668 | L53: 17 | N53: 0.4671302157 | O53: 8 | P53: 0.3557351515 | Q53: 15 | R53: 82.54924858 | S53: 13 | U53: 30.3 | V53: 8 | W53: 28.9 | X53: 9 | Z53: 31.4 | AA53: 16 | AB53: 30.1 | AC53: 20 | AD53: 32 | AE53: 17 | AF53: 33 | AG53: 3
B54: 35 | C54: 山口県 | E54: 1.6 | F54: 12 | G54: 0.6918918919 | H54: 30 | I54: 0.5844015444 | J54: 11 | K54: 0.3237065637 | L54: 10 | N54: 0.478192513 | O54: 15 | P54: 0.3552555076 | Q54: 14 | R54: 82.14397037 | S54: 15 | U54: 30.1 | V54: 2 | W54: 28.6 | X54: 1 | Z54: 31.1 | AA54: 5 | AB54: 29.6 | AC54: 6 | AD54: 31.5 | AE54: 3 | AF54: 33 | AG54: 3
B55: 36 | C55: 徳島県 | E55: 1.53 | F55: 24 | G55: 0.7061117078 | H55: 15 | I55: 0.5666970999 | J55: 20 | K55: 0.2571911923 | L55: 29 | N55: 0.5002530397 | O55: 33 | P55: 0.3826978388 | Q55: 35 | R55: 82.33069832 | S55: 14 | U55: 30.6 | V55: 16 | W55: 29 | X55: 14 | Z55: 31.5 | AA55: 21 | AB55: 30 | AC55: 17 | AD55: 32.2 | AE55: 24 | AF55: 33.5 | AG55: 28
B56: 37 | C56: 香川県 | E56: 1.63 | F56: 9 | G56: 0.7373960358 | H56: 4 | I56: 0.5969698147 | J56: 6 | K56: 0.2956341495 | L56: 16 | N56: 0.4679006372 | O56: 9 | P56: 0.3532496463 | Q56: 12 | R56: 82.07524637 | S56: 17 | U56: 30.2 | V56: 3 | W56: 28.9 | X56: 9 | Z56: 31.3 | AA56: 11 | AB56: 29.9 | AC56: 15 | AD56: 31.9 | AE56: 13 | AF56: 33.2 | AG56: 17
B57: 38 | C57: 愛媛県 | E57: 1.53 | F57: 24 | G57: 0.6853784743 | H57: 32 | I57: 0.5578030751 | J57: 25 | K57: 0.2868184506 | L57: 18 | N57: 0.4628954573 | O57: 6 | P57: 0.361108454 | Q57: 18 | R57: 79.76768584 | S57: 21 | U57: 30.2 | V57: 3 | W57: 28.7 | X57: 3 | Z57: 31.1 | AA57: 5 | AB57: 29.5 | AC57: 4 | AD57: 31.8 | AE57: 11 | AF57: 33.1 | AG57: 11
B58: 39 | C58: 高知県 | E58: 1.51 | F58: 27 | G58: 0.6734026128 | H58: 36 | I58: 0.5329235946 | J58: 35 | K58: 0.3036737926 | L58: 13 | N58: 0.4941593784 | O58: 26 | P58: 0.3887999726 | Q58: 37 | R58: 82.93993934 | S58: 12 | U58: 31.3 | V58: 40 | W58: 29.7 | X58: 44 | Z58: 31.5 | AA58: 21 | AB58: 30 | AC58: 17 | AD58: 32.1 | AE58: 21 | AF58: 33.4 | AG58: 25
B59: 40 | C59: 福岡県 | E59: 1.52 | F59: 26 | G59: 0.6852516856 | H59: 33 | I59: 0.5386112523 | J59: 34 | K59: 0.296137062 | L59: 15 | N59: 0.4710170066 | O59: 10 | P59: 0.4015781801 | Q59: 43 | R59: 89.4283716 | S59: 8 | U59: 30.7 | V59: 21 | W59: 29.4 | X59: 38 | Z59: 31.5 | AA59: 21 | AB59: 30.2 | AC59: 26 | AD59: 32.1 | AE59: 21 | AF59: 33.3 | AG59: 19
B60: 41 | C60: 佐賀県 | E60: 1.64 | F60: 8 | G60: 0.7006681767 | H60: 20 | I60: 0.5655492639 | J60: 22 | K60: 0.3737825595 | L60: 7 | N60: 0.4605485245 | O60: 5 | P60: 0.3686234918 | Q60: 29 | R60: 91.78698329 | S60: 5 | U60: 30.2 | V60: 3 | W60: 28.9 | X60: 9 | Z60: 31 | AA60: 2 | AB60: 29.3 | AC60: 1 | AD60: 31.6 | AE60: 5 | AF60: 33 | AG60: 3
B61: 42 | C61: 長崎県 | E61: 1.67 | F61: 6 | G61: 0.7055825771 | H61: 16 | I61: 0.5769228675 | J61: 17 | K61: 0.3874945554 | L61: 5 | N61: 0.4545787272 | O61: 3 | P61: 0.3747394977 | Q61: 32 | R61: 91.17859288 | S61: 7 | U61: 30.3 | V61: 8 | W61: 29.1 | X61: 23 | Z61: 31.3 | AA61: 11 | AB61: 29.7 | AC61: 8 | AD61: 31.8 | AE61: 11 | AF61: 33 | AG61: 3
B62: 43 | C62: 熊本県 | E62: 1.68 | F62: 5 | G62: 0.719907556 | H62: 8 | I62: 0.5788380304 | J62: 16 | K62: 0.3812544136 | L62: 6 | N62: 0.4563583932 | O62: 4 | P62: 0.3671827743 | Q62: 25 | R62: 95.28861649 | S62: 3 | U62: 30.3 | V62: 8 | W62: 29 | X62: 14 | Z62: 31.2 | AA62: 9 | AB62: 29.7 | AC62: 8 | AD62: 31.6 | AE62: 5 | AF62: 33 | AG62: 3
B63: 44 | C63: 大分県 | E63: 1.59 | F63: 14 | G63: 0.6946652766 | H63: 28 | I63: 0.5671093064 | J63: 19 | K63: 0.328225417 | L63: 9 | N63: 0.4725199474 | O63: 11 | P63: 0.3681092999 | Q63: 28 | R63: 86.3258087 | S63: 10 | U63: 30.3 | V63: 8 | W63: 29 | X63: 14 | Z63: 31.3 | AA63: 11 | AB63: 29.8 | AC63: 12 | AD63: 31.9 | AE63: 13 | AF63: 33.1 | AG63: 11
B64: 45 | C64: 宮崎県 | E64: 1.71 | F64: 3 | G64: 0.696158682 | H64: 26 | I64: 0.5997788858 | J64: 4 | K64: 0.4140624323 | L64: 2 | N64: 0.4262332055 | O64: 1 | P64: 0.3390553145 | Q64: 1 | R64: 92.30376389 | S64: 4 | U64: 29.9 | V64: 1 | W64: 28.7 | X64: 3 | Z64: 31 | AA64: 2 | AB64: 29.3 | AC64: 1 | AD64: 31.5 | AE64: 3 | AF64: 32.8 | AG64: 1
B65: 46 | C65: 鹿児島県 | E65: 1.7 | F65: 4 | G65: 0.7052743363 | H65: 17 | I65: 0.5963539823 | J65: 7 | K65: 0.3983716814 | L65: 3 | N65: 0.4285177577 | O65: 2 | P65: 0.3623643605 | Q65: 21 | R65: 96.10007074 | S65: 2 | U65: 30.4 | V65: 14 | W65: 29 | X65: 14 | Z65: 31.2 | AA65: 9 | AB65: 29.7 | AC65: 8 | AD65: 31.7 | AE65: 9 | AF65: 33 | AG65: 3
B66: 47 | C66: 沖縄県 | E66: 1.96 | F66: 1 | G66: 0.7694917655 | H66: 1 | I66: 0.621748421 | J66: 2 | K66: 0.5687598135 | L66: 1 | N66: 0.4767606387 | O66: 13 | P66: 0.3752269409 | Q66: 33 | R66: 114.9826493 | S66: 1 | U66: 30.3 | V66: 8 | W66: 29 | X66: 14 | Z66: 31.3 | AA66: 11 | AB66: 29.5 | AC66: 4 | AD66: 31.4 | AE66: 1 | AF66: 33.1 | AG66: 11
B67: 資料等
B68: ○ 合計特殊出生率は、厚生労働省「人口動態統計(確定数)」（平成27年）。
B69: ○ 出生順位別内訳は、合計特殊出生率を厚生労働省「人口動態統計(確定数)」（平成27年）の出生順位別出生数で按分して作成。
B70: ○ 未婚率は、総務省「国勢調査」（平成27年）による、日本人未婚者数の日本人人口（配偶関係不詳除く。）に対する割合（性別・年齢階級別）と、総務省による国籍不詳及び年齢不詳按分後の日本人の基準人口（性別・年齢階級別）を用いて作成。
B71: ○ 有配偶出生率は、厚生労働省「人口動態統計」（平成27年）による出生数（母の年齢計）の、総務省「国勢調査」（平成27年）から作成した日本人女性有配偶者数（15～49歳）に対する比率。
B72: ○ 日本人女性有配偶者数は、総務省「国勢調査」（平成27年）による日本人有配偶者数の日本人人口（配偶関係不詳除く）に対する割合（性別・年齢階級別）と、日本人の基準人口（性別・年齢階級別）を用いて作成。
B73: ○ 平均初婚年齢及び出生順位ごとの母の平均年齢は、厚生労働省「人口動態統計(確定数)」（平成27年）。
B74: ○ 合計特殊出生率との相関係数、単純平均、標準偏差は都道府県別データから機械的に計算。変動係数は、標準偏差／単純平均で機械的に計算。
B75: ○ 順位については、指標ごとに昇順又は降順となっている。

Sheet その他（１）
B2: その他関連データ
B4: １．（１）②に用いたデータ | G4: １．（１）③に用いたデータ
D6: 未婚率（25-39女性） | E6: 有配偶出生率（15-49） | I6: 未婚率（25-39女性） | J6: 有配偶出生率（15-49）
B8: 13100 | C8: 東京都区部 | D8: 0.4550976957 | E8: 77.2007256 | H8: （都道府県の単純平均） | I8: 0.1339754209 | J8: 76.07566957
B9: 1100 | C9: 札幌市 | D9: 0.44921433 | E9: 73.20499643 | G9: 1 | H9: 北海道 | I9: 0.1569317713 | J9: 69.9792446
B10: 4100 | C10: 仙台市 | D10: 0.425377805 | E10: 79.25663165 | G10: 2 | H10: 青森県 | I10: 0.1266166435 | J10: 76.25070152
B11: 11100 | C11: さいたま市 | D11: 0.3809058757 | E11: 73.42121859 | G11: 3 | H11: 岩手県 | I11: 0.1356980626 | J11: 76.05603069
B12: 12100 | C12: 千葉市 | D12: 0.3914027068 | E12: 69.11397676 | G12: 4 | H12: 宮城県 | I12: 0.1386785079 | J12: 79.72030948
B13: 14100 | C13: 横浜市 | D13: 0.4016584624 | E13: 72.22181681 | G13: 5 | H13: 秋田県 | I13: 0.1199927555 | J13: 67.55151838
B14: 14130 | C14: 川崎市 | D14: 0.3982086755 | E14: 80.942938 | G14: 6 | H14: 山形県 | I14: 0.1182298883 | J14: 77.16744945
B15: 14150 | C15: 相模原市 | D15: 0.40008617 | E15: 71.48859213 | G15: 7 | H15: 福島県 | I15: 0.1333854093 | J15: 85.89116764
B16: 15100 | C16: 新潟市 | D16: 0.3929891447 | E16: 76.78073595 | G16: 8 | H16: 茨城県 | I16: 0.1109232865 | J16: 74.50751499
B17: 22100 | C17: 静岡市 | D17: 0.3837322977 | E17: 75.42038686 | G17: 9 | H17: 栃木県 | I17: 0.1206654958 | J17: 78.92740892
B18: 22130 | C18: 浜松市 | D18: 0.3378102764 | E18: 81.91147516 | G18: 10 | H18: 群馬県 | I18: 0.136692716 | J18: 75.27671465
B19: 23100 | C19: 名古屋市 | D19: 0.3989322684 | E19: 80.78431821 | G19: 11 | H19: 埼玉県 | I19: 0.1209833336 | J19: 64.34508376
B20: 26100 | C20: 京都市 | D20: 0.4740256204 | E20: 80.12996296 | G20: 12 | H20: 千葉県 | I20: 0.1227721043 | J20: 66.624192
B21: 27100 | C21: 大阪市 | D21: 0.4447585642 | E21: 80.31462894 | G21: 13 | H21: 東京都 | I21: 0.2469969682 | J21: 71.32023645
B22: 27140 | C22: 堺市 | D22: 0.3724850443 | E22: 78.7510468 | G22: 14 | H22: 神奈川県 | I22: 0.1458583532 | J22: 68.13948085
B23: 28100 | C23: 神戸市 | D23: 0.4326438597 | E23: 79.3022198 | G23: 15 | H23: 新潟県 | I23: 0.1249034051 | J23: 75.84945147
B24: 33100 | C24: 岡山市 | D24: 0.3846704972 | E24: 85.43179747 | G24: 16 | H24: 富山県 | I24: 0.08599727042 | J24: 64.64349686
B25: 34100 | C25: 広島市 | D25: 0.3740157813 | E25: 81.05807707 | G25: 17 | H25: 石川県 | I25: 0.0933525106 | J25: 70.24940555
B26: 40100 | C26: 北九州市 | D26: 0.380688417 | E26: 88.84640054 | G26: 18 | H26: 福井県 | I26: 0.08422968708 | J26: 77.18439019
B27: 40130 | C27: 福岡市 | D27: 0.4555663509 | E27: 87.32397432 | G27: 19 | H27: 山梨県 | I27: 0.1502612245 | J27: 80.07799133
B28: 43100 | C28: 熊本市 | D28: 0.3977231433 | E28: 93.71878446 | G28: 20 | H28: 長野県 | I28: 0.1450638318 | J28: 75.99709893
G29: 21 | H29: 岐阜県 | I29: 0.1003323662 | J29: 70.99294896
G30: 22 | H30: 静岡県 | I30: 0.1247411443 | J30: 74.37637906
G31: 23 | H31: 愛知県 | I31: 0.1085367653 | J31: 72.47153468
G32: 24 | H32: 三重県 | I32: 0.09966550923 | J32: 68.97841239
G33: 25 | H33: 滋賀県 | I33: 0.09455605899 | J33: 78.02840005
G34: 26 | H34: 京都府 | I34: 0.1585948869 | J34: 71.29847428
G35: 27 | H35: 大阪府 | I35: 0.1574656129 | J35: 70.02070492
G36: 28 | H36: 兵庫県 | I36: 0.1431591263 | J36: 71.88317621
G37: 29 | H37: 奈良県 | I37: 0.1206065076 | J37: 66.21209238
G38: 30 | H38: 和歌山県 | I38: 0.1277408578 | J38: 71.05064285
G39: 31 | H39: 鳥取県 | I39: 0.1207915893 | J39: 80.78281866
G40: 32 | H40: 島根県 | I40: 0.1185060785 | J40: 78.00363842
G41: 33 | H41: 岡山県 | I41: 0.1076349592 | J41: 74.37802998
G42: 34 | H42: 広島県 | I42: 0.1168303286 | J42: 72.5690084
G43: 35 | H43: 山口県 | I43: 0.1273838404 | J43: 70.73103667
G44: 36 | H44: 徳島県 | I44: 0.1202824359 | J44: 74.50563934
G45: 37 | H45: 香川県 | I45: 0.1079699224 | J45: 70.7711665
G46: 38 | H46: 愛媛県 | I46: 0.1436613581 | J46: 74.93451479
G47: 39 | H47: 高知県 | I47: 0.1631418897 | J47: 76.00197546
G48: 40 | H48: 福岡県 | I48: 0.1754566002 | J48: 79.51855699
G49: 41 | H49: 佐賀県 | I49: 0.1577945163 | J49: 89.51909817
G50: 42 | H50: 長崎県 | I50: 0.1747610499 | J50: 86.27343513
G51: 43 | H51: 熊本県 | I51: 0.1627172012 | J51: 83.75664947
G52: 44 | H52: 大分県 | I52: 0.1398008786 | J52: 74.64780346
G53: 45 | H53: 宮崎県 | I53: 0.1453245419 | J53: 83.73968665
G54: 46 | H54: 鹿児島県 | I54: 0.1627151627 | J54: 90.77368906
G55: 47 | H55: 沖縄県 | I55: 0.198440367 | J55: 123.578069

Sheet ２．（２）働き方関係等指標－その１－
B5: ■働き方関係等指標（働き方関係、仕事と育児の両立関係、経済関係、世帯関係、その他の状況）
E7: 【実数値】 | Q7: ・・・上位10位を網掛け
Q8: ・・・下位10位を網掛け
E9: 働き方関係 | I9: 仕事と育児の両立関係 | M9: 経済関係 | O9: 世帯関係 | Q9: （参考）その他
E10: 週60時間以上 | G10: 平日１日当たりの | I10: 女性の有業率と | K10: 0～5歳人口に | M10: パート・アルバイト | O10: 三世代同居率 | Q10: （参考）最近の合計特殊
E11: 働く雇用者の割合 | G11: 通勤等の時間 | I11: 育児をしている | K11: 対する保育所等 | M11: 割合（25～39歳、 | O11: （H27） | Q11: 出生率の上昇率
E12: （H24） | G12: （H23） | I12: 女性の有業率 | K12: 定員数の比 | M12: 男性、H24） | Q12: （最低値→最高値）
F13: （順位） | H13: （順位） | I13: の差（25～44歳、H24） | J13: （順位） | K13: （H27） | L13: （順位） | N13: （順位） | P13: （順位） | R13: （順位）
E14: （％） | F14: （昇順） | G14: （分） | H14: （昇順） | I14: （％ポイント） | J14: （降順） | K14: （％） | L14: （降順） | M14: （％） | N14: （昇順） | O14: （％） | P14: （降順） | Q14: （％） | R14: （降順）
B15: （合計特殊出生率との相関係数） | E15: =CORREL('１．（２）少子化関係指標'!$E$20:$E$66,E$20:E$66) -> -0.5625503937 | G15: =CORREL('１．（２）少子化関係指標'!$E$20:$E$66,G$20:G$66) -> -0.5590765026 | I15: =CORREL('１．（２）少子化関係指標'!$E$20:$E$66,I$20:I$66) -> 0.5208450322 | K15: =CORREL('１．（２）少子化関係指標'!$E$20:$E$66,K$20:K$66) -> 0.2730866547 | M15: =CORREL('１．（２）少子化関係指標'!$E$20:$E$66,M$20:M$66) -> -0.07508246285 | O15: =CORREL('１．（２）少子化関係指標'!$E$20:$E$66,O$20:O$66) -> 0.108064821 | Q15: =CORREL('１．（２）少子化関係指標'!$E$20:$E$66,Q$20:Q$66) -> 0.05726883198
B16: （単純平均） | E16: =AVERAGE(E$20:E$66) -> 0.08937204669 | G16: =AVERAGE(G$20:G$66) -> 65.04255319 | I16: =AVERAGE(I$20:I$66) -> -0.1464746165 | K16: =AVERAGE(K$20:K$66) -> 0.4804939099 | M16: =AVERAGE(M$20:M$66) -> 0.06076227319 | O16: =AVERAGE(O$20:O$66) -> 0.07821276596 | Q16: =AVERAGE(Q$20:Q$66) -> 0.1489649171
B17: （標準偏差） | E17: =STDEVP(E$20:E$66) -> 0.01046007601 | G17: =STDEVP(G$20:G$66) -> 13.31445774 | I17: =STDEVP(I$20:I$66) -> 0.04275570294 | K17: =STDEVP(K$20:K$66) -> 0.1251684099 | M17: =STDEVP(M$20:M$66) -> 0.01772581058 | O17: =STDEVP(O$20:O$66) -> 0.03669189497 | Q17: =STDEVP(Q$20:Q$66) -> 0.04061536956
B18: （変動係数） | E18: =E17/E16 -> 0.117039683 | G18: =G17/G16 -> 0.2047037991 | I18: =I17/I16 -> -0.2918983778 | K18: =K17/K16 -> 0.2604994722 | M18: =M17/M16 -> 0.2917239538 | O18: =O17/O16 -> 0.4691292338 | Q18: =Q17/Q16 -> 0.2726505701
B19: 全 国 | E19: 0.096 | G19: 75 | I19: -0.1764864672 | K19: 0.4059121242 | M19: 0.06749708358 | O19: 0.05668333283 | Q19: 0.1507936508
B20: 1 | C20: 北海道 | E20: 0.1113680316 | F20: 46 | G20: 57 | H20: 17 | I20: -0.1836670947 | J20: 39 | K20: 0.3245105758 | L20: 43 | M20: 0.06882891805 | N20: 35 | O20: 0.032 | P20: 43 | Q20: 0.1391304348 | R20: 30
B21: 2 | C21: 青森県 | E21: 0.07852623744 | F21: 9 | G21: 55 | H21: 8 | I21: -0.07456325369 | J21: 3 | K21: 0.6617047231 | L21: 7 | M21: 0.08597285068 | N21: 44 | O21: 0.11 | P21: 12 | Q21: 0.1349206349 | R21: 32
B22: 3 | C22: 岩手県 | E22: 0.07841011743 | F22: 8 | G22: 58 | H22: 19 | I22: -0.1168957208 | J22: 14 | K22: 0.5303955011 | L22: 14 | M22: 0.06203208556 | N22: 28 | O22: 0.122 | P22: 6 | Q22: 0.08759124088 | R22: 43
B23: 4 | C23: 宮城県 | E23: 0.09497044287 | F23: 35 | G23: 71 | H23: 37 | I23: -0.1742195492 | J23: 33 | K23: 0.3069117471 | L23: 45 | M23: 0.06497622821 | N23: 31 | O23: 0.091 | P23: 17 | Q23: 0.09677419355 | R23: 42
B24: 5 | C24: 秋田県 | E24: 0.06915017462 | F24: 2 | G24: 56 | H24: 13 | I24: -0.1056405449 | J24: 11 | K24: 0.6684690043 | L24: 6 | M24: 0.0563583815 | N24: 25 | O24: 0.134 | P24: 4 | Q24: 0.06201550388 | R24: 47
B25: 6 | C25: 山形県 | E25: 0.08265306122 | F25: 12 | G25: 55 | H25: 8 | I25: -0.09526511674 | J25: 7 | K25: 0.4743883011 | L25: 22 | M25: 0.05189873418 | N25: 18 | O25: 0.178 | P25: 1 | Q25: 0.06474820144 | R25: 46
B26: 7 | C26: 福島県 | E26: 0.08800866843 | F26: 21 | G26: 59 | H26: 22 | I26: -0.1601922328 | J26: 28 | K26: 0.3469058953 | L26: 40 | M26: 0.04993065187 | N26: 13 | O26: 0.12 | P26: 7 | Q26: 0.1205673759 | R26: 38
B27: 8 | C27: 茨城県 | E27: 0.08483740766 | F27: 15 | G27: 72 | H27: 38 | I27: -0.1664965704 | J27: 30 | K27: 0.4061545619 | L27: 33 | M27: 0.0595623987 | N27: 26 | O27: 0.094 | P27: 16 | Q27: 0.1212121212 | R27: 37
B28: 9 | C28: 栃木県 | E28: 0.09390147672 | F28: 33 | G28: 67 | H28: 29 | I28: -0.1586665909 | J28: 27 | K28: 0.3796576787 | L28: 37 | M28: 0.04559088182 | N28: 8 | O28: 0.097 | P28: 14 | Q28: 0.08759124088 | R28: 43
B29: 10 | C29: 群馬県 | E29: 0.09479201517 | F29: 34 | G29: 64 | H29: 28 | I29: -0.1357111451 | J29: 20 | K29: 0.4788807344 | L29: 20 | M29: 0.05253042921 | N29: 20 | O29: 0.076 | P29: 23 | Q29: 0.1037037037 | R29: 41
B30: 11 | C30: 埼玉県 | E30: 0.1021380501 | F30: 42 | G30: 96 | H30: 45 | I30: -0.2052837898 | J30: 44 | K30: 0.2855277179 | L30: 47 | M30: 0.07655805125 | N30: 41 | O30: 0.047 | P30: 33 | Q30: 0.1583333333 | R30: 18
B31: 12 | C31: 千葉県 | E31: 0.1022259438 | F31: 43 | G31: 98 | H31: 46 | I31: -0.2043854068 | J31: 43 | K31: 0.3152973054 | L31: 44 | M31: 0.06544308491 | N31: 33 | O31: 0.047 | P31: 33 | Q31: 0.15 | R31: 26
B32: 13 | C32: 東京都 | E32: 0.1122927508 | F32: 47 | G32: 93 | H32: 44 | I32: -0.2137550863 | J32: 46 | K32: 0.3484539326 | L32: 39 | M32: 0.09543040909 | N32: 45 | O32: 0.018 | P32: 47 | Q32: 0.24 | R32: 1
B33: 14 | C33: 神奈川県 | E33: 0.1026121995 | F33: 44 | G33: 104 | H33: 47 | I33: -0.2377311344 | J33: 47 | K33: 0.2874290066 | L33: 46 | M33: 0.06732484834 | N33: 34 | O33: 0.03 | P33: 44 | Q33: 0.1680672269 | R33: 14
B34: 15 | C34: 新潟県 | E34: 0.08280688114 | F34: 13 | G34: 54 | H34: 7 | I34: -0.1203703704 | J34: 15 | K34: 0.6395573943 | L34: 9 | M34: 0.04936854191 | N34: 11 | O34: 0.138 | P34: 3 | Q34: 0.07462686567 | R34: 45
B35: 16 | C35: 富山県 | E35: 0.07805949291 | F35: 6 | G35: 60 | H35: 24 | I35: -0.1023461117 | J35: 10 | K35: 0.6722714437 | L35: 4 | M35: 0.03525264395 | N35: 1 | O35: 0.132 | P35: 5 | Q35: 0.1268656716 | R35: 33
B36: 17 | C36: 石川県 | E36: 0.0915008369 | F36: 30 | G36: 56 | H36: 13 | I36: -0.114405078 | J36: 13 | K36: 0.6738675329 | L36: 3 | M36: 0.04983748646 | N36: 12 | O36: 0.088 | P36: 18 | Q36: 0.1407407407 | R36: 28
B37: 18 | C37: 福井県 | E37: 0.08155549554 | F37: 11 | G37: 53 | H37: 4 | I37: -0.08475802804 | J37: 4 | K37: 0.7003849276 | L37: 2 | M37: 0.03594771242 | N37: 2 | O37: 0.149 | P37: 2 | Q37: 0.124137931 | R37: 34
B38: 19 | C38: 山梨県 | E38: 0.09083601286 | F38: 28 | G38: 60 | H38: 24 | I38: -0.1299937158 | J38: 18 | K38: 0.6242210052 | L38: 11 | M38: 0.0510708402 | N38: 16 | O38: 0.079 | P38: 21 | Q38: 0.1526717557 | R38: 22
B39: 20 | C39: 長野県 | E39: 0.08823529412 | F39: 23 | G39: 56 | H39: 13 | I39: -0.1544627451 | J39: 24 | K39: 0.6259632605 | L39: 10 | M39: 0.05334190231 | N39: 21 | O39: 0.099 | P39: 13 | Q39: 0.1126760563 | R39: 39
B40: 21 | C40: 岐阜県 | E40: 0.0885911841 | F40: 24 | G40: 67 | H40: 29 | I40: -0.200666593 | J40: 41 | K40: 0.4596039787 | L40: 24 | M40: 0.03891050584 | N40: 3 | O40: 0.111 | P40: 11 | Q40: 0.1908396947 | R40: 8
B41: 22 | C41: 静岡県 | E41: 0.09196407744 | F41: 31 | G41: 59 | H41: 22 | I41: -0.1831619198 | J41: 37 | K41: 0.3250915802 | L41: 42 | M41: 0.04177631579 | N41: 6 | O41: 0.097 | P41: 14 | Q41: 0.1240875912 | R41: 35
B42: 23 | C42: 愛知県 | E42: 0.09038407625 | F42: 25 | G42: 74 | H42: 39 | I42: -0.17600291 | J42: 34 | K42: 0.4183146039 | L42: 30 | M42: 0.04867951463 | N42: 10 | O42: 0.061 | P42: 30 | Q42: 0.1893939394 | R42: 10
B43: 24 | C43: 三重県 | E43: 0.08029461483 | F43: 10 | G43: 67 | H43: 29 | I43: -0.1369858529 | J43: 21 | K43: 0.5022788266 | L43: 19 | M43: 0.04699378023 | N43: 9 | O43: 0.075 | P43: 24 | Q43: 0.1641791045 | R43: 16
B44: 25 | C44: 滋賀県 | E44: 0.09066955983 | F44: 27 | G44: 68 | H44: 33 | I44: -0.1836339803 | J44: 38 | K44: 0.3849196666 | L44: 36 | M44: 0.04102976669 | N44: 5 | O44: 0.088 | P44: 18 | Q44: 0.1582733813 | R44: 20
B45: 26 | C45: 京都府 | E45: 0.1105699856 | F45: 45 | G45: 77 | H45: 40 | I45: -0.1707475649 | J45: 32 | K45: 0.4621985864 | L45: 23 | M45: 0.09554455446 | N45: 46 | O45: 0.041 | P45: 42 | Q45: 0.1842105263 | R45: 11
B46: 27 | C46: 大阪府 | E46: 0.1008862513 | F46: 40 | G46: 80 | H46: 41 | I46: -0.2029490733 | J46: 42 | K46: 0.3631171982 | L46: 38 | M46: 0.08438340648 | N46: 43 | O46: 0.029 | P46: 45 | Q46: 0.1583333333 | R46: 18
B47: 28 | C47: 兵庫県 | E47: 0.09519952251 | F47: 36 | G47: 84 | H47: 42 | I47: -0.2125196982 | J47: 45 | K47: 0.3370137668 | L47: 41 | M47: 0.05523535062 | N47: 23 | O47: 0.046 | P47: 36 | Q47: 0.1935483871 | R47: 7
B48: 29 | C48: 奈良県 | E48: 0.1020552799 | F48: 41 | G48: 89 | H48: 43 | I48: -0.1762421805 | J48: 35 | K48: 0.4196226538 | L48: 29 | M48: 0.0703043022 | N48: 37 | O48: 0.065 | P48: 27 | Q48: 0.1896551724 | R48: 9
B49: 30 | C49: 和歌山県 | E49: 0.08652333508 | F49: 18 | G49: 70 | H49: 36 | I49: -0.1547933157 | J49: 25 | K49: 0.5302150664 | L49: 15 | M49: 0.05483870968 | N49: 22 | O49: 0.062 | P49: 29 | Q49: 0.2109375 | R49: 4
B50: 31 | C50: 鳥取県 | E50: 0.07104722793 | F50: 3 | G50: 52 | H50: 3 | I50: -0.07153582154 | J50: 2 | K50: 0.6605183367 | L50: 8 | M50: 0.07334963325 | N50: 38 | O50: 0.118 | P50: 9 | Q50: 0.1538461538 | R50: 21
B51: 32 | C51: 島根県 | E51: 0.06806108898 | F51: 1 | G51: 51 | H51: 2 | I51: -0.06720360763 | J51: 1 | K51: 0.6692420448 | L51: 5 | M51: 0.04268292683 | N51: 7 | O51: 0.116 | P51: 10 | Q51: 0.2027027027 | R51: 6
B52: 33 | C52: 岡山県 | E52: 0.08672544993 | F52: 19 | G52: 67 | H52: 29 | I52: -0.1478909013 | J52: 23 | K52: 0.4504121273 | L52: 26 | M52: 0.06344827586 | N52: 29 | O52: 0.071 | P52: 25 | Q52: 0.1240875912 | R52: 35
B53: 34 | C53: 広島県 | E53: 0.0930082351 | F53: 32 | G53: 69 | H53: 35 | I53: -0.1606680644 | J53: 29 | K53: 0.4509382088 | L53: 25 | M53: 0.05158371041 | N53: 17 | O53: 0.045 | P53: 38 | Q53: 0.2030075188 | R53: 5
B54: 35 | C54: 山口県 | E54: 0.08394160584 | F54: 14 | G54: 55 | H54: 8 | I54: -0.1924284586 | J54: 40 | K54: 0.4134177935 | L54: 32 | M54: 0.0612244898 | N54: 27 | O54: 0.047 | P54: 33 | Q54: 0.1764705882 | R54: 12
B55: 36 | C55: 徳島県 | E55: 0.0882061447 | F55: 22 | G55: 62 | H55: 27 | I55: -0.113314222 | J55: 12 | K55: 0.516615099 | L55: 18 | M55: 0.05 | N55: 14 | O55: 0.079 | P55: 21 | Q55: 0.2142857143 | R55: 3
B56: 37 | C56: 香川県 | E56: 0.09925093633 | F56: 38 | G56: 57 | H56: 17 | I56: -0.1203878627 | J56: 16 | K56: 0.4783271618 | L56: 21 | M56: 0.05593451569 | N56: 24 | O56: 0.066 | P56: 26 | Q56: 0.1478873239 | R56: 27
B57: 38 | C57: 愛媛県 | E57: 0.08551842331 | F57: 16 | G57: 53 | H57: 4 | I57: -0.1685005016 | J57: 31 | K57: 0.413548479 | L57: 31 | M57: 0.06494845361 | N57: 30 | O57: 0.048 | P57: 32 | Q57: 0.1503759398 | R57: 25
B58: 39 | C58: 高知県 | E58: 0.07738492328 | F58: 5 | G58: 55 | H58: 8 | I58: -0.1005542359 | J58: 9 | K58: 0.7566604557 | L58: 1 | M58: 0.07407407407 | N58: 39 | O58: 0.045 | P58: 38 | Q58: 0.1705426357 | R58: 13
B59: 40 | C59: 福岡県 | E59: 0.09989343465 | F59: 39 | G59: 68 | H59: 33 | I59: -0.1776161381 | J59: 36 | K59: 0.3987126216 | L59: 34 | M59: 0.08415184497 | N59: 42 | O59: 0.045 | P59: 38 | Q59: 0.216 | R59: 2
B60: 41 | C60: 佐賀県 | E60: 0.09133683919 | F60: 29 | G60: 58 | H60: 19 | I60: -0.1229848397 | J60: 17 | K60: 0.528729041 | L60: 16 | M60: 0.05042016807 | N60: 15 | O60: 0.12 | P60: 7 | Q60: 0.1081081081 | R60: 40
B61: 42 | C61: 長崎県 | E61: 0.09064902557 | F61: 26 | G61: 60 | H61: 24 | I61: -0.1332108996 | J61: 19 | K61: 0.5260526707 | L61: 17 | M61: 0.06920415225 | N61: 36 | O61: 0.065 | P61: 27 | Q61: 0.1517241379 | R61: 23
B62: 43 | C62: 熊本県 | E62: 0.09622085232 | F62: 37 | G62: 56 | H62: 13 | I62: -0.09910019195 | J62: 8 | K62: 0.5592488945 | L62: 12 | M62: 0.06504065041 | N62: 32 | O62: 0.08 | P62: 20 | Q62: 0.1506849315 | R62: 24
B63: 44 | C63: 大分県 | E63: 0.08590576767 | F63: 17 | G63: 53 | H63: 4 | I63: -0.1562579337 | J63: 26 | K63: 0.4315387648 | L63: 28 | M63: 0.03912543153 | N63: 4 | O63: 0.058 | P63: 31 | Q63: 0.1357142857 | R63: 31
B64: 45 | C64: 宮崎県 | E64: 0.08745165449 | F64: 20 | G64: 49 | H64: 1 | I64: -0.09078838299 | J64: 6 | K64: 0.5422133287 | L64: 13 | M64: 0.0520694259 | N64: 19 | O64: 0.046 | P64: 36 | Q64: 0.1621621622 | R64: 17
B65: 46 | C65: 鹿児島県 | E65: 0.07838583249 | F65: 7 | G65: 55 | H65: 8 | I65: -0.1388892865 | J65: 22 | K65: 0.4401971574 | L65: 27 | M65: 0.07634307257 | N65: 40 | O65: 0.026 | P65: 46 | Q65: 0.1643835616 | R65: 15
B66: 47 | C66: 沖縄県 | E66: 0.07148027506 | F66: 4 | G66: 58 | H66: 19 | I66: -0.08646325241 | J66: 5 | K66: 0.393513405 | L66: 35 | M66: 0.1272727273 | N66: 47 | O66: 0.045 | P66: 38 | Q66: 0.1395348837 | R66: 29
B67: 資料等
B68: ○ 週60時間以上働く雇用者の割合、女性の有業率と育児をしている女性の有業率の差（25～44歳）、パート・アルバイト割合（25～39歳、男性）は、総務省「就業構造基本調査」（平成24年）。
B69: ○ １日当たりの通勤等の時間は、総務省「社会生活基本調査」（平成23年）における有業者の「１日当たりの通勤・通学」である。
B70: ○ ０～５歳人口に対する保育所等定員数の比は、厚生労働省「福祉行政報告例」（平成27年10月）、総務省「国勢調査」（平成27年）。０～５歳人口は年齢・国籍不詳按分後の０～５歳の各歳人口を足し上げ。保育所等定員は幼保連携型認定こども園の定員を含む。
B71: ○ 三世代同居率は、総務省「国勢調査」（平成27年）。一般世帯の世帯数に対する三世代同居世帯の世帯数の比率。
B72: ○ （参考）最近の合計特殊出生率の上昇率（最低値→最高値）は、厚生労働省「人口動態統計(確定数)」。最近の最低値（多くの都道府県では2003～2005年の値）から、その後の最高値（都道府県によって2010～2015年の値）への上昇率をみたもの。
B73: ○ 合計特殊出生率との相関係数、単純平均、標準偏差は都道府県別データから機械的に計算。変動係数は、標準偏差／単純平均で機械的に計算。

Sheet ２．（２）働き方関係等指標－その１－【順位順】
B5: ■働き方関係等指標（働き方関係、仕事と育児の両立関係、経済関係、世帯関係、その他の状況） 【順位順】
D7: 【実数値】 | AD7: ・・・上位10位を網掛け
AD8: ・・・下位10位を網掛け
B9: 働き方関係 | L9: 仕事と育児の両立関係 | V9: 経済関係 | AA9: 世帯関係 | AF9: （参考）その他
C10: 週60時間以上 | G10: 平日１日当たりの | L10: 女性の有業率と | R10: 0～5歳人口に | W10: パート・アルバイト | AB10: 三世代同居率 | AG10: （参考）最近の合計特殊
C11: 働く雇用者の割合 | G11: 通勤等の時間 | L11: 育児をしている | R11: 対する保育所等 | W11: 割合（25～39歳、 | AB11: （H27） | AG11: 出生率の上昇率
C12: （H24） | G12: （H23） | L12: 女性の有業率 | R12: 定員数の比 | W12: 男性、H24） | AG12: （最低値→最高値）
E13: （順位） | J13: （順位） | L13: の差（25～44歳、H24） | O13: （順位） | R13: （H27） | T13: （順位） | Y13: （順位） | AD13: （順位） | AI13: （順位）
D14: （％） | E14: （昇順） | I14: （分） | J14: （昇順） | N14: （％ポイント） | O14: （降順） | S14: （％） | T14: （降順） | X14: （％） | Y14: （昇順） | AC14: （％） | AD14: （降順） | AH14: （％） | AI14: （降順）
B15: （合計特殊出生率との相関係数） | D15: ='２．（２）働き方関係等指標－その１－'!E15 -> -0.5625503937 | G15: （合計特殊出生率との相関係数） | I15: ='２．（２）働き方関係等指標－その１－'!G15 -> -0.5590765026 | L15: （合計特殊出生率との相関係数） | N15: ='２．（２）働き方関係等指標－その１－'!I15 -> 0.5208450322 | Q15: （合計特殊出生率との相関係数） | S15: ='２．（２）働き方関係等指標－その１－'!K15 -> 0.2730866547 | V15: （合計特殊出生率との相関係数） | X15: ='２．（２）働き方関係等指標－その１－'!M15 -> -0.07508246285 | AA15: （合計特殊出生率との相関係数） | AC15: ='２．（２）働き方関係等指標－その１－'!O15 -> 0.108064821 | AF15: （合計特殊出生率との相関係数） | AH15: ='２．（２）働き方関係等指標－その１－'!Q15 -> 0.05726883198
B16: （単純平均） | D16: =AVERAGE(D$20:D$66) -> 0.08937204669 | G16: （単純平均） | I16: =AVERAGE(I$20:I$66) -> 65.04255319 | L16: （単純平均） | N16: =AVERAGE(N$20:N$66) -> -0.1464746165 | Q16: （単純平均） | S16: =AVERAGE(S$20:S$66) -> 0.4804939099 | V16: （単純平均） | X16: =AVERAGE(X$20:X$66) -> 0.06076227319 | AA16: （単純平均） | AC16: =AVERAGE(AC$20:AC$66) -> 0.07821276596 | AF16: （単純平均） | AH16: =AVERAGE(AH$20:AH$66) -> 0.1489649171
B17: （標準偏差） | D17: =STDEVP(D$20:D$66) -> 0.01046007601 | G17: （標準偏差） | I17: =STDEVP(I$20:I$66) -> 13.31445774 | L17: （標準偏差） | N17: =STDEVP(N$20:N$66) -> 0.04275570294 | Q17: （標準偏差） | S17: =STDEVP(S$20:S$66) -> 0.1251684099 | V17: （標準偏差） | X17: =STDEVP(X$20:X$66) -> 0.01772581058 | AA17: （標準偏差） | AC17: =STDEVP(AC$20:AC$66) -> 0.03669189497 | AF17: （標準偏差） | AH17: =STDEVP(AH$20:AH$66) -> 0.04061536956
B18: （変動係数） | D18: =D17/D16 -> 0.117039683 | G18: （変動係数） | I18: =I17/I16 -> 0.2047037991 | L18: （変動係数） | N18: =N17/N16 -> -0.2918983778 | Q18: （変動係数） | S18: =S17/S16 -> 0.2604994722 | V18: （変動係数） | X18: =X17/X16 -> 0.2917239538 | AA18: （変動係数） | AC18: =AC17/AC16 -> 0.4691292338 | AF18: （変動係数） | AH18: =AH17/AH16 -> 0.2726505701
B19: 全 国 | D19: 0.096 | G19: 全 国 | I19: 75 | L19: 全 国 | N19: -0.1764864672 | Q19: 全 国 | S19: 0.4059121242 | V19: 全 国 | X19: 0.06749708358 | AA19: 全 国 | AC19: 0.05668333283 | AF19: 全 国 | AH19: 0.1507936508
B20: 32 | C20: 島根県 | D20: 0.06806108898 | E20: 1 | G20: 45 | H20: 宮崎県 | I20: 49 | J20: 1 | L20: 32 | M20: 島根県 | N20: -0.06720360763 | O20: 1 | Q20: 39 | R20: 高知県 | S20: 0.7566604557 | T20: 1 | V20: 16 | W20: 富山県 | X20: 0.03525264395 | Y20: 1 | AA20: 6 | AB20: 山形県 | AC20: 0.178 | AD20: 1 | AF20: 13 | AG20: 東京都 | AH20: 0.24 | AI20: 1
B21: 5 | C21: 秋田県 | D21: 0.06915017462 | E21: 2 | G21: 32 | H21: 島根県 | I21: 51 | J21: 2 | L21: 31 | M21: 鳥取県 | N21: -0.07153582154 | O21: 2 | Q21: 18 | R21: 福井県 | S21: 0.7003849276 | T21: 2 | V21: 18 | W21: 福井県 | X21: 0.03594771242 | Y21: 2 | AA21: 18 | AB21: 福井県 | AC21: 0.149 | AD21: 2 | AF21: 40 | AG21: 福岡県 | AH21: 0.216 | AI21: 2
B22: 31 | C22: 鳥取県 | D22: 0.07104722793 | E22: 3 | G22: 31 | H22: 鳥取県 | I22: 52 | J22: 3 | L22: 2 | M22: 青森県 | N22: -0.07456325369 | O22: 3 | Q22: 17 | R22: 石川県 | S22: 0.6738675329 | T22: 3 | V22: 21 | W22: 岐阜県 | X22: 0.03891050584 | Y22: 3 | AA22: 15 | AB22: 新潟県 | AC22: 0.138 | AD22: 3 | AF22: 36 | AG22: 徳島県 | AH22: 0.2142857143 | AI22: 3
B23: 47 | C23: 沖縄県 | D23: 0.07148027506 | E23: 4 | G23: 18 | H23: 福井県 | I23: 53 | J23: 4 | L23: 18 | M23: 福井県 | N23: -0.08475802804 | O23: 4 | Q23: 16 | R23: 富山県 | S23: 0.6722714437 | T23: 4 | V23: 44 | W23: 大分県 | X23: 0.03912543153 | Y23: 4 | AA23: 5 | AB23: 秋田県 | AC23: 0.134 | AD23: 4 | AF23: 30 | AG23: 和歌山県 | AH23: 0.2109375 | AI23: 4
B24: 39 | C24: 高知県 | D24: 0.07738492328 | E24: 5 | G24: 38 | H24: 愛媛県 | I24: 53 | J24: 4 | L24: 47 | M24: 沖縄県 | N24: -0.08646325241 | O24: 5 | Q24: 32 | R24: 島根県 | S24: 0.6692420448 | T24: 5 | V24: 25 | W24: 滋賀県 | X24: 0.04102976669 | Y24: 5 | AA24: 16 | AB24: 富山県 | AC24: 0.132 | AD24: 5 | AF24: 34 | AG24: 広島県 | AH24: 0.2030075188 | AI24: 5
B25: 16 | C25: 富山県 | D25: 0.07805949291 | E25: 6 | G25: 44 | H25: 大分県 | I25: 53 | J25: 4 | L25: 45 | M25: 宮崎県 | N25: -0.09078838299 | O25: 6 | Q25: 5 | R25: 秋田県 | S25: 0.6684690043 | T25: 6 | V25: 22 | W25: 静岡県 | X25: 0.04177631579 | Y25: 6 | AA25: 3 | AB25: 岩手県 | AC25: 0.122 | AD25: 6 | AF25: 32 | AG25: 島根県 | AH25: 0.2027027027 | AI25: 6
B26: 46 | C26: 鹿児島県 | D26: 0.07838583249 | E26: 7 | G26: 15 | H26: 新潟県 | I26: 54 | J26: 7 | L26: 6 | M26: 山形県 | N26: -0.09526511674 | O26: 7 | Q26: 2 | R26: 青森県 | S26: 0.6617047231 | T26: 7 | V26: 32 | W26: 島根県 | X26: 0.04268292683 | Y26: 7 | AA26: 7 | AB26: 福島県 | AC26: 0.12 | AD26: 7 | AF26: 28 | AG26: 兵庫県 | AH26: 0.1935483871 | AI26: 7
B27: 3 | C27: 岩手県 | D27: 0.07841011743 | E27: 8 | G27: 2 | H27: 青森県 | I27: 55 | J27: 8 | L27: 43 | M27: 熊本県 | N27: -0.09910019195 | O27: 8 | Q27: 31 | R27: 鳥取県 | S27: 0.6605183367 | T27: 8 | V27: 9 | W27: 栃木県 | X27: 0.04559088182 | Y27: 8 | AA27: 41 | AB27: 佐賀県 | AC27: 0.12 | AD27: 7 | AF27: 21 | AG27: 岐阜県 | AH27: 0.1908396947 | AI27: 8
B28: 2 | C28: 青森県 | D28: 0.07852623744 | E28: 9 | G28: 6 | H28: 山形県 | I28: 55 | J28: 8 | L28: 39 | M28: 高知県 | N28: -0.1005542359 | O28: 9 | Q28: 15 | R28: 新潟県 | S28: 0.6395573943 | T28: 9 | V28: 24 | W28: 三重県 | X28: 0.04699378023 | Y28: 9 | AA28: 31 | AB28: 鳥取県 | AC28: 0.118 | AD28: 9 | AF28: 29 | AG28: 奈良県 | AH28: 0.1896551724 | AI28: 9
B29: 24 | C29: 三重県 | D29: 0.08029461483 | E29: 10 | G29: 35 | H29: 山口県 | I29: 55 | J29: 8 | L29: 16 | M29: 富山県 | N29: -0.1023461117 | O29: 10 | Q29: 20 | R29: 長野県 | S29: 0.6259632605 | T29: 10 | V29: 23 | W29: 愛知県 | X29: 0.04867951463 | Y29: 10 | AA29: 32 | AB29: 島根県 | AC29: 0.116 | AD29: 10 | AF29: 23 | AG29: 愛知県 | AH29: 0.1893939394 | AI29: 10
B30: 18 | C30: 福井県 | D30: 0.08155549554 | E30: 11 | G30: 39 | H30: 高知県 | I30: 55 | J30: 8 | L30: 5 | M30: 秋田県 | N30: -0.1056405449 | O30: 11 | Q30: 19 | R30: 山梨県 | S30: 0.6242210052 | T30: 11 | V30: 15 | W30: 新潟県 | X30: 0.04936854191 | Y30: 11 | AA30: 21 | AB30: 岐阜県 | AC30: 0.111 | AD30: 11 | AF30: 26 | AG30: 京都府 | AH30: 0.1842105263 | AI30: 11
B31: 6 | C31: 山形県 | D31: 0.08265306122 | E31: 12 | G31: 46 | H31: 鹿児島県 | I31: 55 | J31: 8 | L31: 36 | M31: 徳島県 | N31: -0.113314222 | O31: 12 | Q31: 43 | R31: 熊本県 | S31: 0.5592488945 | T31: 12 | V31: 17 | W31: 石川県 | X31: 0.04983748646 | Y31: 12 | AA31: 2 | AB31: 青森県 | AC31: 0.11 | AD31: 12 | AF31: 35 | AG31: 山口県 | AH31: 0.1764705882 | AI31: 12
B32: 15 | C32: 新潟県 | D32: 0.08280688114 | E32: 13 | G32: 5 | H32: 秋田県 | I32: 56 | J32: 13 | L32: 17 | M32: 石川県 | N32: -0.114405078 | O32: 13 | Q32: 45 | R32: 宮崎県 | S32: 0.5422133287 | T32: 13 | V32: 7 | W32: 福島県 | X32: 0.04993065187 | Y32: 13 | AA32: 20 | AB32: 長野県 | AC32: 0.099 | AD32: 13 | AF32: 39 | AG32: 高知県 | AH32: 0.1705426357 | AI32: 13
B33: 35 | C33: 山口県 | D33: 0.08394160584 | E33: 14 | G33: 17 | H33: 石川県 | I33: 56 | J33: 13 | L33: 3 | M33: 岩手県 | N33: -0.1168957208 | O33: 14 | Q33: 3 | R33: 岩手県 | S33: 0.5303955011 | T33: 14 | V33: 36 | W33: 徳島県 | X33: 0.05 | Y33: 14 | AA33: 9 | AB33: 栃木県 | AC33: 0.097 | AD33: 14 | AF33: 14 | AG33: 神奈川県 | AH33: 0.1680672269 | AI33: 14
B34: 8 | C34: 茨城県 | D34: 0.08483740766 | E34: 15 | G34: 20 | H34: 長野県 | I34: 56 | J34: 13 | L34: 15 | M34: 新潟県 | N34: -0.1203703704 | O34: 15 | Q34: 30 | R34: 和歌山県 | S34: 0.5302150664 | T34: 15 | V34: 41 | W34: 佐賀県 | X34: 0.05042016807 | Y34: 15 | AA34: 22 | AB34: 静岡県 | AC34: 0.097 | AD34: 14 | AF34: 46 | AG34: 鹿児島県 | AH34: 0.1643835616 | AI34: 15
B35: 38 | C35: 愛媛県 | D35: 0.08551842331 | E35: 16 | G35: 43 | H35: 熊本県 | I35: 56 | J35: 13 | L35: 37 | M35: 香川県 | N35: -0.1203878627 | O35: 16 | Q35: 41 | R35: 佐賀県 | S35: 0.528729041 | T35: 16 | V35: 19 | W35: 山梨県 | X35: 0.0510708402 | Y35: 16 | AA35: 8 | AB35: 茨城県 | AC35: 0.094 | AD35: 16 | AF35: 24 | AG35: 三重県 | AH35: 0.1641791045 | AI35: 16
B36: 44 | C36: 大分県 | D36: 0.08590576767 | E36: 17 | G36: 1 | H36: 北海道 | I36: 57 | J36: 17 | L36: 41 | M36: 佐賀県 | N36: -0.1229848397 | O36: 17 | Q36: 42 | R36: 長崎県 | S36: 0.5260526707 | T36: 17 | V36: 34 | W36: 広島県 | X36: 0.05158371041 | Y36: 17 | AA36: 4 | AB36: 宮城県 | AC36: 0.091 | AD36: 17 | AF36: 45 | AG36: 宮崎県 | AH36: 0.1621621622 | AI36: 17
B37: 30 | C37: 和歌山県 | D37: 0.08652333508 | E37: 18 | G37: 37 | H37: 香川県 | I37: 57 | J37: 17 | L37: 19 | M37: 山梨県 | N37: -0.1299937158 | O37: 18 | Q37: 36 | R37: 徳島県 | S37: 0.516615099 | T37: 18 | V37: 6 | W37: 山形県 | X37: 0.05189873418 | Y37: 18 | AA37: 17 | AB37: 石川県 | AC37: 0.088 | AD37: 18 | AF37: 11 | AG37: 埼玉県 | AH37: 0.1583333333 | AI37: 18
B38: 33 | C38: 岡山県 | D38: 0.08672544993 | E38: 19 | G38: 3 | H38: 岩手県 | I38: 58 | J38: 19 | L38: 42 | M38: 長崎県 | N38: -0.1332108996 | O38: 19 | Q38: 24 | R38: 三重県 | S38: 0.5022788266 | T38: 19 | V38: 45 | W38: 宮崎県 | X38: 0.0520694259 | Y38: 19 | AA38: 25 | AB38: 滋賀県 | AC38: 0.088 | AD38: 18 | AF38: 27 | AG38: 大阪府 | AH38: 0.1583333333 | AI38: 18
B39: 45 | C39: 宮崎県 | D39: 0.08745165449 | E39: 20 | G39: 41 | H39: 佐賀県 | I39: 58 | J39: 19 | L39: 10 | M39: 群馬県 | N39: -0.1357111451 | O39: 20 | Q39: 10 | R39: 群馬県 | S39: 0.4788807344 | T39: 20 | V39: 10 | W39: 群馬県 | X39: 0.05253042921 | Y39: 20 | AA39: 43 | AB39: 熊本県 | AC39: 0.08 | AD39: 20 | AF39: 25 | AG39: 滋賀県 | AH39: 0.1582733813 | AI39: 20
B40: 7 | C40: 福島県 | D40: 0.08800866843 | E40: 21 | G40: 47 | H40: 沖縄県 | I40: 58 | J40: 19 | L40: 24 | M40: 三重県 | N40: -0.1369858529 | O40: 21 | Q40: 37 | R40: 香川県 | S40: 0.4783271618 | T40: 21 | V40: 20 | W40: 長野県 | X40: 0.05334190231 | Y40: 21 | AA40: 19 | AB40: 山梨県 | AC40: 0.079 | AD40: 21 | AF40: 31 | AG40: 鳥取県 | AH40: 0.1538461538 | AI40: 21
B41: 36 | C41: 徳島県 | D41: 0.0882061447 | E41: 22 | G41: 7 | H41: 福島県 | I41: 59 | J41: 22 | L41: 46 | M41: 鹿児島県 | N41: -0.1388892865 | O41: 22 | Q41: 6 | R41: 山形県 | S41: 0.4743883011 | T41: 22 | V41: 30 | W41: 和歌山県 | X41: 0.05483870968 | Y41: 22 | AA41: 36 | AB41: 徳島県 | AC41: 0.079 | AD41: 21 | AF41: 19 | AG41: 山梨県 | AH41: 0.1526717557 | AI41: 22
B42: 20 | C42: 長野県 | D42: 0.08823529412 | E42: 23 | G42: 22 | H42: 静岡県 | I42: 59 | J42: 22 | L42: 33 | M42: 岡山県 | N42: -0.1478909013 | O42: 23 | Q42: 26 | R42: 京都府 | S42: 0.4621985864 | T42: 23 | V42: 28 | W42: 兵庫県 | X42: 0.05523535062 | Y42: 23 | AA42: 10 | AB42: 群馬県 | AC42: 0.076 | AD42: 23 | AF42: 42 | AG42: 長崎県 | AH42: 0.1517241379 | AI42: 23
B43: 21 | C43: 岐阜県 | D43: 0.0885911841 | E43: 24 | G43: 16 | H43: 富山県 | I43: 60 | J43: 24 | L43: 20 | M43: 長野県 | N43: -0.1544627451 | O43: 24 | Q43: 21 | R43: 岐阜県 | S43: 0.4596039787 | T43: 24 | V43: 37 | W43: 香川県 | X43: 0.05593451569 | Y43: 24 | AA43: 24 | AB43: 三重県 | AC43: 0.075 | AD43: 24 | AF43: 43 | AG43: 熊本県 | AH43: 0.1506849315 | AI43: 24
B44: 23 | C44: 愛知県 | D44: 0.09038407625 | E44: 25 | G44: 19 | H44: 山梨県 | I44: 60 | J44: 24 | L44: 30 | M44: 和歌山県 | N44: -0.1547933157 | O44: 25 | Q44: 34 | R44: 広島県 | S44: 0.4509382088 | T44: 25 | V44: 5 | W44: 秋田県 | X44: 0.0563583815 | Y44: 25 | AA44: 33 | AB44: 岡山県 | AC44: 0.071 | AD44: 25 | AF44: 38 | AG44: 愛媛県 | AH44: 0.1503759398 | AI44: 25
B45: 42 | C45: 長崎県 | D45: 0.09064902557 | E45: 26 | G45: 42 | H45: 長崎県 | I45: 60 | J45: 24 | L45: 44 | M45: 大分県 | N45: -0.1562579337 | O45: 26 | Q45: 33 | R45: 岡山県 | S45: 0.4504121273 | T45: 26 | V45: 8 | W45: 茨城県 | X45: 0.0595623987 | Y45: 26 | AA45: 37 | AB45: 香川県 | AC45: 0.066 | AD45: 26 | AF45: 12 | AG45: 千葉県 | AH45: 0.15 | AI45: 26
B46: 25 | C46: 滋賀県 | D46: 0.09066955983 | E46: 27 | G46: 36 | H46: 徳島県 | I46: 62 | J46: 27 | L46: 9 | M46: 栃木県 | N46: -0.1586665909 | O46: 27 | Q46: 46 | R46: 鹿児島県 | S46: 0.4401971574 | T46: 27 | V46: 35 | W46: 山口県 | X46: 0.0612244898 | Y46: 27 | AA46: 29 | AB46: 奈良県 | AC46: 0.065 | AD46: 27 | AF46: 37 | AG46: 香川県 | AH46: 0.1478873239 | AI46: 27
B47: 19 | C47: 山梨県 | D47: 0.09083601286 | E47: 28 | G47: 10 | H47: 群馬県 | I47: 64 | J47: 28 | L47: 7 | M47: 福島県 | N47: -0.1601922328 | O47: 28 | Q47: 44 | R47: 大分県 | S47: 0.4315387648 | T47: 28 | V47: 3 | W47: 岩手県 | X47: 0.06203208556 | Y47: 28 | AA47: 42 | AB47: 長崎県 | AC47: 0.065 | AD47: 27 | AF47: 17 | AG47: 石川県 | AH47: 0.1407407407 | AI47: 28
B48: 41 | C48: 佐賀県 | D48: 0.09133683919 | E48: 29 | G48: 9 | H48: 栃木県 | I48: 67 | J48: 29 | L48: 34 | M48: 広島県 | N48: -0.1606680644 | O48: 29 | Q48: 29 | R48: 奈良県 | S48: 0.4196226538 | T48: 29 | V48: 33 | W48: 岡山県 | X48: 0.06344827586 | Y48: 29 | AA48: 30 | AB48: 和歌山県 | AC48: 0.062 | AD48: 29 | AF48: 47 | AG48: 沖縄県 | AH48: 0.1395348837 | AI48: 29
B49: 17 | C49: 石川県 | D49: 0.0915008369 | E49: 30 | G49: 21 | H49: 岐阜県 | I49: 67 | J49: 29 | L49: 8 | M49: 茨城県 | N49: -0.1664965704 | O49: 30 | Q49: 23 | R49: 愛知県 | S49: 0.4183146039 | T49: 30 | V49: 38 | W49: 愛媛県 | X49: 0.06494845361 | Y49: 30 | AA49: 23 | AB49: 愛知県 | AC49: 0.061 | AD49: 30 | AF49: 1 | AG49: 北海道 | AH49: 0.1391304348 | AI49: 30
B50: 22 | C50: 静岡県 | D50: 0.09196407744 | E50: 31 | G50: 24 | H50: 三重県 | I50: 67 | J50: 29 | L50: 38 | M50: 愛媛県 | N50: -0.1685005016 | O50: 31 | Q50: 38 | R50: 愛媛県 | S50: 0.413548479 | T50: 31 | V50: 4 | W50: 宮城県 | X50: 0.06497622821 | Y50: 31 | AA50: 44 | AB50: 大分県 | AC50: 0.058 | AD50: 31 | AF50: 44 | AG50: 大分県 | AH50: 0.1357142857 | AI50: 31
B51: 34 | C51: 広島県 | D51: 0.0930082351 | E51: 32 | G51: 33 | H51: 岡山県 | I51: 67 | J51: 29 | L51: 26 | M51: 京都府 | N51: -0.1707475649 | O51: 32 | Q51: 35 | R51: 山口県 | S51: 0.4134177935 | T51: 32 | V51: 43 | W51: 熊本県 | X51: 0.06504065041 | Y51: 32 | AA51: 38 | AB51: 愛媛県 | AC51: 0.048 | AD51: 32 | AF51: 2 | AG51: 青森県 | AH51: 0.1349206349 | AI51: 32
B52: 9 | C52: 栃木県 | D52: 0.09390147672 | E52: 33 | G52: 25 | H52: 滋賀県 | I52: 68 | J52: 33 | L52: 4 | M52: 宮城県 | N52: -0.1742195492 | O52: 33 | Q52: 8 | R52: 茨城県 | S52: 0.4061545619 | T52: 33 | V52: 12 | W52: 千葉県 | X52: 0.06544308491 | Y52: 33 | AA52: 11 | AB52: 埼玉県 | AC52: 0.047 | AD52: 33 | AF52: 16 | AG52: 富山県 | AH52: 0.1268656716 | AI52: 33
B53: 10 | C53: 群馬県 | D53: 0.09479201517 | E53: 34 | G53: 40 | H53: 福岡県 | I53: 68 | J53: 33 | L53: 23 | M53: 愛知県 | N53: -0.17600291 | O53: 34 | Q53: 40 | R53: 福岡県 | S53: 0.3987126216 | T53: 34 | V53: 14 | W53: 神奈川県 | X53: 0.06732484834 | Y53: 34 | AA53: 12 | AB53: 千葉県 | AC53: 0.047 | AD53: 33 | AF53: 18 | AG53: 福井県 | AH53: 0.124137931 | AI53: 34
B54: 4 | C54: 宮城県 | D54: 0.09497044287 | E54: 35 | G54: 34 | H54: 広島県 | I54: 69 | J54: 35 | L54: 29 | M54: 奈良県 | N54: -0.1762421805 | O54: 35 | Q54: 47 | R54: 沖縄県 | S54: 0.393513405 | T54: 35 | V54: 1 | W54: 北海道 | X54: 0.06882891805 | Y54: 35 | AA54: 35 | AB54: 山口県 | AC54: 0.047 | AD54: 33 | AF54: 22 | AG54: 静岡県 | AH54: 0.1240875912 | AI54: 35
B55: 28 | C55: 兵庫県 | D55: 0.09519952251 | E55: 36 | G55: 30 | H55: 和歌山県 | I55: 70 | J55: 36 | L55: 40 | M55: 福岡県 | N55: -0.1776161381 | O55: 36 | Q55: 25 | R55: 滋賀県 | S55: 0.3849196666 | T55: 36 | V55: 42 | W55: 長崎県 | X55: 0.06920415225 | Y55: 36 | AA55: 28 | AB55: 兵庫県 | AC55: 0.046 | AD55: 36 | AF55: 33 | AG55: 岡山県 | AH55: 0.1240875912 | AI55: 35
B56: 43 | C56: 熊本県 | D56: 0.09622085232 | E56: 37 | G56: 4 | H56: 宮城県 | I56: 71 | J56: 37 | L56: 22 | M56: 静岡県 | N56: -0.1831619198 | O56: 37 | Q56: 9 | R56: 栃木県 | S56: 0.3796576787 | T56: 37 | V56: 29 | W56: 奈良県 | X56: 0.0703043022 | Y56: 37 | AA56: 45 | AB56: 宮崎県 | AC56: 0.046 | AD56: 36 | AF56: 8 | AG56: 茨城県 | AH56: 0.1212121212 | AI56: 37
B57: 37 | C57: 香川県 | D57: 0.09925093633 | E57: 38 | G57: 8 | H57: 茨城県 | I57: 72 | J57: 38 | L57: 25 | M57: 滋賀県 | N57: -0.1836339803 | O57: 38 | Q57: 27 | R57: 大阪府 | S57: 0.3631171982 | T57: 38 | V57: 31 | W57: 鳥取県 | X57: 0.07334963325 | Y57: 38 | AA57: 34 | AB57: 広島県 | AC57: 0.045 | AD57: 38 | AF57: 7 | AG57: 福島県 | AH57: 0.1205673759 | AI57: 38
B58: 40 | C58: 福岡県 | D58: 0.09989343465 | E58: 39 | G58: 23 | H58: 愛知県 | I58: 74 | J58: 39 | L58: 1 | M58: 北海道 | N58: -0.1836670947 | O58: 39 | Q58: 13 | R58: 東京都 | S58: 0.3484539326 | T58: 39 | V58: 39 | W58: 高知県 | X58: 0.07407407407 | Y58: 39 | AA58: 39 | AB58: 高知県 | AC58: 0.045 | AD58: 38 | AF58: 20 | AG58: 長野県 | AH58: 0.1126760563 | AI58: 39
B59: 27 | C59: 大阪府 | D59: 0.1008862513 | E59: 40 | G59: 26 | H59: 京都府 | I59: 77 | J59: 40 | L59: 35 | M59: 山口県 | N59: -0.1924284586 | O59: 40 | Q59: 7 | R59: 福島県 | S59: 0.3469058953 | T59: 40 | V59: 46 | W59: 鹿児島県 | X59: 0.07634307257 | Y59: 40 | AA59: 40 | AB59: 福岡県 | AC59: 0.045 | AD59: 38 | AF59: 41 | AG59: 佐賀県 | AH59: 0.1081081081 | AI59: 40
B60: 29 | C60: 奈良県 | D60: 0.1020552799 | E60: 41 | G60: 27 | H60: 大阪府 | I60: 80 | J60: 41 | L60: 21 | M60: 岐阜県 | N60: -0.200666593 | O60: 41 | Q60: 28 | R60: 兵庫県 | S60: 0.3370137668 | T60: 41 | V60: 11 | W60: 埼玉県 | X60: 0.07655805125 | Y60: 41 | AA60: 47 | AB60: 沖縄県 | AC60: 0.045 | AD60: 38 | AF60: 10 | AG60: 群馬県 | AH60: 0.1037037037 | AI60: 41
B61: 11 | C61: 埼玉県 | D61: 0.1021380501 | E61: 42 | G61: 28 | H61: 兵庫県 | I61: 84 | J61: 42 | L61: 27 | M61: 大阪府 | N61: -0.2029490733 | O61: 42 | Q61: 22 | R61: 静岡県 | S61: 0.3250915802 | T61: 42 | V61: 40 | W61: 福岡県 | X61: 0.08415184497 | Y61: 42 | AA61: 26 | AB61: 京都府 | AC61: 0.041 | AD61: 42 | AF61: 4 | AG61: 宮城県 | AH61: 0.09677419355 | AI61: 42
B62: 12 | C62: 千葉県 | D62: 0.1022259438 | E62: 43 | G62: 29 | H62: 奈良県 | I62: 89 | J62: 43 | L62: 12 | M62: 千葉県 | N62: -0.2043854068 | O62: 43 | Q62: 1 | R62: 北海道 | S62: 0.3245105758 | T62: 43 | V62: 27 | W62: 大阪府 | X62: 0.08438340648 | Y62: 43 | AA62: 1 | AB62: 北海道 | AC62: 0.032 | AD62: 43 | AF62: 3 | AG62: 岩手県 | AH62: 0.08759124088 | AI62: 43
B63: 14 | C63: 神奈川県 | D63: 0.1026121995 | E63: 44 | G63: 13 | H63: 東京都 | I63: 93 | J63: 44 | L63: 11 | M63: 埼玉県 | N63: -0.2052837898 | O63: 44 | Q63: 12 | R63: 千葉県 | S63: 0.3152973054 | T63: 44 | V63: 2 | W63: 青森県 | X63: 0.08597285068 | Y63: 44 | AA63: 14 | AB63: 神奈川県 | AC63: 0.03 | AD63: 44 | AF63: 9 | AG63: 栃木県 | AH63: 0.08759124088 | AI63: 43
B64: 26 | C64: 京都府 | D64: 0.1105699856 | E64: 45 | G64: 11 | H64: 埼玉県 | I64: 96 | J64: 45 | L64: 28 | M64: 兵庫県 | N64: -0.2125196982 | O64: 45 | Q64: 4 | R64: 宮城県 | S64: 0.3069117471 | T64: 45 | V64: 13 | W64: 東京都 | X64: 0.09543040909 | Y64: 45 | AA64: 27 | AB64: 大阪府 | AC64: 0.029 | AD64: 45 | AF64: 15 | AG64: 新潟県 | AH64: 0.07462686567 | AI64: 45
B65: 1 | C65: 北海道 | D65: 0.1113680316 | E65: 46 | G65: 12 | H65: 千葉県 | I65: 98 | J65: 46 | L65: 13 | M65: 東京都 | N65: -0.2137550863 | O65: 46 | Q65: 14 | R65: 神奈川県 | S65: 0.2874290066 | T65: 46 | V65: 26 | W65: 京都府 | X65: 0.09554455446 | Y65: 46 | AA65: 46 | AB65: 鹿児島県 | AC65: 0.026 | AD65: 46 | AF65: 6 | AG65: 山形県 | AH65: 0.06474820144 | AI65: 46
B66: 13 | C66: 東京都 | D66: 0.1122927508 | E66: 47 | G66: 14 | H66: 神奈川県 | I66: 104 | J66: 47 | L66: 14 | M66: 神奈川県 | N66: -0.2377311344 | O66: 47 | Q66: 11 | R66: 埼玉県 | S66: 0.2855277179 | T66: 47 | V66: 47 | W66: 沖縄県 | X66: 0.1272727273 | Y66: 47 | AA66: 13 | AB66: 東京都 | AC66: 0.018 | AD66: 47 | AF66: 5 | AG66: 秋田県 | AH66: 0.06201550388 | AI66: 47
B67: 資料等
B68: ○ 週60時間以上働く雇用者の割合、女性の有業率と育児をしている女性の有業率の差（25～44歳）、パート・アルバイト割合（25～39歳、男性）は、総務省「就業構造基本調査」（平成24年）。
B69: ○ １日当たりの通勤等の時間は、総務省「社会生活基本調査」（平成23年）における有業者の「１日当たりの通勤・通学」である。
B70: ○ ０～５歳人口に対する保育所等定員数の比は、厚生労働省「福祉行政報告例」（平成27年10月）、総務省「国勢調査」（平成27年）。０～５歳人口は年齢・国籍不詳按分後の０～５歳の各歳人口を足し上げ。保育所等定員は幼保連携型認定こども園
B71: の定員を含む。
B72: ○ 三世代同居率は、総務省「国勢調査」（平成27年）。一般世帯の世帯数に対する三世代同居世帯の世帯数の比率。
B73: ○ （参考）最近の合計特殊出生率の上昇率（最低値→最高値）は、厚生労働省「人口動態統計(確定数)」。最近の最低値（多くの都道府県では2003～2005年の値）から、その後の最高値（都道府県によって2010～2015年の値）への上昇率をみたもの。
B74: ○ 合計特殊出生率との相関係数、単純平均、標準偏差は都道府県別データから機械的に計算。変動係数は、標準偏差／単純平均で機械的に計算。

Sheet その他（２）
B2: その他関連データ
B4: ２．（１）⑧に用いたデータ（少子化関連指標、働き方等関連指標で示されているものを除く）
D6: 1970年の合計特殊出生率 | E6: 1985年の合計特殊出生率 | F6: 最も低い合計特殊出生率 | G6: 最近では最も高い合計特殊出生率 | H6: 2015年の合計特殊出生率
C8: 全国 | D8: 2.13 | E8: 1.76 | F8: 1.26 | G8: 1.45 | H8: 1.45
B9: 1 | C9: 北海道 | D9: 1.93 | E9: 1.61 | F9: 1.15 | G9: 1.31 | H9: 1.31
B10: 2 | C10: 青森県 | D10: 2.25 | E10: 1.8 | F10: 1.26 | G10: 1.43 | H10: 1.43
B11: 3 | C11: 岩手県 | D11: 2.11 | E11: 1.88 | F11: 1.37 | G11: 1.49 | H11: 1.49
B12: 4 | C12: 宮城県 | D12: 2.06 | E12: 1.8 | F12: 1.24 | G12: 1.36 | H12: 1.36
B13: 5 | C13: 秋田県 | D13: 1.88 | E13: 1.69 | F13: 1.29 | G13: 1.37 | H13: 1.35
B14: 6 | C14: 山形県 | D14: 1.98 | E14: 1.87 | F14: 1.39 | G14: 1.48 | H14: 1.48
B15: 7 | C15: 福島県 | D15: 2.16 | E15: 1.98 | F15: 1.41 | G15: 1.58 | H15: 1.58
B16: 8 | C16: 茨城県 | D16: 2.3 | E16: 1.86 | F16: 1.32 | G16: 1.48 | H16: 1.48
B17: 9 | C17: 栃木県 | D17: 2.21 | E17: 1.9 | F17: 1.37 | G17: 1.49 | H17: 1.49
B18: 10 | C18: 群馬県 | D18: 2.16 | E18: 1.85 | F18: 1.35 | G18: 1.49 | H18: 1.49
B19: 11 | C19: 埼玉県 | D19: 2.35 | E19: 1.72 | F19: 1.2 | G19: 1.39 | H19: 1.39
B20: 12 | C20: 千葉県 | D20: 2.28 | E20: 1.75 | F20: 1.2 | G20: 1.38 | H20: 1.38
B21: 13 | C21: 東京都 | D21: 1.96 | E21: 1.44 | F21: 1 | G21: 1.24 | H21: 1.24
B22: 14 | C22: 神奈川県 | D22: 2.23 | E22: 1.68 | F22: 1.19 | G22: 1.39 | H22: 1.39
B23: 15 | C23: 新潟県 | D23: 2.1 | E23: 1.88 | F23: 1.34 | G23: 1.44 | H23: 1.44
B24: 16 | C24: 富山県 | D24: 1.94 | E24: 1.79 | F24: 1.34 | G24: 1.51 | H24: 1.51
B25: 17 | C25: 石川県 | D25: 2.07 | E25: 1.79 | F25: 1.35 | G25: 1.54 | H25: 1.54
B26: 18 | C26: 福井県 | D26: 2.1 | E26: 1.93 | F26: 1.45 | G26: 1.63 | H26: 1.63
B27: 19 | C27: 山梨県 | D27: 2.2 | E27: 1.85 | F27: 1.31 | G27: 1.51 | H27: 1.51
B28: 20 | C28: 長野県 | D28: 2.09 | E28: 1.85 | F28: 1.42 | G28: 1.58 | H28: 1.58
B29: 21 | C29: 岐阜県 | D29: 2.12 | E29: 1.81 | F29: 1.31 | G29: 1.56 | H29: 1.56
B30: 22 | C30: 静岡県 | D30: 2.12 | E30: 1.85 | F30: 1.37 | G30: 1.54 | H30: 1.54
B31: 23 | C31: 愛知県 | D31: 2.19 | E31: 1.82 | F31: 1.32 | G31: 1.57 | H31: 1.57
B32: 24 | C32: 三重県 | D32: 2.04 | E32: 1.8 | F32: 1.34 | G32: 1.56 | H32: 1.56
B33: 25 | C33: 滋賀県 | D33: 2.19 | E33: 1.97 | F33: 1.39 | G33: 1.61 | H33: 1.61
B34: 26 | C34: 京都府 | D34: 2.02 | E34: 1.68 | F34: 1.14 | G34: 1.35 | H34: 1.35
B35: 27 | C35: 大阪府 | D35: 2.17 | E35: 1.69 | F35: 1.2 | G35: 1.39 | H35: 1.39
B36: 28 | C36: 兵庫県 | D36: 2.12 | E36: 1.75 | F36: 1.24 | G36: 1.48 | H36: 1.48
B37: 29 | C37: 奈良県 | D37: 2.08 | E37: 1.69 | F37: 1.16 | G37: 1.38 | H37: 1.38
B38: 30 | C38: 和歌山県 | D38: 2.1 | E38: 1.79 | F38: 1.28 | G38: 1.55 | H38: 1.54
B39: 31 | C39: 鳥取県 | D39: 1.96 | E39: 1.93 | F39: 1.43 | G39: 1.65 | H39: 1.65
B40: 32 | C40: 島根県 | D40: 2.02 | E40: 2.01 | F40: 1.48 | G40: 1.78 | H40: 1.78
B41: 33 | C41: 岡山県 | D41: 2.03 | E41: 1.89 | F41: 1.37 | G41: 1.54 | H41: 1.54
B42: 34 | C42: 広島県 | D42: 2.07 | E42: 1.83 | F42: 1.33 | G42: 1.6 | H42: 1.6
B43: 35 | C43: 山口県 | D43: 1.98 | E43: 1.82 | F43: 1.36 | G43: 1.6 | H43: 1.6
B44: 36 | C44: 徳島県 | D44: 1.97 | E44: 1.8 | F44: 1.26 | G44: 1.53 | H44: 1.53
B45: 37 | C45: 香川県 | D45: 1.97 | E45: 1.81 | F45: 1.42 | G45: 1.63 | H45: 1.63
B46: 38 | C46: 愛媛県 | D46: 2.02 | E46: 1.78 | F46: 1.33 | G46: 1.53 | H46: 1.53
B47: 39 | C47: 高知県 | D47: 1.97 | E47: 1.81 | F47: 1.29 | G47: 1.51 | H47: 1.51
B48: 40 | C48: 福岡県 | D48: 1.95 | E48: 1.75 | F48: 1.25 | G48: 1.52 | H48: 1.52
B49: 41 | C49: 佐賀県 | D49: 2.13 | E49: 1.95 | F49: 1.48 | G49: 1.64 | H49: 1.64
B50: 42 | C50: 長崎県 | D50: 2.33 | E50: 1.87 | F50: 1.45 | G50: 1.67 | H50: 1.67
B51: 43 | C51: 熊本県 | D51: 1.98 | E51: 1.85 | F51: 1.46 | G51: 1.68 | H51: 1.68
B52: 44 | C52: 大分県 | D52: 1.97 | E52: 1.78 | F52: 1.4 | G52: 1.59 | H52: 1.59
B53: 45 | C53: 宮崎県 | D53: 2.15 | E53: 1.9 | F53: 1.48 | G53: 1.72 | H53: 1.71
B54: 46 | C54: 鹿児島県 | D54: 2.21 | E54: 1.93 | F54: 1.46 | G54: 1.7 | H54: 1.7
B55: 47 | C55: 沖縄県 | E55: 2.31 | F55: 1.72 | G55: 1.96 | H55: 1.96

Sheet ３．（２）性比、移動
B5: ■性比（女性人口100人当たりの男性人口）、1995年の10～14歳人口を1としたときの2015年の30～34歳人口
E7: 【実数値】 | P7: 【実数値】 | S7: ・・・上位10位を網掛け
S8: ・・・下位10位を網掛け
E9: 女性人口100人当たりの男性人口（H27） | P9: 1995年の10～14歳人口を1としたときの 2015年の30～34歳人口
E10: 25～29歳 | G10: 30～34歳 | I10: 35～39歳 | K10: 40～44歳 | M10: 45～49歳 | P10: 男性 | R10: 女性
F13: （順位） | H13: （順位） | J13: （順位） | L13: （順位） | N13: （順位） | Q13: （順位） | S13: （順位）
F14: （昇順） | H14: （昇順） | J14: （昇順） | L14: （昇順） | N14: （昇順） | Q14: （降順） | S14: （降順）
B15: （合計特殊出生率との相関係数） | E15: =CORREL('１．（２）少子化関係指標'!$E$20:$E$66,E$20:E$66) -> -0.1426848392 | G15: =CORREL('１．（２）少子化関係指標'!$E$20:$E$66,G$20:G$66) -> -0.2052485499 | I15: =CORREL('１．（２）少子化関係指標'!$E$20:$E$66,I$20:I$66) -> -0.1888202039 | K15: =CORREL('１．（２）少子化関係指標'!$E$20:$E$66,K$20:K$66) -> -0.1279600443 | M15: =CORREL('１．（２）少子化関係指標'!$E$20:$E$66,M$20:M$66) -> -0.2476764024 | P15: =CORREL('１．（２）少子化関係指標'!$E$20:$E$66,P$20:P$66) -> -0.4367829955 | R15: =CORREL('１．（２）少子化関係指標'!$E$20:$E$66,R$20:R$66) -> -0.4253952155
B16: （単純平均） | E16: =AVERAGE(E$20:E$66) -> 103.9451138 | G16: =AVERAGE(G$20:G$66) -> 101.9783746 | I16: =AVERAGE(I$20:I$66) -> 102.2190974 | K16: =AVERAGE(K$20:K$66) -> 101.7054645 | M16: =AVERAGE(M$20:M$66) -> 99.42537026 | P16: =AVERAGE(P$20:P$66) -> 0.8502492265 | R16: =AVERAGE(R$20:R$66) -> 0.8728608556
B17: （標準偏差） | E17: =STDEVP(E$20:E$66) -> 5.75229738 | G17: =STDEVP(G$20:G$66) -> 4.824518613 | I17: =STDEVP(I$20:I$66) -> 4.26260215 | K17: =STDEVP(K$20:K$66) -> 4.286052058 | M17: =STDEVP(M$20:M$66) -> 5.340980536 | P17: =STDEVP(P$20:P$66) -> 0.1996838461 | R17: =STDEVP(R$20:R$66) -> 0.1914132159
B18: （変動係数） | E18: =E17/E16 -> 0.05533975737 | G18: =G17/G16 -> 0.04730923231 | I18: =I17/I16 -> 0.0417006436 | K18: =K17/K16 -> 0.04214180704 | M18: =M17/M16 -> 0.05371848777 | P18: =P17/P16 -> 0.2348533111 | R18: =R17/R16 -> 0.2192940773
B19: 全 国 | E19: 104.1918775 | G19: 102.9116856 | I19: 102.8811824 | K19: 102.6497858 | M19: 101.8038427 | P19: 0.9788886968 | R19: 0.997783304
B20: 1 | C20: 北海道 | E20: 99.23283468 | F20: 12 | G20: 97.58976881 | H20: 13 | I20: 97.72627846 | J20: 9 | K20: 97.74163045 | L20: 12 | M20: 93.51980456 | N20: 8 | P20: 0.8102689815 | Q20: 24 | R20: 0.8677649253 | S20: 18
B21: 2 | C21: 青森県 | E21: 104.1120291 | F21: 21 | G21: 101.4846464 | H21: 22 | I21: 100.9817525 | J21: 17 | K21: 98.40105385 | L21: 16 | M21: 95.15013161 | N21: 14 | P21: 0.6579811471 | Q21: 45 | R21: 0.6821939206 | S21: 44
B22: 3 | C22: 岩手県 | E22: 107.0013507 | F22: 34 | G22: 103.7669309 | H22: 27 | I22: 104.8153017 | J22: 33 | K22: 106.8087408 | L22: 42 | M22: 102.3853731 | N22: 32 | P22: 0.7103542209 | Q22: 38 | R22: 0.7163580179 | S22: 42
B23: 4 | C23: 宮城県 | E23: 104.8659042 | F23: 25 | G23: 100.5009773 | H23: 18 | I23: 102.6583268 | J23: 25 | K23: 103.9787065 | L23: 33 | M23: 103.9691667 | N23: 37 | P23: 0.893155902 | Q23: 13 | R23: 0.9275309109 | S23: 12
B24: 5 | C24: 秋田県 | E24: 104.202264 | F24: 22 | G24: 103.9158811 | H24: 30 | I24: 104.5444967 | J24: 32 | K24: 100.1868981 | L24: 18 | M24: 97.72355553 | N24: 18 | P24: 0.6421658095 | Q24: 46 | R24: 0.6479129091 | S24: 47
B25: 6 | C25: 山形県 | E25: 104.6390246 | F25: 24 | G25: 103.8207845 | H25: 29 | I25: 105.5649345 | J25: 36 | K25: 102.0473923 | L25: 25 | M25: 99.57643904 | N25: 25 | P25: 0.7346714889 | Q25: 33 | R25: 0.7428023631 | S25: 41
B26: 7 | C26: 福島県 | E26: 111.8098598 | F26: 43 | G26: 109.7390184 | H26: 45 | I26: 110.2051638 | J26: 47 | K26: 109.8302967 | L26: 46 | M26: 106.4562132 | N26: 41 | P26: 0.7175681898 | Q26: 37 | R26: 0.6818765827 | S26: 46
B27: 8 | C27: 茨城県 | E27: 115.4499404 | F27: 47 | G27: 109.5056166 | H27: 44 | I27: 109.0144631 | J27: 45 | K27: 108.918148 | L27: 45 | M27: 107.3753152 | N27: 44 | P27: 0.8743020313 | Q27: 16 | R27: 0.8323995292 | S27: 22
B28: 9 | C28: 栃木県 | E28: 113.6277363 | F28: 46 | G28: 112.0830768 | H28: 47 | I28: 109.7649556 | J28: 46 | K28: 109.884187 | L28: 47 | M28: 106.8070496 | N28: 42 | P28: 0.9332391187 | Q28: 10 | R28: 0.8762928014 | S28: 15
B29: 10 | C29: 群馬県 | E29: 113.1542668 | F29: 44 | G29: 108.043064 | H29: 43 | I29: 107.0658037 | J29: 41 | K29: 105.8524034 | L29: 38 | M29: 105.0380695 | N29: 38 | P29: 0.868483928 | Q29: 18 | R29: 0.8460057898 | S29: 20
B30: 11 | C30: 埼玉県 | E30: 106.4939389 | F30: 32 | G30: 105.6400386 | H30: 38 | I30: 107.6584237 | J30: 43 | K30: 108.6868646 | L30: 44 | M30: 107.8626468 | N30: 45 | P30: 1.074924818 | Q30: 4 | R30: 1.071429757 | S30: 5
B31: 12 | C31: 千葉県 | E31: 106.4413993 | F31: 31 | G31: 105.6228611 | H31: 37 | I31: 105.6200052 | J31: 37 | K31: 106.6199249 | L31: 41 | M31: 107.343767 | N31: 43 | P31: 1.0524524 | Q31: 5 | R31: 1.051340471 | S31: 6
B32: 13 | C32: 東京都 | E32: 103.1352261 | F32: 19 | G32: 105.4314377 | H32: 36 | I32: 105.197561 | J32: 34 | K32: 103.4646968 | L32: 30 | M32: 105.7655171 | N32: 40 | P32: 1.825337725 | Q32: 1 | R32: 1.816770334 | S32: 1
B33: 14 | C33: 神奈川県 | E33: 109.6382027 | F33: 39 | G33: 106.9635743 | H33: 40 | I33: 106.631594 | J33: 39 | K33: 105.9118405 | L33: 39 | M33: 108.8475637 | N33: 47 | P33: 1.285681378 | Q33: 2 | R33: 1.259846394 | S33: 2
B34: 15 | C34: 新潟県 | E34: 106.1481715 | F34: 28 | G34: 105.3291697 | H34: 35 | I34: 105.2314608 | J34: 35 | K34: 103.2033622 | L34: 29 | M34: 103.2491433 | N34: 36 | P34: 0.7813259585 | Q34: 28 | R34: 0.7779776162 | S34: 31
B35: 16 | C35: 富山県 | E35: 109.7866501 | F35: 41 | G35: 107.3393444 | H35: 41 | I35: 107.2058869 | J35: 42 | K35: 105.2768015 | L35: 36 | M35: 102.5595815 | N35: 33 | P35: 0.8439428303 | Q35: 21 | R35: 0.8301036062 | S35: 23
B36: 17 | C36: 石川県 | E36: 107.297439 | F36: 36 | G36: 103.2532766 | H36: 26 | I36: 102.9986207 | J36: 26 | K36: 102.6269145 | L36: 27 | M36: 99.79193342 | N36: 26 | P36: 0.8582294352 | Q36: 20 | R36: 0.868200353 | S36: 17
B37: 18 | C37: 福井県 | E37: 106.1919678 | F37: 29 | G37: 101.853754 | H37: 23 | I37: 103.6145596 | J37: 29 | K37: 102.8535078 | L37: 28 | M37: 99.05096948 | N37: 22 | P37: 0.79002066 | Q37: 27 | R37: 0.8076402535 | S37: 29
B38: 19 | C38: 山梨県 | E38: 108.2428784 | F38: 38 | G38: 105.2338094 | H38: 34 | I38: 103.4222907 | J38: 28 | K38: 105.5783972 | L38: 37 | M38: 102.5705574 | N38: 34 | P38: 0.8007753607 | Q38: 26 | R38: 0.7898824911 | S38: 30
B39: 20 | C39: 長野県 | E39: 107.1116741 | F39: 35 | G39: 104.4515753 | H39: 32 | I39: 104.2933754 | J39: 30 | K39: 104.7128819 | L39: 35 | M39: 102.9448051 | N39: 35 | P39: 0.8047434524 | Q39: 25 | R39: 0.8089432058 | S39: 28
B40: 21 | C40: 岐阜県 | E40: 104.0855533 | F40: 20 | G40: 102.6645679 | H40: 25 | I40: 103.3956956 | J40: 27 | K40: 102.0827777 | L40: 26 | M40: 99.47813568 | N40: 23 | P40: 0.810877231 | Q40: 23 | R40: 0.8243511943 | S40: 25
B41: 22 | C41: 静岡県 | E41: 110.895286 | F41: 42 | G41: 107.7738587 | H41: 42 | I41: 106.7392468 | J41: 40 | K41: 106.1613674 | L41: 40 | M41: 105.5725272 | N41: 39 | P41: 0.901799783 | Q41: 12 | R41: 0.8735783225 | S41: 16
B42: 23 | C42: 愛知県 | E42: 113.2802065 | F42: 45 | G42: 110.5151414 | H42: 46 | I42: 108.3287094 | J42: 44 | K42: 107.6172689 | L42: 43 | M42: 108.0824706 | N42: 46 | P42: 1.201080079 | Q42: 3 | R42: 1.141784173 | S42: 3
B43: 24 | C43: 三重県 | E43: 107.4238071 | F43: 37 | G43: 106.3974057 | H43: 39 | I43: 104.514571 | J43: 31 | K43: 103.9730201 | L43: 32 | M43: 102.1366881 | N43: 30 | P43: 0.8776930004 | Q43: 15 | R43: 0.8613367261 | S43: 19
B44: 25 | C44: 滋賀県 | E44: 109.7048524 | F44: 40 | G44: 104.7415382 | H44: 33 | I44: 101.4869734 | J44: 21 | K44: 103.4648314 | L44: 31 | M44: 101.4293674 | N44: 29 | P44: 0.9672391485 | Q44: 7 | R44: 0.9847034502 | S44: 9
B45: 26 | C45: 京都府 | E45: 99.72246973 | F45: 13 | G45: 96.21923542 | H45: 5 | I45: 97.99130157 | J45: 11 | K45: 97.48147856 | L45: 10 | M45: 97.10363113 | N45: 17 | P45: 0.9358314956 | Q45: 8 | R45: 1.038467928 | S45: 7
B46: 27 | C46: 大阪府 | E46: 97.28748113 | F46: 7 | G46: 97.55964152 | H46: 12 | I46: 97.08956127 | J46: 7 | K46: 98.07838241 | L46: 13 | M46: 98.3747921 | N46: 20 | P46: 1.046500154 | Q46: 6 | R46: 1.129875386 | S46: 4
B47: 28 | C47: 兵庫県 | E47: 99.14541397 | F47: 11 | G47: 96.55707999 | H47: 7 | I47: 95.7061285 | J47: 3 | K47: 96.71923237 | L47: 7 | M47: 95.81857268 | N47: 15 | P47: 0.8868606824 | Q47: 14 | R47: 0.9576950771 | S47: 10
B48: 29 | C48: 奈良県 | E48: 93.63374702 | F48: 2 | G48: 93.41055776 | H48: 2 | I48: 93.32085343 | J48: 1 | K48: 93.31701771 | L48: 1 | M48: 90.38806219 | N48: 1 | P48: 0.734540747 | Q48: 34 | R48: 0.8240064295 | S48: 26
B49: 30 | C49: 和歌山県 | E49: 100.2082052 | F49: 15 | G49: 96.2745098 | H49: 6 | I49: 97.84007854 | J49: 10 | K49: 97.08433665 | L49: 9 | M49: 91.3379713 | N49: 4 | P49: 0.6818742794 | Q49: 42 | R49: 0.7433186215 | S49: 39
B50: 31 | C50: 鳥取県 | E50: 103.0250784 | F50: 18 | G50: 101.3289689 | H50: 21 | I50: 102.6562858 | J50: 24 | K50: 101.4579088 | L50: 22 | M50: 98.66041929 | N50: 21 | P50: 0.7442468619 | Q50: 32 | R50: 0.771977747 | S50: 33
B51: 32 | C51: 島根県 | E51: 105.4327938 | F51: 26 | G51: 104.043943 | H51: 31 | I51: 106.1675817 | J51: 38 | K51: 104.3888864 | L51: 34 | M51: 102.3286101 | N51: 31 | P51: 0.7041737473 | Q51: 41 | R51: 0.709098178 | S51: 43
B52: 33 | C52: 岡山県 | E52: 100.2380654 | F52: 16 | G52: 99.72198419 | H52: 16 | I52: 101.4066322 | J52: 19 | K52: 101.2951786 | L52: 20 | M52: 98.12893664 | N52: 19 | P52: 0.8587812369 | Q52: 19 | R52: 0.9017226753 | S52: 14
B53: 34 | C53: 広島県 | E53: 106.3774003 | F53: 30 | G53: 103.7776495 | H53: 28 | I53: 101.7999668 | J53: 23 | K53: 101.5419027 | L53: 23 | M53: 100.204444 | N53: 27 | P53: 0.9096862716 | Q53: 11 | R53: 0.9241825254 | S53: 13
B54: 35 | C54: 山口県 | E54: 106.785996 | F54: 33 | G54: 101.0629411 | H54: 20 | I54: 100.5247857 | J54: 16 | K54: 101.3094917 | L54: 21 | M54: 94.01401075 | N54: 10 | P54: 0.7342221835 | Q54: 35 | R54: 0.7533943349 | S54: 36
B55: 36 | C55: 徳島県 | E55: 102.2432612 | F55: 17 | G55: 100.9779196 | H55: 19 | I55: 100.3934192 | J55: 15 | K55: 96.60103941 | L55: 6 | M55: 95.83080786 | N55: 16 | P55: 0.7478968196 | Q55: 31 | R55: 0.7711262978 | S55: 34
B56: 37 | C56: 香川県 | E56: 105.8653757 | F56: 27 | G56: 102.3350454 | H56: 24 | I56: 101.6199908 | J56: 22 | K56: 101.7517964 | L56: 24 | M56: 100.6269802 | N56: 28 | P56: 0.8176623767 | Q56: 22 | R56: 0.841538688 | S56: 21
B57: 38 | C57: 愛媛県 | E57: 99.85190061 | F57: 14 | G57: 99.239405 | H57: 15 | I57: 99.73319232 | J57: 14 | K57: 98.3952841 | L57: 15 | M57: 94.09659694 | N57: 11 | P57: 0.7317861154 | Q57: 36 | R57: 0.773923208 | S57: 32
B58: 39 | C58: 高知県 | E58: 98.87826027 | F58: 8 | G58: 98.71744828 | H58: 14 | I58: 101.4524191 | J58: 20 | K58: 98.24610025 | L58: 14 | M58: 94.33936151 | N58: 12 | P58: 0.7089152154 | Q58: 39 | R58: 0.7434699112 | S58: 38
B59: 40 | C59: 福岡県 | E59: 93.85537326 | F59: 3 | G59: 94.81275689 | H59: 4 | I59: 96.04786846 | J59: 4 | K59: 96.91432619 | L59: 8 | M59: 93.72444043 | N59: 9 | P59: 0.9357861539 | Q59: 9 | R59: 1.03264928 | S59: 8
B60: 41 | C60: 佐賀県 | E60: 95.73857919 | F60: 5 | G60: 96.71135407 | H60: 9 | I60: 98.42677233 | J60: 13 | K60: 97.64619345 | L60: 11 | M60: 93.17052 | N60: 7 | P60: 0.7069863953 | Q60: 40 | R60: 0.77102263 | S60: 35
B61: 42 | C61: 長崎県 | E61: 98.96555187 | F61: 9 | G61: 96.90788729 | H61: 11 | I61: 96.89740483 | J61: 6 | K61: 96.35083227 | L61: 5 | M61: 92.04342894 | N61: 5 | P61: 0.6233610111 | Q61: 47 | R61: 0.6818850934 | S61: 45
B62: 43 | C62: 熊本県 | E62: 96.06072473 | F62: 6 | G62: 96.89015519 | H62: 10 | I62: 97.11867525 | J62: 8 | K62: 96.33921653 | L62: 4 | M62: 90.90074205 | N62: 2 | P62: 0.7580202463 | Q62: 30 | R62: 0.8252717167 | S62: 24
B63: 44 | C63: 大分県 | E63: 104.2375812 | F63: 23 | G63: 100.3393591 | H63: 17 | I63: 101.0167868 | J63: 18 | K63: 98.45398835 | L63: 17 | M63: 94.64527076 | N63: 13 | P63: 0.7735132553 | Q63: 29 | R63: 0.8114128749 | S63: 27
B64: 45 | C64: 宮崎県 | E64: 94.41450269 | F64: 4 | G64: 93.96875419 | H64: 3 | I64: 96.14859247 | J64: 5 | K64: 95.63452618 | L64: 3 | M64: 92.05653623 | N64: 6 | P64: 0.6748354758 | Q64: 43 | R64: 0.743168937 | S64: 40
B65: 46 | C65: 鹿児島県 | E65: 90.41813682 | F65: 1 | G65: 91.82222028 | H65: 1 | I65: 94.19552757 | J65: 2 | K65: 94.3725369 | L65: 2 | M65: 91.00406504 | N65: 3 | P65: 0.6589627195 | Q65: 44 | R65: 0.7510224562 | S65: 37
B66: 47 | C66: 沖縄県 | E66: 99.06198819 | F66: 10 | G66: 96.6436712 | H66: 8 | I66: 98.0633019 | J66: 12 | K66: 100.8932593 | L66: 19 | M66: 99.50741026 | N66: 24 | P66: 0.8689561255 | Q66: 17 | R66: 0.9352041197 | S66: 11
B67: 資料等
B68: ○ 総務省「国勢調査」（平成7年および平成27年）より作成。ただし、「国勢調査」（平成7年）については既知の男女別・年齢別人口の分布に応じて年齢不詳人口を按分し、
B69: 「国勢調査」（平成27年）については総務省が年齢・国籍不詳を按分した値（http://www.stat.go.jp/data/kokusei/2015/kekka/anbun.htm）を用いた。
B70: ○ 合計特殊出生率との相関係数、単純平均、標準偏差は都道府県別データから機械的に計算。変動係数は、標準偏差／単純平均で機械的に計算。

Sheet ３．（２）転入超過数（総数）
B5: ■転入超過数 総数
E7: 【実数値】 | S7: ・・・上位10位を網掛け
S8: ・・・下位10位を網掛け
E9: 総数（男女計）
E10: （H28）
G11: 15～19歳 | I11: 20～24歳 | K11: 25～29歳 | M11: 30～34歳 | O11: 35～39歳 | Q11: 40～44歳 | S11: 45～49歳
G12: （再掲） | I12: （再掲） | K12: （再掲） | M12: （再掲） | O12: （再掲） | Q12: （再掲） | S12: （再掲）
F13: （順位） | H13: （順位） | J13: （順位） | L13: （順位） | N13: （順位） | P13: （順位） | R13: （順位） | T13: （順位）
E14: （人） | F14: （降順） | G14: （人） | H14: （降順） | I14: （人） | J14: （降順） | K14: （人） | L14: （降順） | M14: （人） | N14: （降順） | O14: （人） | P14: （降順） | Q14: （人） | R14: （降順） | S14: （人） | T14: （降順）
B15: （合計特殊出生率との相関係数） | E15: =CORREL('１．（２）少子化関係指標'!$E$20:$E$66,E$20:E$66) -> -0.3865649221 | G15: =CORREL('１．（２）少子化関係指標'!$E$20:$E$66,G$20:G$66) -> -0.5046399121 | I15: =CORREL('１．（２）少子化関係指標'!$E$20:$E$66,I$20:I$66) -> -0.3795043288 | K15: =CORREL('１．（２）少子化関係指標'!$E$20:$E$66,K$20:K$66) -> -0.2708022605 | M15: =CORREL('１．（２）少子化関係指標'!$E$20:$E$66,M$20:M$66) -> 0.03241956996 | O15: =CORREL('１．（２）少子化関係指標'!$E$20:$E$66,O$20:O$66) -> 0.2293544416 | Q15: =CORREL('１．（２）少子化関係指標'!$E$20:$E$66,Q$20:Q$66) -> -0.05276427953 | S15: =CORREL('１．（２）少子化関係指標'!$E$20:$E$66,S$20:S$66) -> -0.196750094
B16: （単純平均） | E16: =AVERAGE(E$20:E$66) -> 0 | G16: =AVERAGE(G$20:G$66) -> 0 | I16: =AVERAGE(I$20:I$66) -> 0 | K16: =AVERAGE(K$20:K$66) -> 0 | M16: =AVERAGE(M$20:M$66) -> 0 | O16: =AVERAGE(O$20:O$66) -> 0 | Q16: =AVERAGE(Q$20:Q$66) -> 0 | S16: =AVERAGE(S$20:S$66) -> 0
B17: （標準偏差） | E17: =STDEVP(E$20:E$66) -> 12035.35556 | G17: =STDEVP(G$20:G$66) -> 2932.379718 | I17: =STDEVP(I$20:I$66) -> 8009.099413 | K17: =STDEVP(K$20:K$66) -> 2663.462384 | M17: =STDEVP(M$20:M$66) -> 472.2545743 | O17: =STDEVP(O$20:O$66) -> 365.1001611 | Q17: =STDEVP(Q$20:Q$66) -> 233.6886454 | S17: =STDEVP(S$20:S$66) -> 194.7946
B18: （変動係数） | E18: … | G18: … | I18: … | K18: … | M18: … | O18: … | Q18: … | S18: …
B19: 全 国 | E19: 0 | G19: 0 | I19: 0 | K19: 0 | M19: 0 | O19: 0 | Q19: 0 | S19: 0
B20: 1 | C20: 北海道 | E20: -6874 | F20: 47 | G20: -1088 | H20: 32 | I20: -4445 | J20: 47 | K20: -1309 | L20: 43 | M20: -141 | N20: 35 | O20: -41 | P20: 28 | Q20: -93 | R20: 36 | S20: -262 | T20: 47
B21: 2 | C21: 青森県 | E21: -6323 | F21: 43 | G21: -2181 | H21: 44 | I21: -2550 | J21: 37 | K21: -320 | L21: 26 | M21: -103 | N21: 30 | O21: -217 | P21: 43 | Q21: -224 | R21: 44 | S21: -171 | T21: 44
B22: 3 | C22: 岩手県 | E22: -3870 | F22: 34 | G22: -1697 | H22: 38 | I22: -2010 | J22: 30 | K22: -175 | L22: 13 | M22: -3 | N22: 18 | O22: -49 | P22: 30 | Q22: -75 | R22: 34 | S22: -16 | T22: 19
B23: 4 | C23: 宮城県 | E23: -483 | F23: 9 | G23: 155 | H23: 12 | I23: -642 | J23: 7 | K23: -123 | L23: 12 | M23: -135 | N23: 34 | O23: 123 | P23: 9 | Q23: 28 | R23: 15 | S23: -129 | T23: 42
B24: 5 | C24: 秋田県 | E24: -4398 | F24: 37 | G24: -1726 | H24: 40 | I24: -1967 | J24: 28 | K24: -247 | L24: 22 | M24: -78 | N24: 27 | O24: -15 | P24: 25 | Q24: -105 | R24: 37 | S24: -91 | T24: 35
B25: 6 | C25: 山形県 | E25: -3639 | F25: 30 | G25: -1364 | H25: 36 | I25: -1972 | J25: 29 | K25: -116 | L25: 11 | M25: 57 | N25: 16 | O25: -48 | P25: 29 | Q25: -38 | R25: 31 | S25: -64 | T25: 30
B26: 7 | C26: 福島県 | E26: -5839 | F26: 41 | G26: -1700 | H26: 39 | I26: -3282 | J26: 43 | K26: -378 | L26: 31 | M26: -188 | N26: 37 | O26: -84 | P26: 34 | Q26: 92 | R26: 8 | S26: -32 | T26: 24
B27: 8 | C27: 茨城県 | E27: -3709 | F27: 32 | G27: -544 | H27: 24 | I27: -3627 | J27: 44 | K27: -1124 | L27: 42 | M27: -318 | N27: 42 | O27: 101 | P27: 11 | Q27: 16 | R27: 18 | S27: -9 | T27: 16
B28: 9 | C28: 栃木県 | E28: -2988 | F28: 27 | G28: -650 | H28: 28 | I28: -1672 | J28: 24 | K28: -274 | L28: 25 | M28: -154 | N28: 36 | O28: -53 | P28: 31 | Q28: -217 | R28: 43 | S28: -112 | T28: 38
B29: 10 | C29: 群馬県 | E29: -2736 | F29: 26 | G29: -216 | H29: 17 | I29: -2939 | J29: 42 | K29: -698 | L29: 40 | M29: -9 | N29: 19 | O29: 38 | P29: 19 | Q29: 10 | R29: 21 | S29: 14 | T29: 12
B30: 11 | C30: 埼玉県 | E30: 15560 | F30: 3 | G30: 2692 | H30: 5 | I30: 2645 | J30: 6 | K30: 144 | L30: 6 | M30: 1597 | N30: 1 | O30: 1218 | P30: 1 | Q30: 685 | R30: 1 | S30: 651 | T30: 2
B31: 12 | C31: 千葉県 | E31: 16075 | F31: 2 | G31: 2757 | H31: 4 | I31: 4580 | J31: 5 | K31: 81 | L31: 7 | M31: 1251 | N31: 2 | O31: 825 | P31: 2 | Q31: 454 | R31: 4 | S31: 491 | T31: 3
B32: 13 | C32: 東京都 | E32: 74177 | F32: 1 | G32: 16544 | H32: 1 | I32: 51037 | J32: 1 | K32: 17684 | L32: 1 | M32: 1125 | N32: 3 | O32: -811 | P32: 45 | Q32: 640 | R32: 2 | S32: 829 | T32: 1
B33: 14 | C33: 神奈川県 | E33: 12056 | F33: 4 | G33: 5671 | H33: 2 | I33: 10621 | J33: 2 | K33: 506 | L33: 3 | M33: -274 | N33: 40 | O33: -867 | P33: 46 | Q33: -562 | R33: 46 | S33: -192 | T33: 46
B34: 15 | C34: 新潟県 | E34: -6189 | F34: 42 | G34: -1344 | H34: 35 | I34: -3927 | J34: 46 | K34: -607 | L34: 37 | M34: -72 | N34: 26 | O34: -79 | P34: 32 | Q34: -135 | R34: 39 | S34: -118 | T34: 40
B35: 16 | C35: 富山県 | E35: -1004 | F35: 13 | G35: -408 | H35: 21 | I35: -694 | J35: 9 | K35: -221 | L35: 19 | M35: 62 | N35: 15 | O35: 62 | P35: 17 | Q35: 39 | R35: 11 | S35: 60 | T35: 7
B36: 17 | C36: 石川県 | E36: -811 | F36: 12 | G36: 325 | H36: 9 | I36: -1589 | J36: 22 | K36: -193 | L36: 14 | M36: 213 | N36: 7 | O36: 167 | P36: 8 | Q36: -37 | R36: 30 | S36: -10 | T36: 17
B37: 18 | C37: 福井県 | E37: -1820 | F37: 18 | G37: -404 | H37: 20 | I37: -1126 | J37: 13 | K37: -215 | L37: 17 | M37: -36 | N37: 22 | O37: -21 | P37: 26 | Q37: 33 | R37: 14 | S37: 7 | T37: 13
B38: 19 | C38: 山梨県 | E38: -2011 | F38: 20 | G38: 34 | H38: 14 | I38: -1936 | J38: 27 | K38: -405 | L38: 33 | M38: -124 | N38: 33 | O38: 37 | P38: 20 | Q38: 35 | R38: 12 | S38: -14 | T38: 18
B39: 20 | C39: 長野県 | E39: -2680 | F39: 25 | G39: -1758 | H39: 41 | I39: -2757 | J39: 40 | K39: -244 | L39: 21 | M39: 395 | N39: 6 | O39: 259 | P39: 5 | Q39: 198 | R39: 5 | S39: 54 | T39: 8
B40: 21 | C40: 岐阜県 | E40: -5031 | F40: 39 | G40: -1026 | H40: 31 | I40: -2603 | J40: 38 | K40: -1476 | L40: 45 | M40: -276 | N40: 41 | O40: 27 | P40: 21 | Q40: 34 | R40: 13 | S40: -88 | T40: 34
B41: 22 | C41: 静岡県 | E41: -6390 | F41: 44 | G41: -1916 | H41: 42 | I41: -2827 | J41: 41 | K41: -604 | L41: 35 | M41: -359 | N41: 43 | O41: -287 | P41: 44 | Q41: -247 | R41: 45 | S41: -180 | T41: 45
B42: 23 | C42: 愛知県 | E42: 6265 | F42: 5 | G42: 2409 | H42: 6 | I42: 5400 | J42: 4 | K42: 986 | L42: 2 | M42: -117 | N42: 32 | O42: 240 | P42: 6 | Q42: 108 | R42: 6 | S42: -145 | T42: 43
B43: 24 | C43: 三重県 | E43: -3597 | F43: 28 | G43: -904 | H43: 30 | I43: -1648 | J43: 23 | K43: -609 | L43: 38 | M43: -116 | N43: 31 | O43: -93 | P43: 35 | Q43: -105 | R43: 37 | S43: 22 | T43: 10
B44: 25 | C44: 滋賀県 | E44: -706 | F44: 10 | G44: 173 | H44: 11 | I44: -1300 | J44: 17 | K44: -253 | L44: 23 | M44: 128 | N44: 11 | O44: 92 | P44: 14 | Q44: -7 | R44: 25 | S44: -35 | T44: 26
B45: 26 | C45: 京都府 | E45: -750 | F45: 11 | G45: 2058 | H45: 7 | I45: -734 | J45: 10 | K45: -1606 | L45: 46 | M45: -515 | N45: 45 | O45: -129 | P45: 39 | Q45: 5 | R45: 23 | S45: 71 | T45: 6
B46: 27 | C46: 大阪府 | E46: 1794 | F46: 7 | G46: 2926 | H46: 3 | I46: 6716 | J46: 3 | K46: 444 | L46: 5 | M46: -1586 | N46: 47 | O46: -1260 | P46: 47 | Q46: -654 | R46: 47 | S46: -31 | T46: 22
B47: 28 | C47: 兵庫県 | E47: -6760 | F47: 45 | G47: -73 | H47: 15 | I47: -3696 | J47: 45 | K47: -2047 | L47: 47 | M47: -810 | N47: 46 | O47: -144 | P47: 42 | Q47: -145 | R47: 40 | S47: -100 | T47: 36
B48: 29 | C48: 奈良県 | E48: -3619 | F48: 29 | G48: 207 | H48: 10 | I48: -2341 | J48: 35 | K48: -1403 | L48: 44 | M48: -359 | N48: 43 | O48: -136 | P48: 40 | Q48: -9 | R48: 26 | S48: -118 | T48: 40
B49: 30 | C49: 和歌山県 | E49: -3894 | F49: 35 | G49: -631 | H49: 27 | I49: -1697 | J49: 26 | K49: -789 | L49: 41 | M49: -210 | N49: 38 | O49: -140 | P49: 41 | Q49: -155 | R49: 41 | S49: -108 | T49: 37
B50: 31 | C50: 鳥取県 | E50: -1310 | F50: 16 | G50: -374 | H50: 19 | I50: -965 | J50: 12 | K50: -112 | L50: 10 | M50: 73 | N50: 14 | O50: -97 | P50: 36 | Q50: 6 | R50: 22 | S50: -22 | T50: 20
B51: 32 | C51: 島根県 | E51: -1252 | F51: 15 | G51: -562 | H51: 25 | I51: -1292 | J51: 16 | K51: -46 | L51: 9 | M51: 178 | N51: 8 | O51: 102 | P51: 10 | Q51: 73 | R51: 9 | S51: 15 | T51: 11
B52: 33 | C52: 岡山県 | E52: -1973 | F52: 19 | G52: -199 | H52: 16 | I52: -1165 | J52: 14 | K52: -686 | L52: 39 | M52: -20 | N52: 20 | O52: -120 | P52: 38 | Q52: -10 | R52: 27 | S52: -26 | T52: 21
B53: 34 | C53: 広島県 | E53: -2136 | F53: 21 | G53: 95 | H53: 13 | I53: -1484 | J53: 20 | K53: -329 | L53: 28 | M53: 86 | N53: 12 | O53: 211 | P53: 7 | Q53: 15 | R53: 19 | S53: -70 | T53: 31
B54: 35 | C54: 山口県 | E54: -3801 | F54: 33 | G54: -671 | H54: 29 | I54: -2326 | J54: 34 | K54: -564 | L54: 34 | M54: -56 | N54: 25 | O54: -82 | P54: 33 | Q54: 22 | R54: 16 | S54: -31 | T54: 22
B55: 36 | C55: 徳島県 | E55: -1748 | F55: 17 | G55: -360 | H55: 18 | I55: -1193 | J55: 15 | K55: -341 | L55: 29 | M55: -47 | N55: 24 | O55: 95 | P55: 13 | Q55: 18 | R55: 17 | S55: 5 | T55: 14
B56: 37 | C56: 香川県 | E56: -1101 | F56: 14 | G56: -480 | H56: 22 | I56: -821 | J56: 11 | K56: -4 | L56: 8 | M56: 159 | N56: 10 | O56: 65 | P56: 16 | Q56: -89 | R56: 35 | S56: -46 | T56: 27
B57: 38 | C57: 愛媛県 | E57: -3647 | F57: 31 | G57: -1261 | H57: 34 | I57: -2085 | J57: 33 | K57: -367 | L57: 30 | M57: -46 | N57: 23 | O57: 8 | P57: 23 | Q57: 11 | R57: 20 | S57: -82 | T57: 33
B58: 39 | C58: 高知県 | E58: -2265 | F58: 22 | G58: -571 | H58: 26 | I58: -1518 | J58: 21 | K58: -226 | L58: 20 | M58: 35 | N58: 17 | O58: 18 | P58: 22 | Q58: 3 | R58: 24 | S58: -54 | T58: 28
B59: 40 | C59: 福岡県 | E59: 5732 | F59: 6 | G59: 1404 | H59: 8 | I59: -643 | J59: 8 | K59: -205 | L59: 15 | M59: 470 | N59: 5 | O59: 664 | P59: 3 | Q59: 586 | R59: 3 | S59: 253 | T59: 4
B60: 41 | C60: 佐賀県 | E60: -2300 | F60: 23 | G60: -1113 | H60: 33 | I60: -1360 | J60: 19 | K60: -388 | L60: 32 | M60: -86 | N60: 28 | O60: 82 | P60: 15 | Q60: 58 | R60: 10 | S60: -5 | T60: 15
B61: 42 | C61: 長崎県 | E61: -5573 | F61: 40 | G61: -2527 | H61: 46 | I61: -2467 | J61: 36 | K61: -270 | L61: 24 | M61: 85 | N61: 13 | O61: 7 | P61: 24 | Q61: -183 | R61: 42 | S61: -116 | T61: 39
B62: 43 | C62: 熊本県 | E62: -6791 | F62: 46 | G62: -2082 | H62: 43 | I62: -2616 | J62: 39 | K62: -605 | L62: 36 | M62: -269 | N62: 39 | O62: -38 | P62: 27 | Q62: -61 | R62: 33 | S62: -81 | T62: 32
B63: 44 | C63: 大分県 | E63: -2608 | F63: 24 | G63: -539 | H63: 23 | I63: -1680 | J63: 25 | K63: -325 | L63: 27 | M63: -102 | N63: 29 | O63: -102 | P63: 37 | Q63: -25 | R63: 28 | S63: -32 | T63: 24
B64: 45 | C64: 宮崎県 | E64: -4288 | F64: 36 | G64: -2232 | H64: 45 | I64: -2020 | J64: 31 | K64: -210 | L64: 16 | M64: -23 | N64: 21 | O64: 56 | P64: 18 | Q64: -57 | R64: 32 | S64: -61 | T64: 29
B65: 46 | C65: 鹿児島県 | E65: -4473 | F65: 38 | G65: -3413 | H65: 47 | I65: -2068 | J65: 32 | K65: -215 | L65: 17 | M65: 176 | N65: 9 | O65: 96 | P65: 12 | Q65: -29 | R65: 29 | S65: 43 | T65: 9
B66: 47 | C66: 沖縄県 | E66: -272 | F66: 8 | G66: -1436 | H66: 37 | I66: -1315 | J66: 18 | K66: 484 | L66: 4 | M66: 542 | N66: 4 | O66: 320 | P66: 4 | Q66: 93 | R66: 7 | S66: 136 | T66: 5
B67: 資料等
B68: ○ 総務省「住民基本台帳人口移動報告」（平成28年）の日本人移動者の値。
B69: ○ 合計特殊出生率との相関係数、単純平均、標準偏差は都道府県別データから機械的に計算。変動係数は、標準偏差／単純平均で機械的に計算。

Sheet ３．（２）転入超過数（男）
B5: ■転入超過数 男性
E7: 【実数値】 | S7: ・・・上位10位を網掛け
S8: ・・・下位10位を網掛け
E9: 総数（男性）
E10: （H28）
G11: 15～19歳 | I11: 20～24歳 | K11: 25～29歳 | M11: 30～34歳 | O11: 35～39歳 | Q11: 40～44歳 | S11: 45～49歳
G12: （再掲） | I12: （再掲） | K12: （再掲） | M12: （再掲） | O12: （再掲） | Q12: （再掲） | S12: （再掲）
F13: （順位） | H13: （順位） | J13: （順位） | L13: （順位） | N13: （順位） | P13: （順位） | R13: （順位） | T13: （順位）
E14: （人） | F14: （降順） | G14: （人） | H14: （降順） | I14: （人） | J14: （降順） | K14: （人） | L14: （降順） | M14: （人） | N14: （降順） | O14: （人） | P14: （降順） | Q14: （人） | R14: （降順） | S14: （人） | T14: （降順）
B15: （合計特殊出生率との相関係数） | E15: =CORREL('１．（２）少子化関係指標'!$E$20:$E$66,E$20:E$66) -> -0.3663949547 | G15: =CORREL('１．（２）少子化関係指標'!$E$20:$E$66,G$20:G$66) -> -0.5104549675 | I15: =CORREL('１．（２）少子化関係指標'!$E$20:$E$66,I$20:I$66) -> -0.3613182596 | K15: =CORREL('１．（２）少子化関係指標'!$E$20:$E$66,K$20:K$66) -> -0.2653193042 | M15: =CORREL('１．（２）少子化関係指標'!$E$20:$E$66,M$20:M$66) -> 0.1492922431 | O15: =CORREL('１．（２）少子化関係指標'!$E$20:$E$66,O$20:O$66) -> 0.322158974 | Q15: =CORREL('１．（２）少子化関係指標'!$E$20:$E$66,Q$20:Q$66) -> 0.2340383988 | S15: =CORREL('１．（２）少子化関係指標'!$E$20:$E$66,S$20:S$66) -> 0.1395730409
B16: （単純平均） | E16: =AVERAGE(E$20:E$66) -> 0 | G16: =AVERAGE(G$20:G$66) -> 0 | I16: =AVERAGE(I$20:I$66) -> 0 | K16: =AVERAGE(K$20:K$66) -> 0 | M16: =AVERAGE(M$20:M$66) -> 0 | O16: =AVERAGE(O$20:O$66) -> 0 | Q16: =AVERAGE(Q$20:Q$66) -> 0 | S16: =AVERAGE(S$20:S$66) -> 0
B17: （標準偏差） | E17: =STDEVP(E$20:E$66) -> 5280.326159 | G17: =STDEVP(G$20:G$66) -> 1550.014221 | I17: =STDEVP(I$20:I$66) -> 3756.172786 | K17: =STDEVP(K$20:K$66) -> 1349.315524 | M17: =STDEVP(M$20:M$66) -> 255.2307258 | O17: =STDEVP(O$20:O$66) -> 236.0691388 | Q17: =STDEVP(Q$20:Q$66) -> 147.4868909 | S17: =STDEVP(S$20:S$66) -> 82.66775337
B18: （変動係数） | E18: … | G18: … | I18: … | K18: … | M18: … | O18: … | Q18: … | S18: …
B19: 全 国 | E19: 0 | G19: 0 | I19: 0 | K19: 0 | M19: 0 | O19: 0 | Q19: 0 | S19: 0
B20: 1 | C20: 北海道 | E20: -2942 | F20: 46 | G20: -535 | H20: 30 | I20: -2266 | J20: 46 | K20: -576 | L20: 43 | M20: -50 | N20: 29 | O20: -14 | P20: 30 | Q20: -57 | R20: 38 | S20: -88 | T20: 43
B21: 2 | C21: 青森県 | E21: -2698 | F21: 44 | G21: -1119 | H21: 43 | I21: -875 | J21: 30 | K21: -183 | L21: 30 | M21: -44 | N21: 27 | O21: -113 | P21: 43 | Q21: -123 | R21: 44 | S21: -103 | T21: 45
B22: 3 | C22: 岩手県 | E22: -1533 | F22: 30 | G22: -893 | H22: 40 | I22: -829 | J22: 27 | K22: -19 | L22: 9 | M22: -51 | N22: 30 | O22: 27 | P22: 20 | Q22: -21 | R22: 31 | S22: 6 | T22: 19
B23: 4 | C23: 宮城県 | E23: 98 | F23: 7 | G23: 144 | H23: 12 | I23: -270 | J23: 8 | K23: -172 | L23: 29 | M23: 0 | N23: 21 | O23: 133 | P23: 6 | Q23: 45 | R23: 13 | S23: -63 | T23: 41
B24: 5 | C24: 秋田県 | E24: -1896 | F24: 37 | G24: -870 | H24: 39 | I24: -823 | J24: 26 | K24: -111 | L24: 19 | M24: -61 | N24: 34 | O24: 16 | P24: 22 | Q24: -45 | R24: 36 | S24: -50 | T24: 38
B25: 6 | C25: 山形県 | E25: -1691 | F25: 33 | G25: -757 | H25: 36 | I25: -844 | J25: 29 | K25: -52 | L25: 14 | M25: 53 | N25: 15 | O25: -83 | P25: 41 | Q25: -10 | R25: 30 | S25: -2 | T25: 23
B26: 7 | C26: 福島県 | E26: -2071 | F26: 39 | G26: -826 | H26: 38 | I26: -1257 | J26: 40 | K26: -75 | L26: 15 | M26: -112 | N26: 37 | O26: -42 | P26: 38 | Q26: 90 | R26: 6 | S26: 33 | T26: 10
B27: 8 | C27: 茨城県 | E27: -1237 | F27: 28 | G27: -231 | H27: 22 | I27: -1372 | J27: 44 | K27: -556 | L27: 42 | M27: -131 | N27: 38 | O27: 76 | P27: 12 | Q27: 24 | R27: 22 | S27: 88 | T27: 5
B28: 9 | C28: 栃木県 | E28: -1210 | F28: 26 | G28: -291 | H28: 25 | I28: -425 | J28: 10 | K28: -163 | L28: 27 | M28: -182 | N28: 42 | O28: -38 | P28: 36 | Q28: -84 | R28: 43 | S28: -61 | T28: 40
B29: 10 | C29: 群馬県 | E29: -966 | F29: 21 | G29: 44 | H29: 14 | I29: -1333 | J29: 43 | K29: -330 | L29: 38 | M29: 62 | N29: 12 | O29: 31 | P29: 19 | Q29: -7 | R29: 29 | S29: 15 | T29: 15
B30: 11 | C30: 埼玉県 | E30: 7113 | F30: 3 | G30: 1353 | H30: 6 | I30: 764 | J30: 6 | K30: 435 | L30: 2 | M30: 954 | N30: 1 | O30: 654 | P30: 1 | Q30: 335 | R30: 2 | S30: 287 | T30: 1
B31: 12 | C31: 千葉県 | E31: 7655 | F31: 2 | G31: 1760 | H31: 4 | I31: 2086 | J31: 4 | K31: -135 | L31: 21 | M31: 768 | N31: 2 | O31: 338 | P31: 3 | Q31: 286 | R31: 3 | S31: 204 | T31: 2
B32: 13 | C32: 東京都 | E32: 32267 | F32: 1 | G32: 8234 | H32: 1 | I32: 23860 | J32: 1 | K32: 8976 | L32: 1 | M32: -58 | N32: 32 | O32: -986 | P32: 47 | Q32: -182 | R32: 45 | S32: 76 | T32: 8
B33: 14 | C33: 神奈川県 | E33: 3927 | F33: 5 | G33: 3439 | H33: 2 | I33: 5159 | J33: 2 | K33: -187 | L33: 31 | M33: -451 | N33: 45 | O33: -609 | P33: 46 | Q33: -546 | R33: 47 | S33: -274 | T33: 47
B34: 15 | C34: 新潟県 | E34: -2625 | F34: 43 | G34: -648 | H34: 33 | I34: -1719 | J34: 45 | K34: -325 | L34: 37 | M34: -27 | N34: 24 | O34: -9 | P34: 28 | Q34: -50 | R34: 37 | S34: -59 | T34: 39
B35: 16 | C35: 富山県 | E35: 78 | F35: 8 | G35: -169 | H35: 17 | I35: -19 | J35: 7 | K35: -51 | L35: 13 | M35: 56 | N35: 13 | O35: 63 | P35: 14 | Q35: 39 | R35: 15 | S35: 77 | T35: 6
B36: 17 | C36: 石川県 | E36: -545 | F36: 14 | G36: 263 | H36: 10 | I36: -1055 | J36: 36 | K36: -125 | L36: 20 | M36: 92 | N36: 9 | O36: 100 | P36: 9 | Q36: -21 | R36: 31 | S36: -4 | T36: 24
B37: 18 | C37: 福井県 | E37: -864 | F37: 20 | G37: -211 | H37: 20 | I37: -497 | J37: 12 | K37: -136 | L37: 22 | M37: -11 | N37: 22 | O37: -17 | P37: 31 | Q37: 29 | R37: 20 | S37: 21 | T37: 13
B38: 19 | C38: 山梨県 | E38: -734 | F38: 18 | G38: -13 | H38: 15 | I38: -802 | J38: 24 | K38: -140 | L38: 23 | M38: -60 | N38: 33 | O38: -11 | P38: 29 | Q38: 35 | R38: 16 | S38: -16 | T38: 30
B39: 20 | C39: 長野県 | E39: -1164 | F39: 25 | G39: -942 | H39: 41 | I39: -994 | J39: 35 | K39: -168 | L39: 28 | M39: 196 | N39: 5 | O39: 100 | P39: 9 | Q39: 112 | R39: 5 | S39: 1 | T39: 22
B40: 21 | C40: 岐阜県 | E40: -2398 | F40: 41 | G40: -634 | H40: 32 | I40: -1316 | J40: 41 | K40: -602 | L40: 44 | M40: -166 | N40: 41 | O40: 62 | P40: 15 | Q40: 31 | R40: 19 | S40: -38 | T40: 36
B41: 22 | C41: 静岡県 | E41: -2332 | F41: 40 | G41: -953 | H41: 42 | I41: -730 | J41: 20 | K41: -311 | L41: 36 | M41: -191 | N41: 43 | O41: -175 | P41: 44 | Q41: -60 | R41: 39 | S41: -98 | T41: 44
B42: 23 | C42: 愛知県 | E42: 4522 | F42: 4 | G42: 2096 | H42: 3 | I42: 3771 | J42: 3 | K42: 264 | L42: 3 | M42: -132 | N42: 39 | O42: 116 | P42: 7 | Q42: 145 | R42: 4 | S42: -68 | T42: 42
B43: 24 | C43: 三重県 | E43: -1547 | F43: 31 | G43: -593 | H43: 31 | I43: -559 | J43: 14 | K43: -336 | L43: 39 | M43: -44 | N43: 27 | O43: -19 | P43: 32 | Q43: -39 | R43: 34 | S43: 77 | T43: 6
B44: 25 | C44: 滋賀県 | E44: -391 | F44: 12 | G44: 172 | H44: 11 | I44: -711 | J44: 19 | K44: -144 | L44: 24 | M44: 89 | N44: 10 | O44: 24 | P44: 21 | Q44: 48 | R44: 11 | S44: -17 | T44: 32
B45: 26 | C45: 京都府 | E45: -992 | F45: 22 | G45: 1195 | H45: 7 | I45: -894 | J45: 31 | K45: -790 | L45: 46 | M45: -307 | N45: 44 | O45: -110 | P45: 42 | Q45: -22 | R45: 33 | S45: -16 | T45: 30
B46: 27 | C46: 大阪府 | E46: -634 | F46: 16 | G46: 1365 | H46: 5 | I46: 2015 | J46: 5 | K46: 63 | L46: 5 | M46: -688 | N46: 47 | O46: -532 | P46: 45 | Q46: -497 | R46: 46 | S46: 5 | T46: 20
B47: 28 | C47: 兵庫県 | E47: -4798 | F47: 47 | G47: -125 | H47: 16 | I47: -2598 | J47: 47 | K47: -1176 | L47: 47 | M47: -453 | N47: 46 | O47: -65 | P47: 40 | Q47: -79 | R47: 42 | S47: -122 | T47: 46
B48: 29 | C48: 奈良県 | E48: -1946 | F48: 38 | G48: 60 | H48: 13 | I48: -1325 | J48: 42 | K48: -686 | L48: 45 | M48: -146 | N48: 40 | O48: -29 | P48: 33 | Q48: 9 | R48: 25 | S48: -34 | T48: 34
B49: 30 | C49: 和歌山県 | E49: -1844 | F49: 36 | G49: -376 | H49: 29 | I49: -816 | J49: 25 | K49: -404 | L49: 41 | M49: -99 | N49: 36 | O49: -56 | P49: 39 | Q49: -77 | R49: 41 | S49: -23 | T49: 33
B50: 31 | C50: 鳥取県 | E50: -586 | F50: 15 | G50: -181 | H50: 18 | I50: -485 | J50: 11 | K50: -81 | L50: 16 | M50: 36 | N50: 18 | O50: -38 | P50: 36 | Q50: 6 | R50: 26 | S50: 26 | T50: 12
B51: 32 | C51: 島根県 | E51: -417 | F51: 13 | G51: -267 | H51: 24 | I51: -592 | J51: 15 | K51: -36 | L51: 11 | M51: 86 | N51: 11 | O51: 57 | P51: 17 | Q51: 48 | R51: 11 | S51: 14 | T51: 16
B52: 33 | C52: 岡山県 | E52: -858 | F52: 19 | G52: -187 | H52: 19 | I52: -614 | J52: 17 | K52: -246 | L52: 35 | M52: 43 | N52: 16 | O52: -36 | P52: 35 | Q52: 33 | R52: 17 | S52: -15 | T52: 29
B53: 34 | C53: 広島県 | E53: -160 | F53: 9 | G53: 265 | H53: 9 | I53: -601 | J53: 16 | K53: -9 | L53: 7 | M53: 151 | N53: 7 | O53: 145 | P53: 5 | Q53: 80 | R53: 7 | S53: 14 | T53: 16
B54: 35 | C54: 山口県 | E54: -1475 | F54: 29 | G54: -348 | H54: 27 | I54: -1070 | J54: 37 | K54: -342 | L54: 40 | M54: 43 | N54: 16 | O54: 11 | P54: 26 | Q54: 51 | R54: 10 | S54: 9 | T54: 18
B55: 36 | C55: 徳島県 | E55: -686 | F55: 17 | G55: -215 | H55: 21 | I55: -526 | J55: 13 | K55: -190 | L55: 32 | M55: -29 | N55: 25 | O55: 104 | P55: 8 | Q55: 17 | R55: 23 | S55: 20 | T55: 14
B56: 37 | C56: 香川県 | E56: -383 | F56: 11 | G56: -252 | H56: 23 | I56: -336 | J56: 9 | K56: -33 | L56: 10 | M56: 152 | N56: 6 | O56: 13 | P56: 25 | Q56: -44 | R56: 35 | S56: -11 | T56: 27
B57: 38 | C57: 愛媛県 | E57: -1678 | F57: 32 | G57: -781 | H57: 37 | I57: -971 | J57: 33 | K57: -156 | L57: 25 | M57: -15 | N57: 23 | O57: 16 | P57: 22 | Q57: 33 | R57: 17 | S57: -14 | T57: 28
B58: 39 | C58: 高知県 | E58: -1081 | F58: 23 | G58: -358 | H58: 28 | I58: -748 | J58: 22 | K58: -108 | L58: 18 | M58: 27 | N58: 19 | O58: -8 | P58: 27 | Q58: 25 | R58: 21 | S58: -41 | T58: 37
B59: 40 | C59: 福岡県 | E59: 2186 | F59: 6 | G59: 463 | H59: 8 | I59: -1239 | J59: 38 | K59: -13 | L59: 8 | M59: 420 | N59: 3 | O59: 468 | P59: 2 | Q59: 346 | R59: 1 | S59: 94 | T59: 4
B60: 41 | C60: 佐賀県 | E60: -1229 | F60: 27 | G60: -740 | H60: 35 | I60: -646 | J60: 18 | K60: -215 | L60: 34 | M60: -37 | N60: 26 | O60: 55 | P60: 18 | Q60: 58 | R60: 8 | S60: 4 | T60: 21
B61: 42 | C61: 長崎県 | E61: -2403 | F61: 42 | G61: -1559 | H61: 46 | I61: -986 | J61: 34 | K61: -41 | L61: 12 | M61: 55 | N61: 14 | O61: 14 | P61: 24 | Q61: -75 | R61: 40 | S61: -35 | T61: 35
B62: 43 | C62: 熊本県 | E62: -2856 | F62: 45 | G62: -1336 | H62: 45 | I62: -1241 | J62: 39 | K62: -157 | L62: 26 | M62: -75 | N62: 35 | O62: 59 | P62: 16 | Q62: 45 | R62: 13 | S62: 32 | T62: 11
B63: 44 | C63: 大分県 | E63: -1126 | F63: 24 | G63: -311 | H63: 26 | I63: -745 | J63: 21 | K63: -214 | L63: 33 | M63: -54 | N63: 31 | O63: -30 | P63: 34 | Q63: 4 | R63: 27 | S63: -8 | T63: 25
B64: 45 | C64: 宮崎県 | E64: -1799 | F64: 34 | G64: -1325 | H64: 44 | I64: -830 | J64: 28 | K64: -89 | L64: 17 | M64: 17 | N64: 20 | O64: 89 | P64: 11 | Q64: -2 | R64: 28 | S64: -9 | T64: 26
B65: 46 | C65: 鹿児島県 | E65: -1804 | F65: 35 | G65: -2083 | H65: 47 | I65: -908 | J65: 32 | K65: 17 | L65: 6 | M65: 135 | N65: 8 | O65: 74 | P65: 13 | Q65: 14 | R65: 24 | S65: 60 | T65: 9
B66: 47 | C66: 沖縄県 | E66: -247 | F66: 10 | G66: -724 | H66: 34 | I66: -788 | J66: 23 | K66: 128 | L66: 4 | M66: 239 | N66: 4 | O66: 175 | P66: 4 | Q66: 53 | R66: 9 | S66: 106 | T66: 3
B67: 資料等
B68: ○ 総務省「住民基本台帳人口移動報告」（平成28年）の日本人移動者の値。
B69: ○ 合計特殊出生率との相関係数、単純平均、標準偏差は都道府県別データから機械的に計算。変動係数は、標準偏差／単純平均で機械的に計算。

Sheet ３．（２）転入超過数（女）
B5: ■転入超過数 女性
E7: 【実数値】 | S7: ・・・上位10位を網掛け
S8: ・・・下位10位を網掛け
E9: 総数（女性）
E10: （H28）
G11: 15～19歳 | I11: 20～24歳 | K11: 25～29歳 | M11: 30～34歳 | O11: 35～39歳 | Q11: 40～44歳 | S11: 45～49歳
G12: （再掲） | I12: （再掲） | K12: （再掲） | M12: （再掲） | O12: （再掲） | Q12: （再掲） | S12: （再掲）
F13: （順位） | H13: （順位） | J13: （順位） | L13: （順位） | N13: （順位） | P13: （順位） | R13: （順位） | T13: （順位）
E14: （人） | F14: （降順） | G14: （人） | H14: （降順） | I14: （人） | J14: （降順） | K14: （人） | L14: （降順） | M14: （人） | N14: （降順） | O14: （人） | P14: （降順） | Q14: （人） | R14: （降順） | S14: （人） | T14: （降順）
B15: （合計特殊出生率との相関係数） | E15: =CORREL('１．（２）少子化関係指標'!$E$20:$E$66,E$20:E$66) -> -0.3994542123 | G15: =CORREL('１．（２）少子化関係指標'!$E$20:$E$66,G$20:G$66) -> -0.4891529597 | I15: =CORREL('１．（２）少子化関係指標'!$E$20:$E$66,I$20:I$66) -> -0.3924384833 | K15: =CORREL('１．（２）少子化関係指標'!$E$20:$E$66,K$20:K$66) -> -0.2742763761 | M15: =CORREL('１．（２）少子化関係指標'!$E$20:$E$66,M$20:M$66) -> -0.08388940211 | O15: =CORREL('１．（２）少子化関係指標'!$E$20:$E$66,O$20:O$66) -> 0.04434853178 | Q15: =CORREL('１．（２）少子化関係指標'!$E$20:$E$66,Q$20:Q$66) -> -0.3124075154 | S15: =CORREL('１．（２）少子化関係指標'!$E$20:$E$66,S$20:S$66) -> -0.3478989386
B16: （単純平均） | E16: =AVERAGE(E$20:E$66) -> 0 | G16: =AVERAGE(G$20:G$66) -> 0 | I16: =AVERAGE(I$20:I$66) -> 0 | K16: =AVERAGE(K$20:K$66) -> 0 | M16: =AVERAGE(M$20:M$66) -> 0 | O16: =AVERAGE(O$20:O$66) -> 0 | Q16: =AVERAGE(Q$20:Q$66) -> 0 | S16: =AVERAGE(S$20:S$66) -> 0
B17: （標準偏差） | E17: =STDEVP(E$20:E$66) -> 6803.68697 | G17: =STDEVP(G$20:G$66) -> 1407.705648 | I17: =STDEVP(I$20:I$66) -> 4286.822406 | K17: =STDEVP(K$20:K$66) -> 1324.47491 | M17: =STDEVP(M$20:M$66) -> 271.711048 | O17: =STDEVP(O$20:O$66) -> 173.2989055 | Q17: =STDEVP(Q$20:Q$66) -> 149.9580083 | S17: =STDEVP(S$20:S$66) -> 143.3291109
B18: （変動係数） | E18: … | G18: … | I18: … | K18: … | M18: … | O18: … | Q18: … | S18: …
B19: 全 国 | E19: 0 | G19: 0 | I19: 0 | K19: 0 | M19: 0 | O19: 0 | Q19: 0 | S19: 0
B20: 1 | C20: 北海道 | E20: -3932 | F20: 45 | G20: -553 | H20: 34 | I20: -2179 | J20: 45 | K20: -733 | L20: 44 | M20: -91 | N20: 36 | O20: -27 | P20: 28 | Q20: -36 | R20: 28 | S20: -174 | T20: 47
B21: 2 | C21: 青森県 | E21: -3625 | F21: 43 | G21: -1062 | H21: 46 | I21: -1675 | J21: 41 | K21: -137 | L21: 21 | M21: -59 | N21: 29 | O21: -104 | P21: 43 | Q21: -101 | R21: 42 | S21: -68 | T21: 37
B22: 3 | C22: 岩手県 | E22: -2337 | F22: 35 | G22: -804 | H22: 39 | I22: -1181 | J22: 33 | K22: -156 | L22: 23 | M22: 48 | N22: 10 | O22: -76 | P22: 37 | Q22: -54 | R22: 33 | S22: -22 | T22: 22
B23: 4 | C23: 宮城県 | E23: -581 | F23: 11 | G23: 11 | H23: 13 | I23: -372 | J23: 9 | K23: 49 | L23: 7 | M23: -135 | N23: 40 | O23: -10 | P23: 25 | Q23: -17 | R23: 21 | S23: -66 | T23: 36
B24: 5 | C24: 秋田県 | E24: -2502 | F24: 38 | G24: -856 | H24: 41 | I24: -1144 | J24: 31 | K24: -136 | L24: 20 | M24: -17 | N24: 21 | O24: -31 | P24: 29 | Q24: -60 | R24: 36 | S24: -41 | T24: 27
B25: 6 | C25: 山形県 | E25: -1948 | F25: 28 | G25: -607 | H25: 35 | I25: -1128 | J25: 29 | K25: -64 | L25: 11 | M25: 4 | N25: 20 | O25: 35 | P25: 14 | Q25: -28 | R25: 25 | S25: -62 | T25: 34
B26: 7 | C26: 福島県 | E26: -3768 | F26: 44 | G26: -874 | H26: 42 | I26: -2025 | J26: 43 | K26: -303 | L26: 36 | M26: -76 | N26: 35 | O26: -42 | P26: 32 | Q26: 2 | R26: 12 | S26: -65 | T26: 35
B27: 8 | C27: 茨城県 | E27: -2472 | F27: 36 | G27: -313 | H27: 28 | I27: -2255 | J27: 47 | K27: -568 | L27: 42 | M27: -187 | N27: 42 | O27: 25 | P27: 17 | Q27: -8 | R27: 18 | S27: -97 | T27: 45
B28: 9 | C28: 栃木県 | E28: -1778 | F28: 27 | G28: -359 | H28: 30 | I28: -1247 | J28: 35 | K28: -111 | L28: 16 | M28: 28 | N28: 15 | O28: -15 | P28: 26 | Q28: -133 | R28: 45 | S28: -51 | T28: 30
B29: 10 | C29: 群馬県 | E29: -1770 | F29: 26 | G29: -260 | H29: 25 | I29: -1606 | J29: 40 | K29: -368 | L29: 38 | M29: -71 | N29: 33 | O29: 7 | P29: 19 | Q29: 17 | R29: 9 | S29: -1 | T29: 12
B30: 11 | C30: 埼玉県 | E30: 8447 | F30: 2 | G30: 1339 | H30: 4 | I30: 1881 | J30: 5 | K30: -291 | L30: 34 | M30: 643 | N30: 2 | O30: 564 | P30: 1 | Q30: 350 | R30: 2 | S30: 364 | T30: 2
B31: 12 | C31: 千葉県 | E31: 8420 | F31: 3 | G31: 997 | H31: 5 | I31: 2494 | J31: 4 | K31: 216 | L31: 6 | M31: 483 | N31: 3 | O31: 487 | P31: 2 | Q31: 168 | R31: 4 | S31: 287 | T31: 3
B32: 13 | C32: 東京都 | E32: 41910 | F32: 1 | G32: 8310 | H32: 1 | I32: 27177 | J32: 1 | K32: 8708 | L32: 1 | M32: 1183 | N32: 1 | O32: 175 | P32: 4 | Q32: 822 | R32: 1 | S32: 753 | T32: 1
B33: 14 | C33: 神奈川県 | E33: 8129 | F33: 4 | G33: 2232 | H33: 2 | I33: 5462 | J33: 2 | K33: 693 | L33: 3 | M33: 177 | N33: 6 | O33: -258 | P33: 46 | Q33: -16 | R33: 19 | S33: 82 | T33: 6
B34: 15 | C34: 新潟県 | E34: -3564 | F34: 42 | G34: -696 | H34: 36 | I34: -2208 | J34: 46 | K34: -282 | L34: 33 | M34: -45 | N34: 26 | O34: -70 | P34: 34 | Q34: -85 | R34: 41 | S34: -59 | T34: 33
B35: 16 | C35: 富山県 | E35: -1082 | F35: 19 | G35: -239 | H35: 23 | I35: -675 | J35: 18 | K35: -170 | L35: 24 | M35: 6 | N35: 19 | O35: -1 | P35: 20 | Q35: 0 | R35: 14 | S35: -17 | T35: 19
B36: 17 | C36: 石川県 | E36: -266 | F36: 9 | G36: 62 | H36: 10 | I36: -534 | J36: 13 | K36: -68 | L36: 12 | M36: 121 | N36: 7 | O36: 67 | P36: 9 | Q36: -16 | R36: 19 | S36: -6 | T36: 13
B37: 18 | C37: 福井県 | E37: -956 | F37: 16 | G37: -193 | H37: 18 | I37: -629 | J37: 16 | K37: -79 | L37: 14 | M37: -25 | N37: 23 | O37: -4 | P37: 21 | Q37: 4 | R37: 10 | S37: -14 | T37: 17
B38: 19 | C38: 山梨県 | E38: -1277 | F38: 22 | G38: 47 | H38: 12 | I38: -1134 | J38: 30 | K38: -265 | L38: 31 | M38: -64 | N38: 31 | O38: 48 | P38: 12 | Q38: 0 | R38: 14 | S38: 2 | T38: 10
B39: 20 | C39: 長野県 | E39: -1516 | F39: 24 | G39: -816 | H39: 40 | I39: -1763 | J39: 42 | K39: -76 | L39: 13 | M39: 199 | N39: 5 | O39: 159 | P39: 5 | Q39: 86 | R39: 5 | S39: 53 | T39: 7
B40: 21 | C40: 岐阜県 | E40: -2633 | F40: 39 | G40: -392 | H40: 32 | I40: -1287 | J40: 37 | K40: -874 | L40: 47 | M40: -110 | N40: 38 | O40: -35 | P40: 31 | Q40: 3 | R40: 11 | S40: -50 | T40: 29
B41: 22 | C41: 静岡県 | E41: -4058 | F41: 47 | G41: -963 | H41: 44 | I41: -2097 | J41: 44 | K41: -293 | L41: 35 | M41: -168 | N41: 41 | O41: -112 | P41: 45 | Q41: -187 | R41: 47 | S41: -82 | T41: 41
B42: 23 | C42: 愛知県 | E42: 1743 | F42: 7 | G42: 313 | H42: 8 | I42: 1629 | J42: 6 | K42: 722 | L42: 2 | M42: 15 | N42: 16 | O42: 124 | P42: 7 | Q42: -37 | R42: 29 | S42: -77 | T42: 39
B43: 24 | C43: 三重県 | E43: -2050 | F43: 32 | G43: -311 | H43: 27 | I43: -1089 | J43: 26 | K43: -273 | L43: 32 | M43: -72 | N43: 34 | O43: -74 | P43: 36 | Q43: -66 | R43: 38 | S43: -55 | T43: 32
B44: 25 | C44: 滋賀県 | E44: -315 | F44: 10 | G44: 1 | H44: 14 | I44: -589 | J44: 15 | K44: -109 | L44: 15 | M44: 39 | N44: 12 | O44: 68 | P44: 8 | Q44: -55 | R44: 34 | S44: -18 | T44: 21
B45: 26 | C45: 京都府 | E45: 242 | F45: 8 | G45: 863 | H45: 7 | I45: 160 | J45: 8 | K45: -816 | L45: 45 | M45: -208 | N45: 44 | O45: -19 | P45: 27 | Q45: 27 | R45: 7 | S45: 87 | T45: 5
B46: 27 | C46: 大阪府 | E46: 2428 | F46: 6 | G46: 1561 | H46: 3 | I46: 4701 | J46: 3 | K46: 381 | L46: 4 | M46: -898 | N46: 47 | O46: -728 | P46: 47 | Q46: -157 | R46: 46 | S46: -36 | T46: 25
B47: 28 | C47: 兵庫県 | E47: -1962 | F47: 29 | G47: 52 | H47: 11 | I47: -1098 | J47: 27 | K47: -871 | L47: 46 | M47: -357 | N47: 46 | O47: -79 | P47: 38 | Q47: -66 | R47: 38 | S47: 22 | T47: 9
B48: 29 | C48: 奈良県 | E48: -1673 | F48: 25 | G48: 147 | H48: 9 | I48: -1016 | J48: 25 | K48: -717 | L48: 43 | M48: -213 | N48: 45 | O48: -107 | P48: 44 | Q48: -18 | R48: 22 | S48: -84 | T48: 42
B49: 30 | C49: 和歌山県 | E49: -2050 | F49: 32 | G49: -255 | H49: 24 | I49: -881 | J49: 22 | K49: -385 | L49: 39 | M49: -111 | N49: 39 | O49: -84 | P49: 39 | Q49: -78 | R49: 40 | S49: -85 | T49: 44
B50: 31 | C50: 鳥取県 | E50: -724 | F50: 14 | G50: -193 | H50: 18 | I50: -480 | J50: 10 | K50: -31 | L50: 10 | M50: 37 | N50: 13 | O50: -59 | P50: 33 | Q50: 0 | R50: 14 | S50: -48 | T50: 28
B51: 32 | C51: 島根県 | E51: -835 | F51: 15 | G51: -295 | H51: 26 | I51: -700 | J51: 19 | K51: -10 | L51: 9 | M51: 92 | N51: 8 | O51: 45 | P51: 13 | Q51: 25 | R51: 8 | S51: 1 | T51: 11
B52: 33 | C52: 岡山県 | E52: -1115 | F52: 20 | G52: -12 | H52: 15 | I52: -551 | J52: 14 | K52: -440 | L52: 40 | M52: -63 | N52: 30 | O52: -84 | P52: 39 | Q52: -43 | R52: 30 | S52: -11 | T52: 15
B53: 34 | C53: 広島県 | E53: -1976 | F53: 31 | G53: -170 | H53: 17 | I53: -883 | J53: 23 | K53: -320 | L53: 37 | M53: -65 | N53: 32 | O53: 66 | P53: 10 | Q53: -65 | R53: 37 | S53: -84 | T53: 42
B54: 35 | C54: 山口県 | E54: -2326 | F54: 34 | G54: -323 | H54: 29 | I54: -1256 | J54: 36 | K54: -222 | L54: 28 | M54: -99 | N54: 37 | O54: -93 | P54: 41 | Q54: -29 | R54: 26 | S54: -40 | T54: 26
B55: 36 | C55: 徳島県 | E55: -1062 | F55: 17 | G55: -145 | H55: 16 | I55: -667 | J55: 17 | K55: -151 | L55: 22 | M55: -18 | N55: 22 | O55: -9 | P55: 24 | Q55: 1 | R55: 13 | S55: -15 | T55: 18
B56: 37 | C56: 香川県 | E56: -718 | F56: 13 | G56: -228 | H56: 21 | I56: -485 | J56: 11 | K56: 29 | L56: 8 | M56: 7 | N56: 18 | O56: 52 | P56: 11 | Q56: -45 | R56: 32 | S56: -35 | T56: 24
B57: 38 | C57: 愛媛県 | E57: -1969 | F57: 30 | G57: -480 | H57: 33 | I57: -1114 | J57: 28 | K57: -211 | L57: 27 | M57: -31 | N57: 24 | O57: -8 | P57: 23 | Q57: -22 | R57: 23 | S57: -68 | T57: 37
B58: 39 | C58: 高知県 | E58: -1184 | F58: 21 | G58: -213 | H58: 20 | I58: -770 | J58: 21 | K58: -118 | L58: 18 | M58: 8 | N58: 17 | O58: 26 | P58: 16 | Q58: -22 | R58: 23 | S58: -13 | T58: 16
B59: 40 | C59: 福岡県 | E59: 3546 | F59: 5 | G59: 941 | H59: 6 | I59: 596 | J59: 7 | K59: -192 | L59: 26 | M59: 50 | N59: 9 | O59: 196 | P59: 3 | Q59: 240 | R59: 3 | S59: 159 | T59: 4
B60: 41 | C60: 佐賀県 | E60: -1071 | F60: 18 | G60: -373 | H60: 31 | I60: -714 | J60: 20 | K60: -173 | L60: 25 | M60: -49 | N60: 28 | O60: 27 | P60: 15 | Q60: 0 | R60: 14 | S60: -9 | T60: 14
B61: 42 | C61: 長崎県 | E61: -3170 | F61: 41 | G61: -968 | H61: 45 | I61: -1481 | J61: 39 | K61: -229 | L61: 29 | M61: 30 | N61: 14 | O61: -7 | P61: 22 | Q61: -108 | R61: 44 | S61: -81 | T61: 40
B62: 43 | C62: 熊本県 | E62: -3935 | F62: 46 | G62: -746 | H62: 38 | I62: -1375 | J62: 38 | K62: -448 | L62: 41 | M62: -194 | N62: 43 | O62: -97 | P62: 42 | Q62: -106 | R62: 43 | S62: -113 | T62: 46
B63: 44 | C63: 大分県 | E63: -1482 | F63: 23 | G63: -228 | H63: 21 | I63: -935 | J63: 24 | K63: -111 | L63: 16 | M63: -48 | N63: 27 | O63: -72 | P63: 35 | Q63: -29 | R63: 26 | S63: -24 | T63: 23
B64: 45 | C64: 宮崎県 | E64: -2489 | F64: 37 | G64: -907 | H64: 43 | I64: -1190 | J64: 34 | K64: -121 | L64: 19 | M64: -40 | N64: 25 | O64: -33 | P64: 30 | Q64: -55 | R64: 34 | S64: -52 | T64: 31
B65: 46 | C65: 鹿児島県 | E65: -2669 | F65: 40 | G65: -1330 | H65: 47 | I65: -1160 | J65: 32 | K65: -232 | L65: 30 | M65: 41 | N65: 11 | O65: 22 | P65: 18 | Q65: -43 | R65: 30 | S65: -17 | T65: 19
B66: 47 | C66: 沖縄県 | E66: -25 | F66: 12 | G66: -712 | H66: 37 | I66: -527 | J66: 12 | K66: 356 | L66: 5 | M66: 303 | N66: 4 | O66: 145 | P66: 6 | Q66: 40 | R66: 6 | S66: 30 | T66: 8
B67: 資料等
B68: ○ 総務省「住民基本台帳人口移動報告」（平成28年）の日本人移動者の値。
B69: ○ 合計特殊出生率との相関係数、単純平均、標準偏差は都道府県別データから機械的に計算。変動係数は、標準偏差／単純平均で機械的に計算。

Sheet ３．（２）出生数の推移
B5: ■出生数の推移（1990年～2015年）
E7: 【実数値】 | Y7: ・・・上位10位を網掛け
Y8: ・・・下位10位を網掛け
E9: 出生数の推移
E10: 1990年 | G10: 1995年 | I10: 2000年 | K10: 2005年 | M10: 2010年 | O10: 2011年 | Q10: 2012年 | S10: 2013年 | U10: 2014年 | W10: 2015年 | Z10: 2010年から | AC10: 2010年から
Z11: 2015年への | AC11: 2015年への
Z12: 増加数 | AC12: 増加率
F13: （順位） | H13: （順位） | J13: （順位） | L13: （順位） | N13: （順位） | P13: （順位） | R13: （順位） | T13: （順位） | V13: （順位） | X13: （順位） | AA13: （順位） | AD13: （順位）
E14: （人） | F14: （昇順） | G14: （人） | H14: （昇順） | I14: （人） | J14: （昇順） | K14: （人） | L14: （昇順） | M14: （人） | N14: （昇順） | O14: （人） | P14: （昇順） | Q14: （人） | R14: （昇順） | S14: （人） | T14: （昇順） | U14: （人） | V14: （昇順） | W14: （人） | X14: （昇順） | Z14: （人） | AA14: （昇順） | AC14: （％） | AD14: （昇順）
B15: （合計特殊出生率との相関係数） | E15: =CORREL('１．（２）少子化関係指標'!$E$20:$E$66,E$20:E$66) -> -0.5071927252 | G15: =CORREL('１．（２）少子化関係指標'!$E$20:$E$66,G$20:G$66) -> -0.5015608322 | I15: =CORREL('１．（２）少子化関係指標'!$E$20:$E$66,I$20:I$66) -> -0.4942374142 | K15: =CORREL('１．（２）少子化関係指標'!$E$20:$E$66,K$20:K$66) -> -0.4895617794 | M15: =CORREL('１．（２）少子化関係指標'!$E$20:$E$66,M$20:M$66) -> -0.4776669796 | O15: =CORREL('１．（２）少子化関係指標'!$E$20:$E$66,O$20:O$66) -> -0.4735782203 | Q15: =CORREL('１．（２）少子化関係指標'!$E$20:$E$66,Q$20:Q$66) -> -0.4744327442 | S15: =CORREL('１．（２）少子化関係指標'!$E$20:$E$66,S$20:S$66) -> -0.4747203392 | U15: =CORREL('１．（２）少子化関係指標'!$E$20:$E$66,U$20:U$66) -> -0.4758672937 | W15: =CORREL('１．（２）少子化関係指標'!$E$20:$E$66,W$20:W$66) -> -0.4740870294 | Z15: =CORREL('１．（２）少子化関係指標'!$E$20:$E$66,Z$20:Z$66) -> 0.1617297083 | AC15: =CORREL('１．（２）少子化関係指標'!$E$20:$E$66,AC$20:AC$66) -> 0.09092564264
B16: （単純平均） | E16: =AVERAGE(E$20:E$66) -> 25991.17021 | G16: =AVERAGE(G$20:G$66) -> 25251 | I16: =AVERAGE(I$20:I$66) -> 25326.31915 | K16: =AVERAGE(K$20:K$66) -> 22603.40426 | M16: =AVERAGE(M$20:M$66) -> 22791.04255 | O16: =AVERAGE(O$20:O$66) -> 22354.97872 | Q16: =AVERAGE(Q$20:Q$66) -> 22067.31915 | S16: =AVERAGE(S$20:S$66) -> 21909.82979 | U16: =AVERAGE(U$20:U$66) -> 21350.51064 | W16: =AVERAGE(W$20:W$66) -> 21396.25532 | Z16: =AVERAGE(Z$20:Z$66) -> -1394.787234 | AC16: =AVERAGE(AC$20:AC$66) -> -0.07556350667
B17: （標準偏差） | E17: =STDEVP(E$20:E$66) -> 22825.37366 | G17: =STDEVP(G$20:G$66) -> 22583.24909 | I17: =STDEVP(I$20:I$66) -> 23236.90451 | K17: =STDEVP(K$20:K$66) -> 21356.60715 | M17: =STDEVP(M$20:M$66) -> 22606.18902 | O17: =STDEVP(O$20:O$66) -> 22170.31427 | Q17: =STDEVP(Q$20:Q$66) -> 22099.19697 | S17: =STDEVP(S$20:S$66) -> 22183.66676 | U17: =STDEVP(U$20:U$66) -> 21936.38319 | W17: =STDEVP(W$20:W$66) -> 22244.87797 | Z17: =STDEVP(Z$20:Z$66) -> 1559.527396 | AC17: =STDEVP(AC$20:AC$66) -> 0.03021749581
B18: （変動係数） | E18: =E17/E16 -> 0.8781972289 | G18: =G17/G16 -> 0.8943506826 | I18: =I17/I16 -> 0.9175002642 | K18: =K17/K16 -> 0.9448402953 | M18: =M17/M16 -> 0.9918892023 | O18: =O17/O16 -> 0.9917394484 | Q18: =Q17/Q16 -> 1.001444571 | S18: =S17/S16 -> 1.012498362 | U18: =U17/U16 -> 1.027440681 | W18: =W17/W16 -> 1.039662204 | Z18: =Z17/Z16 -> -1.118111321 | AC18: =AC17/AC16 -> -0.3998953615
B19: 全 国 | E19: 1221585 | G19: 1187064 | I19: 1190547 | K19: 1062530 | M19: 1071304 | O19: 1050806 | Q19: 1037231 | S19: 1029816 | U19: 1003539 | W19: 1005677 | Z19: -65627 | AC19: -0.06125898905
B20: 1 | C20: 北海道 | E20: 54428 | F20: 6 | G20: 49950 | H20: 8 | I20: 46780 | J20: 9 | K20: 41420 | L20: 9 | M20: 40158 | N20: 9 | O20: 39292 | P20: 9 | Q20: 38686 | R20: 9 | S20: 38190 | T20: 9 | U20: 37058 | V20: 9 | W20: 36695 | X20: 9 | Z20: -3463 | AA20: 41 | AC20: -0.08623437422 | AD20: 30
B21: 2 | C21: 青森県 | E21: 14635 | F21: 27 | G21: 13972 | H21: 27 | I21: 12920 | J21: 31 | K21: 10524 | L21: 32 | M21: 9711 | N21: 34 | O21: 9531 | P21: 34 | Q21: 9168 | R21: 35 | S21: 9126 | T21: 35 | U21: 8853 | V21: 34 | W21: 8621 | X21: 35 | Z21: -1090 | AA21: 24 | AC21: -0.1122438472 | AD21: 45
B22: 3 | C22: 岩手県 | E22: 14254 | F22: 29 | G22: 13021 | H22: 32 | I22: 12410 | J22: 32 | K22: 10545 | L22: 31 | M22: 9745 | N22: 33 | O22: 9310 | P22: 35 | Q22: 9276 | R22: 34 | S22: 9231 | T22: 34 | U22: 8803 | V22: 35 | W22: 8814 | X22: 34 | Z22: -931 | AA22: 19 | AC22: -0.0955361724 | AD22: 37
B23: 4 | C23: 宮城県 | E23: 23324 | F23: 15 | G23: 22267 | H23: 15 | I23: 22154 | J23: 14 | K23: 19326 | L23: 14 | M23: 19126 | N23: 14 | O23: 18062 | P23: 14 | Q23: 18707 | R23: 14 | S23: 18949 | T23: 14 | U23: 18069 | V23: 14 | W23: 17999 | X23: 14 | Z23: -1127 | AA23: 25 | AC23: -0.05892502353 | AD23: 11
B24: 5 | C24: 秋田県 | E24: 10992 | F24: 37 | G24: 9995 | H24: 38 | I24: 9007 | J24: 40 | K24: 7697 | L24: 40 | M24: 6688 | N24: 42 | O24: 6658 | P24: 42 | Q24: 6543 | R24: 42 | S24: 6177 | T24: 43 | U24: 5998 | V24: 43 | W24: 5861 | X24: 43 | Z24: -827 | AA24: 17 | AC24: -0.1236543062 | AD24: 47
B25: 6 | C25: 山形県 | E25: 12555 | F25: 33 | G25: 11507 | H25: 34 | I25: 10919 | J25: 35 | K25: 9357 | L25: 36 | M25: 8651 | N25: 36 | O25: 8555 | P25: 36 | Q25: 8212 | R25: 36 | S25: 8159 | T25: 36 | U25: 7966 | V25: 36 | W25: 7831 | X25: 36 | Z25: -820 | AA25: 16 | AC25: -0.09478672986 | AD25: 34
B26: 7 | C26: 福島県 | E26: 22721 | F26: 16 | G26: 21306 | H26: 16 | I26: 20332 | J26: 17 | K26: 17538 | L26: 18 | M26: 16126 | N26: 22 | O26: 15072 | P26: 25 | Q26: 13770 | R26: 25 | S26: 14546 | T26: 24 | U26: 14517 | V26: 23 | W26: 14195 | X26: 23 | Z26: -1931 | AA26: 38 | AC26: -0.119744512 | AD26: 46
B27: 8 | C27: 茨城県 | E27: 28784 | F27: 12 | G27: 28234 | H27: 11 | I27: 28220 | J27: 11 | K27: 24244 | L27: 12 | M27: 23989 | N27: 12 | O27: 23219 | P27: 12 | Q27: 22896 | R27: 12 | S27: 22358 | T27: 12 | U27: 21873 | V27: 12 | W27: 21700 | X27: 12 | Z27: -2289 | AA27: 39 | AC27: -0.09541873359 | AD27: 36
B28: 9 | C28: 栃木県 | E28: 19995 | F28: 19 | G28: 18662 | H28: 20 | I28: 18976 | J28: 21 | K28: 17363 | L28: 19 | M28: 16473 | N28: 20 | O28: 15913 | P28: 21 | Q28: 15973 | R28: 21 | S28: 15588 | T28: 21 | U28: 15442 | V28: 20 | W28: 15306 | X28: 21 | Z28: -1167 | AA28: 27 | AC28: -0.07084319796 | AD28: 17
B29: 10 | C29: 群馬県 | E29: 19470 | F29: 20 | G29: 19431 | H29: 19 | I29: 19445 | J29: 19 | K29: 17134 | L29: 20 | M29: 16023 | N29: 23 | O29: 15637 | P29: 22 | Q29: 14914 | R29: 22 | S29: 14732 | T29: 22 | U29: 14522 | V29: 22 | W29: 14256 | X29: 22 | Z29: -1767 | AA29: 36 | AC29: -0.110278974 | AD29: 42
B30: 11 | C30: 埼玉県 | E30: 63299 | F30: 5 | G30: 67750 | H30: 5 | I30: 66376 | J30: 5 | K30: 59731 | L30: 5 | M30: 59437 | N30: 5 | O30: 58059 | P30: 5 | Q30: 56943 | R30: 5 | S30: 57470 | T30: 5 | U30: 55765 | V30: 5 | W30: 56077 | X30: 5 | Z30: -3360 | AA30: 40 | AC30: -0.056530444 | AD30: 10
B31: 12 | C31: 千葉県 | E31: 53356 | F31: 8 | G31: 54388 | H31: 6 | I31: 55318 | J31: 6 | K31: 50588 | L31: 6 | M31: 51633 | N31: 6 | O31: 50379 | P31: 6 | Q31: 48881 | R31: 6 | S31: 48343 | T31: 6 | U31: 46749 | V31: 6 | W31: 47014 | X31: 6 | Z31: -4619 | AA31: 47 | AC31: -0.08945829218 | AD31: 31
B32: 13 | C32: 東京都 | E32: 103983 | F32: 1 | G32: 96823 | H32: 1 | I32: 100209 | J32: 1 | K32: 96542 | L32: 1 | M32: 108135 | N32: 1 | O32: 106027 | P32: 1 | Q32: 107401 | R32: 1 | S32: 109986 | T32: 1 | U32: 110629 | V32: 1 | W32: 113194 | X32: 1 | Z32: 5059 | AA32: 1 | AC32: 0.04678411245 | AD32: 1
B33: 14 | C33: 神奈川県 | E33: 79437 | F33: 3 | G33: 80692 | H33: 3 | I33: 82906 | J33: 3 | K33: 76196 | L33: 2 | M33: 78077 | N33: 2 | O33: 76000 | P33: 2 | Q33: 75477 | R33: 2 | S33: 74320 | T33: 2 | U33: 72996 | V33: 2 | W33: 73475 | X33: 2 | Z33: -4602 | AA33: 46 | AC33: -0.05894181385 | AD33: 12
B34: 15 | C34: 新潟県 | E34: 24061 | F34: 14 | G34: 22694 | H34: 14 | I34: 21886 | J34: 15 | K34: 18505 | L34: 16 | M34: 18083 | N34: 15 | O34: 17667 | P34: 15 | Q34: 17476 | R34: 15 | S34: 17066 | T34: 16 | U34: 16480 | V34: 15 | W34: 16339 | X34: 16 | Z34: -1744 | AA34: 35 | AC34: -0.09644417409 | AD34: 38
B35: 16 | C35: 富山県 | E35: 10050 | F35: 39 | G35: 10049 | H35: 37 | I35: 10170 | J35: 37 | K35: 8973 | L35: 37 | M35: 8188 | N35: 38 | O35: 7823 | P35: 38 | Q35: 7880 | R35: 38 | S35: 7722 | T35: 38 | U35: 7556 | V35: 38 | W35: 7567 | X35: 38 | Z35: -621 | AA35: 10 | AC35: -0.07584269663 | AD35: 22
B36: 17 | C36: 石川県 | E36: 11535 | F36: 36 | G36: 11093 | H36: 36 | I36: 11467 | J36: 33 | K36: 10049 | L36: 33 | M36: 9602 | N36: 35 | O36: 9555 | P36: 33 | Q36: 9544 | R36: 33 | S36: 9449 | T36: 33 | U36: 8961 | V36: 33 | W36: 9072 | X36: 33 | Z36: -530 | AA36: 7 | AC36: -0.05519683399 | AD36: 8
B37: 18 | C37: 福井県 | E37: 8668 | F37: 42 | G37: 8244 | H37: 43 | I37: 8036 | J37: 43 | K37: 7148 | L37: 43 | M37: 6874 | N37: 41 | O37: 6728 | P37: 41 | Q37: 6712 | R37: 41 | S37: 6461 | T37: 41 | U37: 6166 | V37: 41 | W37: 6230 | X37: 41 | Z37: -644 | AA37: 11 | AC37: -0.09368635438 | AD37: 33
B38: 19 | C38: 山梨県 | E38: 8582 | F38: 43 | G38: 8833 | H38: 41 | I38: 8374 | J38: 42 | K38: 7149 | L38: 42 | M38: 6651 | N38: 43 | O38: 6412 | P38: 43 | Q38: 6336 | R38: 43 | S38: 6198 | T38: 42 | U38: 6063 | V38: 42 | W38: 5987 | X38: 42 | Z38: -664 | AA38: 12 | AC38: -0.09983461134 | AD38: 40
B39: 20 | C39: 長野県 | E39: 21384 | F39: 17 | G39: 21187 | H39: 17 | I39: 21194 | J39: 16 | K39: 18517 | L39: 15 | M39: 17233 | N39: 16 | O39: 16917 | P39: 17 | Q39: 16661 | R39: 17 | S39: 16326 | T39: 17 | U39: 15848 | V39: 17 | W39: 15638 | X39: 17 | Z39: -1595 | AA39: 34 | AC39: -0.09255498172 | AD39: 32
B40: 21 | C40: 岐阜県 | E40: 20292 | F40: 18 | G40: 20187 | H40: 18 | I40: 20276 | J40: 18 | K40: 17706 | L40: 17 | M40: 16887 | N40: 18 | O40: 16851 | P40: 18 | Q40: 16496 | R40: 18 | S40: 16000 | T40: 19 | U40: 15138 | V40: 21 | W40: 15464 | X40: 20 | Z40: -1423 | AA40: 31 | AC40: -0.08426600343 | AD40: 27
B41: 22 | C41: 静岡県 | E41: 37045 | F41: 10 | G41: 35345 | H41: 10 | I41: 35794 | J41: 10 | K41: 31908 | L41: 10 | M41: 31896 | N41: 10 | O41: 31172 | P41: 10 | Q41: 30810 | R41: 10 | S41: 30260 | T41: 10 | U41: 28684 | V41: 10 | W41: 28352 | X41: 10 | Z41: -3544 | AA41: 42 | AC41: -0.1111111111 | AD41: 43
B42: 23 | C42: 愛知県 | E42: 70942 | F42: 4 | G42: 71899 | H42: 4 | I42: 74736 | J42: 4 | K42: 67110 | L42: 4 | M42: 69872 | N42: 4 | O42: 68973 | P42: 4 | Q42: 67913 | R42: 4 | S42: 66825 | T42: 4 | U42: 65218 | V42: 4 | W42: 65615 | X42: 4 | Z42: -4257 | AA42: 44 | AC42: -0.0609256927 | AD42: 14
B43: 24 | C43: 三重県 | E43: 17917 | F43: 24 | G43: 17500 | H43: 23 | I43: 17726 | J43: 22 | K43: 15345 | L43: 24 | M43: 15262 | N43: 24 | O43: 15080 | P43: 24 | Q43: 14729 | R43: 24 | S43: 14514 | T43: 25 | U43: 13727 | V43: 25 | W43: 13950 | X43: 25 | Z43: -1312 | AA43: 30 | AC43: -0.08596514218 | AD43: 29
B44: 25 | C44: 滋賀県 | E44: 13607 | F44: 31 | G44: 13320 | H44: 30 | I44: 14087 | J44: 27 | K44: 12899 | L44: 26 | M44: 13363 | N44: 26 | O44: 13338 | P44: 26 | Q44: 13236 | R44: 26 | S44: 13015 | T44: 26 | U44: 12729 | V44: 26 | W44: 12622 | X44: 26 | Z44: -741 | AA44: 15 | AC44: -0.05545162015 | AD44: 9
B45: 26 | C45: 京都府 | E45: 24209 | F45: 13 | G45: 23219 | H45: 13 | I45: 23997 | J45: 13 | K45: 21560 | L45: 13 | M45: 21234 | N45: 13 | O45: 20707 | P45: 13 | Q45: 20111 | R45: 13 | S45: 20106 | T45: 13 | U45: 19583 | V45: 13 | W45: 19662 | X45: 13 | Z45: -1572 | AA45: 32 | AC45: -0.07403221249 | AD45: 20
B46: 27 | C46: 大阪府 | E46: 86840 | F46: 2 | G46: 86076 | H46: 2 | I46: 88163 | J46: 2 | K46: 76111 | L46: 3 | M46: 75080 | N46: 3 | O46: 73919 | P46: 3 | Q46: 73012 | R46: 3 | S46: 72054 | T46: 3 | U46: 69968 | V46: 3 | W46: 70596 | X46: 3 | Z46: -4484 | AA46: 45 | AC46: -0.05972296217 | AD46: 13
B47: 28 | C47: 兵庫県 | E47: 53916 | F47: 7 | G47: 51947 | H47: 7 | I47: 54455 | J47: 7 | K47: 47273 | L47: 7 | M47: 47834 | N47: 7 | O47: 47351 | P47: 7 | Q47: 46436 | R47: 7 | S47: 45673 | T47: 8 | U47: 44352 | V47: 8 | W47: 44015 | X47: 8 | Z47: -3819 | AA47: 43 | AC47: -0.07983860852 | AD47: 23
B48: 29 | C48: 奈良県 | E48: 13315 | F48: 32 | G48: 13337 | H48: 29 | I48: 13270 | J48: 28 | K48: 11184 | L48: 30 | M48: 10694 | N48: 30 | O48: 10400 | P48: 30 | Q48: 10565 | R48: 30 | S48: 10190 | T48: 30 | U48: 9625 | V48: 30 | W48: 9832 | X48: 30 | Z48: -862 | AA48: 18 | AC48: -0.08060594726 | AD48: 24
B49: 30 | C49: 和歌山県 | E49: 10126 | F49: 38 | G49: 9879 | H49: 39 | I49: 9566 | J49: 39 | K49: 7835 | L49: 39 | M49: 7587 | N49: 40 | O49: 7460 | P49: 40 | Q49: 7424 | R49: 40 | S49: 7122 | T49: 40 | U49: 7140 | V49: 40 | W49: 7030 | X49: 40 | Z49: -557 | AA49: 8 | AC49: -0.07341505206 | AD49: 19
B50: 31 | C50: 鳥取県 | E50: 6412 | F50: 47 | G50: 5723 | H50: 47 | I50: 5645 | J50: 47 | K50: 5012 | L50: 47 | M50: 4790 | N50: 47 | O50: 4931 | P50: 47 | Q50: 4771 | R50: 47 | S50: 4759 | T50: 47 | U50: 4527 | V50: 47 | W50: 4624 | X50: 47 | Z50: -166 | AA50: 3 | AC50: -0.03465553236 | AD50: 4
B51: 32 | C51: 島根県 | E51: 7510 | F51: 45 | G51: 6764 | H51: 46 | I51: 6522 | J51: 46 | K51: 5697 | L51: 46 | M51: 5756 | N51: 45 | O51: 5582 | P51: 45 | Q51: 5585 | R51: 45 | S51: 5534 | T51: 45 | U51: 5359 | V51: 45 | W51: 5551 | X51: 45 | Z51: -205 | AA51: 4 | AC51: -0.03561501042 | AD51: 5
B52: 33 | C52: 岡山県 | E52: 19117 | F52: 21 | G52: 18622 | H52: 21 | I52: 19059 | J52: 20 | K52: 16688 | L52: 21 | M52: 16759 | N52: 19 | O52: 16635 | P52: 19 | Q52: 16279 | R52: 19 | S52: 16210 | T52: 18 | U52: 15837 | V52: 18 | W52: 15599 | X52: 18 | Z52: -1160 | AA52: 26 | AC52: -0.06921654037 | AD52: 16
B53: 34 | C53: 広島県 | E53: 28857 | F53: 11 | G53: 27609 | H53: 12 | I53: 27384 | J53: 12 | K53: 24740 | L53: 11 | M53: 25546 | N53: 11 | O53: 25469 | P53: 11 | Q53: 24846 | R53: 11 | S53: 24713 | T53: 11 | U53: 23775 | V53: 11 | W53: 23678 | X53: 11 | Z53: -1868 | AA53: 37 | AC53: -0.07312299382 | AD53: 18
B54: 35 | C54: 山口県 | E54: 13729 | F54: 30 | G54: 13240 | H54: 31 | I54: 13121 | J54: 30 | K54: 11514 | L54: 29 | M54: 11551 | N54: 28 | O54: 11222 | P54: 29 | Q54: 10797 | R54: 29 | S54: 10705 | T54: 28 | U54: 10197 | V54: 29 | W54: 10360 | X54: 28 | Z54: -1191 | AA54: 28 | AC54: -0.103107956 | AD54: 41
B55: 36 | C55: 徳島県 | E55: 7943 | F55: 44 | G55: 7472 | H55: 44 | I55: 7224 | J55: 44 | K55: 5913 | L55: 45 | M55: 5904 | N55: 44 | O55: 5914 | P55: 44 | Q55: 5744 | R55: 44 | S55: 5666 | T55: 44 | U55: 5502 | V55: 44 | W55: 5586 | X55: 44 | Z55: -318 | AA55: 5 | AC55: -0.05386178862 | AD55: 7
B56: 37 | C56: 香川県 | E56: 9555 | F56: 40 | G56: 9301 | H56: 40 | I56: 9808 | J56: 38 | K56: 8686 | L56: 38 | M56: 8397 | N56: 37 | O56: 8311 | P56: 37 | Q56: 8161 | R56: 37 | S56: 8059 | T56: 37 | U56: 7745 | V56: 37 | W56: 7719 | X56: 37 | Z56: -678 | AA56: 14 | AC56: -0.08074312254 | AD56: 25
B57: 38 | C57: 愛媛県 | E57: 14612 | F57: 28 | G57: 13849 | H57: 28 | I57: 13207 | J57: 29 | K57: 11528 | L57: 28 | M57: 11427 | N57: 29 | O57: 11329 | P57: 28 | Q57: 11130 | R57: 28 | S57: 10696 | T57: 29 | U57: 10399 | V57: 28 | W57: 10146 | X57: 29 | Z57: -1281 | AA57: 29 | AC57: -0.1121029142 | AD57: 44
B58: 39 | C58: 高知県 | E58: 7182 | F58: 46 | G58: 6939 | H58: 45 | I58: 6811 | J58: 45 | K58: 5916 | L58: 44 | M58: 5518 | N58: 46 | O58: 5244 | P58: 46 | Q58: 5266 | R58: 46 | S58: 5266 | T58: 46 | U58: 5015 | V58: 46 | W58: 5052 | X58: 46 | Z58: -466 | AA58: 6 | AC58: -0.084450888 | AD58: 28
B59: 40 | C59: 福岡県 | E59: 48164 | F59: 9 | G59: 46849 | H59: 9 | I59: 47290 | J59: 8 | K59: 43421 | L59: 8 | M59: 46818 | N59: 8 | O59: 46220 | P59: 8 | Q59: 45815 | R59: 8 | S59: 45897 | T59: 7 | U59: 45203 | V59: 7 | W59: 45235 | X59: 7 | Z59: -1583 | AA59: 33 | AC59: -0.03381178179 | AD59: 3
B60: 41 | C60: 佐賀県 | E60: 9555 | F60: 40 | G60: 8729 | H60: 42 | I60: 8745 | J60: 41 | K60: 7508 | L60: 41 | M60: 7640 | N60: 39 | O60: 7613 | P60: 39 | Q60: 7440 | R60: 39 | S60: 7276 | T60: 39 | U60: 7159 | V60: 39 | W60: 7064 | X60: 39 | Z60: -576 | AA60: 9 | AC60: -0.07539267016 | AD60: 21
B61: 42 | C61: 長崎県 | E61: 16517 | F61: 26 | G61: 14780 | H61: 26 | I61: 14098 | J61: 26 | K61: 12148 | L61: 27 | M61: 12004 | N61: 27 | O61: 11727 | P61: 27 | Q61: 11723 | R61: 27 | S61: 11566 | T61: 27 | U61: 11323 | V61: 27 | W61: 11020 | X61: 27 | Z61: -984 | AA61: 21 | AC61: -0.08197267577 | AD61: 26
B62: 43 | C62: 熊本県 | E62: 18992 | F62: 22 | G62: 17895 | H62: 22 | I62: 17262 | J62: 23 | K62: 15645 | L62: 23 | M62: 16246 | N62: 21 | O62: 16118 | P62: 20 | Q62: 15996 | R62: 20 | S62: 15954 | T62: 20 | U62: 15558 | V62: 19 | W62: 15577 | X62: 19 | Z62: -669 | AA62: 13 | AC62: -0.04117936723 | AD62: 6
B63: 44 | C63: 大分県 | E63: 11631 | F63: 35 | G63: 11125 | H63: 35 | I63: 10910 | J63: 36 | K63: 9780 | L63: 34 | M63: 10072 | N63: 32 | O63: 9988 | P63: 32 | Q63: 9650 | R63: 32 | S63: 9605 | T63: 32 | U63: 9279 | V63: 32 | W63: 9112 | X63: 32 | Z63: -960 | AA63: 20 | AC63: -0.09531374106 | AD63: 35
B64: 45 | C64: 宮崎県 | E64: 12107 | F64: 34 | G64: 11693 | H64: 33 | I64: 11037 | J64: 34 | K64: 9738 | L64: 35 | M64: 10217 | N64: 31 | O64: 10152 | P64: 31 | Q64: 9858 | R64: 31 | S64: 9854 | T64: 31 | U64: 9509 | V64: 31 | W64: 9226 | X64: 31 | Z64: -991 | AA64: 22 | AC64: -0.09699520407 | AD64: 39
B65: 46 | C65: 鹿児島県 | E65: 18892 | F65: 23 | G65: 16649 | H65: 25 | I65: 16272 | J65: 25 | K65: 14834 | L65: 25 | M65: 15124 | N65: 25 | O65: 15244 | P65: 23 | Q65: 14841 | R65: 23 | S65: 14637 | T65: 23 | U65: 14236 | V65: 24 | W65: 14125 | X65: 24 | Z65: -999 | AA65: 23 | AC65: -0.06605395398 | AD65: 15
B66: 47 | C66: 沖縄県 | E66: 17088 | F66: 25 | G66: 16751 | H66: 24 | I66: 16773 | J66: 24 | K66: 16115 | L66: 22 | M66: 17098 | N66: 17 | O66: 16918 | P66: 16 | Q66: 17074 | R66: 16 | S66: 17209 | T66: 15 | U66: 16373 | V66: 16 | W66: 16941 | X66: 15 | Z66: -157 | AA66: 2 | AC66: -0.00918236051 | AD66: 2
B67: 資料等
B68: ○ 厚生労働省「人口動態統計(確定数)」（各年版）より作成。
B69: ○ 合計特殊出生率との相関係数、単純平均、標準偏差は都道府県別データから機械的に計算。変動係数は、標準偏差／単純平均で機械的に計算。

Sheet ３．（２）就業者の割合（男性）
B5: ■男女別・配偶関係別・年齢階級別 就業者の割合（25～49歳） 男性
E7: 【実数値】 | W7: ・・・上位10位を網掛け
W8: ・・・下位10位を網掛け
E9: 就業者の割合（H22）
E10: 未婚 | O10: 有配偶
E11: 25～29歳 | G11: 30～34歳 | I11: 35～39歳 | K11: 40～44歳 | M11: 45～49歳 | O11: 25～29歳 | Q11: 30～34歳 | S11: 35～39歳 | U11: 40～44歳 | W11: 45～49歳
F12: （順位） | H12: （順位） | J12: （順位） | L12: （順位） | N12: （順位） | P12: （順位） | R12: （順位） | T12: （順位） | V12: （順位） | X12: （順位）
E13: （％） | F13: （降順） | G13: （％） | H13: （降順） | I13: （％） | J13: （降順） | K13: （％） | L13: （降順） | M13: （％） | N13: （降順） | O13: （％） | P13: （降順） | Q13: （％） | R13: （降順） | S13: （％） | T13: （降順） | U13: （％） | V13: （降順） | W13: （％） | X13: （降順）
B14: （合計特殊出生率との相関係数） | E14: =CORREL('１．（２）少子化関係指標'!$E$20:$E$66,E$19:E$65) -> 0.01775716894 | G14: =CORREL('１．（２）少子化関係指標'!$E$20:$E$66,G$19:G$65) -> -0.1217138017 | I14: =CORREL('１．（２）少子化関係指標'!$E$20:$E$66,I$19:I$65) -> -0.2048566007 | K14: =CORREL('１．（２）少子化関係指標'!$E$20:$E$66,K$19:K$65) -> -0.297877922 | M14: =CORREL('１．（２）少子化関係指標'!$E$20:$E$66,M$19:M$65) -> -0.3698910763 | O14: =CORREL('１．（２）少子化関係指標'!$E$20:$E$66,O$19:O$65) -> -0.1301458639 | Q14: =CORREL('１．（２）少子化関係指標'!$E$20:$E$66,Q$19:Q$65) -> -0.2527010329 | S14: =CORREL('１．（２）少子化関係指標'!$E$20:$E$66,S$19:S$65) -> -0.2317447658 | U14: =CORREL('１．（２）少子化関係指標'!$E$20:$E$66,U$19:U$65) -> -0.2232664868 | W14: =CORREL('１．（２）少子化関係指標'!$E$20:$E$66,W$19:W$65) -> -0.2113460812
B15: （単純平均） | E15: =AVERAGE(E$19:E$65) -> 82.90051375 | G15: =AVERAGE(G$19:G$65) -> 82.69370807 | I15: =AVERAGE(I$19:I$65) -> 80.54654198 | K15: =AVERAGE(K$19:K$65) -> 77.23137205 | M15: =AVERAGE(M$19:M$65) -> 74.37464131 | O15: =AVERAGE(O$19:O$65) -> 96.61735506 | Q15: =AVERAGE(Q$19:Q$65) -> 97.33628694 | S15: =AVERAGE(S$19:S$65) -> 97.47719193 | U15: =AVERAGE(U$19:U$65) -> 97.20141984 | W15: =AVERAGE(W$19:W$65) -> 96.94183005
B16: （標準偏差） | E16: =STDEVP(E$19:E$65) -> 2.722065489 | G16: =STDEVP(G$19:G$65) -> 2.701060721 | I16: =STDEVP(I$19:I$65) -> 3.001438163 | K16: =STDEVP(K$19:K$65) -> 3.764662212 | M16: =STDEVP(M$19:M$65) -> 4.048814227 | O16: =STDEVP(O$19:O$65) -> 0.8466472751 | Q16: =STDEVP(Q$19:Q$65) -> 0.6882590133 | S16: =STDEVP(S$19:S$65) -> 0.6479161077 | U16: =STDEVP(U$19:U$65) -> 0.6614306783 | W16: =STDEVP(W$19:W$65) -> 0.7188251982
B17: （変動係数） | E17: =E16/E15 -> 0.03283532714 | G17: =G16/G15 -> 0.03266343697 | I17: =I16/I15 -> 0.03726340186 | K17: =K16/K15 -> 0.04874524578 | M17: =M16/M15 -> 0.05443810089 | O17: =O16/O15 -> 0.008762890213 | Q17: =Q16/Q15 -> 0.007070939677 | S17: =S16/S15 -> 0.006646848303 | U17: =U16/U15 -> 0.00680474297 | W17: =W16/W15 -> 0.007415015766
B18: 全 国 | E18: 83.37244182 | G18: 83.48135927 | I18: 81.66921796 | K18: 79.00721733 | M18: 76.36797098 | O18: 96.66863259 | Q18: 97.45409947 | S18: 97.61717443 | U18: 97.32329674 | W18: 97.02766549
B19: 1 | C19: 北海道 | E19: 80.26905326 | F19: 39 | G19: 80.35212373 | H19: 38 | I19: 78.70682019 | J19: 31 | K19: 74.86091873 | L19: 35 | M19: 72.4168436 | N19: 31 | O19: 96.69618012 | P19: 24 | Q19: 97.16218871 | R19: 31 | S19: 97.27807401 | T19: 30 | U19: 96.97349603 | V19: 34 | W19: 96.82280351 | X19: 30
B20: 2 | C20: 青森県 | E20: 78.96568649 | F20: 44 | G20: 78.87106554 | H20: 44 | I20: 75.68526282 | J20: 46 | K20: 71.4957588 | L20: 45 | M20: 68.98734177 | N20: 43 | O20: 95.89276139 | P20: 39 | Q20: 96.38086114 | R20: 46 | S20: 96.4153178 | T20: 46 | U20: 96.1541379 | V20: 46 | W20: 95.89106546 | X20: 45
B21: 3 | C21: 岩手県 | E21: 81.64525934 | F21: 33 | G21: 81.71761627 | H21: 27 | I21: 78.89802296 | J21: 29 | K21: 76.1717039 | L21: 28 | M21: 72.45430809 | N21: 30 | O21: 96.70865502 | P21: 23 | Q21: 97.24942473 | R21: 28 | S21: 97.20456398 | T21: 35 | U21: 96.91452111 | V21: 35 | W21: 96.23731629 | X21: 41
B22: 4 | C22: 宮城県 | E22: 79.12774824 | F22: 43 | G22: 80.47019151 | H22: 35 | I22: 78.72405606 | J22: 30 | K22: 75.83992357 | L22: 30 | M22: 74.3185865 | N22: 23 | O22: 95.79768223 | P22: 41 | Q22: 96.86324718 | R22: 38 | S22: 96.95055057 | T22: 39 | U22: 96.78184499 | V22: 38 | W22: 96.53752535 | X22: 39
B23: 5 | C23: 秋田県 | E23: 82.69385731 | F23: 25 | G23: 81.14447931 | H23: 31 | I23: 78.2026235 | J23: 36 | K23: 74.72145681 | L23: 36 | M23: 73.55639504 | N23: 27 | O23: 96.84272647 | P23: 19 | Q23: 97.50408052 | R23: 22 | S23: 97.63708609 | T23: 20 | U23: 97.25338696 | V23: 23 | W23: 96.99561207 | X23: 24
B24: 6 | C24: 山形県 | E24: 84.29195192 | F24: 17 | G24: 84.02758232 | H24: 17 | I24: 81.26225709 | J24: 22 | K24: 78.91251307 | L24: 19 | M24: 75.62835357 | N24: 21 | O24: 97.24184326 | P24: 14 | Q24: 97.82828283 | R24: 11 | S24: 97.96309828 | T24: 14 | U24: 97.63724485 | V24: 12 | W24: 97.46205028 | X24: 14
B25: 7 | C25: 福島県 | E25: 81.85915841 | F25: 30 | G25: 81.68312856 | H25: 29 | I25: 79.28873342 | J25: 28 | K25: 76.40139318 | L25: 25 | M25: 73.76440267 | N25: 26 | O25: 96.31605372 | P25: 33 | Q25: 97.11293892 | R25: 35 | S25: 97.27225673 | T25: 31 | U25: 96.90080429 | V25: 36 | W25: 96.68476108 | X25: 33
B26: 8 | C26: 茨城県 | E26: 83.3219715 | F26: 22 | G26: 83.19686565 | H26: 23 | I26: 81.49423566 | J26: 21 | K26: 78.42914058 | L26: 21 | M26: 76.77550818 | N26: 16 | O26: 96.63053415 | P26: 28 | Q26: 97.33530559 | R26: 25 | S26: 97.56333077 | T26: 24 | U26: 97.19426941 | V26: 27 | W26: 97.01539281 | X26: 22
B27: 9 | C27: 栃木県 | E27: 84.45441338 | F27: 16 | G27: 83.40961098 | H27: 21 | I27: 81.79791415 | J27: 19 | K27: 79.54138884 | L27: 16 | M27: 76.5279008 | N27: 19 | O27: 97.08038503 | P27: 17 | Q27: 97.58932942 | R27: 19 | S27: 97.57765061 | T27: 23 | U27: 97.31112154 | V27: 21 | W27: 97.25160494 | X27: 17
B28: 10 | C28: 群馬県 | E28: 84.75923852 | F28: 12 | G28: 83.8245614 | H28: 19 | I28: 82.61576584 | J28: 15 | K28: 79.49158175 | L28: 17 | M28: 76.16004868 | N28: 20 | O28: 97.29069057 | P28: 13 | Q28: 97.87315212 | R28: 9 | S28: 97.78409843 | T28: 19 | U28: 97.51927817 | V28: 18 | W28: 97.22170943 | X28: 19
B29: 11 | C29: 埼玉県 | E29: 83.60631001 | F29: 20 | G29: 83.98556182 | H29: 18 | I29: 82.8681022 | J29: 13 | K29: 81.38305491 | L29: 8 | M29: 79.13403689 | N29: 5 | O29: 96.67470642 | P29: 26 | Q29: 97.75608913 | R29: 15 | S29: 98.05129602 | T29: 10 | U29: 97.61129583 | V29: 14 | W29: 97.26818031 | X29: 16
B30: 12 | C30: 千葉県 | E30: 83.90930055 | F30: 19 | G30: 84.06781834 | H30: 16 | I30: 82.89002794 | J30: 12 | K30: 80.7518997 | L30: 11 | M30: 79.09359558 | N30: 6 | O30: 97.20973783 | P30: 15 | Q30: 97.80965827 | R30: 12 | S30: 97.9643398 | T30: 13 | U30: 97.58508959 | V30: 17 | W30: 97.32732978 | X30: 15
B31: 13 | C31: 東京都 | E31: 84.14248359 | F31: 18 | G31: 85.94096611 | H31: 7 | I31: 84.5440419 | J31: 4 | K31: 82.73244234 | L31: 2 | M31: 80.9067123 | N31: 4 | O31: 96.6935908 | P31: 25 | Q31: 97.56243012 | R31: 20 | S31: 97.81090999 | T31: 16 | U31: 97.51471596 | V31: 19 | W31: 97.10019917 | X31: 21
B32: 14 | C32: 神奈川県 | E32: 85.23332729 | F32: 10 | G32: 85.36199045 | H32: 11 | I32: 84.01107376 | J32: 8 | K32: 82.71252006 | L32: 4 | M32: 81.00001541 | N32: 1 | O32: 97.43025972 | P32: 8 | Q32: 98.07419321 | R32: 6 | S32: 98.20184186 | T32: 3 | U32: 97.85693829 | V32: 6 | W32: 97.53407559 | X32: 10
B33: 15 | C33: 新潟県 | E33: 84.57964711 | F33: 15 | G33: 85.0535851 | H33: 12 | I33: 83.2069095 | J33: 11 | K33: 80.13157895 | L33: 13 | M33: 78.91668234 | N33: 7 | O33: 97.32815302 | P33: 11 | Q33: 97.84963932 | R33: 10 | S33: 98.01834023 | T33: 12 | U33: 97.89781458 | V33: 5 | W33: 97.64781439 | X33: 7
B34: 16 | C34: 富山県 | E34: 86.83723635 | F34: 4 | G34: 85.92804632 | H34: 8 | I34: 83.9013618 | J34: 10 | K34: 80.49248842 | L34: 12 | M34: 78.25376063 | N34: 10 | O34: 97.60616716 | P34: 2 | Q34: 98.2835422 | R34: 1 | S34: 98.44286606 | T34: 1 | U34: 98.07973822 | V34: 1 | W34: 97.88925081 | X34: 2
B35: 17 | C35: 石川県 | E35: 84.7534729 | F35: 13 | G35: 85.662258 | H35: 10 | I35: 83.94518572 | J35: 9 | K35: 81.0278031 | L35: 10 | M35: 77.76893698 | N35: 11 | O35: 97.41184851 | P35: 9 | Q35: 97.93319415 | R35: 8 | S35: 98.08352403 | T35: 8 | U35: 97.8270369 | V35: 8 | W35: 97.90061015 | X35: 1
B36: 18 | C36: 福井県 | E36: 86.80154846 | F36: 5 | G36: 87.09294269 | H36: 2 | I36: 84.33720368 | J36: 6 | K36: 81.09778943 | L36: 9 | M36: 77.56304502 | N36: 13 | O36: 97.07207207 | P36: 18 | Q36: 98.09104258 | R36: 5 | S36: 98.18141739 | T36: 6 | U36: 97.85499025 | V36: 7 | W36: 97.74382951 | X36: 5
B37: 19 | C37: 山梨県 | E37: 84.6246568 | F37: 14 | G37: 84.47010383 | H37: 14 | I37: 82.49949362 | J37: 16 | K37: 79.91100641 | L37: 15 | M37: 76.76413938 | N37: 17 | O37: 97.31182796 | P37: 12 | Q37: 97.64468371 | R37: 18 | S37: 97.5435638 | T37: 25 | U37: 97.46525374 | V37: 20 | W37: 97.01113201 | X37: 23
B38: 20 | C38: 長野県 | E38: 85.79857959 | F38: 8 | G38: 85.99973534 | H38: 6 | I38: 84.23288633 | J38: 7 | K38: 81.7219917 | L38: 7 | M38: 78.7586601 | N38: 8 | O38: 96.48458998 | P38: 31 | Q38: 97.49962659 | R38: 23 | S38: 97.63324833 | T38: 21 | U38: 97.603957 | V38: 15 | W38: 97.23960638 | X38: 18
B39: 21 | C39: 岐阜県 | E39: 85.86287527 | F39: 7 | G39: 85.69365205 | H39: 9 | I39: 82.67125299 | J39: 14 | K39: 79.96878901 | L39: 14 | M39: 75.08584855 | N39: 22 | O39: 97.16178476 | P39: 16 | Q39: 97.78761062 | R39: 13 | S39: 97.95496371 | T39: 15 | U39: 97.59484579 | V39: 16 | W39: 97.47348655 | X39: 12
B40: 22 | C40: 静岡県 | E40: 87.64172336 | F40: 2 | G40: 86.49206674 | H40: 3 | I40: 84.38878611 | J40: 5 | K40: 82.11738587 | L40: 6 | M40: 78.7024031 | N40: 9 | O40: 97.38934178 | P40: 10 | Q40: 97.76354219 | R40: 14 | S40: 98.08308912 | T40: 9 | U40: 97.79785834 | V40: 9 | W40: 97.49810193 | X40: 11
B41: 23 | C41: 愛知県 | E41: 88.31436526 | F41: 1 | G41: 87.62976008 | H41: 1 | I41: 85.61450424 | J41: 1 | K41: 83.17781422 | L41: 1 | M41: 80.91148268 | N41: 3 | O41: 97.59975807 | P41: 3 | Q41: 98.18006156 | R41: 3 | S41: 98.19665788 | T41: 4 | U41: 97.95087573 | V41: 4 | W41: 97.76167725 | X41: 4
B42: 24 | C42: 三重県 | E42: 87.21721875 | F42: 3 | G42: 86.46914198 | H42: 4 | I42: 85.0272276 | J42: 2 | K42: 82.41781107 | L42: 5 | M42: 77.20011906 | N42: 14 | O42: 97.52159751 | P42: 5 | Q42: 98.26628288 | R42: 2 | S42: 98.30481332 | T42: 2 | U42: 97.95799442 | V42: 3 | W42: 97.64571375 | X42: 8
B43: 25 | C43: 滋賀県 | E43: 85.9633859 | F43: 6 | G43: 86.29250991 | H43: 5 | I43: 85.01078817 | J43: 3 | K43: 82.72963778 | L43: 3 | M43: 80.92424242 | N43: 2 | O43: 97.72686753 | P43: 1 | Q43: 98.1518283 | R43: 4 | S43: 98.16102265 | T43: 7 | U43: 97.98805024 | V43: 2 | W43: 97.74225343 | X43: 6
B44: 26 | C44: 京都府 | E44: 79.95597358 | F44: 41 | G44: 82.42463815 | H44: 25 | I44: 80.8930523 | J44: 24 | K44: 78.45406156 | L44: 20 | M44: 76.72279705 | N44: 18 | O44: 95.8186398 | P44: 40 | Q44: 96.9856899 | R44: 37 | S44: 97.2062348 | T44: 34 | U44: 96.88894579 | V44: 37 | W44: 96.85874766 | X44: 28
B45: 27 | C45: 大阪府 | E45: 80.62778506 | F45: 37 | G45: 80.46405142 | H45: 36 | I45: 78.26670865 | J45: 34 | K45: 75.34296929 | L45: 31 | M45: 72.71899225 | N45: 28 | O45: 95.49254754 | P45: 43 | Q45: 96.77287139 | R45: 39 | S45: 96.82740283 | T45: 43 | U45: 96.5092201 | V45: 43 | W45: 96.05406071 | X45: 44
B46: 28 | C46: 兵庫県 | E46: 82.23683513 | F46: 28 | G46: 81.71412054 | H46: 28 | I46: 79.46697491 | J46: 27 | K46: 76.33695832 | L46: 27 | M46: 74.0582776 | N46: 24 | O46: 96.636451 | P46: 27 | Q46: 97.41474147 | R46: 24 | S46: 97.58578639 | T46: 22 | U46: 97.24576102 | V46: 24 | W46: 96.94818845 | X46: 26
B47: 29 | C47: 奈良県 | E47: 77.45423943 | F47: 46 | G47: 78.03576664 | H47: 46 | I47: 76.76858306 | J47: 44 | K47: 72.44723939 | L47: 42 | M47: 69.91164921 | N47: 39 | O47: 94.95366892 | P47: 46 | Q47: 96.57713462 | R47: 43 | S47: 96.84578654 | T47: 42 | U47: 96.72723622 | V47: 39 | W47: 96.35420067 | X47: 40
B48: 30 | C48: 和歌山県 | E48: 81.79020605 | F48: 31 | G48: 81.07047279 | H48: 33 | I48: 78.26554556 | J48: 35 | K48: 73.68943043 | L48: 39 | M48: 69.87229102 | N48: 40 | O48: 96.26153606 | P48: 35 | Q48: 97.20474169 | R48: 29 | S48: 97.36997928 | T48: 26 | U48: 97.00112971 | V48: 32 | W48: 96.70987039 | X48: 32
B49: 31 | C49: 鳥取県 | E49: 83.09072782 | F49: 24 | G49: 83.51029807 | H49: 20 | I49: 81.53919542 | J49: 20 | K49: 77.47116037 | L49: 23 | M49: 74.03176372 | N49: 25 | O49: 96.78442029 | P49: 20 | Q49: 97.51152074 | R49: 21 | S49: 97.80390801 | T49: 18 | U49: 97.23852593 | V49: 25 | W49: 96.7370932 | X49: 31
B50: 32 | C50: 島根県 | E50: 85.26554099 | F50: 9 | G50: 84.64265294 | H50: 13 | I50: 82.41042345 | J50: 17 | K50: 78.41897233 | L50: 22 | M50: 77.59365994 | N50: 12 | O50: 97.56951196 | P50: 4 | Q50: 97.72771224 | R50: 16 | S50: 98.19268221 | T50: 5 | U50: 97.77848051 | V50: 10 | W50: 97.77218829 | X50: 3
B51: 33 | C51: 岡山県 | E51: 80.57971014 | F51: 38 | G51: 80.1888618 | H51: 40 | I51: 77.98404962 | J51: 37 | K51: 74.52722256 | L51: 37 | M51: 72.09850915 | N51: 33 | O51: 95.4566345 | P51: 45 | Q51: 96.50029631 | R51: 44 | S51: 96.93036147 | T51: 40 | U51: 96.5848564 | V51: 41 | W51: 96.54458928 | X51: 38
B52: 34 | C52: 広島県 | E52: 84.96365046 | F52: 11 | G52: 84.44333166 | H52: 15 | I52: 82.37820137 | J52: 18 | K52: 78.98097951 | L52: 18 | M52: 76.79178656 | N52: 15 | O52: 97.47076657 | P52: 6 | Q52: 98.03068172 | R52: 7 | S52: 98.04698771 | T52: 11 | U52: 97.73841689 | V52: 11 | W52: 97.53678714 | X52: 9
B53: 35 | C53: 山口県 | E53: 83.29318013 | F53: 23 | G53: 82.5261272 | H53: 24 | I53: 80.9650053 | J53: 23 | K53: 75.89154141 | L53: 29 | M53: 72.40412791 | N53: 32 | O53: 97.43516126 | P53: 7 | Q53: 97.6950441 | R53: 17 | S53: 97.80532412 | T53: 17 | U53: 97.63579749 | V53: 13 | W53: 97.47170092 | X53: 13
B54: 36 | C54: 徳島県 | E54: 80.01118926 | F54: 40 | G54: 78.77744296 | H54: 45 | I54: 76.81611436 | J54: 43 | K54: 70.15378773 | L54: 46 | M54: 67.42815033 | N54: 46 | O54: 96.00151601 | P54: 38 | Q54: 96.40928726 | R54: 45 | S54: 96.57885962 | T54: 45 | U54: 96.39328063 | V54: 44 | W54: 95.7957958 | X54: 46
B55: 37 | C55: 香川県 | E55: 83.51001939 | F55: 21 | G55: 82.09040006 | H55: 26 | I55: 80.16817838 | J55: 26 | K55: 76.4664311 | L55: 24 | M55: 72.58811682 | N55: 29 | O55: 96.600833 | P55: 29 | Q55: 97.14912281 | R55: 32 | S55: 97.29056228 | T55: 29 | U55: 97.23089522 | V55: 26 | W55: 96.97320127 | X55: 25
B56: 38 | C56: 愛媛県 | E56: 81.76723938 | F56: 32 | G56: 81.38064289 | H56: 30 | I56: 77.6908283 | J56: 40 | K56: 73.3493744 | L56: 40 | M56: 69.53601954 | N56: 42 | O56: 96.27664358 | P56: 34 | Q56: 97.127768 | R56: 34 | S56: 96.95728694 | T56: 38 | U56: 96.70976637 | V56: 40 | W56: 96.61658049 | X56: 36
B57: 39 | C57: 高知県 | E57: 79.56465834 | F57: 42 | G57: 79.56024232 | H57: 43 | I57: 76.89836824 | J57: 42 | K57: 74.49727495 | L57: 38 | M57: 69.83849847 | N57: 41 | O57: 95.66811827 | P57: 42 | Q57: 96.67189953 | R57: 41 | S57: 96.78143713 | T57: 44 | U57: 96.26511046 | V57: 45 | W57: 96.19964716 | X57: 42
B58: 40 | C58: 福岡県 | E58: 78.60566597 | F58: 45 | G58: 79.85374602 | H58: 41 | I58: 77.93025118 | J58: 38 | K58: 74.92741935 | L58: 34 | M58: 71.52138402 | N58: 35 | O58: 95.47180389 | P58: 44 | Q58: 96.57871339 | R58: 42 | S58: 96.90324506 | T58: 41 | U58: 96.52637122 | V58: 42 | W58: 96.18844119 | X58: 43
B59: 41 | C59: 佐賀県 | E59: 82.3554272 | F59: 27 | G59: 83.31748145 | H59: 22 | I59: 80.34549408 | J59: 25 | K59: 76.39506173 | L59: 26 | M59: 72.03459638 | N59: 34 | O59: 96.72648959 | P59: 22 | Q59: 97.19482121 | R59: 30 | S59: 97.22728931 | T59: 33 | U59: 97.27043944 | V59: 22 | W59: 97.17019192 | X59: 20
B60: 42 | C60: 長崎県 | E60: 82.09095171 | F60: 29 | G60: 80.27090322 | H60: 39 | I60: 76.96416648 | J60: 41 | K60: 72.25742574 | L60: 43 | M60: 68.78233874 | N60: 45 | O60: 96.47025602 | P60: 32 | Q60: 97.27272727 | R60: 27 | S60: 97.34074295 | T60: 27 | U60: 97.10511417 | V60: 28 | W60: 96.9321614 | X60: 27
B61: 43 | C61: 熊本県 | E61: 81.26691743 | F61: 35 | G61: 80.44212618 | H61: 37 | I61: 77.91134485 | J61: 39 | K61: 75.23619658 | L61: 32 | M61: 71.03763988 | N61: 38 | O61: 96.25687052 | P61: 36 | Q61: 96.99192413 | R61: 36 | S61: 97.33543251 | T61: 28 | U61: 97.05526797 | V61: 31 | W61: 96.68263309 | X61: 34
B62: 44 | C62: 大分県 | E62: 81.64154619 | F62: 34 | G62: 80.52118979 | H62: 34 | I62: 78.4466341 | J62: 33 | K62: 74.97598463 | L62: 33 | M62: 71.47793309 | N62: 36 | O62: 96.04747387 | P62: 37 | Q62: 96.73292335 | R62: 40 | S62: 97.0063135 | T62: 37 | U62: 96.98984303 | V62: 33 | W62: 96.82574052 | X62: 29
B63: 45 | C63: 宮崎県 | E63: 82.37006752 | F63: 26 | G63: 81.09620607 | H63: 32 | I63: 78.5822478 | J63: 32 | K63: 72.56367663 | L63: 41 | M63: 71.06999195 | N63: 37 | O63: 96.59162634 | P63: 30 | Q63: 97.143986 | R63: 33 | S63: 97.10862324 | T63: 36 | U63: 97.07593464 | V63: 29 | W63: 96.58316367 | X63: 37
B64: 46 | C64: 鹿児島県 | E64: 81.14618276 | F64: 36 | G64: 79.66436886 | H64: 42 | I64: 76.64704233 | J64: 45 | K64: 71.60736635 | L64: 44 | M64: 68.9631717 | N64: 44 | O64: 96.72907252 | P64: 21 | Q64: 97.31418852 | R64: 26 | S64: 97.26991367 | T64: 32 | U64: 97.06290864 | V64: 30 | W64: 96.67808119 | X64: 35
B65: 47 | C65: 沖縄県 | E65: 76.06196297 | F65: 47 | G65: 75.7718444 | H65: 47 | I65: 72.52452623 | J65: 47 | K65: 67.64415968 | L65: 47 | M65: 63.55307708 | N65: 47 | O65: 93.17583141 | P65: 47 | Q65: 94.24545455 | R65: 47 | S65: 94.73593964 | T65: 47 | U65: 94.20687066 | V65: 47 | W65: 93.72984593 | X65: 47
B66: 資料等
B67: ○ 総務省「国勢調査」（平成22年）より作成。就業者の割合とは人口に占める就業者の割合であり、労働力状態不詳や年齢・国籍不詳は除いて算出した。
B68: ○ 合計特殊出生率との相関係数、単純平均、標準偏差は都道府県別データから機械的に計算。変動係数は、標準偏差／単純平均で機械的に計算。

Sheet ３．（２）就業者の割合（女性）
B5: ■男女別・配偶関係別・年齢階級別 就業者の割合（25～49歳） 女性
W7: ・・・上位10位を網掛け
W8: ・・・下位10位を網掛け
E9: 就業者の割合（H22）
E10: 未婚 | O10: 有配偶
E11: 25～29歳 | G11: 30～34歳 | I11: 35～39歳 | K11: 40～44歳 | M11: 45～49歳 | O11: 25～29歳 | Q11: 30～34歳 | S11: 35～39歳 | U11: 40～44歳 | W11: 45～49歳
F12: （順位） | H12: （順位） | J12: （順位） | L12: （順位） | N12: （順位） | P12: （順位） | R12: （順位） | T12: （順位） | V12: （順位） | X12: （順位）
E13: （％） | F13: （降順） | G13: （％） | H13: （降順） | I13: （％） | J13: （降順） | K13: （％） | L13: （降順） | M13: （％） | N13: （降順） | O13: （％） | P13: （降順） | Q13: （％） | R13: （降順） | S13: （％） | T13: （降順） | U13: （％） | V13: （降順） | W13: （％） | X13: （降順）
B14: （合計特殊出生率との相関係数） | E14: =CORREL('１．（２）少子化関係指標'!$E$20:$E$66,E$19:E$65) -> 0.08525626648 | G14: =CORREL('１．（２）少子化関係指標'!$E$20:$E$66,G$19:G$65) -> 0.09044053819 | I14: =CORREL('１．（２）少子化関係指標'!$E$20:$E$66,I$19:I$65) -> 0.04095770789 | K14: =CORREL('１．（２）少子化関係指標'!$E$20:$E$66,K$19:K$65) -> -0.09176041719 | M14: =CORREL('１．（２）少子化関係指標'!$E$20:$E$66,M$19:M$65) -> -0.276483089 | O14: =CORREL('１．（２）少子化関係指標'!$E$20:$E$66,O$19:O$65) -> 0.1897214424 | Q14: =CORREL('１．（２）少子化関係指標'!$E$20:$E$66,Q$19:Q$65) -> 0.3180134841 | S14: =CORREL('１．（２）少子化関係指標'!$E$20:$E$66,S$19:S$65) -> 0.4066097074 | U14: =CORREL('１．（２）少子化関係指標'!$E$20:$E$66,U$19:U$65) -> 0.4282283708 | W14: =CORREL('１．（２）少子化関係指標'!$E$20:$E$66,W$19:W$65) -> 0.4047744134
B15: （単純平均） | E15: =AVERAGE(E$19:E$65) -> 85.20401405 | G15: =AVERAGE(G$19:G$65) -> 83.64205039 | I15: =AVERAGE(I$19:I$65) -> 80.74648853 | K15: =AVERAGE(K$19:K$65) -> 77.67616714 | M15: =AVERAGE(M$19:M$65) -> 74.11209705 | O15: =AVERAGE(O$19:O$65) -> 54.66966214 | Q15: =AVERAGE(Q$19:Q$65) -> 57.04788475 | S15: =AVERAGE(S$19:S$65) -> 61.75244736 | U15: =AVERAGE(U$19:U$65) -> 69.27757884 | W15: =AVERAGE(W$19:W$65) -> 74.09389466
B16: （標準偏差） | E16: =STDEVP(E$19:E$65) -> 1.877231276 | G16: =STDEVP(G$19:G$65) -> 1.689412127 | I16: =STDEVP(I$19:I$65) -> 1.985803762 | K16: =STDEVP(K$19:K$65) -> 2.313892457 | M16: =STDEVP(M$19:M$65) -> 2.623582848 | O16: =STDEVP(O$19:O$65) -> 5.93355626 | Q16: =STDEVP(Q$19:Q$65) -> 7.249389343 | S16: =STDEVP(S$19:S$65) -> 7.534117104 | U16: =STDEVP(U$19:U$65) -> 6.261942891 | W16: =STDEVP(W$19:W$65) -> 5.287438381
B17: （変動係数） | E17: =E16/E15 -> 0.02203219293 | G17: =G16/G15 -> 0.02019811947 | I17: =I16/I15 -> 0.0245930665 | K17: =K16/K15 -> 0.02978896284 | M17: =M16/M15 -> 0.03540019716 | O17: =O16/O15 -> 0.1085347161 | Q17: =Q16/Q15 -> 0.1270755151 | S17: =S16/S15 -> 0.1220051581 | U17: =U16/U15 -> 0.09038917058 | W17: =W16/W15 -> 0.07136132342
B18: 全 国 | E18: 85.36280147 | G18: 83.94504611 | I18: 81.28699119 | K18: 78.80800915 | M18: 75.89362254 | O18: 52.58147907 | Q18: 53.11318359 | S18: 56.68562495 | U18: 64.84932637 | W18: 70.83786382
B19: 1 | C19: 北海道 | E19: 83.50910475 | F19: 42 | G19: 82.23790748 | H19: 38 | I19: 80.03386571 | J19: 34 | K19: 78.16624019 | L19: 22 | M19: 75.44097183 | N19: 17 | O19: 48.01066646 | P19: 43 | Q19: 50.04195775 | R19: 39 | S19: 54.3766429 | T19: 40 | U19: 63.06946634 | V19: 39 | W19: 68.34401317 | X19: 39
B20: 2 | C20: 青森県 | E20: 80.42943413 | F20: 46 | G20: 79.52444901 | H20: 47 | I20: 76.71736246 | J20: 45 | K20: 71.62659123 | L20: 47 | M20: 70.25490196 | N20: 44 | O20: 58.92394822 | P20: 11 | Q20: 63.89644541 | R20: 11 | S20: 66.12892034 | T20: 14 | U20: 70.47527125 | V20: 21 | W20: 72.79894481 | X20: 32
B21: 3 | C21: 岩手県 | E21: 84.56854665 | F21: 30 | G21: 82.71234328 | H21: 34 | I21: 80.45664261 | J21: 27 | K21: 76.80993626 | L21: 33 | M21: 71.52951903 | N21: 39 | O21: 61.09774086 | P21: 9 | Q21: 65.19958598 | R21: 10 | S21: 67.8102269 | T21: 10 | U21: 73.78020652 | V21: 11 | W21: 76.53874234 | X21: 16
B22: 4 | C22: 宮城県 | E22: 84.0147822 | F22: 36 | G22: 82.56114047 | H22: 35 | I22: 80.12446959 | J22: 32 | K22: 76.82958818 | L22: 32 | M22: 73.91417088 | N22: 27 | O22: 53.29951332 | P22: 21 | Q22: 54.22809616 | R22: 29 | S22: 57.3577478 | T22: 34 | U22: 64.98000615 | V22: 36 | W22: 70.75079257 | X22: 35
B23: 5 | C23: 秋田県 | E23: 84.4461901 | F23: 31 | G23: 82.71392521 | H23: 33 | I23: 78.34152529 | J23: 41 | K23: 75.08976661 | L23: 40 | M23: 70.98821396 | N23: 43 | O23: 66.15689295 | P23: 3 | Q23: 68.5123919 | R23: 4 | S23: 70.37904893 | T23: 9 | U23: 75.1894713 | V23: 9 | W23: 78.16527672 | X23: 10
B24: 6 | C24: 山形県 | E24: 86.15856635 | F24: 17 | G24: 84.3438914 | H24: 17 | I24: 82.07087126 | J24: 13 | K24: 77.98871216 | L24: 23 | M24: 72.38161078 | N24: 34 | O24: 67.44698897 | P24: 1 | Q24: 71.36864696 | R24: 1 | S24: 74.68861563 | T24: 2 | U24: 79.78243671 | V24: 2 | W24: 82.33364737 | X24: 4
B25: 7 | C25: 福島県 | E25: 83.88315185 | F25: 40 | G25: 81.91059477 | H25: 41 | I25: 78.16926036 | J25: 43 | K25: 74.37791602 | L25: 43 | M25: 71.39996359 | N25: 40 | O25: 56.41854407 | P25: 16 | Q25: 60.45804107 | R25: 16 | S25: 65.07634026 | T25: 16 | U25: 71.88320826 | V25: 16 | W25: 76.76738108 | X25: 15
B26: 8 | C26: 茨城県 | E26: 83.85407094 | F26: 41 | G26: 81.39315402 | H26: 43 | I26: 78.19093994 | J26: 42 | K26: 74.37961657 | L26: 42 | M26: 69.9537343 | N26: 45 | O26: 50.88761323 | P26: 34 | Q26: 53.54661289 | R26: 31 | S26: 57.72076163 | T26: 33 | U26: 66.54042389 | V26: 33 | W26: 71.50241409 | X26: 33
B27: 9 | C27: 栃木県 | E27: 84.13481878 | F27: 34 | G27: 82.73864816 | H27: 32 | I27: 79.27988622 | J27: 38 | K27: 76.45192777 | L27: 38 | M27: 71.98983581 | N27: 37 | O27: 52.11424153 | P27: 27 | Q27: 55.03307152 | R27: 24 | S27: 60.64582428 | T27: 25 | U27: 68.33301452 | V27: 29 | W27: 73.17911715 | X27: 30
B28: 10 | C28: 群馬県 | E28: 84.97602752 | F28: 28 | G28: 82.22050546 | H28: 39 | I28: 80.25022973 | J28: 29 | K28: 77.26605712 | L28: 30 | M28: 72.80119482 | N28: 31 | O28: 52.6510291 | P28: 22 | Q28: 55.86262409 | R28: 21 | S28: 62.1923632 | T28: 21 | U28: 70.00207469 | V28: 23 | W28: 75.00215424 | X28: 22
B29: 11 | C29: 埼玉県 | E29: 85.40641497 | F29: 22 | G29: 83.39456764 | H29: 24 | I29: 80.71736568 | J29: 25 | K29: 77.80983539 | L29: 25 | M29: 75.82068479 | N29: 13 | O29: 50.06358267 | P29: 38 | Q29: 48.82218709 | R29: 42 | S29: 52.21218345 | T29: 42 | U29: 61.8628618 | V29: 41 | W29: 68.19776584 | X29: 40
B30: 12 | C30: 千葉県 | E30: 85.63356901 | F30: 19 | G30: 84.17886908 | H30: 19 | I30: 81.31500671 | J30: 21 | K30: 78.87721884 | L30: 15 | M30: 75.40139352 | N30: 18 | O30: 49.64099772 | P30: 40 | Q30: 48.26254165 | R30: 43 | S30: 50.6565274 | T30: 43 | U30: 60.72614268 | V30: 42 | W30: 68.14887338 | X30: 41
B31: 13 | C31: 東京都 | E31: 86.44997611 | F31: 13 | G31: 86.60785934 | H31: 3 | I31: 84.52589863 | J31: 2 | K31: 82.86061712 | L31: 1 | M31: 80.98439551 | N31: 1 | O31: 58.41244403 | P31: 12 | Q31: 54.90685573 | R31: 25 | S31: 53.13931624 | T31: 41 | U31: 58.38311469 | V31: 44 | W31: 64.41412484 | X31: 45
B32: 14 | C32: 神奈川県 | E32: 86.34902692 | F32: 14 | G32: 84.6952392 | H32: 15 | I32: 82.18333639 | J32: 10 | K32: 80.45232346 | L32: 3 | M32: 78.04152424 | N32: 2 | O32: 50.72134194 | P32: 35 | Q32: 47.70948758 | R32: 44 | S32: 48.11118227 | T32: 46 | U32: 56.88566888 | V32: 46 | W32: 64.64964434 | X32: 44
B33: 15 | C33: 新潟県 | E33: 86.22353674 | F33: 16 | G33: 85.34767826 | H33: 8 | I33: 82.36535755 | J33: 9 | K33: 78.81104846 | L33: 16 | M33: 75.65948952 | N33: 14 | O33: 62.54504505 | P33: 8 | Q33: 66.38922482 | R33: 9 | S33: 72.38814174 | T33: 7 | U33: 78.34344351 | V33: 5 | W33: 81.47120306 | X33: 5
B34: 16 | C34: 富山県 | E34: 87.78610214 | F34: 3 | G34: 85.1886209 | H34: 9 | I34: 82.59294054 | J34: 8 | K34: 79.5733828 | L34: 10 | M34: 74.15123457 | N34: 25 | O34: 64.4124938 | P34: 5 | Q34: 67.88105947 | R34: 5 | S34: 74.26561854 | T34: 4 | U34: 79.68744059 | V34: 3 | W34: 82.45221085 | X34: 3
B35: 17 | C35: 石川県 | E35: 87.32071479 | F35: 8 | G35: 86.68951213 | H35: 2 | I35: 83.93237172 | J35: 3 | K35: 81.41088623 | L35: 2 | M35: 77.01679289 | N35: 5 | O35: 63.87068589 | P35: 6 | Q35: 67.22209846 | R35: 8 | S35: 72.22772752 | T35: 8 | U35: 77.2451713 | V35: 6 | W35: 80.8329152 | X35: 7
B36: 18 | C36: 福井県 | E36: 88.85454545 | F36: 1 | G36: 86.46477132 | H36: 4 | I36: 83.45933562 | J36: 4 | K36: 80.36476523 | L36: 5 | M36: 73.61445783 | N36: 28 | O36: 63.46791017 | P36: 7 | Q36: 67.57457847 | R36: 6 | S36: 74.61015789 | T36: 3 | U36: 79.64492155 | V36: 4 | W36: 82.68976655 | X36: 2
B37: 19 | C37: 山梨県 | E37: 84.98118372 | F37: 27 | G37: 83.84486607 | H37: 22 | I37: 81.52913067 | J37: 18 | K37: 76.67951542 | L37: 35 | M37: 72.72359369 | N37: 32 | O37: 52.44371225 | P37: 25 | Q37: 57.22294387 | R37: 20 | S37: 63.56705038 | T37: 19 | U37: 70.94697692 | V37: 17 | W37: 75.51001178 | X37: 20
B38: 20 | C38: 長野県 | E38: 86.61044482 | F38: 11 | G38: 85.53472079 | H38: 7 | I38: 82.78282411 | J38: 7 | K38: 79.8330122 | L38: 6 | M38: 76.89559994 | N38: 6 | O38: 50.30269115 | P38: 36 | Q38: 54.86354094 | R38: 26 | S38: 63.95848777 | T38: 17 | U38: 74.09632791 | V38: 10 | W38: 79.81364662 | X38: 8
B39: 21 | C39: 岐阜県 | E39: 86.91231249 | F39: 9 | G39: 84.73341858 | H39: 13 | I39: 81.5354271 | J39: 17 | K39: 78.3061101 | L39: 19 | M39: 74.83406031 | N39: 23 | O39: 50.90802313 | P39: 33 | Q39: 53.58485898 | R39: 30 | S39: 62.85347508 | T39: 20 | U39: 72.51130784 | V39: 15 | W39: 77.27237861 | X39: 14
B40: 22 | C40: 静岡県 | E40: 87.56455043 | F40: 6 | G40: 85.10440418 | H40: 10 | I40: 82.11765594 | J40: 12 | K40: 79.81959188 | L40: 7 | M40: 76.41493912 | N40: 10 | O40: 51.52617351 | P40: 29 | Q40: 52.75228108 | R40: 32 | S40: 59.50243783 | T40: 30 | U40: 70.0441441 | V40: 22 | W40: 76.40745308 | X40: 17
B41: 23 | C41: 愛知県 | E41: 87.36726124 | F41: 7 | G41: 84.87651213 | H41: 12 | I41: 82.15909952 | J41: 11 | K41: 80.4155191 | L41: 4 | M41: 77.43382034 | N41: 3 | O41: 50.08224536 | P41: 37 | Q41: 49.48853127 | R41: 40 | S41: 56.15721417 | T41: 37 | U41: 65.54964694 | V41: 35 | W41: 71.30308293 | X41: 34
B42: 24 | C42: 三重県 | E42: 87.74339085 | F42: 4 | G42: 85.00257798 | H42: 11 | I42: 81.76576887 | J42: 15 | K42: 78.45860566 | L42: 18 | M42: 75.21785335 | N42: 21 | O42: 52.45087682 | P42: 23 | Q42: 55.08604098 | R42: 23 | S42: 61.51937158 | T42: 23 | U42: 70.93962678 | V42: 18 | W42: 75.89863447 | X42: 19
B43: 25 | C43: 滋賀県 | E43: 87.64482301 | F43: 5 | G43: 85.63456753 | H43: 5 | I43: 82.91132181 | J43: 6 | K43: 79.53929539 | L43: 13 | M43: 76.72301691 | N43: 8 | O43: 50.95879762 | P43: 32 | Q43: 50.14855617 | R43: 38 | S43: 56.27444099 | T43: 36 | U43: 67.17779503 | V43: 31 | W43: 74.40315667 | X43: 23
B44: 26 | C44: 京都府 | E44: 84.32388699 | F44: 32 | G44: 84.04974763 | H44: 20 | I44: 81.46980966 | J44: 20 | K44: 79.49708639 | L44: 14 | M44: 77.18265646 | N44: 4 | O44: 51.56109412 | P44: 28 | Q44: 52.0681425 | R44: 35 | S44: 54.77351916 | T44: 39 | U44: 62.99644438 | V44: 40 | W44: 68.9522004 | X44: 38
B45: 27 | C45: 大阪府 | E45: 83.94038937 | F45: 38 | G45: 82.43673606 | H45: 36 | I45: 79.74980266 | J45: 36 | K45: 77.6262383 | L45: 27 | M45: 75.56074642 | N45: 15 | O45: 47.63664731 | P45: 44 | Q45: 46.14078201 | R45: 46 | S45: 48.97145819 | T45: 45 | U45: 57.38446203 | V45: 45 | W45: 63.77728906 | X45: 46
B46: 28 | C46: 兵庫県 | E46: 84.83957431 | F46: 29 | G46: 83.21597245 | H46: 27 | I46: 80.93182111 | J46: 24 | K46: 78.2965178 | L46: 20 | M46: 75.89371057 | N46: 12 | O46: 47.35837046 | P46: 45 | Q46: 46.33870812 | R46: 45 | S46: 50.49391582 | T46: 44 | U46: 60.10706886 | V46: 43 | W46: 66.95064008 | X46: 42
B47: 29 | C47: 奈良県 | E47: 82.82571182 | F47: 43 | G47: 81.31340457 | H47: 45 | I47: 77.24302367 | J47: 44 | K47: 73.95471593 | L47: 44 | M47: 71.57846715 | N47: 38 | O47: 44.67721633 | P47: 47 | Q47: 44.56695637 | R47: 47 | S47: 47.01969442 | T47: 47 | U47: 56.72255524 | V47: 47 | W47: 63.03732378 | X47: 47
B48: 30 | C48: 和歌山県 | E48: 84.14455358 | F48: 33 | G48: 81.58594382 | H48: 42 | I48: 78.54064924 | J48: 39 | K48: 74.64817881 | L48: 41 | M48: 72.17063262 | N48: 36 | O48: 46.01205657 | P48: 46 | Q48: 49.17313956 | R48: 41 | S48: 56.86402082 | T48: 35 | U48: 65.65959511 | V48: 34 | W48: 70.15547033 | X48: 36
B49: 31 | C49: 鳥取県 | E49: 86.85595398 | F49: 10 | G49: 85.57763061 | H49: 6 | I49: 83.01137867 | J49: 5 | K49: 79.81379602 | L49: 9 | M49: 75.49194991 | N49: 16 | O49: 65.45236874 | P49: 4 | Q49: 68.54676259 | R49: 3 | S49: 72.88463024 | T49: 5 | U49: 77.01883974 | V49: 7 | W49: 81.07746112 | X49: 6
B50: 32 | C50: 島根県 | E50: 88.17078861 | F50: 2 | G50: 87.3015873 | H50: 1 | I50: 84.84157161 | J50: 1 | K50: 79.81868348 | L50: 8 | M50: 76.86567164 | N50: 7 | O50: 67.3195721 | P50: 2 | Q50: 71.15512098 | R50: 2 | S50: 75.29580029 | T50: 1 | U50: 80.37409465 | V50: 1 | W50: 83.06058713 | X50: 1
B51: 33 | C51: 岡山県 | E51: 83.89462249 | F51: 39 | G51: 82.0909971 | H51: 40 | I51: 79.3594789 | J51: 37 | K51: 76.62065157 | L51: 36 | M51: 73.22423398 | N51: 29 | O51: 52.45083651 | P51: 24 | Q51: 54.78541374 | R51: 27 | S51: 60.25781622 | T51: 26 | U51: 69.00034912 | V51: 28 | W51: 74.29565054 | X51: 25
B52: 34 | C52: 広島県 | E52: 86.51013236 | F52: 12 | G52: 84.43810441 | H52: 16 | I52: 81.72448698 | J52: 16 | K52: 79.57065179 | L52: 11 | M52: 76.49303996 | N52: 9 | O52: 51.11186098 | P52: 31 | Q52: 52.57044686 | R52: 33 | S52: 59.00545292 | T52: 31 | U52: 68.21126439 | V52: 30 | W52: 73.98231474 | X52: 27
B53: 35 | C53: 山口県 | E53: 85.42052007 | F53: 21 | G53: 82.94721758 | H53: 30 | I53: 80.24703857 | J53: 30 | K53: 77.64372952 | L53: 26 | M53: 74.47938802 | N53: 24 | O53: 49.01613973 | P53: 42 | Q53: 52.40903805 | R53: 34 | S53: 59.68560618 | T53: 29 | U53: 69.1756508 | V53: 26 | W53: 74.08542614 | X53: 26
B54: 36 | C54: 徳島県 | E54: 82.16717095 | F54: 45 | G54: 81.35057471 | H54: 44 | I54: 76.52512516 | J54: 46 | K54: 72.44956772 | L54: 46 | M54: 68.99915182 | N54: 46 | O54: 55.88317888 | P54: 17 | Q54: 61.14155251 | R54: 15 | S54: 65.74897401 | T54: 15 | U54: 70.73574494 | V54: 19 | W54: 74.35330157 | X54: 24
B55: 37 | C55: 香川県 | E55: 84.99886869 | F55: 26 | G55: 82.94395086 | H55: 31 | I55: 80.19245004 | J55: 31 | K55: 76.68454185 | L55: 34 | M55: 71.33406836 | N55: 41 | O55: 54.94528185 | P55: 19 | Q55: 58.41627475 | R55: 18 | S55: 63.72109914 | T55: 18 | U55: 70.61758049 | V55: 20 | W55: 76.02080387 | X55: 18
B56: 38 | C56: 愛媛県 | E56: 84.11939057 | F56: 35 | G56: 82.38142068 | H56: 37 | I56: 78.48664688 | J56: 40 | K56: 76.50464521 | L56: 37 | M56: 71.18362832 | N56: 42 | O56: 49.83110486 | P56: 39 | Q56: 52.01276681 | R56: 36 | S56: 58.30171359 | T56: 32 | U56: 67.03220934 | V56: 32 | W56: 72.80511933 | X56: 31
B57: 39 | C57: 高知県 | E57: 82.79400984 | F57: 44 | G57: 83.03442291 | H57: 29 | I57: 79.86636188 | J57: 35 | K57: 78.18835001 | L57: 21 | M57: 75.26369513 | N57: 20 | O57: 60.72242679 | P57: 10 | Q57: 67.49727174 | R57: 7 | S57: 72.4963426 | T57: 6 | U57: 76.24059051 | V57: 8 | W57: 79.68973127 | X57: 9
B58: 40 | C58: 福岡県 | E58: 83.95714688 | F58: 37 | G58: 83.37421964 | H58: 26 | I58: 81.09623527 | J58: 23 | K58: 78.47278091 | L58: 17 | M58: 75.37306202 | N58: 19 | O58: 49.52662019 | P58: 41 | Q58: 51.22468868 | R58: 37 | S58: 55.61732277 | T58: 38 | U58: 63.86120641 | V58: 38 | W58: 69.41576313 | X58: 37
B59: 41 | C59: 佐賀県 | E59: 86.2754159 | F59: 15 | G59: 84.71833556 | H59: 14 | I59: 80.36026583 | J59: 28 | K59: 77.30154705 | L59: 29 | M59: 72.61168385 | N59: 33 | O59: 57.18939564 | P59: 15 | Q59: 61.54561765 | R59: 14 | S59: 66.68114447 | T59: 12 | U59: 73.73287106 | V59: 12 | W59: 77.6807152 | X59: 11
B60: 42 | C60: 長崎県 | E60: 85.92057762 | F60: 18 | G60: 83.83755589 | H60: 23 | I60: 80.64546393 | J60: 26 | K60: 76.44903834 | L60: 39 | M60: 73.13457695 | N60: 30 | O60: 55.78054046 | P60: 18 | Q60: 57.91322226 | R60: 19 | S60: 61.58514343 | T60: 22 | U60: 69.6584722 | V60: 24 | W60: 73.79003831 | X60: 29
B61: 43 | C61: 熊本県 | E61: 85.26432054 | F61: 23 | G61: 84.2614145 | H61: 18 | I61: 81.52402524 | J61: 19 | K61: 79.55971256 | L61: 12 | M61: 76.04428044 | N61: 11 | O61: 57.52202582 | P61: 14 | Q61: 61.79952899 | R61: 13 | S61: 66.30866402 | T61: 13 | U61: 73.02299644 | V61: 14 | W61: 77.37836401 | X61: 13
B62: 44 | C62: 大分県 | E62: 85.07331892 | F62: 25 | G62: 83.03989113 | H62: 28 | I62: 80.06021306 | J62: 33 | K62: 77.12121212 | L62: 31 | M62: 75.09541985 | N62: 22 | O62: 51.52420801 | P62: 30 | Q62: 54.31678804 | R62: 28 | S62: 60.06142646 | T62: 27 | U62: 69.57693564 | V62: 25 | W62: 75.23287461 | X62: 21
B63: 45 | C63: 宮崎県 | E63: 85.16634313 | F63: 24 | G63: 83.38513988 | H63: 25 | I63: 82.07056893 | J63: 14 | K63: 77.81563506 | L63: 24 | M63: 74.02696515 | N63: 26 | O63: 57.94438928 | P63: 13 | Q63: 62.63714343 | R63: 12 | S63: 67.70863928 | T63: 11 | U63: 73.5009757 | V63: 13 | W63: 77.46357849 | X63: 12
B64: 46 | C64: 鹿児島県 | E64: 85.53910693 | F64: 20 | G64: 84.02909551 | H64: 21 | I64: 81.19804611 | J64: 22 | K64: 77.57117955 | L64: 28 | M64: 72.37171464 | N64: 35 | O64: 52.35161108 | P64: 26 | Q64: 55.17300212 | R64: 22 | S64: 60.05143341 | T64: 28 | U64: 69.00207354 | V64: 27 | W64: 73.89811398 | X64: 28
B65: 47 | C65: 沖縄県 | E65: 79.56431075 | F65: 47 | G65: 80.20826102 | H65: 46 | I65: 76.41260341 | J65: 47 | K65: 72.97331639 | L65: 45 | M65: 67.3028448 | N65: 47 | O65: 54.84297521 | P65: 20 | Q65: 59.75595539 | R65: 17 | S65: 61.01138354 | T65: 24 | U65: 64.33405476 | V65: 37 | W65: 66.46293035 | X65: 43
B66: 資料等
B67: ○ 総務省「国勢調査」（平成22年）より作成。就業者の割合とは人口に占める就業者の割合であり、労働力状態不詳や年齢・国籍不詳は除いて算出した。
B68: ○ 合計特殊出生率との相関係数、単純平均、標準偏差は都道府県別データから機械的に計算。変動係数は、標準偏差／単純平均で機械的に計算。

Sheet ３．（２）失業者の割合（男性）
B5: ■男女別・配偶関係別・年齢階級別 完全失業者の割合（25～49歳） 男性
E7: 【実数値】 | W7: ・・・上位10位を網掛け
W8: ・・・下位10位を網掛け
E9: 完全失業者の割合（H22）
E10: 未婚 | O10: 有配偶
E11: 25～29歳 | G11: 30～34歳 | I11: 35～39歳 | K11: 40～44歳 | M11: 45～49歳 | O11: 25～29歳 | Q11: 30～34歳 | S11: 35～39歳 | U11: 40～44歳 | W11: 45～49歳
F12: （順位） | H12: （順位） | J12: （順位） | L12: （順位） | N12: （順位） | P12: （順位） | R12: （順位） | T12: （順位） | V12: （順位） | X12: （順位）
E13: （％） | F13: （昇順） | G13: （％） | H13: （昇順） | I13: （％） | J13: （昇順） | K13: （％） | L13: （昇順） | M13: （％） | N13: （昇順） | O13: （％） | P13: （昇順） | Q13: （％） | R13: （昇順） | S13: （％） | T13: （昇順） | U13: （％） | V13: （昇順） | W13: （％） | X13: （昇順）
B14: （合計特殊出生率との相関係数） | E14: =CORREL('１．（２）少子化関係指標'!$E$20:$E$66,E$19:E$65) -> 0.05867889523 | G14: =CORREL('１．（２）少子化関係指標'!$E$20:$E$66,G$19:G$65) -> 0.04333913434 | I14: =CORREL('１．（２）少子化関係指標'!$E$20:$E$66,I$19:I$65) -> 0.07641352872 | K14: =CORREL('１．（２）少子化関係指標'!$E$20:$E$66,K$19:K$65) -> 0.1619504533 | M14: =CORREL('１．（２）少子化関係指標'!$E$20:$E$66,M$19:M$65) -> 0.1686672309 | O14: =CORREL('１．（２）少子化関係指標'!$E$20:$E$66,O$19:O$65) -> 0.1469135904 | Q14: =CORREL('１．（２）少子化関係指標'!$E$20:$E$66,Q$19:Q$65) -> 0.2203258115 | S14: =CORREL('１．（２）少子化関係指標'!$E$20:$E$66,S$19:S$65) -> 0.2160482673 | U14: =CORREL('１．（２）少子化関係指標'!$E$20:$E$66,U$19:U$65) -> 0.1928491321 | W14: =CORREL('１．（２）少子化関係指標'!$E$20:$E$66,W$19:W$65) -> 0.1975781924
B15: （単純平均） | E15: =AVERAGE(E$19:E$65) -> 11.52318604 | G15: =AVERAGE(G$19:G$65) -> 12.51755696 | I15: =AVERAGE(I$19:I$65) -> 13.64483483 | K15: =AVERAGE(K$19:K$65) -> 15.31077598 | M15: =AVERAGE(M$19:M$65) -> 15.95355588 | O15: =AVERAGE(O$19:O$65) -> 2.597359344 | Q15: =AVERAGE(Q$19:Q$65) -> 2.066798684 | S15: =AVERAGE(S$19:S$65) -> 1.993794235 | U15: =AVERAGE(U$19:U$65) -> 2.189834194 | W15: =AVERAGE(W$19:W$65) -> 2.344662839
B16: （標準偏差） | E16: =STDEVP(E$19:E$65) -> 2.13733339 | G16: =STDEVP(G$19:G$65) -> 2.130751335 | I16: =STDEVP(I$19:I$65) -> 2.245289369 | K16: =STDEVP(K$19:K$65) -> 2.499131102 | M16: =STDEVP(M$19:M$65) -> 2.393474861 | O16: =STDEVP(O$19:O$65) -> 0.7357134436 | Q16: =STDEVP(Q$19:Q$65) -> 0.5597726559 | S16: =STDEVP(S$19:S$65) -> 0.5380343859 | U16: =STDEVP(U$19:U$65) -> 0.5465111486 | W16: =STDEVP(W$19:W$65) -> 0.5937841377
B17: （変動係数） | E17: =E16/E15 -> 0.1854811146 | G17: =G16/G15 -> 0.1702210217 | I17: =I16/I15 -> 0.1645523304 | K17: =K16/K15 -> 0.1632269394 | M17: =M16/M15 -> 0.1500276728 | O17: =O16/O15 -> 0.2832543928 | Q17: =Q16/Q15 -> 0.2708404357 | S17: =S16/S15 -> 0.2698545198 | U17: =U16/U15 -> 0.2495673645 | W17: =W16/W15 -> 0.2532492638
B18: 全 国 | E18: 10.84904324 | G18: 11.94262229 | I18: 12.99204571 | K18: 14.34186105 | M18: 15.03794372 | O18: 2.506337917 | Q18: 1.949021073 | S18: 1.862306629 | U18: 2.070985419 | W18: 2.263710627
B19: 1 | C19: 北海道 | E19: 13.08883474 | F19: 36 | G19: 13.61269243 | H19: 30 | I19: 14.2813431 | J19: 28 | K19: 16.14023933 | L19: 29 | M19: 16.73448927 | N19: 26 | O19: 2.489248672 | P19: 25 | Q19: 2.102264355 | R19: 28 | S19: 2.024836578 | T19: 27 | U19: 2.224141454 | V19: 29 | W19: 2.305553142 | X19: 27
B20: 2 | C20: 青森県 | E20: 16.32234171 | F20: 46 | G20: 16.21740808 | H20: 46 | I20: 18.01354402 | J20: 46 | K20: 20.79449064 | L20: 46 | M20: 21.17741611 | N20: 46 | O20: 3.474530831 | P20: 43 | Q20: 3.033689925 | R20: 46 | S20: 2.953020134 | T20: 46 | U20: 3.163164682 | V20: 46 | W20: 3.255750461 | X20: 46
B21: 3 | C21: 岩手県 | E21: 12.70712815 | F21: 31 | G21: 13.76828833 | H21: 33 | I21: 16.04728582 | J21: 42 | K21: 17.18791064 | L21: 37 | M21: 18.52781683 | N21: 43 | O21: 2.620885819 | P21: 28 | Q21: 2.32782148 | R21: 34 | S21: 2.351263244 | T21: 36 | U21: 2.657054583 | V21: 40 | W21: 3.080200773 | X21: 44
B22: 4 | C22: 宮城県 | E22: 14.73631269 | F22: 45 | G22: 15.18419546 | H22: 44 | I22: 16.27096577 | J22: 43 | K22: 18.04575129 | L22: 40 | M22: 18.10026024 | N22: 39 | O22: 3.254630131 | P22: 40 | Q22: 2.403243445 | R22: 38 | S22: 2.433871033 | T22: 38 | U22: 2.525802936 | V22: 36 | W22: 2.730223124 | X22: 37
B23: 5 | C23: 秋田県 | E23: 12.87423294 | F23: 34 | G23: 14.40310772 | H23: 38 | I23: 15.40608429 | J23: 36 | K23: 16.700611 | L23: 31 | M23: 17.32325958 | N23: 34 | O23: 2.876954854 | P23: 33 | Q23: 2.135473341 | R23: 29 | S23: 1.997350993 | T23: 25 | U23: 2.302074513 | V23: 32 | W23: 2.42679323 | X23: 31
B24: 6 | C24: 山形県 | E24: 11.06678885 | F24: 23 | G24: 11.46214467 | H24: 15 | I24: 13.21982528 | J24: 22 | K24: 14.81352388 | L24: 22 | M24: 15.8288619 | N24: 22 | O24: 2.085435587 | P24: 12 | Q24: 1.734006734 | R24: 15 | S24: 1.694373402 | T24: 18 | U24: 1.947991425 | V24: 18 | W24: 1.948284792 | X24: 12
B25: 7 | C25: 福島県 | E25: 13.59945664 | F25: 39 | G25: 13.98458203 | H25: 34 | I25: 15.10469805 | J25: 31 | K25: 16.81671814 | L25: 34 | M25: 17.41206792 | N25: 36 | O25: 3.100288691 | P25: 37 | Q25: 2.434512602 | R25: 39 | S25: 2.27484472 | T25: 34 | U25: 2.579088472 | V25: 38 | W25: 2.660578245 | X25: 36
B26: 8 | C26: 茨城県 | E26: 11.45783625 | F26: 25 | G26: 12.48679345 | H26: 25 | I26: 13.24799122 | J26: 23 | K26: 15.24260102 | L26: 24 | M26: 15.17320213 | N26: 20 | O26: 2.437856428 | P26: 23 | Q26: 1.965828456 | R26: 23 | S26: 1.892001992 | T26: 22 | U26: 2.206965736 | V26: 28 | W26: 2.270556365 | X26: 26
B27: 9 | C27: 栃木県 | E27: 10.69252925 | F27: 19 | G27: 11.70970906 | H27: 18 | I27: 12.59068924 | J27: 19 | K27: 13.83422779 | L27: 17 | M27: 14.68113375 | N27: 16 | O27: 2.250270925 | P27: 18 | Q27: 1.933431229 | R27: 22 | S27: 1.893757372 | T27: 23 | U27: 2.064758329 | V27: 22 | W27: 2.101848256 | X27: 16
B28: 10 | C28: 群馬県 | E28: 10.8762598 | F28: 20 | G28: 11.93333333 | H28: 22 | I28: 12.66067833 | J28: 20 | K28: 13.86796633 | L28: 18 | M28: 15.11486384 | N28: 19 | O28: 2.240782237 | P28: 17 | Q28: 1.742171356 | R28: 16 | S28: 1.814613926 | T28: 19 | U28: 1.983220642 | V28: 19 | W28: 2.164482186 | X28: 20
B29: 11 | C29: 埼玉県 | E29: 10.88888889 | F29: 21 | G29: 11.90024843 | H29: 21 | I29: 12.45443886 | J29: 17 | K29: 13.36961758 | L29: 12 | M29: 13.96981951 | N29: 13 | O29: 2.453441936 | P29: 24 | Q29: 1.742960788 | R29: 17 | S29: 1.54137663 | T29: 9 | U29: 1.880137619 | V29: 14 | W29: 2.113387456 | X29: 17
B30: 12 | C30: 千葉県 | E30: 10.50446029 | F30: 15 | G30: 11.72825657 | H30: 19 | I30: 12.27979035 | J30: 15 | K30: 13.40017625 | L30: 14 | M30: 13.67357814 | N30: 11 | O30: 2.132490637 | P30: 14 | Q30: 1.671303409 | R30: 12 | S30: 1.623984579 | T30: 15 | U30: 1.896341632 | V30: 15 | W30: 2.088881306 | X30: 15
B31: 13 | C31: 東京都 | E31: 8.685793699 | F31: 4 | G31: 9.683125526 | H31: 5 | I31: 10.88931389 | J31: 5 | K31: 11.89850764 | L31: 5 | M31: 12.4814708 | N31: 5 | O31: 2.009196456 | P31: 11 | Q31: 1.662850753 | R31: 11 | S31: 1.574653489 | T31: 13 | U31: 1.790732792 | V31: 12 | W31: 2.120893522 | X31: 18
B32: 14 | C32: 神奈川県 | E32: 9.186282434 | F32: 8 | G32: 10.44723585 | H32: 11 | I32: 11.29998023 | J32: 7 | K32: 11.98337885 | L32: 6 | M32: 12.28132369 | N32: 3 | O32: 1.832829463 | P32: 8 | Q32: 1.423027167 | R32: 4 | S32: 1.351872771 | T32: 4 | U32: 1.591434803 | V32: 6 | W32: 1.808948028 | X32: 9
B33: 15 | C33: 新潟県 | E33: 10.48287451 | F33: 14 | G33: 10.76486349 | H33: 14 | I33: 11.71610965 | J33: 13 | K33: 13.00194932 | L33: 9 | M33: 13.26562598 | N33: 6 | O33: 1.823072325 | P33: 7 | Q33: 1.604542088 | R33: 10 | S33: 1.445176852 | T33: 7 | U33: 1.641198566 | V33: 7 | W33: 1.836390639 | X33: 10
B34: 16 | C34: 富山県 | E34: 8.965480784 | F34: 6 | G34: 10.38318912 | H34: 10 | I34: 11.41700405 | J34: 8 | K34: 13.22715464 | L34: 11 | M34: 13.65271419 | N34: 9 | O34: 1.690559913 | P34: 2 | Q34: 1.431371384 | R34: 7 | S34: 1.319075866 | T34: 3 | U34: 1.541376044 | V34: 3 | W34: 1.6330076 | X34: 2
B35: 17 | C35: 石川県 | E35: 9.215417726 | F35: 9 | G35: 10.28688263 | H35: 8 | I35: 11.53984854 | J35: 11 | K35: 13.71923428 | L35: 15 | M35: 13.87651178 | N35: 12 | O35: 1.780838181 | P35: 5 | Q35: 1.581419624 | R35: 9 | S35: 1.558924485 | T35: 11 | U35: 1.759822032 | V35: 10 | W35: 1.653821452 | X35: 3
B36: 18 | C36: 福井県 | E36: 9.312687167 | F36: 10 | G36: 9.36355538 | H36: 3 | I36: 11.01838413 | J36: 6 | K36: 13.22592731 | L36: 10 | M36: 14.18807448 | N36: 14 | O36: 2.425502426 | P36: 22 | Q36: 1.568900224 | R36: 8 | S36: 1.543039788 | T36: 10 | U36: 1.719553271 | V36: 9 | W36: 1.794063282 | X36: 7
B37: 19 | C37: 山梨県 | E37: 10.553807 | F37: 16 | G37: 11.52882206 | H37: 17 | I37: 12.35568159 | J37: 16 | K37: 13.8201806 | L37: 16 | M37: 14.93608825 | N37: 18 | O37: 2.092933948 | P37: 13 | Q37: 1.867429341 | R37: 20 | S37: 1.883080382 | T37: 21 | U37: 2.055487513 | V37: 21 | W37: 2.338230062 | X37: 28
B38: 20 | C38: 長野県 | E38: 9.355476051 | F38: 11 | G38: 10.27854969 | H38: 7 | I38: 11.46699176 | J38: 10 | K38: 12.5466805 | L38: 7 | M38: 13.65616742 | N38: 10 | O38: 2.738029719 | P38: 31 | Q38: 2.040328603 | R38: 26 | S38: 1.926278741 | T38: 24 | U38: 1.897135026 | V38: 16 | W38: 2.164064311 | X38: 19
B39: 21 | C39: 岐阜県 | E39: 9.799231327 | F39: 13 | G39: 10.62323969 | H39: 12 | I39: 12.55925165 | J39: 18 | K39: 14.06991261 | L39: 19 | M39: 16.06723297 | N39: 24 | O39: 2.409560304 | P39: 20 | Q39: 1.812052255 | R39: 18 | S39: 1.681106677 | T39: 17 | U39: 1.92194676 | V39: 17 | W39: 1.986641914 | X39: 14
B40: 22 | C40: 静岡県 | E40: 8.857364084 | F40: 5 | G40: 10.32346869 | H40: 9 | I40: 11.44768139 | J40: 9 | K40: 12.89024559 | L40: 8 | M40: 14.71090695 | N40: 17 | O40: 2.139055447 | P40: 15 | Q40: 1.860487632 | R40: 19 | S40: 1.574441188 | T40: 12 | U40: 1.778789711 | V40: 11 | W40: 1.976368985 | X40: 13
B41: 23 | C41: 愛知県 | E41: 7.60775984 | F41: 1 | G41: 8.927670646 | H41: 2 | I41: 10.19567148 | J41: 3 | K41: 11.69368297 | L41: 4 | M41: 12.29805832 | N41: 4 | O41: 1.803364795 | P41: 6 | Q41: 1.363830409 | R41: 2 | S41: 1.420609027 | T41: 5 | U41: 1.530961201 | V41: 2 | W41: 1.688804886 | X41: 4
B42: 24 | C42: 三重県 | E42: 8.670431995 | F42: 3 | G42: 9.46368296 | H42: 4 | I42: 9.951327647 | J42: 2 | K42: 11.46483562 | L42: 2 | M42: 13.47355888 | N42: 7 | O42: 1.933153944 | P42: 10 | Q42: 1.298614365 | R42: 1 | S42: 1.287975842 | T42: 2 | U42: 1.544251548 | V42: 4 | W42: 1.808297167 | X42: 8
B43: 25 | C43: 滋賀県 | E43: 9.059271343 | F43: 7 | G43: 9.868558314 | H43: 6 | I43: 10.33126031 | J43: 4 | K43: 11.3768261 | L43: 1 | M43: 12.09090909 | N43: 2 | O43: 1.693706543 | P43: 3 | Q43: 1.430842607 | R43: 6 | S43: 1.438102714 | T43: 6 | U43: 1.56078527 | V43: 5 | W43: 1.731041705 | X43: 5
B44: 26 | C44: 京都府 | E44: 10.5543326 | F44: 17 | G44: 11.89193601 | H44: 20 | I44: 13.36143638 | J44: 24 | K44: 14.0754455 | L44: 20 | M44: 14.37749374 | N44: 15 | O44: 2.770780856 | P44: 32 | Q44: 2.045424708 | R44: 27 | S44: 2.045029127 | T44: 28 | U44: 2.291681908 | V44: 30 | W44: 2.19566163 | X44: 22
B45: 27 | C45: 大阪府 | E45: 12.8853211 | F45: 35 | G45: 14.4727689 | H45: 39 | I45: 15.8797051 | J45: 41 | K45: 17.08479382 | L45: 35 | M45: 17.70348837 | N45: 37 | O45: 3.592598938 | P45: 44 | Q45: 2.57134019 | R45: 41 | S45: 2.565982034 | T45: 43 | U45: 2.781779781 | V45: 42 | W45: 3.061910041 | X45: 43
B46: 28 | C46: 兵庫県 | E46: 11.52569338 | F46: 26 | G46: 13.08715132 | H46: 27 | I46: 14.27152695 | J46: 27 | K46: 15.52688071 | L46: 27 | M46: 16.00928074 | N46: 23 | O46: 2.511623075 | P46: 26 | Q46: 1.98136835 | R46: 24 | S46: 1.818378278 | T46: 20 | U46: 2.149183294 | V46: 25 | W46: 2.267012901 | X46: 25
B47: 29 | C47: 奈良県 | E47: 14.38249527 | F47: 44 | G47: 16.2005277 | H47: 45 | I47: 16.57119194 | J47: 44 | K47: 18.63142187 | L47: 44 | M47: 19.09358639 | N47: 45 | O47: 3.931880791 | P47: 46 | Q47: 2.792759118 | R47: 43 | S47: 2.5556527 | T47: 42 | U47: 2.566676706 | V47: 37 | W47: 2.78412429 | X47: 39
B48: 30 | C48: 和歌山県 | E48: 13.17233075 | F48: 38 | G48: 14.10347904 | H48: 36 | I48: 15.1544779 | J48: 32 | K48: 17.39869651 | L48: 39 | M48: 18.51780186 | N48: 42 | O48: 3.112779603 | P48: 38 | Q48: 2.348895068 | R48: 36 | S48: 2.235270897 | T48: 33 | U48: 2.428879532 | V48: 35 | W48: 2.554242036 | X48: 34
B49: 31 | C49: 鳥取県 | E49: 11.02691924 | F49: 22 | G49: 11.48778304 | H49: 16 | I49: 12.21179838 | J49: 14 | K49: 14.52160145 | L49: 21 | M49: 15.49178044 | N49: 21 | O49: 2.377717391 | P49: 19 | Q49: 1.716589862 | R49: 13 | S49: 1.599515822 | T49: 14 | U49: 2.001347061 | V49: 20 | W49: 2.359856875 | X49: 29
B50: 32 | C50: 島根県 | E50: 8.178473729 | F50: 2 | G50: 8.7135506 | H50: 1 | I50: 9.70412595 | J50: 1 | K50: 11.6798419 | L50: 3 | M50: 11.19116234 | N50: 1 | O50: 1.438848921 | P50: 1 | Q50: 1.382711274 | R50: 3 | S50: 1.202419593 | T50: 1 | U50: 1.438848921 | V50: 1 | W50: 1.394178944 | X50: 1
B51: 33 | C51: 岡山県 | E51: 13.77391304 | F51: 41 | G51: 14.89995743 | H51: 42 | I51: 16.60611431 | J51: 45 | K51: 18.33232384 | L51: 42 | M51: 18.5412342 | N51: 44 | O51: 3.702974197 | P51: 45 | Q51: 2.847830381 | R51: 45 | S51: 2.575355122 | T51: 44 | U51: 2.843342037 | V51: 44 | W51: 2.80364163 | X51: 40
B52: 34 | C52: 広島県 | E52: 9.719050512 | F52: 12 | G52: 10.6715629 | H52: 13 | I52: 11.57589051 | J52: 12 | K52: 13.38325829 | L52: 13 | M52: 13.56264714 | N52: 8 | O52: 1.745344305 | P52: 4 | Q52: 1.424200638 | R52: 5 | S52: 1.451850502 | T52: 8 | U52: 1.696187331 | V52: 8 | W52: 1.786804096 | X52: 6
B53: 35 | C53: 山口県 | E53: 10.67457376 | F53: 18 | G53: 12.37384294 | H53: 24 | I53: 13.03022269 | J53: 21 | K53: 15.42391198 | L53: 26 | M53: 16.09122181 | N53: 25 | O53: 1.914058762 | P53: 9 | Q53: 1.720189075 | R53: 14 | S53: 1.666327982 | T53: 16 | U53: 1.791411986 | V53: 13 | W53: 1.839439976 | X53: 11
B54: 36 | C54: 徳島県 | E54: 13.60294118 | F54: 40 | G54: 15.06672406 | H54: 43 | I54: 15.47758285 | J54: 37 | K54: 19.28991836 | L54: 45 | M54: 18.177352 | N54: 40 | O54: 3.221527383 | P54: 39 | Q54: 2.834773218 | R54: 44 | S54: 2.69423141 | T54: 45 | U54: 2.85149633 | V54: 45 | W54: 3.251077164 | X54: 45
B55: 37 | C55: 香川県 | E55: 11.45442793 | F55: 24 | G55: 12.9432768 | H55: 26 | I55: 13.69992441 | J55: 26 | K55: 15.12367491 | L55: 23 | M55: 17.26082578 | N55: 30 | O55: 2.727394868 | P55: 30 | Q55: 2.231682147 | R55: 31 | S55: 2.102306194 | T55: 30 | U55: 2.160004095 | V55: 26 | W55: 2.207250239 | X55: 23
B56: 38 | C56: 愛媛県 | E56: 12.74023989 | F56: 32 | G56: 13.64834007 | H56: 31 | I56: 15.62437827 | J56: 38 | K56: 18.1039461 | L56: 41 | M56: 18.43711844 | N56: 41 | O56: 2.958899182 | P56: 34 | Q56: 2.348744557 | R56: 35 | S56: 2.457185406 | T56: 40 | U56: 2.593434438 | V56: 39 | W56: 2.540167262 | X56: 33
B57: 39 | C57: 高知県 | E57: 14.26340926 | F57: 43 | G57: 14.59501907 | H57: 40 | I57: 15.86791726 | J57: 39 | K57: 16.10599511 | L57: 28 | M57: 17.26320384 | N57: 32 | O57: 3.415081366 | P57: 41 | Q57: 2.323390895 | R57: 33 | S57: 2.432634731 | T57: 37 | U57: 2.80950396 | V57: 43 | W57: 2.947662452 | X57: 41
B58: 40 | C58: 福岡県 | E58: 13.8551629 | F58: 42 | G58: 14.76917844 | H58: 41 | I58: 15.87130169 | J58: 40 | K58: 17.1344086 | L58: 36 | M58: 17.94624295 | N58: 38 | O58: 3.419718166 | P58: 42 | Q58: 2.646112231 | R58: 42 | S58: 2.453152254 | T58: 39 | U58: 2.738394232 | V58: 41 | W58: 2.953805454 | X58: 42
B59: 41 | C59: 佐賀県 | E59: 11.61512996 | F59: 27 | G59: 12.10766597 | H59: 23 | I59: 13.46943706 | J59: 25 | K59: 15.29218107 | L59: 25 | M59: 16.88632619 | N59: 27 | O59: 2.211055276 | P59: 16 | Q59: 2.204069051 | R59: 30 | S59: 2.170740606 | T59: 32 | U59: 2.16816158 | V59: 27 | W59: 2.184312143 | X59: 21
B60: 42 | C60: 長崎県 | E60: 11.9737459 | F60: 28 | G60: 13.47553643 | H60: 29 | I60: 15.3349655 | J60: 35 | K60: 16.73267327 | L60: 32 | M60: 17.1438427 | N60: 29 | O60: 2.569653614 | P60: 27 | Q60: 2.011922504 | R60: 25 | S60: 2.017753245 | T60: 26 | U60: 2.132477826 | V60: 24 | W60: 2.212644653 | X60: 24
B61: 43 | C61: 熊本県 | E61: 13.09101135 | F61: 37 | G61: 14.28216592 | H61: 37 | I61: 15.30803907 | J61: 34 | K61: 16.29539742 | L61: 30 | M61: 17.14140387 | N61: 28 | O61: 2.998678077 | P61: 35 | Q61: 2.385715344 | R61: 37 | S61: 2.115019011 | T61: 31 | U61: 2.299990701 | V61: 31 | W61: 2.589297933 | X61: 35
B62: 44 | C62: 大分県 | E62: 12.79606275 | F62: 33 | G62: 14.01684654 | H62: 35 | I62: 14.90436367 | J62: 30 | K62: 16.77473583 | L62: 33 | M62: 17.26087639 | N62: 31 | O62: 3.070557491 | P62: 36 | Q62: 2.509334505 | R62: 40 | S62: 2.533762596 | T62: 41 | U62: 2.363804247 | V62: 33 | W62: 2.407760263 | X62: 30
B63: 45 | C63: 宮崎県 | E63: 12.1290962 | F63: 29 | G63: 13.66965682 | H63: 32 | I63: 14.66222357 | J63: 29 | K63: 18.4662237 | L63: 43 | M63: 17.26468222 | N63: 33 | O63: 2.703555649 | P63: 29 | Q63: 2.302872947 | R63: 32 | S63: 2.276091784 | T63: 35 | U63: 2.367582334 | V63: 34 | W63: 2.744091352 | X63: 38
B64: 46 | C64: 鹿児島県 | E64: 12.26609546 | F64: 30 | G64: 13.39699401 | H64: 28 | I64: 15.27894589 | J64: 33 | K64: 17.27158949 | L64: 38 | M64: 17.38412205 | N64: 35 | O64: 2.410157091 | P64: 21 | Q64: 1.914481231 | R64: 21 | S64: 2.04593582 | T64: 29 | U64: 2.10711745 | V64: 23 | W64: 2.446805397 | X64: 32
B65: 47 | C65: 沖縄県 | E65: 17.3423696 | F65: 47 | G65: 18.11760929 | H65: 47 | I65: 19.67582719 | J65: 47 | K65: 21.82520125 | L65: 47 | M65: 22.37602071 | N65: 47 | O65: 5.482383932 | P65: 47 | Q65: 4.422727273 | R65: 47 | S65: 4.194101509 | T65: 47 | U65: 4.576684813 | V65: 47 | W65: 4.980293802 | X65: 47
B66: 資料等
B67: ○ 総務省「国勢調査」（平成22年）より作成。完全失業者の割合とは人口に占める完全失業者の割合であり、労働力状態不詳や年齢・国籍不詳は除いて算出した。
B68: ○ 合計特殊出生率との相関係数、単純平均、標準偏差は都道府県別データから機械的に計算。変動係数は、標準偏差／単純平均で機械的に計算。

Sheet ３．（２）失業者の割合（女性）
B5: ■男女別・配偶関係別・年齢階級別 完全失業者の割合（25～49歳） 女性
E7: 【実数値】 | W7: ・・・上位10位を網掛け
W8: ・・・下位10位を網掛け
E9: 完全失業者の割合（H22）
E10: 未婚 | O10: 有配偶
E11: 25～29歳 | G11: 30～34歳 | I11: 35～39歳 | K11: 40～44歳 | M11: 45～49歳 | O11: 25～29歳 | Q11: 30～34歳 | S11: 35～39歳 | U11: 40～44歳 | W11: 45～49歳
F12: （順位） | H12: （順位） | J12: （順位） | L12: （順位） | N12: （順位） | P12: （順位） | R12: （順位） | T12: （順位） | V12: （順位） | X12: （順位）
E13: （％） | F13: （昇順） | G13: （％） | H13: （昇順） | I13: （％） | J13: （昇順） | K13: （％） | L13: （昇順） | M13: （％） | N13: （昇順） | O13: （％） | P13: （昇順） | Q13: （％） | R13: （昇順） | S13: （％） | T13: （昇順） | U13: （％） | V13: （昇順） | W13: （％） | X13: （昇順）
B14: （合計特殊出生率との相関係数） | E14: =CORREL('１．（２）少子化関係指標'!$E$20:$E$66,E$19:E$65) -> 0.001649123982 | G14: =CORREL('１．（２）少子化関係指標'!$E$20:$E$66,G$19:G$65) -> -0.1194677021 | I14: =CORREL('１．（２）少子化関係指標'!$E$20:$E$66,I$19:I$65) -> -0.1263736782 | K14: =CORREL('１．（２）少子化関係指標'!$E$20:$E$66,K$19:K$65) -> -0.1837778996 | M14: =CORREL('１．（２）少子化関係指標'!$E$20:$E$66,M$19:M$65) -> -0.219791883 | O14: =CORREL('１．（２）少子化関係指標'!$E$20:$E$66,O$19:O$65) -> 0.1183734747 | Q14: =CORREL('１．（２）少子化関係指標'!$E$20:$E$66,Q$19:Q$65) -> 0.1211190135 | S14: =CORREL('１．（２）少子化関係指標'!$E$20:$E$66,S$19:S$65) -> 0.2314802019 | U14: =CORREL('１．（２）少子化関係指標'!$E$20:$E$66,U$19:U$65) -> 0.1992495831 | W14: =CORREL('１．（２）少子化関係指標'!$E$20:$E$66,W$19:W$65) -> 0.1796742222
B15: （単純平均） | E15: =AVERAGE(E$19:E$65) -> 7.687147089 | G15: =AVERAGE(G$19:G$65) -> 8.114322699 | I15: =AVERAGE(I$19:I$65) -> 8.760761598 | K15: =AVERAGE(K$19:K$65) -> 9.015633854 | M15: =AVERAGE(M$19:M$65) -> 8.397392141 | O15: =AVERAGE(O$19:O$65) -> 2.60326255 | Q15: =AVERAGE(Q$19:Q$65) -> 2.025653144 | S15: =AVERAGE(S$19:S$65) -> 1.925974655 | U15: =AVERAGE(U$19:U$65) -> 1.87933622 | W15: =AVERAGE(W$19:W$65) -> 1.694528014
B16: （標準偏差） | E16: =STDEVP(E$19:E$65) -> 1.232242823 | G16: =STDEVP(G$19:G$65) -> 1.105921025 | I16: =STDEVP(I$19:I$65) -> 1.100794375 | K16: =STDEVP(K$19:K$65) -> 1.200173467 | M16: =STDEVP(M$19:M$65) -> 1.084803271 | O16: =STDEVP(O$19:O$65) -> 0.3573066238 | Q16: =STDEVP(Q$19:Q$65) -> 0.3156342786 | S16: =STDEVP(S$19:S$65) -> 0.3058670639 | U16: =STDEVP(U$19:U$65) -> 0.2678173592 | W16: =STDEVP(W$19:W$65) -> 0.2432148896
B17: （変動係数） | E17: =E16/E15 -> 0.1602991082 | G17: =G16/G15 -> 0.1362924629 | I17: =I16/I15 -> 0.1256505342 | K17: =K16/K15 -> 0.133121363 | M17: =M16/M15 -> 0.1291833527 | O17: =O16/O15 -> 0.1372533953 | Q17: =Q16/Q15 -> 0.1558185218 | S17: =S16/S15 -> 0.1588115727 | U17: =U16/U15 -> 0.1425063575 | W17: =W16/W15 -> 0.1435295773
B18: 全 国 | E18: 7.488352157 | G18: 8.051733101 | I18: 8.748425985 | K18: 8.906511096 | M18: 8.496612785 | O18: 2.504839432 | Q18: 1.949855019 | S18: 1.804588836 | U18: 1.798620594 | W18: 1.664584097
B19: 1 | C19: 北海道 | E19: 8.80895623 | F19: 42 | G19: 9.031542632 | H19: 40 | I19: 9.509574379 | J19: 38 | K19: 9.602944136 | L19: 34 | M19: 9.300838693 | N19: 37 | O19: 2.548743019 | P19: 25 | Q19: 1.984601506 | R19: 27 | S19: 1.713036278 | T19: 12 | U19: 1.770236337 | V19: 19 | W19: 1.66829128 | X19: 26
B20: 2 | C20: 青森県 | E20: 11.11608141 | F20: 46 | G20: 11.75448298 | H20: 47 | I20: 12.06491783 | J20: 47 | K20: 13.38048091 | L20: 47 | M20: 11.1372549 | N20: 47 | O20: 3.810679612 | P20: 47 | Q20: 3.169205658 | R20: 47 | S20: 2.935054122 | T20: 47 | U20: 2.81901085 | V20: 47 | W20: 2.284241134 | X20: 46
B21: 3 | C21: 岩手県 | E21: 8.278491912 | F21: 35 | G21: 8.564365177 | H21: 31 | I21: 8.872589613 | J21: 27 | K21: 9.576728224 | L21: 33 | M21: 9.345794393 | N21: 38 | O21: 3.074295474 | P21: 43 | Q21: 2.178119797 | R21: 33 | S21: 2.370354287 | T21: 44 | U21: 2.10425464 | V21: 41 | W21: 2.088689966 | X21: 45
B22: 4 | C22: 宮城県 | E22: 9.060648949 | F22: 44 | G22: 9.671869239 | H22: 45 | I22: 10.34229137 | J22: 43 | K22: 10.75456851 | L22: 45 | M22: 9.659017244 | N22: 43 | O22: 2.713849707 | P22: 35 | Q22: 2.249060043 | R22: 37 | S22: 2.217527132 | T22: 39 | U22: 2.218548139 | V22: 44 | W22: 1.96448533 | X22: 42
B23: 5 | C23: 秋田県 | E23: 8.774548311 | F23: 41 | G23: 8.339068594 | H23: 28 | I23: 9.132709688 | J23: 32 | K23: 9.919210054 | L23: 38 | M23: 8.61287398 | N23: 30 | O23: 3.113653867 | P23: 44 | Q23: 2.460966974 | R23: 45 | S23: 2.389156903 | T23: 45 | U23: 2.019514409 | V23: 36 | W23: 1.940864291 | X23: 40
B24: 6 | C24: 山形県 | E24: 7.872533296 | F24: 27 | G24: 7.918552036 | H24: 22 | I24: 7.899869961 | J24: 11 | K24: 9.569009749 | L24: 32 | M24: 8.399585206 | N24: 25 | O24: 3.316369805 | P24: 45 | Q24: 2.297336845 | R24: 40 | S24: 2.257040857 | T24: 41 | U24: 2.207278481 | V24: 43 | W24: 1.978436093 | X24: 43
B25: 7 | C25: 福島県 | E25: 8.988628601 | F25: 43 | G25: 9.129940649 | H25: 44 | I25: 10.34271726 | J25: 44 | K25: 10.47174702 | L25: 44 | M25: 9.848898598 | N25: 45 | O25: 3.019923778 | P25: 40 | Q25: 2.247950646 | R25: 36 | S25: 2.135231317 | T25: 36 | U25: 2.274859287 | V25: 45 | W25: 2.057501307 | X25: 44
B26: 8 | C26: 茨城県 | E26: 8.15107517 | F26: 31 | G26: 8.885984972 | H26: 38 | I26: 9.871624613 | J26: 40 | K26: 10.15021994 | L26: 39 | M26: 9.715796431 | N26: 44 | O26: 2.412317085 | P26: 15 | Q26: 1.86084884 | R26: 16 | S26: 1.735638534 | T26: 14 | U26: 1.805033514 | V26: 22 | W26: 1.654359557 | X26: 24
B27: 9 | C27: 栃木県 | E27: 8.263996615 | F27: 34 | G27: 8.212665975 | H27: 27 | I27: 8.907852384 | J27: 28 | K27: 9.309419229 | L27: 28 | M27: 8.874120407 | N27: 33 | O27: 2.401778379 | P27: 14 | Q27: 1.966205043 | R27: 24 | S27: 1.873443737 | T27: 24 | U27: 1.940530086 | V27: 31 | W27: 1.623514431 | X27: 22
B28: 10 | C28: 群馬県 | E28: 8.370237529 | F28: 37 | G28: 8.812493102 | H28: 35 | I28: 9.054923305 | J28: 31 | K28: 9.120668247 | L28: 26 | M28: 8.778625954 | N28: 32 | O28: 2.299440538 | P28: 11 | Q28: 1.937214918 | R28: 23 | S28: 1.874098054 | T28: 25 | U28: 1.84439834 | V28: 25 | W28: 1.585523481 | X28: 16
B29: 11 | C29: 埼玉県 | E29: 7.696768636 | F29: 24 | G29: 8.471329222 | H29: 29 | I29: 9.16813359 | J29: 33 | K29: 9.345938844 | L29: 29 | M29: 8.639251677 | N29: 31 | O29: 2.226806454 | P29: 6 | Q29: 1.772620947 | R29: 10 | S29: 1.675957871 | T29: 10 | U29: 1.764630184 | V29: 18 | W29: 1.608152824 | X29: 18
B30: 12 | C30: 千葉県 | E30: 7.282218467 | F30: 20 | G30: 7.830160964 | H30: 20 | I30: 8.698018936 | J30: 24 | K30: 8.586696149 | L30: 21 | M30: 8.558012723 | N30: 29 | O30: 2.290128288 | P30: 10 | Q30: 1.824395508 | R30: 14 | S30: 1.640864059 | T30: 8 | U30: 1.675416924 | V30: 9 | W30: 1.558747086 | X30: 14
B31: 13 | C31: 東京都 | E31: 6.184412118 | F31: 3 | G31: 6.869438156 | H31: 5 | I31: 7.734491533 | J31: 9 | K31: 7.827937377 | L31: 9 | M31: 7.965582616 | N31: 17 | O31: 2.541597926 | P31: 24 | Q31: 1.973447522 | R31: 25 | S31: 1.738300392 | T31: 15 | U31: 1.698520121 | V31: 11 | W31: 1.622628126 | X31: 21
B32: 14 | C32: 神奈川県 | E32: 6.817655631 | F32: 13 | G32: 7.700713438 | H32: 17 | I32: 8.327880009 | J32: 18 | K32: 8.196399474 | L32: 14 | M32: 8.010507659 | N32: 18 | O32: 2.283841941 | P32: 9 | Q32: 1.822879288 | R32: 13 | S32: 1.552701217 | T32: 5 | U32: 1.563770719 | V32: 4 | W32: 1.542190733 | X32: 12
B33: 15 | C33: 新潟県 | E33: 7.120174346 | F33: 17 | G33: 7.153835406 | H33: 10 | I33: 7.867468338 | J33: 10 | K33: 8.276784861 | L33: 17 | M33: 7.257949522 | N33: 7 | O33: 2.612612613 | P33: 28 | Q33: 2.397382087 | R33: 44 | S33: 2.09058595 | T33: 34 | U33: 1.954003439 | V33: 33 | W33: 1.782238881 | X33: 34
B34: 16 | C34: 富山県 | E34: 6.302838683 | F34: 8 | G34: 7.060399918 | H34: 7 | I34: 7.998926319 | J34: 12 | K34: 8.138186877 | L34: 11 | M34: 8.333333333 | N34: 23 | O34: 2.350024789 | P34: 13 | Q34: 1.974012994 | R34: 26 | S34: 1.965246173 | T34: 30 | U34: 1.851781437 | V34: 26 | W34: 1.452017764 | X34: 7
B35: 17 | C35: 石川県 | E35: 6.242652245 | F35: 5 | G35: 6.501938858 | H35: 3 | I35: 7.495861906 | J35: 5 | K35: 7.683238357 | L35: 5 | M35: 7.606190319 | N35: 10 | O35: 2.647444299 | P35: 31 | Q35: 2.383604366 | R35: 43 | S35: 2.167311319 | T35: 37 | U35: 1.906809531 | V35: 29 | W35: 1.713138843 | X35: 29
B36: 18 | C36: 福井県 | E36: 5.809090909 | F36: 2 | G36: 7.014833127 | H36: 6 | I36: 7.651775487 | J36: 6 | K36: 7.722157548 | L36: 7 | M36: 7.891566265 | N36: 13 | O36: 2.969689532 | P36: 39 | Q36: 2.321660182 | R36: 41 | S36: 2.121523195 | T36: 35 | U36: 1.863129645 | V36: 28 | W36: 1.566094064 | X36: 15
B37: 19 | C37: 山梨県 | E37: 7.586383852 | F37: 21 | G37: 7.979910714 | H37: 24 | I37: 8.932181584 | J37: 29 | K37: 9.38876652 | L37: 30 | M37: 8.458114124 | N37: 26 | O37: 2.471169687 | P37: 19 | Q37: 1.93477815 | R37: 22 | S37: 1.764090298 | T37: 17 | U37: 1.740415792 | V37: 13 | W37: 1.620730271 | X37: 20
B38: 20 | C38: 長野県 | E38: 6.905609512 | F38: 14 | G38: 7.07294457 | H38: 8 | I38: 7.71401046 | J38: 8 | K38: 7.675016057 | L38: 4 | M38: 6.93294366 | N38: 4 | O38: 2.263824592 | P38: 8 | Q38: 1.824452664 | R38: 15 | S38: 1.932913269 | T38: 27 | U38: 1.781511319 | V38: 20 | W38: 1.630109767 | X38: 23
B39: 21 | C39: 岐阜県 | E39: 6.778750965 | F39: 12 | G39: 7.711124701 | H39: 18 | I39: 8.306781975 | J39: 17 | K39: 8.747731397 | L39: 22 | M39: 8.13578608 | N39: 20 | O39: 2.22262378 | P39: 4 | Q39: 1.667491341 | R39: 4 | S39: 1.853258118 | T39: 22 | U39: 1.730003479 | V39: 12 | W39: 1.453555266 | X39: 9
B40: 22 | C40: 静岡県 | E40: 6.6847661 | F40: 11 | G40: 7.686307452 | H40: 16 | I40: 8.478925324 | J40: 22 | K40: 8.75089379 | L40: 23 | M40: 8.481408358 | N40: 27 | O40: 2.423199803 | P40: 16 | Q40: 1.89159744 | R40: 18 | S40: 1.731981477 | T40: 13 | U40: 1.753774048 | V40: 17 | W40: 1.714387298 | X40: 31
B41: 23 | C41: 愛知県 | E41: 6.289040811 | F41: 7 | G41: 7.331597647 | H41: 12 | I41: 8.091412112 | J41: 15 | K41: 7.918213388 | L41: 10 | M41: 7.931915714 | N41: 14 | O41: 2.345430494 | P41: 12 | Q41: 1.799891793 | R41: 11 | S41: 1.675606332 | T41: 9 | U41: 1.586556564 | V41: 5 | W41: 1.401637311 | X41: 5
B42: 24 | C42: 三重県 | E42: 6.225265158 | F42: 4 | G42: 6.767208043 | H42: 4 | I42: 7.348765167 | J42: 3 | K42: 7.815904139 | L42: 8 | M42: 7.162592986 | N42: 6 | O42: 2.17092753 | P42: 2 | Q42: 1.715159063 | R42: 7 | S42: 1.486965974 | T42: 2 | U42: 1.532381998 | V42: 3 | W42: 1.452098076 | X42: 8
B43: 25 | C43: 滋賀県 | E43: 6.246279251 | F43: 6 | G43: 7.141241234 | H43: 9 | I43: 7.440044618 | J43: 4 | K43: 7.684862563 | L43: 6 | M43: 6.924577373 | N43: 3 | O43: 2.235034983 | P43: 7 | Q43: 1.615756969 | R43: 2 | S43: 1.524115111 | T43: 3 | U43: 1.608251996 | V43: 7 | W43: 1.368268658 | X43: 3
B44: 26 | C44: 京都府 | E44: 7.18534068 | F44: 18 | G44: 7.732655956 | H44: 19 | I44: 8.407916299 | J44: 20 | K44: 8.500126678 | L44: 20 | M44: 7.955660192 | N44: 16 | O44: 2.775778298 | P44: 36 | Q44: 1.891874138 | R44: 19 | S44: 1.740611692 | T44: 16 | U44: 1.75264994 | V44: 16 | W44: 1.499113522 | X44: 11
B45: 27 | C45: 大阪府 | E45: 8.41476768 | F45: 38 | G45: 9.09504504 | H45: 41 | I45: 9.91341163 | J45: 42 | K45: 10.18333792 | L45: 42 | M45: 9.651474531 | N45: 42 | O45: 2.565414226 | P45: 26 | Q45: 1.995548293 | R45: 28 | S45: 1.85870284 | T45: 23 | U45: 1.960907064 | V45: 34 | W45: 1.919755404 | X45: 37
B46: 28 | C46: 兵庫県 | E46: 7.632802162 | F46: 23 | G46: 8.057833626 | H46: 26 | I46: 8.772608154 | J46: 25 | K46: 8.912896691 | L46: 24 | M46: 8.368380807 | N46: 24 | O46: 2.22595143 | P46: 5 | Q46: 1.70898909 | R46: 6 | S46: 1.587441394 | T46: 7 | U46: 1.650946813 | V46: 8 | W46: 1.464758043 | X46: 10
B47: 29 | C47: 奈良県 | E47: 8.179465056 | F47: 32 | G47: 8.731232247 | H47: 34 | I47: 9.493111975 | J47: 37 | K47: 10.1680789 | L47: 40 | M47: 9.169708029 | N47: 36 | O47: 2.598453516 | P47: 27 | Q47: 1.67769274 | R47: 5 | S47: 1.536629292 | T47: 4 | U47: 1.497118698 | V47: 2 | W47: 1.366420153 | X47: 2
B48: 30 | C48: 和歌山県 | E48: 7.792112593 | F48: 25 | G48: 8.565483759 | H48: 32 | I48: 8.417121517 | J48: 21 | K48: 8.340231788 | L48: 18 | M48: 8.067324434 | N48: 19 | O48: 2.191050313 | P48: 3 | Q48: 2.02330243 | R48: 30 | S48: 1.552808501 | T48: 6 | U48: 1.592202179 | V48: 6 | W48: 1.183553961 | X48: 1
B49: 31 | C49: 鳥取県 | E49: 6.400685351 | F49: 9 | G49: 6.346578366 | H49: 2 | I49: 7.224133369 | J49: 2 | K49: 7.575116377 | L49: 3 | M49: 5.963029219 | N49: 2 | O49: 3.027193433 | P49: 41 | Q49: 2.263788969 | R49: 39 | S49: 2.264121783 | T49: 42 | U49: 2.06656154 | V49: 38 | W49: 1.912344669 | X49: 36
B50: 32 | C50: 島根県 | E50: 5.40130658 | F50: 1 | G50: 5.309250137 | H50: 1 | I50: 6.28643853 | J50: 1 | K50: 6.740244383 | L50: 1 | M50: 5.625717566 | N50: 1 | O50: 2.516197077 | P50: 23 | Q50: 1.814716606 | R50: 12 | S50: 1.807307242 | T50: 21 | U50: 1.694676886 | V50: 10 | W50: 1.449094316 | X50: 6
B51: 33 | C51: 岡山県 | E51: 8.280146659 | F51: 36 | G51: 9.105087663 | H51: 42 | I51: 9.872438594 | J51: 41 | K51: 10.18221977 | L51: 41 | M51: 9.470752089 | N51: 39 | O51: 2.465512181 | P51: 18 | Q51: 1.663394109 | R51: 3 | S51: 1.796023092 | T51: 19 | U51: 1.852670779 | V51: 27 | W51: 1.701247738 | X51: 28
B52: 34 | C52: 広島県 | E52: 6.662678531 | F52: 10 | G52: 7.302975286 | H52: 11 | I52: 7.660807951 | J52: 7 | K52: 7.548901914 | L52: 2 | M52: 6.982487652 | N52: 5 | O52: 2.486924245 | P52: 22 | Q52: 1.889787306 | R52: 17 | S52: 1.702341228 | T52: 11 | U52: 1.829128877 | V52: 23 | W52: 1.590108772 | X52: 17
B53: 35 | C53: 山口県 | E53: 7.061255576 | F53: 15 | G53: 7.563092111 | H53: 13 | I53: 8.038878202 | J53: 13 | K53: 8.1769437 | L53: 13 | M53: 7.522311942 | N53: 8 | O53: 1.93824158 | P53: 1 | Q53: 1.466190397 | R53: 1 | S53: 1.48583382 | T53: 1 | U53: 1.396923481 | V53: 1 | W53: 1.387515655 | X53: 4
B54: 36 | C54: 徳島県 | E54: 8.698940998 | F54: 40 | G54: 9.109195402 | H54: 43 | I54: 10.38383089 | J54: 45 | K54: 10.4610951 | L54: 43 | M54: 9.160305344 | N54: 35 | O54: 2.653748947 | P54: 33 | Q54: 2.252663623 | R54: 38 | S54: 2.040583675 | T54: 33 | U54: 2.145922747 | V54: 42 | W54: 1.713183572 | X54: 30
B55: 37 | C55: 香川県 | E55: 7.632551474 | F55: 22 | G55: 8.007019853 | H55: 25 | I55: 9.193190229 | J55: 34 | K55: 9.489391467 | L55: 31 | M55: 9.555310548 | N55: 41 | O55: 2.436506298 | P55: 17 | Q55: 1.733566663 | R55: 8 | S55: 2.017512004 | T55: 32 | U55: 1.949281722 | V55: 32 | W55: 1.61047493 | X55: 19
B56: 38 | C56: 愛媛県 | E56: 8.059903281 | F56: 29 | G56: 8.843331568 | H56: 36 | I56: 9.514094955 | J56: 39 | K56: 9.640500875 | L56: 36 | M56: 9.550147493 | N56: 40 | O56: 2.477128783 | P56: 20 | Q56: 1.743466986 | R56: 9 | S56: 1.793145655 | T56: 18 | U56: 1.789408018 | V56: 21 | W56: 1.545690615 | X56: 13
B57: 39 | C57: 高知県 | E57: 9.30987538 | F57: 45 | G57: 8.996239514 | H57: 39 | I57: 8.950237384 | J57: 30 | K57: 9.083910701 | L57: 25 | M57: 8.20006805 | N57: 22 | O57: 2.945817991 | P57: 38 | Q57: 2.228082939 | R57: 34 | S57: 2.167841468 | T57: 38 | U57: 2.03171819 | V57: 37 | W57: 1.661690251 | X57: 25
B58: 40 | C58: 福岡県 | E58: 8.57626163 | F58: 39 | G58: 8.696093525 | H58: 33 | I58: 9.195560133 | J58: 35 | K58: 9.623893805 | L58: 35 | M58: 8.895348837 | N58: 34 | O58: 2.711535414 | P58: 34 | Q58: 2.174336762 | R58: 32 | S58: 1.982140611 | T58: 31 | U58: 1.991323132 | V58: 35 | W58: 1.953305381 | X58: 41
B59: 41 | C59: 佐賀県 | E59: 7.062538509 | F59: 16 | G59: 7.665166079 | H59: 15 | I59: 8.849247989 | J59: 26 | K59: 8.470707583 | L59: 19 | M59: 8.52233677 | N59: 28 | O59: 2.482588182 | P59: 21 | Q59: 2.020067779 | R59: 29 | S59: 1.797057386 | T59: 20 | U59: 1.920642782 | V59: 30 | W59: 1.690932312 | X59: 27
B60: 42 | C60: 長崎県 | E60: 7.19514641 | F60: 19 | G60: 7.600596125 | H60: 14 | I60: 8.330987898 | J60: 19 | K60: 8.151249509 | L60: 12 | M60: 7.628247835 | N60: 11 | O60: 2.650189831 | P60: 32 | Q60: 2.107337131 | R60: 31 | S60: 1.949925386 | T60: 29 | U60: 1.83138096 | V60: 24 | W60: 1.774712644 | X60: 33
B61: 43 | C61: 熊本県 | E61: 8.188604509 | F61: 33 | G61: 7.902118771 | H61: 21 | I61: 8.50186054 | J61: 23 | K61: 8.2240219 | L61: 15 | M61: 7.586715867 | N61: 9 | O61: 2.776084668 | P61: 37 | Q61: 2.355066619 | R61: 42 | S61: 2.230631879 | T61: 40 | U61: 2.100483297 | V61: 40 | W61: 1.855341354 | X61: 35
B62: 44 | C62: 大分県 | E62: 7.927791085 | F62: 28 | G62: 8.845793995 | H62: 37 | I62: 9.460398333 | J62: 36 | K62: 9.797979798 | L62: 37 | M62: 8.158396947 | N62: 21 | O62: 2.647083938 | P62: 30 | Q62: 1.926025297 | R62: 21 | S62: 1.88450309 | T62: 26 | U62: 1.747794838 | V62: 14 | W62: 1.770997048 | X62: 32
B63: 45 | C63: 宮崎県 | E63: 8.139768391 | F63: 30 | G63: 8.502957987 | H63: 30 | I63: 8.301422319 | J63: 16 | K63: 9.199318569 | L63: 27 | M63: 7.936911727 | N63: 15 | O63: 3.045349222 | P63: 42 | Q63: 2.244165171 | R63: 35 | S63: 2.332899761 | T63: 43 | U63: 2.097747029 | V63: 39 | W63: 1.937272976 | X63: 39
B64: 46 | C64: 鹿児島県 | E64: 7.817353072 | F64: 26 | G64: 7.938013915 | H64: 23 | I64: 8.07267118 | J64: 14 | K64: 8.22777455 | L64: 16 | M64: 7.869211514 | N64: 12 | O64: 2.645562465 | P64: 29 | Q64: 1.914283764 | R64: 20 | S64: 1.937520091 | T64: 28 | U64: 1.752285272 | V64: 15 | W64: 1.937269373 | X64: 38
B65: 47 | C65: 沖縄県 | E65: 11.81951284 | F65: 47 | G65: 10.84345713 | H65: 46 | I65: 11.66167928 | J65: 46 | K65: 11.42312579 | L65: 46 | M65: 10.87504501 | N65: 46 | O65: 3.325619835 | P65: 46 | Q65: 2.840710372 | R65: 46 | S65: 2.633224919 | T65: 46 | U65: 2.662406816 | V65: 46 | W65: 2.386132118 | X65: 47
B66: 資料等
B67: ○ 総務省「国勢調査」（平成22年）より作成。完全失業者の割合とは人口に占める完全失業者の割合であり、労働力状態不詳や年齢・国籍不詳は除いて算出した。
B68: ○ 合計特殊出生率との相関係数、単純平均、標準偏差は都道府県別データから機械的に計算。変動係数は、標準偏差／単純平均で機械的に計算。

Sheet ３．（２）不安定雇用の割合（男性）
B5: ■男女別・配偶関係別・年齢階級別 就業者に占める労働者派遣事業所の派遣社員とパート・アルバイト・その他の割合（25～49歳） 男性
E7: 【実数値】 | W7: ・・・上位10位を網掛け
W8: ・・・下位10位を網掛け
E9: 就業者に占める労働者派遣事業所の派遣社員とパート・アルバイト・その他の割合（H22）
E10: 未婚 | O10: 有配偶
E11: 25～29歳 | G11: 30～34歳 | I11: 35～39歳 | K11: 40～44歳 | M11: 45～49歳 | O11: 25～29歳 | Q11: 30～34歳 | S11: 35～39歳 | U11: 40～44歳 | W11: 45～49歳
F12: （順位） | H12: （順位） | J12: （順位） | L12: （順位） | N12: （順位） | P12: （順位） | R12: （順位） | T12: （順位） | V12: （順位） | X12: （順位）
E13: （％） | F13: （昇順） | G13: （％） | H13: （昇順） | I13: （％） | J13: （昇順） | K13: （％） | L13: （昇順） | M13: （％） | N13: （昇順） | O13: （％） | P13: （昇順） | Q13: （％） | R13: （昇順） | S13: （％） | T13: （昇順） | U13: （％） | V13: （昇順） | W13: （％） | X13: （昇順）
B14: （合計特殊出生率との相関係数） | E14: =CORREL('１．（２）少子化関係指標'!$E$20:$E$66,E$19:E$65) -> 0.03968469053 | G14: =CORREL('１．（２）少子化関係指標'!$E$20:$E$66,G$19:G$65) -> -0.03790574301 | I14: =CORREL('１．（２）少子化関係指標'!$E$20:$E$66,I$19:I$65) -> 0.05200070624 | K14: =CORREL('１．（２）少子化関係指標'!$E$20:$E$66,K$19:K$65) -> 0.1397233655 | M14: =CORREL('１．（２）少子化関係指標'!$E$20:$E$66,M$19:M$65) -> 0.1759361596 | O14: =CORREL('１．（２）少子化関係指標'!$E$20:$E$66,O$19:O$65) -> 0.3638534932 | Q14: =CORREL('１．（２）少子化関係指標'!$E$20:$E$66,Q$19:Q$65) -> 0.3459333599 | S14: =CORREL('１．（２）少子化関係指標'!$E$20:$E$66,S$19:S$65) -> 0.3087476055 | U14: =CORREL('１．（２）少子化関係指標'!$E$20:$E$66,U$19:U$65) -> 0.2931019719 | W14: =CORREL('１．（２）少子化関係指標'!$E$20:$E$66,W$19:W$65) -> 0.2870938021
B15: （単純平均） | E15: =AVERAGE(E$19:E$65) -> 20.63805671 | G15: =AVERAGE(G$19:G$65) -> 17.17863074 | I15: =AVERAGE(I$19:I$65) -> 15.23005539 | K15: =AVERAGE(K$19:K$65) -> 14.79483806 | M15: =AVERAGE(M$19:M$65) -> 14.57633339 | O15: =AVERAGE(O$19:O$65) -> 7.264114472 | Q15: =AVERAGE(Q$19:Q$65) -> 4.615639353 | S15: =AVERAGE(S$19:S$65) -> 3.425335122 | U15: =AVERAGE(U$19:U$65) -> 3.256243005 | W15: =AVERAGE(W$19:W$65) -> 3.28601329
B16: （標準偏差） | E16: =STDEVP(E$19:E$65) -> 3.62778154 | G16: =STDEVP(G$19:G$65) -> 2.688196987 | I16: =STDEVP(I$19:I$65) -> 2.158376929 | K16: =STDEVP(K$19:K$65) -> 1.859272614 | M16: =STDEVP(M$19:M$65) -> 1.649074049 | O16: =STDEVP(O$19:O$65) -> 2.129040111 | Q16: =STDEVP(Q$19:Q$65) -> 1.377839348 | S16: =STDEVP(S$19:S$65) -> 1.045368059 | U16: =STDEVP(U$19:U$65) -> 0.8873430245 | W16: =STDEVP(W$19:W$65) -> 0.7742042142
B17: （変動係数） | E17: =E16/E15 -> 0.1757811595 | G17: =G16/G15 -> 0.1564849392 | I17: =I16/I15 -> 0.1417182586 | K17: =K16/K15 -> 0.1256703593 | M17: =M16/M15 -> 0.113133667 | O17: =O16/O15 -> 0.2930901102 | Q17: =Q16/Q15 -> 0.2985153827 | S17: =S16/S15 -> 0.3051870901 | U17: =U16/U15 -> 0.2725051611 | W17: =W16/W15 -> 0.2356059291
B18: 全 国 | E18: 20.82684677 | G18: 17.76678264 | I18: 15.6963264 | K18: 14.97499318 | M18: 14.68390356 | O18: 6.960555466 | Q18: 4.430724425 | S18: 3.297820495 | U18: 3.117619855 | W18: 3.176688542
B19: 1 | C19: 北海道 | E19: 24.55446438 | F19: 43 | G19: 21.31564358 | H19: 46 | I19: 18.3172481 | J19: 44 | K19: 17.66255144 | L19: 45 | M19: 17.08938254 | N19: 45 | O19: 7.666004853 | P19: 31 | Q19: 5.155423758 | R19: 38 | S19: 4.115396158 | T19: 43 | U19: 3.837609358 | V19: 43 | W19: 3.817080657 | X19: 41
B20: 2 | C20: 青森県 | E20: 22.29225023 | F20: 34 | G20: 18.56515795 | H20: 36 | I20: 15.63738878 | J20: 28 | K20: 14.60564752 | L20: 22 | M20: 13.80239521 | N20: 17 | O20: 8.134080769 | P20: 39 | Q20: 5.916427647 | R20: 44 | S20: 4.63366995 | T20: 45 | U20: 4.235294118 | V20: 45 | W20: 4.256006896 | X20: 45
B21: 3 | C21: 岩手県 | E21: 24.50123561 | F21: 42 | G21: 18.9289889 | H21: 39 | I21: 15.90182352 | J21: 31 | K21: 15.23523292 | L21: 33 | M21: 15.52587646 | N21: 35 | O21: 9.695757448 | P21: 45 | Q21: 6.388490795 | R21: 46 | S21: 4.917069074 | T21: 46 | U21: 4.667404821 | V21: 46 | W21: 4.332469094 | X21: 46
B22: 4 | C22: 宮城県 | E22: 25.72822937 | F22: 46 | G22: 20.78631524 | H22: 45 | I22: 16.71662326 | J22: 39 | K22: 15.46691229 | L22: 35 | M22: 13.86331939 | N22: 18 | O22: 8.172531215 | P22: 40 | Q22: 5.544658397 | R22: 42 | S22: 4.016731125 | T22: 42 | U22: 3.674680126 | V22: 38 | W22: 3.53659821 | X22: 34
B23: 5 | C23: 秋田県 | E23: 23.62910515 | F23: 38 | G23: 17.92147806 | H23: 31 | I23: 15.92623638 | J23: 32 | K23: 15.01695463 | L23: 31 | M23: 15.60309849 | N23: 36 | O23: 8.113466524 | P23: 38 | Q23: 5.053395686 | R23: 36 | S23: 3.922420818 | T23: 41 | U23: 3.98888344 | V23: 44 | W23: 3.971152513 | X23: 43
B24: 6 | C24: 山形県 | E24: 19.76086398 | F24: 21 | G24: 16.6231359 | H24: 19 | I24: 14.66534348 | J24: 20 | K24: 13.11499704 | L24: 11 | M24: 12.96678551 | N24: 9 | O24: 7.714550081 | P24: 34 | Q24: 4.465517241 | R24: 23 | S24: 3.312929302 | T24: 23 | U24: 3.482087339 | V24: 32 | W24: 3.442911532 | X24: 33
B25: 7 | C25: 福島県 | E25: 20.90218677 | F25: 27 | G25: 17.32981425 | H25: 27 | I25: 15.54213868 | J25: 27 | K25: 14.85044604 | L25: 26 | M25: 13.66479049 | N25: 15 | O25: 7.679674156 | P25: 32 | Q25: 4.915845649 | R25: 34 | S25: 3.674386265 | T25: 36 | U25: 3.493413373 | V25: 33 | W25: 3.733094622 | X25: 40
B26: 8 | C26: 茨城県 | E26: 20.15798334 | F26: 22 | G26: 16.75206496 | H26: 21 | I26: 14.25738067 | J26: 18 | K26: 13.01889528 | L26: 9 | M26: 12.54569281 | N26: 6 | O26: 9.128397376 | P26: 43 | Q26: 5.561987786 | R26: 43 | S26: 3.509800504 | T26: 30 | U26: 3.168950223 | V26: 25 | W26: 3.32516971 | X26: 27
B27: 9 | C27: 栃木県 | E27: 19.43570739 | F27: 19 | G27: 16.90731629 | H27: 24 | I27: 14.89686056 | J27: 22 | K27: 14.44366197 | L27: 20 | M27: 14.16351701 | N27: 21 | O27: 7.697991536 | P27: 33 | Q27: 4.879757923 | R27: 32 | S27: 3.751361656 | T27: 38 | U27: 3.656958719 | V27: 37 | W27: 3.540958673 | X27: 35
B28: 10 | C28: 群馬県 | E28: 19.24546161 | F28: 17 | G28: 16.52155265 | H28: 17 | I28: 14.74159029 | J28: 21 | K28: 15.00321958 | L28: 30 | M28: 15.61410703 | N28: 37 | O28: 6.878194208 | P28: 22 | Q28: 4.619950536 | R28: 27 | S28: 3.413778173 | T28: 27 | U28: 3.771021689 | V28: 41 | W28: 3.857375167 | X28: 42
B29: 11 | C29: 埼玉県 | E29: 21.62833511 | F29: 30 | G29: 18.39989353 | H29: 34 | I29: 15.75184638 | J29: 29 | K29: 14.71676381 | L29: 23 | M29: 14.48898988 | N29: 25 | O29: 6.15271691 | P29: 15 | Q29: 3.663705724 | R29: 9 | S29: 2.873511503 | T29: 13 | U29: 2.896496961 | V29: 16 | W29: 2.994616201 | X29: 17
B30: 12 | C30: 千葉県 | E30: 20.88642433 | F30: 25 | G30: 18.60322945 | H30: 37 | I30: 15.84272784 | J30: 30 | K30: 14.49445532 | L30: 21 | M30: 14.2192197 | N30: 22 | O30: 6.05841599 | P30: 14 | Q30: 4.002360114 | R30: 17 | S30: 3.022586678 | T30: 17 | U30: 2.84094205 | V30: 14 | W30: 2.878469792 | X30: 14
B31: 13 | C31: 東京都 | E31: 22.44740828 | F31: 35 | G31: 18.96940251 | H31: 40 | I31: 17.08433323 | J31: 40 | K31: 15.84525228 | L31: 36 | M31: 14.96254888 | N31: 30 | O31: 6.66710587 | P31: 18 | Q31: 4.360872049 | R31: 22 | S31: 3.29631032 | T31: 22 | U31: 2.95765705 | V31: 18 | W31: 3.005573248 | X31: 18
B32: 14 | C32: 神奈川県 | E32: 20.60898426 | F32: 24 | G32: 18.2376502 | H32: 33 | I32: 15.93325731 | J32: 33 | K32: 14.31157491 | L32: 19 | M32: 13.63922556 | N32: 14 | O32: 6.043857445 | P32: 13 | Q32: 3.873560062 | R32: 12 | S32: 2.900944638 | T32: 14 | U32: 2.685516225 | V32: 12 | W32: 2.764545177 | X32: 13
B33: 15 | C33: 新潟県 | E33: 17.57368947 | F33: 10 | G33: 14.19510722 | H33: 4 | I33: 12.3444409 | J33: 2 | K33: 11.95250984 | L33: 3 | M33: 12.5271019 | N33: 4 | O33: 4.764546351 | P33: 1 | Q33: 3.077571669 | R33: 1 | S33: 2.43072539 | T33: 4 | U33: 2.372777571 | V33: 3 | W33: 2.526272409 | X33: 3
B34: 16 | C34: 富山県 | E34: 14.20412675 | F34: 1 | G34: 11.84855917 | H34: 1 | I34: 11.14364298 | J34: 1 | K34: 10.98916762 | L34: 1 | M34: 11.78835979 | N34: 1 | O34: 5.358891843 | P34: 5 | Q34: 3.282874339 | R34: 4 | S34: 2.18768679 | T34: 2 | U34: 2.113110993 | V34: 1 | W34: 2.245689079 | X34: 1
B35: 17 | C35: 石川県 | E35: 16.51769537 | F35: 6 | G35: 15.49207346 | H35: 13 | I35: 13.62854297 | J35: 12 | K35: 14.03717472 | L35: 15 | M35: 12.99435028 | N35: 10 | O35: 6.000253711 | P35: 12 | Q35: 3.219049719 | R35: 2 | S35: 2.846788957 | T35: 12 | U35: 2.606093354 | V35: 10 | W35: 2.738696614 | X35: 12
B36: 18 | C36: 福井県 | E36: 15.07902967 | F36: 2 | G36: 12.90838474 | H36: 2 | I36: 12.6910874 | J36: 4 | K36: 12.85681133 | L36: 5 | M36: 12.52673388 | N36: 3 | O36: 5.092013579 | P36: 3 | Q36: 3.319142226 | R36: 6 | S36: 2.724259956 | T36: 8 | U36: 2.382824312 | V36: 4 | W36: 2.635244303 | X36: 7
B37: 19 | C37: 山梨県 | E37: 19.4265233 | F37: 18 | G37: 14.96054596 | H37: 11 | I37: 13.57566766 | J37: 11 | K37: 13.98543529 | L37: 14 | M37: 14.02662994 | N37: 19 | O37: 7.798891528 | P37: 35 | Q37: 4.553702584 | R37: 25 | S37: 3.66755227 | T37: 35 | U37: 3.674900049 | V37: 39 | W37: 3.675119441 | X37: 39
B38: 20 | C38: 長野県 | E38: 17.22272317 | F38: 7 | G38: 14.5197201 | H38: 7 | I38: 13.49570591 | J38: 10 | K38: 12.93285752 | L38: 8 | M38: 12.69259677 | N38: 7 | O38: 8.02536628 | P38: 36 | Q38: 4.913384845 | R38: 33 | S38: 3.485624262 | T38: 29 | U38: 3.38290788 | V38: 30 | W38: 3.329247472 | X38: 28
B39: 21 | C39: 岐阜県 | E39: 15.71784985 | F39: 3 | G39: 13.08562197 | H39: 3 | I39: 12.7176781 | J39: 5 | K39: 11.91697192 | L39: 2 | M39: 12.28158391 | N39: 2 | O39: 6.826784117 | P39: 21 | Q39: 4.239229345 | R39: 19 | S39: 2.983633985 | T39: 16 | U39: 2.949625642 | V39: 17 | W39: 2.906680265 | X39: 15
B40: 22 | C40: 静岡県 | E40: 16.30514021 | F40: 5 | G40: 14.22679498 | H40: 6 | I40: 12.84873177 | J40: 6 | K40: 12.86461968 | L40: 6 | M40: 13.32936035 | N40: 12 | O40: 6.738868833 | P40: 20 | Q40: 4.344029688 | R40: 21 | S40: 3.167275834 | T40: 20 | U40: 3.212624707 | V40: 26 | W40: 3.047176537 | X40: 19
B41: 23 | C41: 愛知県 | E41: 16.19449193 | F41: 4 | G41: 14.73501303 | H41: 9 | I41: 13.13913579 | J41: 8 | K41: 13.04512488 | L41: 10 | M41: 13.32831543 | N41: 11 | O41: 5.911211747 | P41: 10 | Q41: 3.79790996 | R41: 10 | S41: 2.782384273 | T41: 9 | U41: 2.586082987 | V41: 9 | W41: 2.675254204 | X41: 9
B42: 24 | C42: 三重県 | E42: 17.83738229 | F42: 11 | G42: 15.7402703 | H42: 14 | I42: 13.77284987 | J42: 13 | K42: 14.30474161 | L42: 18 | M42: 15.18935795 | N42: 33 | O42: 7.026537998 | P42: 25 | Q42: 4.502046385 | R42: 24 | S42: 3.190125801 | T42: 21 | U42: 3.061739613 | V42: 20 | W42: 3.125227124 | X42: 21
B43: 25 | C43: 滋賀県 | E43: 18.63638345 | F43: 15 | G43: 16.41190162 | H43: 16 | I43: 16.13636364 | J43: 35 | K43: 17.16255906 | L43: 43 | M43: 16.78156392 | N43: 44 | O43: 7.132801502 | P43: 27 | Q43: 4.587840358 | R43: 26 | S43: 3.315977777 | T43: 24 | U43: 3.151127439 | V43: 23 | W43: 3.224055926 | X43: 24
B44: 26 | C44: 京都府 | E44: 24.5711334 | F44: 44 | G44: 20.76171945 | H44: 44 | I44: 18.36631366 | J44: 45 | K44: 17.30893992 | L44: 44 | M44: 16.61801907 | N44: 42 | O44: 6.94107576 | P44: 23 | Q44: 4.691272853 | R44: 30 | S44: 3.514479732 | T44: 31 | U44: 3.235868986 | V44: 27 | W44: 3.195374315 | X44: 23
B45: 27 | C45: 大阪府 | E45: 23.65766745 | F45: 40 | G45: 20.32861124 | H45: 43 | I45: 18.43496828 | J45: 46 | K45: 17.82797179 | L45: 46 | M45: 17.64823261 | N45: 46 | O45: 6.949265055 | P45: 24 | Q45: 4.73715387 | R45: 31 | S45: 3.616581768 | T45: 33 | U45: 3.494135003 | V45: 34 | W45: 3.631668195 | X45: 38
B46: 28 | C46: 兵庫県 | E46: 21.70874359 | F46: 31 | G46: 19.38454172 | H46: 41 | I46: 17.31095323 | J46: 43 | K46: 16.57808067 | L46: 42 | M46: 16.65047601 | N46: 43 | O46: 6.688851913 | P46: 19 | Q46: 4.213144222 | R46: 18 | S46: 3.34634375 | T46: 25 | U46: 3.164345031 | V46: 24 | W46: 3.247894322 | X46: 25
B47: 29 | C47: 奈良県 | E47: 21.91014348 | F47: 33 | G47: 17.79875662 | H47: 28 | I47: 15.44327056 | J47: 25 | K47: 15.3414264 | L47: 34 | M47: 14.70659261 | N47: 27 | O47: 6.529025339 | P47: 17 | Q47: 3.936170213 | R47: 16 | S47: 2.923853597 | T47: 15 | U47: 2.563296665 | V47: 7 | W47: 2.703809914 | X47: 10
B48: 30 | C48: 和歌山県 | E48: 20.90184355 | F48: 26 | G48: 17.27731092 | H48: 26 | I48: 15.34830314 | J48: 24 | K48: 14.86805829 | L48: 27 | M48: 15.74310884 | N48: 39 | O48: 6.263356896 | P48: 16 | Q48: 4.315725377 | R48: 20 | S48: 3.143528931 | T48: 19 | U48: 3.146031407 | V48: 22 | W48: 3.422354105 | X48: 32
B49: 31 | C49: 鳥取県 | E49: 22.65683579 | F49: 36 | G49: 16.53129479 | H49: 18 | I49: 14.20988158 | J49: 16 | K49: 15.89868782 | L49: 37 | M49: 15.49902153 | N49: 34 | O49: 9.133089133 | P49: 44 | Q49: 5.064523983 | R49: 37 | S49: 3.439225269 | T49: 28 | U49: 3.51956434 | V49: 35 | W49: 3.409294814 | X49: 31
B50: 32 | C50: 島根県 | E50: 18.09067617 | F50: 12 | G50: 14.66902751 | H50: 8 | I50: 14.25245302 | J50: 17 | K50: 14.97067075 | L50: 28 | M50: 14.79623824 | N50: 28 | O50: 5.857656937 | P50: 9 | Q50: 3.929740994 | R50: 15 | S50: 3.065451533 | T50: 18 | U50: 2.887969498 | V50: 15 | W50: 3.072955048 | X50: 20
B51: 33 | C51: 岡山県 | E51: 18.10898647 | F51: 13 | G51: 15.7673192 | H51: 15 | I51: 13.9970015 | J51: 15 | K51: 13.75813241 | L51: 12 | M51: 14.04214028 | N51: 20 | O51: 5.661450925 | P51: 7 | Q51: 3.583790777 | R51: 8 | S51: 2.640143787 | T51: 5 | U51: 2.426061574 | V51: 5 | W51: 2.602665216 | X51: 5
B52: 34 | C52: 広島県 | E52: 18.71857052 | F52: 16 | G52: 16.78116135 | H52: 22 | I52: 14.60568931 | J52: 19 | K52: 14.04838416 | L52: 16 | M52: 13.70166726 | N52: 16 | O52: 5.718048869 | P52: 8 | Q52: 3.561294935 | R52: 7 | S52: 2.646226415 | T52: 6 | U52: 2.57948514 | V52: 8 | W52: 2.616815856 | X52: 6
B53: 35 | C53: 山口県 | E53: 17.40015839 | F53: 9 | G53: 14.94337403 | H53: 10 | I53: 12.88011331 | J53: 7 | K53: 12.89727021 | L53: 7 | M53: 12.91711518 | N53: 8 | O53: 5.171042164 | P53: 4 | Q53: 3.254199779 | R53: 3 | S53: 2.155939299 | T53: 1 | U53: 2.182956301 | V53: 2 | W53: 2.30030722 | X53: 2
B54: 36 | C54: 徳島県 | E54: 21.78647041 | F54: 32 | G54: 17.17604757 | H54: 25 | I54: 15.47455296 | J54: 26 | K54: 14.97517926 | L54: 29 | M54: 14.43530292 | N54: 24 | O54: 8.36811767 | P54: 41 | Q54: 5.209311057 | R54: 39 | S54: 3.8125 | T54: 39 | U54: 3.702613176 | V54: 40 | W54: 3.614210418 | X54: 37
B55: 37 | C55: 香川県 | E55: 17.26775956 | F55: 8 | G55: 14.20029895 | H55: 5 | I55: 12.63396047 | J55: 3 | K55: 12.79700655 | L55: 4 | M55: 13.48314607 | N55: 13 | O55: 4.839609484 | P55: 2 | Q55: 3.313373253 | R55: 5 | S55: 2.38706965 | T55: 3 | U55: 2.459102902 | V55: 6 | W55: 2.719425957 | X55: 11
B56: 38 | C56: 愛媛県 | E56: 18.37095538 | F56: 14 | G56: 15.21625458 | H56: 12 | I56: 13.31734186 | J56: 9 | K56: 13.97379913 | L56: 13 | M56: 12.5273523 | N56: 5 | O56: 5.398110661 | P56: 6 | Q56: 3.817167466 | R56: 11 | S56: 2.789967534 | T56: 10 | U56: 2.638512052 | V56: 11 | W56: 2.650576054 | X56: 8
B57: 39 | C57: 高知県 | E57: 24.69640355 | F57: 45 | G57: 18.65203762 | H57: 38 | I57: 16.28537536 | J57: 36 | K57: 16.33333333 | L57: 40 | M57: 14.8524278 | N57: 29 | O57: 10.68242103 | P57: 46 | Q57: 5.985227026 | R57: 45 | S57: 4.34647625 | T57: 44 | U57: 3.809689484 | V57: 42 | W57: 4.011043792 | X57: 44
B58: 40 | C58: 福岡県 | E58: 24.48664297 | F58: 41 | G58: 19.84524075 | H58: 42 | I58: 17.15237928 | J58: 42 | K58: 16.38550571 | L58: 41 | M58: 15.88244916 | N58: 40 | O58: 7.602924416 | P58: 30 | Q58: 4.639513548 | R58: 29 | S58: 3.400312173 | T58: 26 | U58: 3.132387707 | V58: 21 | W58: 3.159394018 | X58: 22
B59: 41 | C59: 佐賀県 | E59: 20.44773488 | F59: 23 | G59: 16.66666667 | H59: 20 | I59: 14.93859785 | J59: 23 | K59: 14.22241914 | L59: 17 | M59: 14.37407953 | N59: 23 | O59: 7.112332112 | P59: 26 | Q59: 3.915224074 | R59: 13 | S59: 2.79827016 | T59: 11 | U59: 3.040290576 | V59: 19 | W59: 2.942762961 | X59: 16
B60: 42 | C60: 長崎県 | E60: 21.37281773 | F60: 28 | G60: 17.87118977 | H60: 29 | I60: 16.13356061 | J60: 34 | K60: 14.83532084 | L60: 24 | M60: 15.63850009 | N60: 38 | O60: 7.337610265 | P60: 29 | Q60: 5.356119419 | R60: 41 | S60: 3.873978996 | T60: 40 | U60: 3.391969709 | V60: 31 | W60: 3.381659636 | X60: 30
B61: 43 | C61: 熊本県 | E61: 23.63771539 | F61: 39 | G61: 18.49349349 | H61: 35 | I61: 16.61500816 | J61: 38 | K61: 16.3315408 | L61: 39 | M61: 15.12824228 | N61: 32 | O61: 8.547132786 | P61: 42 | Q61: 5.284787034 | R61: 40 | S61: 3.733218905 | T61: 37 | U61: 3.304035414 | V61: 29 | W61: 3.303601863 | X61: 26
B62: 44 | C62: 大分県 | E62: 19.55688389 | F62: 20 | G62: 16.84326524 | H62: 23 | I62: 13.91294814 | J62: 14 | K62: 14.84128303 | L62: 25 | M62: 14.65126812 | N62: 26 | O62: 5.973659454 | P62: 11 | Q62: 3.917465853 | R62: 14 | S62: 2.682379843 | T62: 7 | U62: 2.690149023 | V62: 13 | W62: 2.597696981 | X62: 4
B63: 45 | C63: 宮崎県 | E63: 21.52963371 | F63: 29 | G63: 18.02688684 | H63: 32 | I63: 17.12135466 | J63: 41 | K63: 15.1865895 | L63: 32 | M63: 15.05149813 | N63: 31 | O63: 8.104780029 | P63: 37 | Q63: 5.040969006 | R63: 35 | S63: 3.638218293 | T63: 34 | U63: 3.539072848 | V63: 36 | W63: 3.576238911 | X63: 36
B64: 46 | C64: 鹿児島県 | E64: 22.75079722 | F64: 37 | G64: 17.91067035 | H64: 30 | I64: 16.37939336 | J64: 37 | K64: 15.949068 | L64: 38 | M64: 16.60570593 | N64: 41 | O64: 7.24959767 | P64: 28 | Q64: 4.623409138 | R64: 28 | S64: 3.606748109 | T64: 32 | U64: 3.272455941 | V64: 28 | W64: 3.354490541 | X64: 29
B65: 47 | C65: 沖縄県 | E65: 35.86641677 | F65: 47 | G65: 28.26484018 | H65: 47 | I65: 24.29053746 | J65: 47 | K65: 22.19418249 | L65: 47 | M65: 20.5201824 | N65: 47 | O65: 18.80530973 | P65: 47 | Q65: 12.30673122 | R65: 47 | S65: 9.28690527 | T65: 47 | U65: 8.012698413 | V65: 47 | W65: 7.343699646 | X65: 47
B66: 資料等
B67: ○ 総務省「国勢調査」（平成22年）より作成。従業上の地位不詳、労働力状態不詳、年齢・国籍不詳は除いて算出した。
B68: ○ 合計特殊出生率との相関係数、単純平均、標準偏差は都道府県別データから機械的に計算。変動係数は、標準偏差／単純平均で機械的に計算。

Sheet ３．（２）不安定雇用の割合（女）
B5: ■男女別・配偶関係別・年齢階級別 就業者に占める労働者派遣事業所の派遣社員とパート・アルバイト・その他の割合（25～49歳） 女性
E7: 【実数値】 | W7: ・・・上位10位を網掛け
W8: ・・・下位10位を網掛け
E9: 就業者に占める労働者派遣事業所の派遣社員とパート・アルバイト・その他の割合（H22）
E10: 未婚 | O10: 有配偶
E11: 25～29歳 | G11: 30～34歳 | I11: 35～39歳 | K11: 40～44歳 | M11: 45～49歳 | O11: 25～29歳 | Q11: 30～34歳 | S11: 35～39歳 | U11: 40～44歳 | W11: 45～49歳
F12: （順位） | H12: （順位） | J12: （順位） | L12: （順位） | N12: （順位） | P12: （順位） | R12: （順位） | T12: （順位） | V12: （順位） | X12: （順位）
E13: （％） | F13: （昇順） | G13: （％） | H13: （昇順） | I13: （％） | J13: （昇順） | K13: （％） | L13: （昇順） | M13: （％） | N13: （昇順） | O13: （％） | P13: （昇順） | Q13: （％） | R13: （昇順） | S13: （％） | T13: （昇順） | U13: （％） | V13: （昇順） | W13: （％） | X13: （昇順）
B14: （合計特殊出生率との相関係数） | E14: =CORREL('１．（２）少子化関係指標'!$E$20:$E$66,E$19:E$65) -> 0.01493752885 | G14: =CORREL('１．（２）少子化関係指標'!$E$20:$E$66,G$19:G$65) -> -0.3066553698 | I14: =CORREL('１．（２）少子化関係指標'!$E$20:$E$66,I$19:I$65) -> -0.3012726055 | K14: =CORREL('１．（２）少子化関係指標'!$E$20:$E$66,K$19:K$65) -> -0.2736202343 | M14: =CORREL('１．（２）少子化関係指標'!$E$20:$E$66,M$19:M$65) -> -0.0993516117 | O14: =CORREL('１．（２）少子化関係指標'!$E$20:$E$66,O$19:O$65) -> 0.3799533649 | Q14: =CORREL('１．（２）少子化関係指標'!$E$20:$E$66,Q$19:Q$65) -> 0.1200084562 | S14: =CORREL('１．（２）少子化関係指標'!$E$20:$E$66,S$19:S$65) -> -0.1212032789 | U14: =CORREL('１．（２）少子化関係指標'!$E$20:$E$66,U$19:U$65) -> -0.286371379 | W14: =CORREL('１．（２）少子化関係指標'!$E$20:$E$66,W$19:W$65) -> -0.3507682612
B15: （単純平均） | E15: =AVERAGE(E$19:E$65) -> 31.00719936 | G15: =AVERAGE(G$19:G$65) -> 31.87322606 | I15: =AVERAGE(I$19:I$65) -> 31.49400354 | K15: =AVERAGE(K$19:K$65) -> 29.89096192 | M15: =AVERAGE(M$19:M$65) -> 28.38934436 | O15: =AVERAGE(O$19:O$65) -> 45.02888159 | Q15: =AVERAGE(Q$19:Q$65) -> 46.87057668 | S15: =AVERAGE(S$19:S$65) -> 51.52101137 | U15: =AVERAGE(U$19:U$65) -> 54.37606074 | W15: =AVERAGE(W$19:W$65) -> 52.66550451
B16: （標準偏差） | E16: =STDEVP(E$19:E$65) -> 3.414530551 | G16: =STDEVP(G$19:G$65) -> 2.950743696 | I16: =STDEVP(I$19:I$65) -> 3.102117215 | K16: =STDEVP(K$19:K$65) -> 2.848081569 | M16: =STDEVP(M$19:M$65) -> 2.366133851 | O16: =STDEVP(O$19:O$65) -> 3.13204538 | Q16: =STDEVP(Q$19:Q$65) -> 3.645079551 | S16: =STDEVP(S$19:S$65) -> 5.220639442 | U16: =STDEVP(U$19:U$65) -> 6.554971902 | W16: =STDEVP(W$19:W$65) -> 7.280549875
B17: （変動係数） | E17: =E16/E15 -> 0.1101205727 | G17: =G16/G15 -> 0.09257750345 | I17: =I16/I15 -> 0.09849866217 | K17: =K16/K15 -> 0.09528236582 | M17: =M16/M15 -> 0.08334584347 | O17: =O16/O15 -> 0.06955636625 | Q17: =Q16/Q15 -> 0.07776903569 | S17: =S16/S15 -> 0.1013302981 | U17: =U16/U15 -> 0.1205488558 | W17: =W16/W15 -> 0.1382413392
B18: 全 国 | E18: 30.91612549 | G18: 33.1702896 | I18: 33.10872478 | K18: 30.9240209 | M18: 28.71568613 | O18: 44.63154193 | Q18: 47.00817528 | S18: 53.28502191 | U18: 57.71387909 | W18: 56.71938141
B19: 1 | C19: 北海道 | E19: 35.19188993 | F19: 44 | G19: 35.62990797 | H19: 43 | I19: 34.45057509 | J19: 38 | K19: 32.53977426 | L19: 40 | M19: 32.09379196 | N19: 46 | O19: 47.92348785 | P19: 41 | Q19: 50.40073578 | R19: 41 | S19: 55.95532741 | T19: 37 | U19: 60.98099508 | V19: 38 | W19: 60.8460257 | X19: 39
B20: 2 | C20: 青森県 | E20: 34.80913864 | F20: 42 | G20: 32.27443418 | H20: 26 | I20: 33.0206634 | J20: 31 | K20: 32.49395649 | L20: 39 | M20: 30.55950014 | N20: 39 | O20: 45.25485779 | P20: 23 | Q20: 44.27139664 | R20: 12 | S20: 46.09375 | T20: 9 | U20: 49.04707452 | V20: 12 | W20: 46.85880158 | X20: 11
B21: 3 | C21: 岩手県 | E21: 35.08388038 | F21: 43 | G21: 32.91234079 | H21: 31 | I21: 31.24354625 | J21: 23 | K21: 30.53598121 | L21: 28 | M21: 29.63909294 | N21: 34 | O21: 46.48048967 | P21: 32 | Q21: 44.4521306 | R21: 13 | S21: 46.15878451 | T21: 10 | U21: 48.66766251 | V21: 10 | W21: 48.95967441 | X21: 17
B22: 4 | C22: 宮城県 | E22: 36.47077261 | F22: 46 | G22: 36.32831955 | H22: 46 | I22: 34.74834954 | J22: 41 | K22: 33.58927344 | L22: 42 | M22: 31.43564356 | N22: 44 | O22: 45.89819427 | P22: 28 | Q22: 46.5356992 | R22: 17 | S22: 49.46600101 | T22: 18 | U22: 55.33594492 | V22: 23 | W22: 54.32586167 | X22: 25
B23: 5 | C23: 秋田県 | E23: 34.45378151 | F23: 41 | G23: 32.44562186 | H23: 27 | I23: 30.58489033 | J23: 20 | K23: 30.18924602 | L23: 25 | M23: 27.148354 | N23: 15 | O23: 42.721202 | P23: 9 | Q23: 41.36437006 | R23: 5 | S23: 43.45549738 | T23: 3 | U23: 46.24690014 | V23: 7 | W23: 45.01895228 | X23: 9
B24: 6 | C24: 山形県 | E24: 30.46551304 | F24: 22 | G24: 29.59321121 | H24: 11 | I24: 28.42084328 | J24: 7 | K24: 26.32969937 | L24: 4 | M24: 26.26020163 | N24: 9 | O24: 38.64124258 | P24: 2 | Q24: 37.25207604 | R24: 1 | S24: 38.12539919 | T24: 1 | U24: 39.21022529 | V24: 1 | W24: 38.05944798 | X24: 1
B25: 7 | C25: 福島県 | E25: 33.34138098 | F25: 39 | G25: 32.46248348 | H25: 28 | I25: 31.3936375 | J25: 24 | K25: 30.58449585 | L25: 29 | M25: 29.32679907 | N25: 29 | O25: 43.89697648 | P25: 14 | Q25: 43.84738127 | R25: 11 | S25: 46.39446121 | T25: 11 | U25: 49.11521825 | V25: 13 | W25: 47.37763673 | X25: 13
B26: 8 | C26: 茨城県 | E26: 32.81681411 | F26: 37 | G26: 35.02783273 | H26: 38 | I26: 34.55562057 | J26: 39 | K26: 34.53446472 | L26: 46 | M26: 31.81818182 | N26: 45 | O26: 47.28788086 | P26: 36 | Q26: 49.49659671 | R26: 36 | S26: 54.06396854 | T26: 27 | U26: 57.83779048 | V26: 30 | W26: 56.92388367 | X26: 33
B27: 9 | C27: 栃木県 | E27: 33.01313385 | F27: 38 | G27: 35.22796148 | H27: 40 | I27: 34.09836066 | J27: 35 | K27: 31.95943736 | L27: 34 | M27: 29.68923418 | N27: 36 | O27: 48.32246933 | P27: 43 | Q27: 50.94457231 | R27: 43 | S27: 54.39917723 | T27: 30 | U27: 57.93615816 | V27: 31 | W27: 56.32776135 | X27: 31
B28: 10 | C28: 群馬県 | E28: 29.34967506 | F28: 16 | G28: 30.73634204 | H28: 18 | I28: 30.73968197 | J28: 21 | K28: 30.34789045 | L28: 27 | M28: 29.10309755 | N28: 28 | O28: 48.01881129 | P28: 42 | Q28: 51.40264429 | R28: 45 | S28: 56.18851158 | T28: 38 | U28: 59.17276392 | V28: 35 | W28: 58.08085193 | X28: 36
B29: 11 | C29: 埼玉県 | E29: 30.69170391 | F29: 25 | G29: 35.08846519 | H29: 39 | I29: 35.66194125 | J29: 43 | K29: 33.78213826 | L29: 43 | M29: 31.33345528 | N29: 43 | O29: 44.43935927 | P29: 16 | Q29: 49.08061137 | R29: 32 | S29: 57.89260467 | T29: 44 | U29: 65.18384266 | V29: 47 | W29: 65.68534011 | X29: 47
B30: 12 | C30: 千葉県 | E30: 32.00570354 | F30: 30 | G30: 36.12608013 | H30: 45 | I30: 35.99069675 | J30: 44 | K30: 34.02040899 | L30: 45 | M30: 30.91290661 | N30: 41 | O30: 44.4063515 | P30: 15 | Q30: 47.97601199 | R30: 24 | S30: 56.32358386 | T30: 40 | U30: 62.90459226 | V30: 44 | W30: 63.06025542 | X30: 45
B31: 13 | C31: 東京都 | E31: 29.15375003 | F31: 13 | G31: 31.90211054 | H31: 24 | I31: 32.21484829 | J31: 29 | K31: 28.98967245 | L31: 21 | M31: 25.74179293 | N31: 6 | O31: 37.51335946 | P31: 1 | Q31: 38.69451403 | R31: 2 | S31: 45.5961144 | T31: 7 | U31: 53.43298788 | V31: 20 | W31: 56.20324035 | X31: 30
B32: 14 | C32: 神奈川県 | E32: 30.17490482 | F32: 19 | G32: 35.00202727 | H32: 37 | I32: 34.73643121 | J32: 40 | K32: 31.38933966 | L32: 31 | M32: 28.57674958 | N32: 25 | O32: 41.64041767 | P32: 8 | Q32: 44.764356 | R32: 14 | S32: 54.16307106 | T32: 29 | U32: 62.42931814 | V32: 42 | W32: 64.59307046 | X32: 46
B33: 15 | C33: 新潟県 | E33: 30.75500435 | F33: 26 | G33: 29.83091787 | H33: 14 | I33: 28.82854683 | J33: 11 | K33: 28.30972154 | L33: 18 | M33: 27.81683451 | N33: 22 | O33: 43.08371958 | P33: 12 | Q33: 44.87027667 | R33: 15 | S33: 47.96117985 | T33: 14 | U33: 49.26662794 | V33: 14 | W33: 46.25981632 | X33: 10
B34: 16 | C34: 富山県 | E34: 23.98802961 | F34: 1 | G34: 26.74064139 | H34: 2 | I34: 25.20058949 | J34: 2 | K34: 24.69826317 | L34: 2 | M34: 24.8427673 | N34: 3 | O34: 39.51750973 | P34: 4 | Q34: 42.55839822 | R34: 8 | S34: 46.69903819 | T34: 12 | U34: 46.61902935 | V34: 8 | W34: 41.97565675 | X34: 5
B35: 17 | C35: 石川県 | E35: 26.73596674 | F35: 4 | G35: 27.79864763 | H35: 3 | I35: 28.73814734 | J35: 10 | K35: 27.80291604 | L35: 13 | M35: 27.37078652 | N35: 17 | O35: 40.70438799 | P35: 6 | Q35: 43.82176992 | R35: 10 | S35: 48.04010525 | T35: 15 | U35: 48.31685007 | V35: 9 | W35: 44.76511576 | X35: 8
B36: 18 | C36: 福井県 | E36: 24.47681576 | F36: 2 | G36: 25.11644572 | H36: 1 | I36: 24.26247588 | J36: 1 | K36: 25.01214182 | L36: 3 | M36: 26.57916325 | N36: 12 | O36: 39.36458737 | P36: 3 | Q36: 41.3484659 | R36: 4 | S36: 45.93335957 | T36: 8 | U36: 44.89385185 | V36: 4 | W36: 40.66409724 | X36: 4
B37: 19 | C37: 山梨県 | E37: 30.25983217 | F37: 20 | G37: 30.13377926 | H37: 17 | I37: 31.4382786 | J37: 26 | K37: 30.61889251 | L37: 30 | M37: 29.51739618 | N37: 31 | O37: 48.84271436 | P37: 46 | Q37: 50.12615643 | R37: 39 | S37: 55.14555468 | T37: 33 | U37: 56.35910224 | V37: 26 | W37: 54.80300188 | X37: 26
B38: 20 | C38: 長野県 | E38: 27.41054691 | F38: 5 | G38: 28.43306601 | H38: 6 | I38: 29.32138284 | J38: 14 | K38: 28.65609924 | L38: 20 | M38: 27.56451963 | N38: 20 | O38: 45.16297534 | P38: 21 | Q38: 49.60409874 | R38: 37 | S38: 55.77958967 | T38: 36 | U38: 58.17697868 | V38: 33 | W38: 55.1393898 | X38: 27
B39: 21 | C39: 岐阜県 | E39: 26.19122504 | F39: 3 | G39: 29.90560353 | H39: 15 | I39: 31.41386214 | J39: 25 | K39: 29.38547486 | L39: 23 | M39: 28.68702689 | N39: 26 | O39: 46.71949871 | P39: 35 | Q39: 52.84398443 | R39: 47 | S39: 60.14916642 | T39: 47 | U39: 62.38755167 | V39: 41 | W39: 58.68290483 | X39: 38
B40: 22 | C40: 静岡県 | E40: 28.99267762 | F40: 11 | G40: 31.68933429 | H40: 23 | I40: 31.57574623 | J40: 27 | K40: 31.70817257 | L40: 33 | M40: 29.40015353 | N40: 30 | O40: 45.23072387 | P40: 22 | Q40: 50.05398288 | R40: 38 | S40: 55.74095318 | T40: 35 | U40: 60.07614133 | V40: 36 | W40: 58.57151233 | X40: 37
B41: 23 | C41: 愛知県 | E41: 27.95379877 | F41: 6 | G41: 33.21325015 | H41: 34 | I41: 34.09413065 | J41: 34 | K41: 31.6110012 | L41: 32 | M41: 29.72727862 | N41: 37 | O41: 44.47733215 | P41: 17 | Q41: 50.33462534 | R41: 40 | S41: 59.87659089 | T41: 46 | U41: 64.10405746 | V41: 46 | W41: 62.63342033 | X41: 44
B42: 24 | C42: 三重県 | E42: 29.90085312 | F42: 18 | G42: 32.57440361 | H42: 30 | I42: 33.21424705 | J42: 32 | K42: 30.28295129 | L42: 26 | M42: 29.53684824 | N42: 33 | O42: 48.57052097 | P42: 45 | Q42: 51.93032765 | R42: 46 | S42: 58.25835037 | T42: 45 | U42: 60.34987257 | V42: 37 | W42: 57.11934394 | X42: 34
B43: 25 | C43: 滋賀県 | E43: 30.75981045 | F43: 27 | G43: 33.15647482 | H43: 33 | I43: 33.85783299 | J43: 33 | K43: 32.40181269 | L43: 38 | M43: 31.19546248 | N43: 42 | O43: 44.84304933 | P43: 18 | Q43: 48.16494845 | R43: 27 | S43: 57.03814987 | T43: 43 | U43: 63.40225643 | V43: 45 | W43: 61.92773875 | X43: 41
B44: 26 | C44: 京都府 | E44: 32.49069607 | F44: 36 | G44: 35.9956737 | H44: 44 | I44: 36.42296934 | J44: 46 | K44: 33.86592273 | L44: 44 | M44: 30.5760709 | N44: 40 | O44: 46.22042701 | P44: 30 | Q44: 48.48142457 | R44: 30 | S44: 55.03013584 | T44: 32 | U44: 58.60375569 | V44: 34 | W44: 57.2822704 | X44: 35
B45: 27 | C45: 大阪府 | E45: 32.11117177 | F45: 32 | G45: 35.31817834 | H45: 42 | I45: 36.03188967 | J45: 45 | K45: 32.92098131 | L45: 41 | M45: 29.66594709 | N45: 35 | O45: 45.51192554 | P45: 24 | Q45: 48.05506572 | R45: 25 | S45: 57.01730057 | T45: 42 | U45: 62.33306054 | V45: 40 | W45: 62.0365481 | X45: 42
B46: 28 | C46: 兵庫県 | E46: 32.21590056 | F46: 33 | G46: 35.30265427 | H46: 41 | I46: 35.10344639 | J46: 42 | K46: 32.3084763 | L46: 36 | M46: 29.05216657 | N46: 27 | O46: 45.75703628 | P46: 26 | Q46: 49.03067379 | R46: 31 | S46: 56.96340271 | T46: 41 | U46: 62.48615385 | V46: 43 | W46: 62.06833126 | X46: 43
B47: 29 | C47: 奈良県 | E47: 30.57986294 | F47: 23 | G47: 33.88729543 | H47: 35 | I47: 34.15766864 | J47: 36 | K47: 32.38058699 | L47: 37 | M47: 29.52257226 | N47: 32 | O47: 42.88655549 | P47: 10 | Q47: 46.79710001 | R47: 19 | S47: 55.02197112 | T47: 31 | U47: 61.34332214 | V47: 39 | W47: 60.98024668 | X47: 40
B48: 30 | C48: 和歌山県 | E48: 33.74384236 | F48: 40 | G48: 34.1988237 | H48: 36 | I48: 34.20612813 | J48: 37 | K48: 32.18325792 | L48: 35 | M48: 30.54989817 | N48: 38 | O48: 46.63930221 | P48: 33 | Q48: 51.34575569 | R48: 44 | S48: 55.34542648 | T48: 34 | U48: 57.97189982 | V48: 32 | W48: 52.85063051 | X48: 23
B49: 31 | C49: 鳥取県 | E49: 32.45854362 | F49: 35 | G49: 31.03218646 | H49: 20 | I49: 28.51021753 | J49: 9 | K49: 28.52459016 | L49: 19 | M49: 26.0620915 | N49: 8 | O49: 43.82207578 | P49: 13 | Q49: 43.44439637 | R49: 9 | S49: 44.40112627 | T49: 5 | U49: 45.93437946 | V49: 5 | W49: 43.60308464 | X49: 7
B50: 32 | C50: 島根県 | E50: 28.58666667 | F50: 9 | G50: 29.18418839 | H50: 9 | I50: 30 | J50: 17 | K50: 26.50422675 | L50: 5 | M50: 25.15060241 | N50: 4 | O50: 42.99571396 | P50: 11 | Q50: 41.92339229 | R50: 6 | S50: 44.40207972 | T50: 6 | U50: 46.05320924 | V50: 6 | W50: 43.0932971 | X50: 6
B51: 33 | C51: 岡山県 | E51: 30.465126 | F51: 21 | G51: 31.92901653 | H51: 25 | I51: 31.13332744 | J51: 22 | K51: 28.07017544 | L51: 16 | M51: 26.44076181 | N51: 11 | O51: 44.96326373 | P51: 20 | Q51: 47.25880069 | R51: 21 | S51: 52.47607739 | T51: 23 | U51: 54.02859775 | V51: 22 | W51: 51.74374042 | X51: 21
B52: 34 | C52: 広島県 | E52: 30.8411215 | F52: 28 | G52: 32.48333557 | H52: 29 | I52: 32.40191277 | J52: 30 | K52: 29.34545455 | L52: 22 | M52: 27.05758215 | N52: 14 | O52: 47.2880894 | P52: 37 | Q52: 50.60995594 | R52: 42 | S52: 56.265805 | T52: 39 | U52: 57.80669145 | V52: 29 | W52: 55.61697842 | X52: 29
B53: 35 | C53: 山口県 | E53: 28.52829704 | F53: 8 | G53: 29.15254237 | H53: 8 | I53: 28.38799898 | J53: 6 | K53: 24.516628 | L53: 1 | M53: 23.07913669 | N53: 1 | O53: 45.84671868 | P53: 27 | Q53: 49.45617402 | R53: 35 | S53: 54.15995427 | T53: 28 | U53: 55.8436588 | V53: 25 | W53: 54.21337025 | X53: 24
B54: 36 | C54: 徳島県 | E54: 32.35874231 | F54: 34 | G54: 31.0387985 | H54: 21 | I54: 30.46357616 | J54: 19 | K54: 27.3531778 | L54: 9 | M54: 26.02230483 | N54: 7 | O54: 39.77676306 | P54: 5 | Q54: 42.0629941 | R54: 7 | S54: 43.55388515 | T54: 4 | U54: 43.64255171 | V54: 3 | W54: 40.43434886 | X54: 3
B55: 37 | C55: 香川県 | E55: 28.65538736 | F55: 10 | G55: 30.95111583 | H55: 19 | I55: 30.04092262 | J55: 18 | K55: 27.94478528 | L55: 14 | M55: 26.89906348 | N55: 13 | O55: 44.84584831 | P55: 19 | Q55: 48.32486354 | R55: 29 | S55: 52.03355363 | T55: 21 | U55: 52.44126526 | V55: 19 | W55: 48.38360123 | X55: 15
B56: 38 | C56: 愛媛県 | E56: 29.09597366 | F56: 12 | G56: 30.07808825 | H56: 16 | I56: 29.56035949 | J56: 16 | K56: 27.24642922 | L56: 8 | M56: 27.24606772 | N56: 16 | O56: 46.46050125 | P56: 31 | Q56: 47.95821462 | R56: 23 | S56: 53.80566149 | T56: 25 | U56: 55.45337045 | V56: 24 | W56: 52.7479605 | X56: 22
B57: 39 | C57: 高知県 | E57: 35.32186106 | F57: 45 | G57: 31.42105263 | H57: 22 | I57: 29.07234798 | J57: 13 | K57: 27.43861977 | L57: 10 | M57: 24.80655439 | N57: 2 | O57: 40.8839779 | P57: 7 | Q57: 39.67523681 | R57: 3 | S57: 42.09411548 | T57: 2 | U57: 41.85755534 | V57: 2 | W57: 38.55589173 | X57: 2
B58: 40 | C58: 福岡県 | E58: 32.01576109 | F58: 31 | G58: 33.15229927 | H58: 32 | I58: 32.02204374 | J58: 28 | K58: 30.03372083 | L58: 24 | M58: 28.22510823 | N58: 24 | O58: 48.46407718 | P58: 44 | Q58: 49.43961246 | R58: 34 | S58: 54.05774816 | T58: 26 | U58: 57.35533585 | V58: 28 | W58: 56.81725847 | X58: 32
B59: 41 | C59: 佐賀県 | E59: 29.31690524 | F59: 15 | G59: 29.32825992 | H59: 10 | I59: 29.45615982 | J59: 15 | K59: 28.16053512 | L59: 17 | M59: 27.43022137 | N59: 19 | O59: 45.5171018 | P59: 25 | Q59: 46.15808014 | R59: 16 | S59: 48.06785271 | T59: 16 | U59: 48.90582554 | V59: 11 | W59: 46.89115736 | X59: 12
B60: 42 | C60: 長崎県 | E60: 29.59098497 | F60: 17 | G60: 29.64774065 | H60: 12 | I60: 29.05034598 | J60: 12 | K60: 27.60244115 | L60: 12 | M60: 27.42498255 | N60: 18 | O60: 45.89892295 | P60: 29 | Q60: 47.44404114 | R60: 22 | S60: 50.29498525 | T60: 20 | U60: 51.06229917 | V60: 18 | W60: 49.76541555 | X60: 18
B61: 43 | C61: 熊本県 | E61: 30.89116044 | F61: 29 | G61: 29.66483242 | H61: 13 | I61: 28.48988584 | J61: 8 | K61: 27.08272859 | L61: 7 | M61: 27.90606654 | N61: 23 | O61: 47.37865966 | P61: 39 | Q61: 46.67263346 | R61: 18 | S61: 47.72672114 | T61: 13 | U61: 49.44990679 | V61: 15 | W61: 48.02534584 | X61: 14
B62: 44 | C62: 大分県 | E62: 29.31142957 | F62: 14 | G62: 28.76869965 | H62: 7 | I62: 26.90769003 | J62: 3 | K62: 27.48433303 | L62: 11 | M62: 25.27543746 | N62: 5 | O62: 46.64004167 | P62: 34 | Q62: 48.16322837 | R62: 26 | S62: 52.06685953 | T62: 22 | U62: 53.4727586 | V62: 21 | W62: 51.09031064 | X62: 20
B63: 45 | C63: 宮崎県 | E63: 30.60153411 | F63: 24 | G63: 27.97670673 | H63: 4 | I63: 27.88987688 | J63: 4 | K63: 26.63341646 | L63: 6 | M63: 26.37323944 | N63: 10 | O63: 47.29231223 | P63: 38 | Q63: 47.02857143 | R63: 20 | S63: 49.97158553 | T63: 19 | U63: 50.71975498 | V63: 17 | W63: 48.92434747 | X63: 16
B64: 46 | C64: 鹿児島県 | E64: 28.45532412 | F64: 7 | G64: 28.23383085 | H64: 5 | I64: 28.0984535 | J64: 5 | K64: 27.95996921 | L64: 15 | M64: 27.60681868 | N64: 21 | O64: 47.62819065 | P64: 40 | Q64: 49.16894861 | R64: 33 | S64: 53.2724203 | T64: 24 | U64: 56.7753592 | V64: 27 | W64: 55.49323424 | X64: 28
B65: 47 | C65: 沖縄県 | E65: 45.25547445 | F65: 47 | G65: 39.94660284 | H65: 47 | I65: 39.00561935 | J65: 47 | K65: 37.54152824 | L65: 47 | M65: 36.04945209 | N65: 47 | O65: 54.67781073 | P65: 47 | Q65: 48.27780915 | R65: 28 | S65: 48.56057687 | T65: 17 | U65: 50.68034925 | V65: 16 | W65: 49.79854078 | X65: 19
B66: 資料等
B67: ○ 総務省「国勢調査」（平成22年）より作成。従業上の地位不詳、労働力状態不詳、年齢・国籍不詳は除いて算出した。
B68: ○ 合計特殊出生率との相関係数、単純平均、標準偏差は都道府県別データから機械的に計算。変動係数は、標準偏差／単純平均で機械的に計算。

Sheet ３．（２）所得（200万円未満）
B5: ■男女別・配偶関係別・年齢階級別 所得が200万円未満の割合（20～39歳）
E7: 【実数値】 | Y7: ・・・上位10位を網掛け
Y8: ・・・下位10位を網掛け
E9: 所得が200万円未満の者の割合（H24）
E10: 男性 | Q10: 女性
E11: 20～29歳 | K11: 30～39歳 | Q11: 20～29歳 | W11: 30～39歳
E12: 総数 | G12: 未婚 | I12: 有配偶 | K12: 総数 | M12: 未婚 | O12: 有配偶 | Q12: 総数 | S12: 未婚 | U12: 有配偶 | W12: 総数 | Y12: 未婚 | AA12: 有配偶
F13: （順位） | H13: （順位） | J13: （順位） | L13: （順位） | N13: （順位） | P13: （順位） | R13: （順位） | T13: （順位） | V13: （順位） | X13: （順位） | Z13: （順位） | AB13: （順位）
E14: （％） | F14: （昇順） | G14: （％） | H14: （昇順） | I14: （％） | J14: （昇順） | K14: （％） | L14: （昇順） | M14: （％） | N14: （昇順） | O14: （％） | P14: （昇順） | Q14: （％） | R14: （昇順） | S14: （％） | T14: （昇順） | U14: （％） | V14: （昇順） | W14: （％） | X14: （昇順） | Y14: （％） | Z14: （昇順） | AA14: （％） | AB14: （昇順）
B15: （合計特殊出生率との相関係数） | E15: =CORREL('１．（２）少子化関係指標'!$E$20:$E$66,E$20:E$66) -> -0.07551159762 | G15: =CORREL('１．（２）少子化関係指標'!$E$20:$E$66,G$20:G$66) -> -0.03953886634 | I15: =CORREL('１．（２）少子化関係指標'!$E$20:$E$66,I$20:I$66) -> 0.156630767 | K15: =CORREL('１．（２）少子化関係指標'!$E$20:$E$66,K$20:K$66) -> 0.3196503478 | M15: =CORREL('１．（２）少子化関係指標'!$E$20:$E$66,M$20:M$66) -> 0.2770583723 | O15: =CORREL('１．（２）少子化関係指標'!$E$20:$E$66,O$20:O$66) -> 0.436037868 | Q15: =CORREL('１．（２）少子化関係指標'!$E$20:$E$66,Q$20:Q$66) -> 0.1946285759 | S15: =CORREL('１．（２）少子化関係指標'!$E$20:$E$66,S$20:S$66) -> 0.1682358174 | U15: =CORREL('１．（２）少子化関係指標'!$E$20:$E$66,U$20:U$66) -> -0.05789401345 | W15: =CORREL('１．（２）少子化関係指標'!$E$20:$E$66,W$20:W$66) -> 0.2904073992 | Y15: =CORREL('１．（２）少子化関係指標'!$E$20:$E$66,Y$20:Y$66) -> 0.4083161494 | AA15: =CORREL('１．（２）少子化関係指標'!$E$20:$E$66,AA$20:AA$66) -> -0.0649109107
B16: （単純平均） | E16: =AVERAGE(E$20:E$66) -> 59.78925748 | G16: =AVERAGE(G$20:G$66) -> 61.99008261 | I16: =AVERAGE(I$20:I$66) -> 28.33763005 | K16: =AVERAGE(K$20:K$66) -> 20.65755412 | M16: =AVERAGE(M$20:M$66) -> 34.48808595 | O16: =AVERAGE(O$20:O$66) -> 9.133365303 | Q16: =AVERAGE(Q$20:Q$66) -> 73.42942543 | S16: =AVERAGE(S$20:S$66) -> 69.68015836 | U16: =AVERAGE(U$20:U$66) -> 91.2267492 | W16: =AVERAGE(W$20:W$66) -> 66.67437379 | Y16: =AVERAGE(Y$20:Y$66) -> 47.9446035 | AA16: =AVERAGE(AA$20:AA$66) -> 75.47905083
B17: （標準偏差） | E17: =STDEVP(E$20:E$66) -> 8.474644225 | G17: =STDEVP(G$20:G$66) -> 8.65543338 | I17: =STDEVP(I$20:I$66) -> 11.92219261 | K17: =STDEVP(K$20:K$66) -> 6.363112549 | M17: =STDEVP(M$20:M$66) -> 9.246945122 | O17: =STDEVP(O$20:O$66) -> 4.977045204 | Q17: =STDEVP(Q$20:Q$66) -> 5.471541073 | S17: =STDEVP(S$20:S$66) -> 6.442187877 | U17: =STDEVP(U$20:U$66) -> 4.319043184 | W17: =STDEVP(W$20:W$66) -> 4.476517245 | Y17: =STDEVP(Y$20:Y$66) -> 8.107481424 | AA17: =STDEVP(AA$20:AA$66) -> 4.285813869
B18: （変動係数） | E18: =E17/E16 -> 0.1417419213 | G18: =G17/G16 -> 0.1396260985 | I18: =I17/I16 -> 0.4207194669 | K18: =K17/K16 -> 0.3080283616 | M18: =M17/M16 -> 0.268119986 | O18: =O17/O16 -> 0.5449300492 | Q18: =Q17/Q16 -> 0.07451428418 | S18: =S17/S16 -> 0.09245369167 | U18: =U17/U16 -> 0.04734404352 | W18: =W17/W16 -> 0.06713999683 | Y18: =Y17/Y16 -> 0.1691010214 | AA18: =AA17/AA16 -> 0.05678150191
B19: 全 国 | E19: 60.78386991 | G19: 62.61361124 | I19: 28.05526576 | K19: 18.17575409 | M19: 29.73428531 | O19: 7.563420466 | Q19: 71.10452641 | S19: 67.14626537 | U19: 91.6931214 | W19: 64.07838965 | Y19: 41.41837441 | AA19: 75.59578543
B20: 1 | C20: 北海道 | E20: 67.74661052 | F20: 41 | G20: 70.07576517 | H20: 41 | I20: 34.68813066 | J20: 35 | K20: 21.47597059 | L20: 31 | M20: 39.38661325 | N20: 31 | O20: 9.846416079 | P20: 32 | Q20: 78.27311352 | R20: 41 | S20: 74.48988515 | T20: 38 | U20: 94.04063528 | V20: 32 | W20: 69.26905132 | X20: 35 | Y20: 49.40796555 | Z20: 25 | AA20: 79.78062397 | AB20: 39
B21: 2 | C21: 青森県 | E21: 68.27024185 | F21: 42 | G21: 71.55077035 | H21: 42 | I21: 27.05882353 | J21: 23 | K21: 33.20969513 | L21: 46 | M21: 53.49311576 | N21: 46 | O21: 15.25909091 | P21: 42 | Q21: 86.09300304 | R21: 46 | S21: 83.60541985 | T21: 46 | U21: 97.50410509 | V21: 45 | W21: 73.09723052 | X21: 44 | Y21: 59.95575221 | Z21: 45 | AA21: 79.28007387 | AB21: 37
B22: 3 | C22: 岩手県 | E22: 60.51818369 | F22: 24 | G22: 63.97341188 | H22: 29 | I22: 27.87878788 | J22: 24 | K22: 27.18165243 | L22: 40 | M22: 41.03876307 | N22: 36 | O22: 14.32398307 | P22: 41 | Q22: 81.56471662 | R22: 45 | S22: 79.63973967 | T22: 45 | U22: 90.46402725 | V22: 20 | W22: 74.76212578 | X22: 46 | Y22: 62.95340502 | Z22: 46 | AA22: 79.01324473 | AB22: 35
B23: 4 | C23: 宮城県 | E23: 70.43991603 | F23: 44 | G23: 73.13286363 | H23: 44 | I23: 25 | J23: 21 | K23: 23.45757082 | L23: 32 | M23: 39.89225283 | N23: 34 | O23: 8.41672016 | P23: 26 | Q23: 79.06976744 | R23: 42 | S23: 75.1984127 | T23: 41 | U23: 98.95287958 | V23: 47 | W23: 67.71109544 | X23: 26 | Y23: 49.25134685 | Z23: 24 | AA23: 78.15079468 | AB23: 32
B24: 5 | C24: 秋田県 | E24: 62.53968254 | F24: 32 | G24: 63.80860519 | H24: 28 | I24: 51.82795699 | J24: 46 | K24: 29.42256565 | L24: 44 | M24: 47.52545672 | N24: 42 | O24: 13.42548276 | P24: 40 | Q24: 80 | R24: 43 | S24: 77.47486034 | T24: 44 | U24: 90.32258065 | V24: 19 | W24: 69.35725809 | X24: 36 | Y24: 58.34665449 | Z24: 42 | AA24: 74.55375392 | AB24: 18
B25: 6 | C25: 山形県 | E25: 61.27544941 | F25: 28 | G25: 63.16937799 | H25: 27 | I25: 17.64705882 | J25: 9 | K25: 26.391492 | L25: 37 | M25: 39.78477854 | N25: 33 | O25: 15.78207875 | P25: 44 | Q25: 72.65688672 | R25: 22 | S25: 68.60465116 | T25: 23 | U25: 96.23750735 | V25: 43 | W25: 64.32391734 | X25: 13 | Y25: 51.22994652 | Z25: 29 | AA25: 69.4741856 | AB25: 7
B26: 7 | C26: 福島県 | E26: 60.06284281 | F26: 23 | G26: 63.02652106 | H26: 26 | I26: 29.16045703 | J26: 26 | K26: 20.31311416 | L26: 27 | M26: 39.65473146 | N26: 32 | O26: 4.919388177 | P26: 7 | Q26: 76.45542427 | R26: 34 | S26: 73.68519822 | T26: 34 | U26: 87.34142306 | V26: 9 | W26: 66.05195449 | X26: 19 | Y26: 47.00157908 | Z26: 19 | AA26: 74.16748768 | AB26: 16
B27: 8 | C27: 茨城県 | E27: 49.66210076 | F27: 7 | G27: 51.17281908 | H27: 7 | I27: 20.62415197 | J27: 12 | K27: 16.86564519 | L27: 17 | M27: 27.7828336 | N27: 11 | O27: 4.942515112 | P27: 8 | Q27: 70.55951438 | R27: 16 | S27: 66.27822056 | T27: 17 | U27: 95.55765595 | V27: 42 | W27: 66.33247739 | X27: 22 | Y27: 37.54320134 | Z27: 6 | AA27: 79.67557689 | AB27: 38
B28: 9 | C28: 栃木県 | E28: 54.66879455 | F28: 14 | G28: 57.04790123 | H28: 13 | I28: 18.66028708 | J28: 11 | K28: 16.63277715 | L28: 16 | M28: 27.82707276 | N28: 12 | O28: 6.686529049 | P28: 19 | Q28: 71.90880231 | R28: 20 | S28: 66.09855477 | T28: 15 | U28: 91.50046598 | V28: 23 | W28: 69.90074771 | X28: 37 | Y28: 47.95292377 | Z28: 22 | AA28: 78.80911088 | AB28: 34
B29: 10 | C29: 群馬県 | E29: 52.29946307 | F29: 9 | G29: 54.86490026 | H29: 10 | I29: 21.081392 | J29: 13 | K29: 20.61034252 | L29: 29 | M29: 34.47593331 | N29: 27 | O29: 6.598984772 | P29: 18 | Q29: 69.8692709 | R29: 14 | S29: 65.61334337 | T29: 11 | U29: 93.44262295 | V29: 30 | W29: 65.05538702 | X29: 15 | Y29: 43.36502278 | Z29: 15 | AA29: 74.58627137 | AB29: 19
B30: 11 | C30: 埼玉県 | E30: 64.47070103 | F30: 33 | G30: 65.95517836 | H30: 33 | I30: 29.76698553 | J30: 27 | K30: 14.03788929 | L30: 6 | M30: 23.78401137 | N30: 6 | O30: 4.686412106 | P30: 5 | Q30: 71.91200366 | R30: 21 | S30: 67.62389784 | T30: 21 | U30: 92.63406408 | V30: 27 | W30: 62.67910556 | X30: 6 | Y30: 35.87770208 | Z30: 3 | AA30: 76.27160377 | AB30: 25
B31: 12 | C31: 千葉県 | E31: 58.72033746 | F31: 21 | G31: 60.32010413 | H31: 20 | I31: 24.28914012 | J31: 19 | K31: 16.04217281 | L31: 12 | M31: 25.07325946 | N31: 9 | O31: 6.571895988 | P31: 17 | Q31: 68.68168492 | R31: 12 | S31: 65.32160553 | T31: 9 | U31: 88.83041928 | V31: 12 | W31: 63.26068562 | X31: 9 | Y31: 40.27634107 | Z31: 9 | AA31: 75.98224951 | AB31: 22
B32: 13 | C32: 東京都 | E32: 66.78318084 | F32: 40 | G32: 67.41284375 | H32: 36 | I32: 33.37831325 | J32: 33 | K32: 15.4963986 | L32: 10 | M32: 22.87288249 | N32: 5 | O32: 5.580255688 | P32: 13 | Q32: 68.19943226 | R32: 9 | S32: 66.15253017 | T32: 16 | U32: 85.44031153 | V32: 7 | W32: 50.35282006 | X32: 1 | Y32: 27.36235104 | Z32: 1 | AA32: 68.00601387 | AB32: 5
B33: 14 | C33: 神奈川県 | E33: 60.82021058 | F33: 27 | G33: 61.99950131 | H33: 23 | I33: 23.83436068 | J33: 17 | K33: 15.62701869 | L33: 11 | M33: 26.87075798 | N33: 10 | O33: 5.295650029 | P33: 11 | Q33: 67.43116199 | R33: 7 | S33: 63.18730653 | T33: 7 | U33: 92.01545658 | V33: 25 | W33: 61.07479653 | X33: 5 | Y33: 34.48419977 | Z33: 2 | AA33: 74.1349157 | AB33: 15
B34: 15 | C34: 新潟県 | E34: 59.16609054 | F34: 22 | G34: 60.74186037 | H34: 22 | I34: 37.02623907 | J34: 40 | K34: 17.48542694 | L34: 18 | M34: 28.33715273 | N34: 15 | O34: 6.188330355 | P34: 15 | Q34: 74.40014458 | R34: 24 | S34: 71.45972138 | T34: 27 | U34: 89.26174497 | V34: 13 | W34: 68.17038114 | X34: 30 | Y34: 54.35027174 | Z34: 40 | AA34: 74.0145043 | AB34: 12
B35: 16 | C35: 富山県 | E35: 53.32841328 | F35: 10 | G35: 53.47491197 | H35: 9 | I35: 49.47368421 | J35: 45 | K35: 13.96809842 | L35: 5 | M35: 24.79455017 | N35: 7 | O35: 3.827106287 | P35: 2 | Q35: 68.52803279 | R35: 10 | S35: 65.33820317 | T35: 10 | U35: 85.18518519 | V35: 6 | W35: 59.85847769 | X35: 3 | Y35: 43.24819748 | Z35: 13 | AA35: 68.12734301 | AB35: 6
B36: 17 | C36: 石川県 | E36: 66.62579818 | F36: 38 | G36: 68.89773224 | H36: 37 | I36: 23.91304348 | J36: 18 | K36: 16.55450014 | L36: 14 | M36: 30.10238908 | N36: 20 | O36: 5.099150142 | P36: 10 | Q36: 68.57584651 | R36: 11 | S36: 65.67953319 | T36: 12 | U36: 83.7962963 | V36: 3 | W36: 60.65505804 | X36: 4 | Y36: 43.06220096 | Z36: 11 | AA36: 69.51521349 | AB36: 8
B37: 18 | C37: 福井県 | E37: 48.18406729 | F37: 3 | G37: 49.03267136 | H37: 3 | I37: 16.66666667 | J37: 8 | K37: 13.32990389 | L37: 4 | M37: 22.51308901 | N37: 4 | O37: 6.369918046 | P37: 16 | Q37: 69.72388893 | R37: 13 | S37: 67.00053571 | T37: 19 | U37: 86.36363636 | V37: 8 | W37: 58.21078431 | X37: 2 | Y37: 40.72096128 | Z37: 10 | AA37: 64.92687322 | AB37: 1
B38: 19 | C38: 山梨県 | E38: 66.27174976 | F38: 37 | G38: 69.13058622 | H38: 38 | I38: 15.55555556 | J38: 6 | K38: 20.96286584 | L38: 30 | M38: 36.29521334 | N38: 29 | O38: 6.783405172 | P38: 21 | Q38: 75.68354179 | R38: 32 | S38: 73.02265581 | T38: 32 | U38: 89.65517241 | V38: 16 | W38: 69.19984256 | X38: 34 | Y38: 47.41602067 | Z38: 21 | AA38: 77.5231565 | AB38: 28
B39: 20 | C39: 長野県 | E39: 53.42251011 | F39: 11 | G39: 56.89070259 | H39: 12 | I39: 16.06001667 | J39: 7 | K39: 18.46587641 | L39: 22 | M39: 31.22702215 | N39: 21 | O39: 7.463276179 | P39: 25 | Q39: 70.07380598 | R39: 15 | S39: 65.9363245 | T39: 14 | U39: 90.25389025 | V39: 18 | W39: 63.26291917 | X39: 10 | Y39: 47.34549692 | Z39: 20 | AA39: 71.84796535 | AB39: 9
B40: 21 | C40: 岐阜県 | E40: 49.21493814 | F40: 6 | G40: 50.08097774 | H40: 4 | I40: 24.90421456 | J40: 20 | K40: 14.19555474 | L40: 7 | M40: 24.97878359 | N40: 8 | O40: 5.462560778 | P40: 12 | Q40: 65.63733623 | R40: 4 | S40: 61.45409441 | T40: 5 | U40: 84.24242424 | V40: 5 | W40: 65.10886931 | X40: 16 | Y40: 36.01614098 | Z40: 4 | AA40: 79.14535555 | AB40: 36
B41: 22 | C41: 静岡県 | E41: 46.37681159 | F41: 2 | G41: 48.18126481 | H41: 2 | I41: 17.82024793 | J41: 10 | K41: 12.37521303 | L41: 2 | M41: 21.69368817 | N41: 3 | O41: 4.952111043 | P41: 9 | Q41: 64.81797184 | R41: 3 | S41: 57.68287656 | T41: 2 | U41: 90.98021169 | V41: 21 | W41: 66.15480198 | X41: 20 | Y41: 46.13517296 | Z41: 18 | AA41: 74.11020196 | AB41: 13
B42: 23 | C42: 愛知県 | E42: 49.15260334 | F42: 5 | G42: 51.01888372 | H42: 6 | I42: 13.5678392 | J42: 3 | K42: 12.70059701 | L42: 3 | M42: 21.08521533 | N42: 2 | O42: 5.631109911 | P42: 14 | Q42: 63.03841527 | R42: 1 | S42: 56.97760199 | T42: 1 | U42: 94.05296343 | V42: 33 | W42: 66.31624618 | X42: 21 | Y42: 36.57293153 | Z42: 5 | AA42: 77.57327582 | AB42: 29
B43: 24 | C43: 三重県 | E43: 41.12713847 | F43: 1 | G43: 43.83629191 | H43: 1 | I43: 6.759259259 | J43: 2 | K43: 15.22249911 | L43: 8 | M43: 27.89975254 | N43: 13 | O43: 4.368347182 | P43: 4 | Q43: 66.40820938 | R43: 5 | S43: 59.32089761 | T43: 4 | U43: 95.05582137 | V43: 39 | W43: 67.80111562 | X43: 28 | Y43: 50.14407814 | Z43: 28 | AA43: 74.12203074 | AB43: 14
B44: 25 | C44: 滋賀県 | E44: 54.69098124 | F44: 15 | G44: 57.78464554 | H44: 15 | I44: 2.325581395 | J44: 1 | K44: 9.621604095 | L44: 1 | M44: 19.67610444 | N44: 1 | O44: 3.031665935 | P44: 1 | Q44: 64.52158419 | R44: 2 | S44: 59.00426863 | T44: 3 | U44: 89.79527559 | V44: 17 | W44: 65.63623504 | X44: 18 | Y44: 37.85527463 | Z44: 8 | AA44: 74.47062703 | AB44: 17
B45: 26 | C45: 京都府 | E45: 74.79100918 | F45: 46 | G45: 76.95094856 | H45: 46 | I45: 30.12152778 | J45: 29 | K45: 16.61672079 | L45: 15 | M45: 28.84845381 | N45: 18 | O45: 6.814316789 | P45: 22 | Q45: 74.4761972 | R45: 25 | S45: 72.10531772 | T45: 31 | U45: 89.37070333 | V45: 14 | W45: 68.07314745 | X45: 29 | Y45: 51.53075156 | Z45: 34 | AA45: 77.5217775 | AB45: 27
B46: 27 | C46: 大阪府 | E46: 66.07174451 | F46: 36 | G46: 67.34278039 | H46: 35 | I46: 38.82706356 | J46: 41 | K46: 17.90645392 | L46: 21 | M46: 28.50895846 | N46: 17 | O46: 7.077434838 | P46: 23 | Q46: 67.82269649 | R46: 8 | S46: 63.28348237 | T46: 8 | U46: 94.3872044 | V46: 35 | W46: 67.12128461 | X46: 25 | Y46: 43.07511394 | Z46: 12 | AA46: 80.13696805 | AB46: 44
B47: 28 | C47: 兵庫県 | E47: 60.76423242 | F47: 26 | G47: 62.15668618 | H47: 24 | I47: 36.87532535 | J47: 39 | K47: 17.62293989 | L47: 20 | M47: 34.11924173 | N47: 26 | O47: 4.712242466 | P47: 6 | Q47: 71.10450345 | R47: 17 | S47: 66.8800234 | T47: 18 | U47: 92.13206884 | V47: 26 | W47: 65.41671812 | X47: 17 | Y47: 37.74135766 | Z47: 7 | AA47: 78.00062962 | AB47: 31
B48: 29 | C48: 奈良県 | E48: 72.78963415 | F48: 45 | G48: 74.96338207 | H48: 45 | I48: 23.07692308 | J48: 15 | K48: 18.65113427 | L48: 23 | M48: 32.61289857 | N48: 23 | O48: 8.703781289 | P48: 28 | Q48: 74.63683763 | R48: 26 | S48: 73.91820038 | T48: 35 | U48: 79.93031359 | V48: 1 | W48: 71.43734644 | X48: 43 | Y48: 51.61938798 | Z48: 35 | AA48: 79.79758227 | AB48: 40
B49: 30 | C49: 和歌山県 | E49: 60.75977779 | F49: 25 | G49: 62.85438233 | H49: 25 | I49: 36.35235732 | J49: 37 | K49: 19.5822139 | L49: 25 | M49: 32.62255879 | N49: 24 | O49: 10.25759344 | P49: 33 | Q49: 74.77661296 | R49: 28 | S49: 70.60799413 | T49: 26 | U49: 95 | V49: 38 | W49: 73.91087877 | X49: 45 | Y49: 59.76331361 | Z49: 44 | AA49: 81.05939805 | AB49: 47
B50: 31 | C50: 鳥取県 | E50: 62 | F50: 30 | G50: 65.79949239 | H50: 32 | I50: 28 | J50: 25 | K50: 28.51752022 | L50: 42 | M50: 42.07426376 | N50: 38 | O50: 17.79411765 | P50: 46 | Q50: 77.31481481 | R50: 37 | S50: 75.80965909 | T50: 42 | U50: 82.5 | V50: 2 | W50: 64.59661264 | X50: 14 | Y50: 59.11495911 | Z50: 43 | AA50: 67.02226345 | AB50: 3
B51: 32 | C51: 島根県 | E51: 61.68609865 | F51: 29 | G51: 64.11335086 | H51: 30 | I51: 23.07692308 | J51: 15 | K51: 19.70172684 | L51: 26 | M51: 32.6984127 | N51: 25 | O51: 8.535714286 | P51: 27 | Q51: 71.20034082 | R51: 18 | S51: 68.08839172 | T51: 22 | U51: 87.69230769 | V51: 10 | W51: 62.73213906 | X51: 7 | Y51: 53.7012987 | Z51: 38 | AA51: 66.15120275 | AB51: 2
B52: 33 | C52: 岡山県 | E52: 56.44764887 | F52: 18 | G52: 58.95673951 | H52: 18 | I52: 22.02111614 | J52: 14 | K52: 19.14968894 | L52: 24 | M52: 28.89678157 | N52: 19 | O52: 9.781690141 | P52: 31 | Q52: 67.32991861 | R52: 6 | S52: 62.05533597 | T52: 6 | U52: 89.40542698 | V52: 15 | W52: 66.365812 | X52: 23 | Y52: 51.51515152 | Z52: 33 | AA52: 72.50008247 | AB52: 10
B53: 34 | C53: 広島県 | E53: 51.09333333 | F53: 8 | G53: 52.63510964 | H53: 8 | I53: 14.06649616 | J53: 4 | K53: 16.37658108 | L53: 13 | M53: 31.23066726 | N53: 22 | O53: 6.778768319 | P53: 20 | Q53: 74.85307501 | R53: 30 | S53: 70.20817656 | T53: 25 | U53: 93.19975713 | V53: 29 | W53: 70.13136699 | X53: 40 | Y53: 48.03963809 | Z53: 23 | AA53: 79.94464278 | AB53: 42
B54: 35 | C54: 山口県 | E54: 48.58915535 | F54: 4 | G54: 50.27434381 | H54: 5 | I54: 29.8245614 | J54: 28 | K54: 20.31799607 | L54: 28 | M54: 35.27844648 | N54: 28 | O54: 7.176237117 | P54: 24 | Q54: 74.80458147 | R54: 29 | S54: 69.83870968 | T54: 24 | U54: 94.01891974 | V54: 31 | W54: 70.69122517 | X54: 42 | Y54: 50.14015626 | Z54: 27 | AA54: 80.48968575 | AB54: 45
B55: 36 | C55: 徳島県 | E55: 64.6836528 | F55: 34 | G55: 66.3253012 | H55: 34 | I55: 40.74074074 | J55: 42 | K55: 29.68377562 | L55: 45 | M55: 52.10884354 | N55: 45 | O55: 12.4570273 | P55: 36 | Q55: 77.74086379 | R55: 38 | S55: 74.15031555 | T55: 36 | U55: 94.375 | V55: 34 | W55: 67.79519331 | X55: 27 | Y55: 49.56140351 | Z55: 26 | AA55: 75.66772211 | AB55: 21
B56: 37 | C56: 香川県 | E56: 53.62800231 | F56: 12 | G56: 57.22132382 | H56: 14 | I56: 26.56058752 | J56: 22 | K56: 15.28979509 | L56: 9 | M56: 28.49656357 | N56: 16 | O56: 4.347826087 | P56: 3 | Q56: 71.71456645 | R56: 19 | S56: 65.68910649 | T56: 13 | U56: 96.90821256 | V56: 44 | W56: 64.14615918 | X56: 11 | Y56: 45.84721866 | Z56: 17 | AA56: 73.01618339 | AB56: 11
B57: 38 | C57: 愛媛県 | E57: 53.84591029 | F57: 13 | G57: 54.91407107 | H57: 11 | I57: 36.46694215 | J57: 38 | K57: 24.05913978 | L57: 34 | M57: 41.66257236 | N57: 37 | O57: 9.32301352 | P57: 29 | Q57: 73.35440643 | R57: 23 | S57: 67.44901547 | T57: 20 | U57: 97.86324786 | V57: 46 | W57: 67.00998283 | X57: 24 | Y57: 43.2784351 | Z57: 14 | AA57: 80.10211997 | AB57: 43
B58: 39 | C58: 高知県 | E58: 62.49484819 | F58: 31 | G58: 64.79881177 | H58: 31 | I58: 31.5018315 | J58: 31 | K58: 29.2204499 | L58: 43 | M58: 51.29368552 | N58: 44 | O58: 13.05267847 | P58: 38 | Q58: 80.58038177 | R58: 44 | S58: 77.35849057 | T58: 43 | U58: 94.65408805 | V58: 37 | W58: 63.1943948 | X58: 8 | Y58: 51.38888889 | Z58: 32 | AA58: 67.83687602 | AB58: 4
B59: 40 | C59: 福岡県 | E59: 65.51420802 | F59: 35 | G59: 69.75665769 | H59: 40 | I59: 15.55242787 | J59: 5 | K59: 26.88146195 | L59: 39 | M59: 39.93039691 | N59: 35 | O59: 15.46651105 | P59: 43 | Q59: 75.50717708 | R59: 31 | S59: 71.69303881 | T59: 30 | U59: 94.61163162 | V59: 36 | W59: 64.2538509 | X59: 12 | Y59: 43.7719396 | Z59: 16 | AA59: 76.09102187 | AB59: 24
B60: 41 | C60: 佐賀県 | E60: 55.63669557 | F60: 17 | G60: 57.96279193 | H60: 16 | I60: 33.24175824 | J60: 32 | K60: 23.56957559 | L60: 33 | M60: 37.4787415 | N60: 30 | O60: 13.22890257 | P60: 39 | Q60: 78.02197802 | R60: 39 | S60: 75.12160229 | T60: 40 | U60: 95.07389163 | V60: 40 | W60: 70.17069876 | X60: 41 | Y60: 53.76023827 | Z60: 39 | AA60: 78.16091954 | AB60: 33
B61: 42 | C61: 長崎県 | E61: 55.53835146 | F61: 16 | G61: 58.0753961 | H61: 17 | I61: 31.43812709 | J61: 30 | K61: 26.52596051 | L61: 38 | M61: 44.70941622 | N61: 41 | O61: 11.17522016 | P61: 34 | Q61: 76.55954631 | R61: 35 | S61: 74.82517483 | T61: 39 | U61: 84 | V61: 4 | W61: 69.97285728 | X61: 38 | Y61: 51.29290618 | Z61: 30 | AA61: 80.54393305 | AB61: 46
B62: 43 | C62: 熊本県 | E62: 69.17283421 | F62: 43 | G62: 72.29364101 | H62: 43 | I62: 40.92307692 | J62: 43 | K62: 26.08904175 | L62: 36 | M62: 44.70932571 | N62: 40 | O62: 11.69141468 | P62: 35 | Q62: 78.24639724 | R62: 40 | S62: 74.47833066 | T62: 37 | U62: 95.43859649 | V62: 41 | W62: 68.97173871 | X62: 32 | Y62: 54.71710975 | Z62: 41 | AA62: 75.62165989 | AB62: 20
B63: 44 | C63: 大分県 | E63: 57.42837388 | F63: 20 | G63: 59.4267119 | H63: 19 | I63: 34.53510436 | J63: 34 | K63: 17.53343439 | L63: 19 | M63: 28.22040208 | N63: 14 | O63: 9.625344353 | P63: 30 | Q63: 76.60264987 | R63: 36 | S63: 73.66248905 | T63: 33 | U63: 93.15068493 | V63: 28 | W63: 68.60955056 | X63: 31 | Y63: 51.38888889 | Z63: 31 | AA63: 76.74624226 | AB63: 26
B64: 45 | C64: 宮崎県 | E64: 56.6786314 | F64: 19 | G64: 60.6221915 | H64: 21 | I64: 35.59322034 | J64: 36 | K64: 28.11251245 | L64: 41 | M64: 48.61043657 | N64: 43 | O64: 16.4927194 | P64: 45 | Q64: 76.201373 | R64: 33 | S64: 71.59340659 | T64: 29 | U64: 90.99909991 | V64: 22 | W64: 69.11381593 | X64: 33 | Y64: 52.12138855 | Z64: 36 | AA64: 76.01846247 | AB64: 23
B65: 46 | C65: 鹿児島県 | E65: 66.6790215 | F65: 39 | G65: 69.46222902 | H65: 39 | I65: 44.10430839 | J65: 44 | K65: 25.67215396 | L65: 35 | M65: 43.98417455 | N65: 39 | O65: 12.60465595 | P65: 37 | Q65: 74.76414699 | R65: 27 | S65: 71.52627979 | T65: 28 | U65: 88.32116788 | V65: 11 | W65: 69.98972251 | X65: 39 | Y65: 52.59129674 | Z65: 37 | AA65: 77.91650493 | AB65: 30
B66: 47 | C66: 沖縄県 | E66: 87.96312042 | F66: 47 | G66: 90.04644795 | H66: 47 | I66: 70 | J66: 47 | K66: 42.17832187 | L66: 47 | M66: 54.77937473 | N66: 47 | O66: 30.65857569 | P66: 47 | Q66: 89.48637016 | R66: 47 | S66: 88.77456305 | T66: 47 | U66: 91.69811321 | V66: 24 | W66: 76.38768838 | X66: 47 | Y66: 69.56038294 | Z66: 47 | AA66: 79.90705738 | AB66: 41
B67: 資料等
B68: ○ 総務省「就業構造基本調査」（平成24年）より作成。無業者と有業者を含めて算出した値であり、有業者のうち所得が把握できていない者は按分して含めた。なお、有配偶は、総数から未婚を除いて算出した。
B69: ○ 合計特殊出生率との相関係数、単純平均、標準偏差は都道府県別データから機械的に計算。変動係数は、標準偏差／単純平均で機械的に計算。

Sheet ３．（２）所得（500万円以上）
B5: ■男女別・配偶関係別・年齢階級別 所得が500万円以上の割合（20～39歳）
E7: 【実数値】 | Y7: ・・・上位10位を網掛け
Y8: ・・・下位10位を網掛け
E9: 所得が500万円以上の者の割合（H24）
E10: 男性 | Q10: 女性
E11: 20～29歳 | K11: 30～39歳 | Q11: 20～29歳 | W11: 30～39歳
E12: 総数 | G12: 未婚 | I12: 有配偶 | K12: 総数 | M12: 未婚 | O12: 有配偶 | Q12: 総数 | S12: 未婚 | U12: 有配偶 | W12: 総数 | Y12: 未婚 | AA12: 有配偶
F13: （順位） | H13: （順位） | J13: （順位） | L13: （順位） | N13: （順位） | P13: （順位） | R13: （順位） | T13: （順位） | V13: （順位） | X13: （順位） | Z13: （順位） | AB13: （順位）
E14: （％） | F14: （降順） | G14: （％） | H14: （降順） | I14: （％） | J14: （降順） | K14: （％） | L14: （降順） | M14: （％） | N14: （降順） | O14: （％） | P14: （降順） | Q14: （％） | R14: （降順） | S14: （％） | T14: （降順） | U14: （％） | V14: （降順） | W14: （％） | X14: （降順） | Y14: （％） | Z14: （降順） | AA14: （％） | AB14: （降順）
B15: （合計特殊出生率との相関係数） | E15: =CORREL('１．（２）少子化関係指標'!$E$20:$E$66,E$20:E$66) -> 0.2418120404 | G15: =CORREL('１．（２）少子化関係指標'!$E$20:$E$66,G$20:G$66) -> 0.1664145113 | I15: =CORREL('１．（２）少子化関係指標'!$E$20:$E$66,I$20:I$66) -> 0.1148747133 | K15: =CORREL('１．（２）少子化関係指標'!$E$20:$E$66,K$20:K$66) -> -0.4369145187 | M15: =CORREL('１．（２）少子化関係指標'!$E$20:$E$66,M$20:M$66) -> -0.4157410349 | O15: =CORREL('１．（２）少子化関係指標'!$E$20:$E$66,O$20:O$66) -> -0.4496664166 | Q15: =CORREL('１．（２）少子化関係指標'!$E$20:$E$66,Q$20:Q$66) -> -0.3164582312 | S15: =CORREL('１．（２）少子化関係指標'!$E$20:$E$66,S$20:S$66) -> -0.3097236094 | U15: … | W15: =CORREL('１．（２）少子化関係指標'!$E$20:$E$66,W$20:W$66) -> -0.5062064112 | Y15: =CORREL('１．（２）少子化関係指標'!$E$20:$E$66,Y$20:Y$66) -> -0.4832199812 | AA15: =CORREL('１．（２）少子化関係指標'!$E$20:$E$66,AA$20:AA$66) -> -0.4538014504
B16: （単純平均） | E16: =AVERAGE(E$20:E$66) -> 0.3809143616 | G16: =AVERAGE(G$20:G$66) -> 0.2848500509 | I16: =AVERAGE(I$20:I$66) -> 1.655246077 | K16: =AVERAGE(K$20:K$66) -> 13.28503473 | M16: =AVERAGE(M$20:M$66) -> 6.532611592 | O16: =AVERAGE(O$20:O$66) -> 18.97263169 | Q16: =AVERAGE(Q$20:Q$66) -> 0.08048711762 | S16: =AVERAGE(S$20:S$66) -> 0.0963120827 | U16: =AVERAGE(U$20:U$66) -> 0 | W16: =AVERAGE(W$20:W$66) -> 1.739126438 | Y16: =AVERAGE(Y$20:Y$66) -> 2.58806996 | AA16: =AVERAGE(AA$20:AA$66) -> 1.32858167
B17: （標準偏差） | E17: =STDEVP(E$20:E$66) -> 0.4573572988 | G17: =STDEVP(G$20:G$66) -> 0.3670185999 | I17: =STDEVP(I$20:I$66) -> 2.957305546 | K17: =STDEVP(K$20:K$66) -> 6.221820247 | M17: =STDEVP(M$20:M$66) -> 3.948974396 | O17: =STDEVP(O$20:O$66) -> 9.029221204 | Q17: =STDEVP(Q$20:Q$66) -> 0.1805141127 | S17: =STDEVP(S$20:S$66) -> 0.2171964542 | U17: =STDEVP(U$20:U$66) -> 0 | W17: =STDEVP(W$20:W$66) -> 1.453499973 | Y17: =STDEVP(Y$20:Y$66) -> 2.214217082 | AA17: =STDEVP(AA$20:AA$66) -> 1.219305954
B18: （変動係数） | E18: =E17/E16 -> 1.200682739 | G18: =G17/G16 -> 1.288462469 | I18: =I17/I16 -> 1.78662592 | K18: =K17/K16 -> 0.4683330058 | M18: =M17/M16 -> 0.6045016362 | O18: =O17/O16 -> 0.4759076839 | Q18: =Q17/Q16 -> 2.242770247 | S18: =S17/S16 -> 2.255131943 | U18: … | W18: =W17/W16 -> 0.8357644048 | Y18: =Y17/Y16 -> 0.8555476153 | AA18: =AA17/AA16 -> 0.9177500957
B19: 全 国 | E19: 0.4170177538 | G19: 0.3326952789 | I19: 1.843078585 | K19: 18.58265592 | M19: 10.10181394 | O19: 26.22950401 | Q19: 0.1232800485 | S19: 0.1466866485 | U19: 0 | W19: 3.183090231 | Y19: 4.829473324 | AA19: 2.347269661
B20: 1 | C20: 北海道 | E20: 0.3696663551 | F20: 20 | G20: 0.1994948988 | H20: 23 | I20: 2.665790585 | J20: 12 | K20: 11.26590456 | L20: 28 | M20: 6.044069904 | N20: 22 | O20: 14.63748226 | P20: 28 | Q20: 0.6509928534 | R20: 2 | S20: 0.8066439478 | T20: 2 | U20: 0 | V20: 1 | W20: 0.6323240469 | X20: 37 | Y20: 1.455885883 | Z20: 30 | AA20: 0.1944170772 | AB20: 45
B21: 2 | C21: 青森県 | E21: 0 | F21: 27 | G21: 0 | H21: 24 | I21: 0 | J21: 15 | K21: 5.215728797 | L21: 46 | M21: 5.507394187 | N21: 26 | O21: 4.936363636 | P21: 47 | Q21: 0 | R21: 10 | S21: 0 | T21: 10 | U21: 0 | V21: 1 | W21: 0.5754603096 | X21: 41 | Y21: 0.8898721731 | Z21: 41 | AA21: 0.4272149718 | AB21: 40
B22: 3 | C22: 岩手県 | E22: 0 | F22: 27 | G22: 0 | H22: 24 | I22: 0 | J22: 15 | K22: 5.670281163 | L22: 45 | M22: 1.551611498 | N22: 44 | O22: 9.487612613 | P22: 44 | Q22: 0 | R22: 10 | S22: 0 | T22: 10 | U22: 0 | V22: 1 | W22: 1.160362033 | X22: 28 | Y22: 1.089605735 | Z22: 39 | AA22: 1.187929543 | AB22: 21
B23: 4 | C23: 宮城県 | E23: 0 | F23: 27 | G23: 0 | H23: 24 | I23: 0 | J23: 15 | K23: 11.46356381 | L23: 27 | M23: 5.936567622 | N23: 24 | O23: 16.53966696 | P23: 25 | Q23: 0 | R23: 10 | S23: 0 | T23: 10 | U23: 0 | V23: 1 | W23: 0.8106001145 | X23: 34 | Y23: 1.872644028 | Z23: 26 | AA23: 0.2111034331 | AB23: 44
B24: 5 | C24: 秋田県 | E24: 0 | F24: 27 | G24: 0 | H24: 24 | I24: 0 | J24: 15 | K24: 8.28108563 | L24: 34 | M24: 4.005690326 | N24: 35 | O24: 12.06366224 | P24: 32 | Q24: 0 | R24: 10 | S24: 0 | T24: 10 | U24: 0 | V24: 1 | W24: 1.134916367 | X24: 30 | Y24: 2.314074751 | Z24: 20 | AA24: 0.5654721352 | AB24: 34
B25: 6 | C25: 山形県 | E25: 0 | F25: 27 | G25: 0 | H25: 24 | I25: 0 | J25: 15 | K25: 4.549753254 | L25: 47 | M25: 1.459762944 | N25: 46 | O25: 7.018160104 | P25: 46 | Q25: 0 | R25: 10 | S25: 0 | T25: 10 | U25: 0 | V25: 1 | W25: 1.321336395 | X25: 23 | Y25: 2.322383499 | Z25: 19 | AA25: 0.9250246788 | AB25: 27
B26: 7 | C26: 福島県 | E26: 0.2822413936 | F26: 22 | G26: 0.3120124805 | H26: 16 | I26: 0 | J26: 15 | K26: 6.663711707 | L26: 43 | M26: 2.109974425 | N26: 42 | O26: 10.25217032 | P26: 38 | Q26: 0 | R26: 10 | S26: 0 | T26: 10 | U26: 0 | V26: 1 | W26: 0.7804148393 | X26: 36 | Y26: 0.6463222063 | Z26: 42 | AA26: 0.842364532 | AB26: 29
B27: 8 | C27: 茨城県 | E27: 0 | F27: 27 | G27: 0 | H27: 24 | I27: 0 | J27: 15 | K27: 15.00722345 | L27: 16 | M27: 8.457866335 | N27: 11 | O27: 22.1642764 | P27: 16 | Q27: 0 | R27: 10 | S27: 0 | T27: 10 | U27: 0 | V27: 1 | W27: 1.08217037 | X27: 31 | Y27: 1.135578157 | Z27: 37 | AA27: 1.060404684 | AB27: 25
B28: 9 | C28: 栃木県 | E28: 0 | F28: 27 | G28: 0 | H28: 24 | I28: 0 | J28: 15 | K28: 18.0034275 | L28: 10 | M28: 10.67952623 | N28: 8 | O28: 24.51585444 | P28: 11 | Q28: 0 | R28: 10 | S28: 0 | T28: 10 | U28: 0 | V28: 1 | W28: 1.729842086 | X28: 18 | Y28: 2.392969022 | Z28: 18 | AA28: 1.461440629 | AB28: 14
B29: 10 | C29: 群馬県 | E29: 0 | F29: 27 | G29: 0 | H29: 24 | I29: 0 | J29: 15 | K29: 15.31932623 | L29: 15 | M29: 7.129561661 | N29: 16 | O29: 23.51945854 | P29: 14 | Q29: 0 | R29: 10 | S29: 0 | T29: 10 | U29: 0 | V29: 1 | W29: 1.459827174 | X29: 20 | Y29: 1.788472965 | Z29: 28 | AA29: 1.316773504 | AB29: 19
B30: 11 | C30: 埼玉県 | E30: 0 | F30: 27 | G30: 0 | H30: 24 | I30: 0 | J30: 15 | K30: 23.40488268 | L30: 4 | M30: 12.17678186 | N30: 5 | O30: 34.09180125 | P30: 4 | Q30: 0 | R30: 10 | S30: 0 | T30: 10 | U30: 0 | V30: 1 | W30: 3.123181413 | X30: 6 | Y30: 2.923710993 | Z30: 15 | AA30: 3.238789715 | AB30: 3
B31: 12 | C31: 千葉県 | E31: 0.5654748294 | F31: 14 | G31: 0.5955706697 | H31: 10 | I31: 0 | J31: 15 | K31: 19.28796406 | L31: 9 | M31: 8.00743792 | N31: 13 | O31: 30.89412789 | P31: 6 | Q31: 0 | R31: 10 | S31: 0 | T31: 10 | U31: 0 | V31: 1 | W31: 3.550437945 | X31: 4 | Y31: 5.350545716 | Z31: 5 | AA31: 2.553382111 | AB31: 6
B32: 13 | C32: 東京都 | E32: 1.017785545 | F32: 5 | G32: 0.855056578 | H32: 6 | I32: 8.327710843 | J32: 2 | K32: 30.16910089 | L32: 1 | M32: 21.20552472 | N32: 1 | O32: 41.99786512 | P32: 2 | Q32: 0.3372574572 | R32: 6 | S32: 0.3734893223 | T32: 7 | U32: 0 | V32: 1 | W32: 8.098825543 | X32: 1 | Y32: 9.17336986 | Z32: 2 | AA32: 7.268199022 | AB32: 1
B33: 14 | C33: 神奈川県 | E33: 0.5404108885 | F33: 16 | G33: 0.5636662352 | H33: 12 | I33: 0 | J33: 15 | K33: 28.21283797 | L33: 2 | M33: 12.26412779 | N33: 4 | O33: 42.6596171 | P33: 1 | Q33: 0 | R33: 10 | S33: 0 | T33: 10 | U33: 0 | V33: 1 | W33: 5.432993288 | X33: 2 | Y33: 10.45792116 | Z33: 1 | AA33: 2.966064089 | AB33: 5
B34: 15 | C34: 新潟県 | E34: 0.2360341587 | F34: 24 | G34: 0.2532783202 | H34: 20 | I34: 0 | J34: 15 | K34: 6.604273738 | L34: 44 | M34: 3.18164861 | N34: 39 | O34: 10.19345816 | P34: 39 | Q34: 0.4413768176 | R34: 4 | S34: 0.5285236781 | T34: 4 | U34: 0 | V34: 1 | W34: 1.279582668 | X34: 26 | Y34: 1.592432381 | Z34: 29 | AA34: 1.149800695 | AB34: 23
B35: 16 | C35: 富山県 | E35: 0.5490774908 | F35: 15 | G35: 0.5743838028 | H35: 11 | I35: 0 | J35: 15 | K35: 14.087095 | L35: 20 | M35: 6.325692042 | N35: 20 | O35: 21.22879928 | P35: 17 | Q35: 0 | R35: 10 | S35: 0 | T35: 10 | U35: 0 | V35: 1 | W35: 0.3490567158 | X35: 46 | Y35: 0 | Z35: 44 | AA35: 0.5225025737 | AB35: 37
B36: 17 | C36: 石川県 | E36: 0.2022678898 | F36: 25 | G36: 0.2144983983 | H36: 22 | I36: 0 | J36: 15 | K36: 12.69486269 | L36: 23 | M36: 4.796894867 | N36: 31 | O36: 19.26345609 | P36: 22 | Q36: 0 | R36: 10 | S36: 0 | T36: 10 | U36: 0 | V36: 1 | W36: 1.513266998 | X36: 19 | Y36: 1.807549176 | Z36: 27 | AA36: 1.364990441 | AB36: 16
B37: 18 | C37: 福井県 | E37: 0 | F37: 27 | G37: 0 | H37: 24 | I37: 0 | J37: 15 | K37: 10.43671314 | L37: 29 | M37: 5.235602094 | N37: 28 | O37: 14.40462799 | P37: 30 | Q37: 0 | R37: 10 | S37: 0 | T37: 10 | U37: 0 | V37: 1 | W37: 0 | X37: 47 | Y37: 0 | Z37: 44 | AA37: 0 | AB37: 46
B38: 19 | C38: 山梨県 | E38: 0.5917236885 | F38: 12 | G38: 0.6299880363 | H38: 9 | I38: 0 | J38: 15 | K38: 10.41750192 | L38: 30 | M38: 6.860515486 | N38: 17 | O38: 13.62068966 | P38: 31 | Q38: 0.5403657379 | R38: 3 | S38: 0.6423177188 | T38: 3 | U38: 0 | V38: 1 | W38: 1.760008997 | X38: 17 | Y38: 3.186907838 | Z38: 13 | AA38: 1.214964513 | AB38: 20
B39: 20 | C39: 長野県 | E39: 0 | F39: 27 | G39: 0 | H39: 24 | I39: 0 | J39: 15 | K39: 8.605413897 | L39: 33 | M39: 5.232726575 | N39: 29 | O39: 11.5265042 | P39: 34 | Q39: 0 | R39: 10 | S39: 0 | T39: 10 | U39: 0 | V39: 1 | W39: 0.5273265192 | X39: 43 | Y39: 0.4967405951 | Z39: 43 | AA39: 0.5466414496 | AB39: 35
B40: 21 | C40: 岐阜県 | E40: 0.2435734382 | F40: 23 | G40: 0.252116274 | H40: 21 | I40: 0 | J40: 15 | K40: 15.38004207 | L40: 14 | M40: 8.199040045 | N40: 12 | O40: 21.06191248 | P40: 19 | Q40: 0 | R40: 10 | S40: 0 | T40: 10 | U40: 0 | V40: 1 | W40: 1.771123385 | X40: 16 | Y40: 2.711180467 | Z40: 16 | AA40: 1.319914206 | AB40: 18
B41: 22 | C41: 静岡県 | E41: 0.1418602868 | F41: 26 | G41: 0 | H41: 24 | I41: 2.22107438 | J41: 13 | K41: 20.60956828 | L41: 8 | M41: 7.447892274 | N41: 14 | O41: 30.97796894 | P41: 5 | Q41: 0 | R41: 10 | S41: 0 | T41: 10 | U41: 0 | V41: 1 | W41: 2.082781417 | X41: 13 | Y41: 3.623933318 | Z41: 11 | AA41: 1.467978239 | AB41: 13
B42: 23 | C42: 愛知県 | E42: 0.8209735918 | F42: 10 | G42: 0.5604246714 | H42: 13 | I42: 5.527638191 | J42: 7 | K42: 25.30949078 | L42: 3 | M42: 10.5998231 | N42: 9 | O42: 37.56830369 | P42: 3 | Q42: 0.3186343511 | R42: 7 | S42: 0.3807291859 | T42: 6 | U42: 0 | V42: 1 | W42: 3.100774311 | X42: 7 | Y42: 7.116207682 | Z42: 3 | AA42: 1.580996222 | AB42: 12
B43: 24 | C43: 三重県 | E43: 1.378755539 | F43: 2 | G43: 0.9010220549 | H43: 4 | I43: 7.037037037 | J43: 5 | K43: 20.66571734 | L43: 7 | M43: 14.24735429 | N43: 3 | O43: 26.00203699 | P43: 9 | Q43: 0.2564258826 | R43: 8 | S43: 0.3203078929 | T43: 8 | U43: 0 | V43: 1 | W43: 1.391309819 | X43: 21 | Y43: 2.266178266 | Z43: 21 | AA43: 1.078248719 | AB43: 24
B44: 25 | C44: 滋賀県 | E44: 0.5735318831 | F44: 13 | G44: 0.3059083657 | H44: 17 | I44: 4.88372093 | J44: 8 | K44: 21.64476233 | L44: 6 | M44: 11.35011568 | N44: 6 | O44: 28.38562235 | P44: 8 | Q44: 0 | R44: 10 | S44: 0 | T44: 10 | U44: 0 | V44: 1 | W44: 2.758295515 | X44: 10 | Y44: 1.883173496 | Z44: 25 | AA44: 3.057409937 | AB44: 4
B45: 26 | C45: 京都府 | E45: 0 | F45: 27 | G45: 0 | H45: 24 | I45: 0 | J45: 15 | K45: 16.57993953 | L45: 12 | M45: 7.130656045 | N45: 15 | O45: 24.16847934 | P45: 12 | Q45: 0.4253967133 | R45: 5 | S45: 0.489380391 | T45: 5 | U45: 0 | V45: 1 | W45: 3.287517491 | X45: 5 | Y45: 5.00216443 | Z45: 6 | AA45: 2.308031774 | AB45: 8
B46: 27 | C46: 大阪府 | E46: 0 | F46: 27 | G46: 0 | H46: 24 | I46: 0 | J46: 15 | K46: 17.02222445 | L46: 11 | M46: 8.511812616 | N46: 10 | O46: 25.00759463 | P46: 10 | Q46: 0 | R46: 10 | S46: 0 | T46: 10 | U46: 0 | V46: 1 | W46: 4.417624755 | X46: 3 | Y46: 6.405341082 | Z46: 4 | AA46: 3.338324698 | AB46: 2
B47: 28 | C47: 兵庫県 | E47: 0.5179639284 | F47: 17 | G47: 0.2769022963 | H47: 18 | I47: 4.255596044 | J47: 10 | K47: 22.86973827 | L47: 5 | M47: 14.54023561 | N47: 2 | O47: 29.38234293 | P47: 7 | Q47: 0 | R47: 10 | S47: 0 | T47: 10 | U47: 0 | V47: 1 | W47: 2.810250103 | X47: 9 | Y47: 4.760955002 | Z47: 7 | AA47: 1.923899311 | AB47: 10
B48: 29 | C48: 奈良県 | E48: 0 | F48: 27 | G48: 0 | H48: 24 | I48: 0 | J48: 15 | K48: 16.32808774 | L48: 13 | M48: 5.586495455 | N48: 25 | O48: 24.01215615 | P48: 13 | Q48: 0 | R48: 10 | S48: 0 | T48: 10 | U48: 0 | V48: 1 | W48: 2.527668457 | X48: 11 | Y48: 4.243913335 | Z48: 8 | AA48: 1.803787297 | AB48: 11
B49: 30 | C49: 和歌山県 | E49: 0 | F49: 27 | G49: 0 | H49: 24 | I49: 0 | J49: 15 | K49: 11.51930449 | L49: 26 | M49: 3.208449582 | N49: 38 | O49: 17.28644716 | P49: 24 | Q49: 0 | R49: 10 | S49: 0 | T49: 10 | U49: 0 | V49: 1 | W49: 0.7966143888 | X49: 35 | Y49: 1.183431953 | Z49: 36 | AA49: 0.6012889509 | AB49: 33
B50: 31 | C50: 鳥取県 | E50: 0.9047619048 | F50: 8 | G50: 0 | H50: 24 | I50: 8 | J50: 3 | K50: 8.086253369 | L50: 35 | M50: 5.941101152 | N50: 23 | O50: 9.772727273 | P50: 43 | Q50: 0 | R50: 10 | S50: 0 | T50: 10 | U50: 0 | V50: 1 | W50: 1.264406691 | X50: 27 | Y50: 2.044252044 | Z50: 24 | AA50: 0.9160482375 | AB50: 28
B51: 32 | C51: 島根県 | E51: 0.9122357463 | F51: 7 | G51: 0.9699094362 | H51: 2 | I51: 0 | J51: 15 | K51: 6.691522763 | L51: 42 | M51: 3.80952381 | N51: 36 | O51: 9.045918367 | P51: 45 | Q51: 0 | R51: 10 | S51: 0 | T51: 10 | U51: 0 | V51: 1 | W51: 0.5604189615 | X51: 42 | Y51: 0 | Z51: 44 | AA51: 0.7781332701 | AB51: 30
B52: 33 | C52: 岡山県 | E52: 0.3743755111 | F52: 19 | G52: 0.2718096721 | H52: 19 | I52: 1.659125189 | J52: 14 | K52: 11.57693627 | L52: 25 | M52: 4.431362055 | N52: 34 | O52: 18.00800256 | P52: 23 | Q52: 0 | R52: 10 | S52: 0 | T52: 10 | U52: 0 | V52: 1 | W52: 1.784307056 | X52: 15 | Y52: 1.212121212 | Z52: 35 | AA52: 2.027643689 | AB52: 9
B53: 34 | C53: 広島県 | E53: 0.9980952381 | F53: 6 | G53: 0.5204933007 | H53: 14 | I53: 12.27621483 | J53: 1 | K53: 14.12557752 | L53: 19 | M53: 4.971277066 | N53: 30 | O53: 19.82348983 | P53: 21 | Q53: 0 | R53: 10 | S53: 0 | T53: 10 | U53: 0 | V53: 1 | W53: 0.4798173978 | X53: 44 | Y53: 0 | Z53: 44 | AA53: 0.6975776425 | AB53: 32
B54: 35 | C54: 山口県 | E54: 0.3780209165 | F54: 18 | G54: 0 | H54: 24 | I54: 4.678362573 | J54: 9 | K54: 14.48763708 | L54: 17 | M54: 5.469427058 | N54: 27 | O54: 22.40573587 | P54: 15 | Q54: 0 | R54: 10 | S54: 0 | T54: 10 | U54: 0 | V54: 1 | W54: 2.141280353 | X54: 12 | Y54: 4.154986978 | Z54: 9 | AA54: 1.182443288 | AB54: 22
B55: 36 | C55: 徳島県 | E55: 0 | F55: 27 | G55: 0 | H55: 24 | I55: 0 | J55: 15 | K55: 14.31894024 | L55: 18 | M55: 6.585034014 | N55: 18 | O55: 20.20222447 | P55: 20 | Q55: 0.6644518272 | R55: 1 | S55: 0.8078026391 | T55: 1 | U55: 0 | V55: 1 | W55: 1.922675026 | X55: 14 | Y55: 3.202450571 | Z55: 12 | AA55: 1.370832557 | AB55: 15
B56: 37 | C56: 香川県 | E56: 0 | F56: 27 | G56: 0 | H56: 24 | I56: 0 | J56: 15 | K56: 11.85942869 | L56: 24 | M56: 6.10395189 | N56: 21 | O56: 16.38795987 | P56: 26 | Q56: 0 | R56: 10 | S56: 0 | T56: 10 | U56: 0 | V56: 1 | W56: 1.064965569 | X56: 32 | Y56: 2.166111254 | Z56: 22 | AA56: 0.5290944434 | AB56: 36
B57: 38 | C57: 愛媛県 | E57: 0.8168865435 | F57: 11 | G57: 0.9201209986 | H57: 3 | I57: 0 | J57: 15 | K57: 13.70967742 | L57: 21 | M57: 10.88159272 | N57: 7 | O57: 16.08785244 | P57: 27 | Q57: 0 | R57: 10 | S57: 0 | T57: 10 | U57: 0 | V57: 1 | W57: 1.018996669 | X57: 33 | Y57: 2.140436411 | Z57: 23 | AA57: 0.3979576007 | AB57: 41
B58: 39 | C58: 高知県 | E58: 0.8334478179 | F58: 9 | G58: 0.8911693222 | H58: 5 | I58: 0 | J58: 15 | K58: 7.188548057 | L58: 38 | M58: 1.372008859 | N58: 47 | O58: 11.27965252 | P58: 35 | Q58: 0 | R58: 10 | S58: 0 | T58: 10 | U58: 0 | V58: 1 | W58: 1.286909273 | X58: 25 | Y58: 2.651515152 | Z58: 17 | AA58: 0.7309800904 | AB58: 31
B59: 40 | C59: 福岡県 | E59: 0 | F59: 27 | G59: 0 | H59: 24 | I59: 0 | J59: 15 | K59: 13.52641195 | L59: 22 | M59: 4.460994852 | N59: 33 | O59: 21.10178274 | P59: 18 | Q59: 0.1479928878 | R59: 9 | S59: 0.1774731109 | T59: 9 | U59: 0 | V59: 1 | W59: 2.903240536 | X59: 8 | Y59: 3.74853736 | Z59: 10 | AA59: 2.429774201 | AB59: 7
B60: 41 | C60: 佐賀県 | E60: 1.304803071 | F60: 3 | G60: 0.7124950521 | H60: 7 | I60: 7.417582418 | J60: 4 | K60: 7.172356542 | L60: 39 | M60: 3.152332362 | N60: 40 | O60: 10.16238078 | P60: 41 | Q60: 0 | R60: 10 | S60: 0 | T60: 10 | U60: 0 | V60: 1 | W60: 0.4261328749 | X60: 45 | Y60: 1.284437826 | Z60: 33 | AA60: 0 | AB60: 46
B61: 42 | C61: 長崎県 | E61: 0 | F61: 27 | G61: 0 | H61: 24 | I61: 0 | J61: 15 | K61: 9.538212024 | L61: 32 | M61: 6.582212355 | N61: 19 | O61: 12.02550865 | P61: 33 | Q61: 0 | R61: 10 | S61: 0 | T61: 10 | U61: 0 | V61: 1 | W61: 1.377391868 | X61: 22 | Y61: 3.020594966 | Z61: 14 | AA61: 0.4372149875 | AB61: 39
B62: 43 | C62: 熊本県 | E62: 1.185660223 | F62: 4 | G62: 0.6676231082 | H62: 8 | I62: 5.626373626 | J62: 6 | K62: 6.806188961 | L62: 41 | M62: 1.514812994 | N62: 45 | O62: 10.76028981 | P62: 37 | Q62: 0 | R62: 10 | S62: 0 | T62: 10 | U62: 0 | V62: 1 | W62: 0.5947909512 | X62: 40 | Y62: 1.24062713 | Z62: 34 | AA62: 0.291956169 | AB62: 43
B63: 44 | C63: 大分県 | E63: 0 | F63: 27 | G63: 0 | H63: 24 | I63: 0 | J63: 15 | K63: 10.28853506 | L63: 31 | M63: 4.48622487 | N63: 32 | O63: 14.5588351 | P63: 29 | Q63: 0 | R63: 10 | S63: 0 | T63: 10 | U63: 0 | V63: 1 | W63: 0.5979133226 | X63: 39 | Y63: 0.9259259259 | Z63: 40 | AA63: 0.4429287188 | AB63: 38
B64: 45 | C64: 宮崎県 | E64: 1.805057025 | F64: 1 | G64: 1.538195645 | H64: 1 | I64: 3.220338983 | J64: 11 | K64: 7.52107534 | L64: 36 | M64: 2.881657763 | N64: 41 | O64: 10.16371507 | P64: 40 | Q64: 0 | R64: 10 | S64: 0 | T64: 10 | U64: 0 | V64: 1 | W64: 1.286924336 | X64: 24 | Y64: 1.11345608 | Z64: 38 | AA64: 1.357445521 | AB64: 17
B65: 46 | C65: 鹿児島県 | E65: 0.3582900914 | F65: 21 | G65: 0.401812776 | H65: 15 | I65: 0 | J65: 15 | K65: 7.27120233 | L65: 37 | M65: 1.960553891 | N65: 43 | O65: 11.02283619 | P65: 36 | Q65: 0 | R65: 10 | S65: 0 | T65: 10 | U65: 0 | V65: 1 | W65: 0.6166495375 | X65: 38 | Y65: 1.316908424 | Z65: 32 | AA65: 0.298425609 | AB65: 42
B66: 47 | C66: 沖縄県 | E66: 0 | F66: 27 | G66: 0 | H66: 24 | I66: 0 | J66: 15 | K66: 6.938601375 | L66: 40 | M66: 3.437825313 | N66: 37 | O66: 10.03625878 | P66: 42 | Q66: 0 | R66: 10 | S66: 0 | T66: 10 | U66: 0 | V66: 1 | W66: 1.14622872 | X66: 29 | Y66: 1.323461611 | Z66: 31 | AA66: 1.057523296 | AB66: 26
B67: 資料等
B68: ○ 総務省「就業構造基本調査」（平成24年）より作成。無業者と有業者を含めて算出した値であり、有業者のうち所得が把握できていない者は按分して含めた。なお、有配偶は、総数から未婚を除いて算出した。
B69: ○ 合計特殊出生率との相関係数、単純平均、標準偏差は都道府県別データから機械的に計算。変動係数は、標準偏差／単純平均で機械的に計算。

Sheet ３．（２）一日の行動当たり時間（夫）
B5: ■夫婦と子供の世帯で６歳未満の子供がおり、夫妻ともに有業の場合の、一日の行動当たり時間（平日） 夫
E7: 【実数値】 | S7: ・・・上位10位を網掛け
S8: ・・・下位10位を網掛け
E9: 一日当たりの時間（H23）
E10: 夫
E11: 通勤・通学 | G11: 仕事 | I11: 家事 | K11: 介護・看護 | M11: 育児 | O11: ボランティア活動・ | Q11: 通勤・通学と | S11: 通勤・通学と
O12: 社会参加活動 | Q12: 仕事の合計 | S12: 仕事と家事と
F13: （順位） | H13: （順位） | J13: （順位） | L13: （順位） | N13: （順位） | P13: （順位） | R13: （順位） | S13: 育児の合計 | T13: （順位）
E14: （分） | F14: （昇順） | G14: （分） | H14: （昇順） | I14: （分） | J14: （降順） | K14: （分） | L14: （降順） | M14: （分） | N14: （降順） | O14: （分） | P14: （降順） | Q14: （分） | R14: （昇順） | S14: （分） | T14: （降順）
B15: （合計特殊出生率との相関係数） | E15: =CORREL('１．（２）少子化関係指標'!$E$20:$E$66,E$20:E$66) -> -0.5065172219 | G15: =CORREL('１．（２）少子化関係指標'!$E$20:$E$66,G$20:G$66) -> -0.0001970909131 | I15: =CORREL('１．（２）少子化関係指標'!$E$20:$E$66,I$20:I$66) -> 0.0259183134 | K15: =CORREL('１．（２）少子化関係指標'!$E$20:$E$66,K$20:K$66) -> 0.2599030571 | M15: =CORREL('１．（２）少子化関係指標'!$E$20:$E$66,M$20:M$66) -> 0.0003573480628 | O15: =CORREL('１．（２）少子化関係指標'!$E$20:$E$66,O$20:O$66) -> 0.1488345487 | Q15: =CORREL('１．（２）少子化関係指標'!$E$20:$E$66,Q$20:Q$66) -> -0.1495826397 | S15: =CORREL('１．（２）少子化関係指標'!$E$20:$E$66,S$20:S$66) -> -0.1460254388
B16: （単純平均） | E16: =AVERAGE(E$20:E$66) -> 56.95744681 | G16: =AVERAGE(G$20:G$66) -> 561.1276596 | I16: =AVERAGE(I$20:I$66) -> 12.87234043 | K16: =AVERAGE(K$20:K$66) -> 0.1489361702 | M16: =AVERAGE(M$20:M$66) -> 27.19148936 | O16: =AVERAGE(O$20:O$66) -> 1.234042553 | Q16: =AVERAGE(Q$20:Q$66) -> 618.0851064 | S16: =AVERAGE(S$20:S$66) -> 658.1489362
B17: （標準偏差） | E17: =STDEVP(E$20:E$66) -> 15.74795826 | G17: =STDEVP(G$20:G$66) -> 47.90709849 | I17: =STDEVP(I$20:I$66) -> 7.910717269 | K17: =STDEVP(K$20:K$66) -> 0.3560255432 | M17: =STDEVP(M$20:M$66) -> 15.5599572 | O17: =STDEVP(O$20:O$66) -> 2.578245865 | Q17: =STDEVP(Q$20:Q$66) -> 53.38891023 | S17: =STDEVP(S$20:S$66) -> 53.24730688
B18: （変動係数） | E18: =E17/E16 -> 0.2764863795 | G18: =G17/G16 -> 0.08537646946 | I18: =I17/I16 -> 0.6145515895 | K18: =K17/K16 -> 2.390457219 | M18: =M17/M16 -> 0.5722362976 | O18: =O17/O16 -> 2.089268201 | Q18: =Q17/Q16 -> 0.08637792705 | S18: =S17/S16 -> 0.08090464628
B19: 全 国 | E19: 66 | G19: 570 | I19: 11 | K19: 0 | M19: 28 | O19: 1 | Q19: 636 | S19: 675
B20: 1 | C20: 北海道 | E20: 51 | F20: 20 | G20: 459 | H20: 3 | I20: 3 | J20: 44 | K20: 0 | L20: 8 | M20: 24 | N20: 23 | O20: 0 | P20: 14 | Q20: 510 | R20: 3 | S20: 537 | T20: 46
B21: 2 | C21: 青森県 | E21: 35 | F21: 1 | G21: 548 | H21: 15 | I21: 8 | J21: 33 | K21: 0 | L21: 8 | M21: 30 | N21: 16 | O21: 2 | P21: 11 | Q21: 583 | R21: 11 | S21: 621 | T21: 38
B22: 3 | C22: 岩手県 | E22: 68 | F22: 34 | G22: 546 | H22: 13 | I22: 28 | J22: 3 | K22: 0 | L22: 8 | M22: 28 | N22: 20 | O22: 0 | P22: 14 | Q22: 614 | R22: 18 | S22: 670 | T22: 23
B23: 4 | C23: 宮城県 | E23: 69 | F23: 35 | G23: 553 | H23: 18 | I23: 35 | J23: 1 | K23: 0 | L23: 8 | M23: 41 | N23: 9 | O23: 0 | P23: 14 | Q23: 622 | R23: 21 | S23: 698 | T23: 10
B24: 5 | C24: 秋田県 | E24: 70 | F24: 37 | G24: 520 | H24: 9 | I24: 29 | J24: 2 | K24: 0 | L24: 8 | M24: 43 | N24: 7 | O24: 0 | P24: 14 | Q24: 590 | R24: 14 | S24: 662 | T24: 26
B25: 6 | C25: 山形県 | E25: 39 | F25: 5 | G25: 539 | H25: 12 | I25: 24 | J25: 5 | K25: 0 | L25: 8 | M25: 21 | N25: 27 | O25: 0 | P25: 14 | Q25: 578 | R25: 10 | S25: 623 | T25: 37
B26: 7 | C26: 福島県 | E26: 61 | F26: 31 | G26: 560 | H26: 21 | I26: 11 | J26: 22 | K26: 0 | L26: 8 | M26: 32 | N26: 14 | O26: 0 | P26: 14 | Q26: 621 | R26: 20 | S26: 664 | T26: 24
B27: 8 | C27: 茨城県 | E27: 53 | F27: 24 | G27: 564 | H27: 24 | I27: 19 | J27: 11 | K27: 0 | L27: 8 | M27: 19 | N27: 30 | O27: 2 | P27: 11 | Q27: 617 | R27: 19 | S27: 655 | T27: 30
B28: 9 | C28: 栃木県 | E28: 63 | F28: 32 | G28: 577 | H28: 29 | I28: 25 | J28: 4 | K28: 0 | L28: 8 | M28: 29 | N28: 18 | O28: 0 | P28: 14 | Q28: 640 | R28: 29 | S28: 694 | T28: 11
B29: 10 | C29: 群馬県 | E29: 70 | F29: 37 | G29: 553 | H29: 18 | I29: 4 | J29: 43 | K29: 0 | L29: 8 | M29: 48 | N29: 5 | O29: 0 | P29: 14 | Q29: 623 | R29: 22 | S29: 675 | T29: 21
B30: 11 | C30: 埼玉県 | E30: 94 | F30: 47 | G30: 547 | H30: 14 | I30: 18 | J30: 12 | K30: 1 | L30: 1 | M30: 74 | N30: 1 | O30: 0 | P30: 14 | Q30: 641 | R30: 31 | S30: 733 | T30: 3
B31: 12 | C31: 千葉県 | E31: 89 | F31: 45 | G31: 553 | H31: 18 | I31: 7 | J31: 35 | K31: 0 | L31: 8 | M31: 35 | N31: 12 | O31: 0 | P31: 14 | Q31: 642 | R31: 32 | S31: 684 | T31: 17
B32: 13 | C32: 東京都 | E32: 80 | F32: 42 | G32: 573 | H32: 27 | I32: 5 | J32: 38 | K32: 0 | L32: 8 | M32: 31 | N32: 15 | O32: 3 | P32: 6 | Q32: 653 | R32: 34 | S32: 689 | T32: 14
B33: 14 | C33: 神奈川県 | E33: 82 | F33: 43 | G33: 647 | H33: 47 | I33: 17 | J33: 14 | K33: 0 | L33: 8 | M33: 14 | N33: 38 | O33: 0 | P33: 14 | Q33: 729 | R33: 47 | S33: 760 | T33: 1
B34: 15 | C34: 新潟県 | E34: 39 | F34: 5 | G34: 629 | H34: 45 | I34: 5 | J34: 38 | K34: 0 | L34: 8 | M34: 30 | N34: 16 | O34: 0 | P34: 14 | Q34: 668 | R34: 39 | S34: 703 | T34: 8
B35: 16 | C35: 富山県 | E35: 46 | F35: 14 | G35: 506 | H35: 8 | I35: 17 | J35: 14 | K35: 1 | L35: 1 | M35: 24 | N35: 23 | O35: 1 | P35: 13 | Q35: 552 | R35: 7 | S35: 593 | T35: 41
B36: 17 | C36: 石川県 | E36: 48 | F36: 17 | G36: 501 | H36: 7 | I36: 21 | J36: 8 | K36: 0 | L36: 8 | M36: 14 | N36: 38 | O36: 3 | P36: 6 | Q36: 549 | R36: 6 | S36: 584 | T36: 43
B37: 18 | C37: 福井県 | E37: 39 | F37: 5 | G37: 560 | H37: 21 | I37: 8 | J37: 33 | K37: 0 | L37: 8 | M37: 21 | N37: 27 | O37: 0 | P37: 14 | Q37: 599 | R37: 16 | S37: 628 | T37: 35
B38: 19 | C38: 山梨県 | E38: 69 | F38: 35 | G38: 614 | H38: 40 | I38: 11 | J38: 22 | K38: 0 | L38: 8 | M38: 51 | N38: 4 | O38: 0 | P38: 14 | Q38: 683 | R38: 45 | S38: 745 | T38: 2
B39: 20 | C39: 長野県 | E39: 55 | F39: 26 | G39: 620 | H39: 43 | I39: 12 | J39: 21 | K39: 1 | L39: 1 | M39: 23 | N39: 25 | O39: 0 | P39: 14 | Q39: 675 | R39: 42 | S39: 710 | T39: 7
B40: 21 | C40: 岐阜県 | E40: 43 | F40: 9 | G40: 618 | H40: 42 | I40: 14 | J40: 18 | K40: 1 | L40: 1 | M40: 17 | N40: 33 | O40: 0 | P40: 14 | Q40: 661 | R40: 37 | S40: 692 | T40: 13
B41: 22 | C41: 静岡県 | E41: 51 | F41: 20 | G41: 582 | H41: 31 | I41: 21 | J41: 8 | K41: 0 | L41: 8 | M41: 35 | N41: 12 | O41: 0 | P41: 14 | Q41: 633 | R41: 28 | S41: 689 | T41: 14
B42: 23 | C42: 愛知県 | E42: 92 | F42: 46 | G42: 588 | H42: 35 | I42: 11 | J42: 22 | K42: 0 | L42: 8 | M42: 21 | N42: 27 | O42: 0 | P42: 14 | Q42: 680 | R42: 43 | S42: 712 | T42: 6
B43: 24 | C43: 三重県 | E43: 70 | F43: 37 | G43: 600 | H43: 37 | I43: 5 | J43: 38 | K43: 0 | L43: 8 | M43: 19 | N43: 30 | O43: 0 | P43: 14 | Q43: 670 | R43: 40 | S43: 694 | T43: 11
B44: 25 | C44: 滋賀県 | E44: 54 | F44: 25 | G44: 641 | H44: 46 | I44: 11 | J44: 22 | K44: 0 | L44: 8 | M44: 13 | N44: 41 | O44: 0 | P44: 14 | Q44: 695 | R44: 46 | S44: 719 | T44: 4
B45: 26 | C45: 京都府 | E45: 59 | F45: 29 | G45: 606 | H45: 39 | I45: 5 | J45: 38 | K45: 0 | L45: 8 | M45: 13 | N45: 41 | O45: 0 | P45: 14 | Q45: 665 | R45: 38 | S45: 683 | T45: 18
B46: 27 | C46: 大阪府 | E46: 83 | F46: 44 | G46: 571 | H46: 26 | I46: 0 | J46: 47 | K46: 0 | L46: 8 | M46: 5 | N46: 46 | O46: 0 | P46: 14 | Q46: 654 | R46: 35 | S46: 659 | T46: 27
B47: 28 | C47: 兵庫県 | E47: 79 | F47: 41 | G47: 602 | H47: 38 | I47: 6 | J47: 37 | K47: 0 | L47: 8 | M47: 14 | N47: 38 | O47: 3 | P47: 6 | Q47: 681 | R47: 44 | S47: 701 | T47: 9
B48: 29 | C48: 奈良県 | E48: 70 | F48: 37 | G48: 561 | H48: 23 | I48: 1 | J48: 45 | K48: 0 | L48: 8 | M48: 15 | N48: 37 | O48: 0 | P48: 14 | Q48: 631 | R48: 26 | S48: 647 | T48: 33
B49: 30 | C49: 和歌山県 | E49: 46 | F49: 14 | G49: 457 | H49: 2 | I49: 9 | J49: 30 | K49: 0 | L49: 8 | M49: 7 | N49: 45 | O49: 9 | P49: 2 | Q49: 503 | R49: 2 | S49: 519 | T49: 47
B50: 31 | C50: 鳥取県 | E50: 42 | F50: 8 | G50: 585 | H50: 32 | I50: 9 | J50: 30 | K50: 0 | L50: 8 | M50: 28 | N50: 20 | O50: 0 | P50: 14 | Q50: 627 | R50: 23 | S50: 664 | T50: 24
B51: 32 | C51: 島根県 | E51: 47 | F51: 16 | G51: 484 | H51: 4 | I51: 21 | J51: 8 | K51: 0 | L51: 8 | M51: 74 | N51: 1 | O51: 5 | P51: 4 | Q51: 531 | R51: 4 | S51: 626 | T51: 36
B52: 33 | C52: 岡山県 | E52: 59 | F52: 29 | G52: 585 | H52: 32 | I52: 14 | J52: 18 | K52: 0 | L52: 8 | M52: 29 | N52: 18 | O52: 0 | P52: 14 | Q52: 644 | R52: 33 | S52: 687 | T52: 16
B53: 34 | C53: 広島県 | E53: 51 | F53: 20 | G53: 622 | H53: 44 | I53: 7 | J53: 35 | K53: 0 | L53: 8 | M53: 38 | N53: 10 | O53: 0 | P53: 14 | Q53: 673 | R53: 41 | S53: 718 | T53: 5
B54: 35 | C54: 山口県 | E54: 45 | F54: 13 | G54: 614 | H54: 40 | I54: 11 | J54: 22 | K54: 0 | L54: 8 | M54: 8 | N54: 44 | O54: 0 | P54: 14 | Q54: 659 | R54: 36 | S54: 678 | T54: 20
B55: 36 | C55: 徳島県 | E55: 50 | F55: 19 | G55: 590 | H55: 36 | I55: 13 | J55: 20 | K55: 0 | L55: 8 | M55: 28 | N55: 20 | O55: 4 | P55: 5 | Q55: 640 | R55: 29 | S55: 681 | T55: 19
B56: 37 | C56: 香川県 | E56: 43 | F56: 9 | G56: 570 | H56: 25 | I56: 16 | J56: 16 | K56: 0 | L56: 8 | M56: 44 | N56: 6 | O56: 0 | P56: 14 | Q56: 613 | R56: 17 | S56: 673 | T56: 22
B57: 38 | C57: 愛媛県 | E57: 38 | F57: 3 | G57: 550 | H57: 17 | I57: 16 | J57: 16 | K57: 0 | L57: 8 | M57: 16 | N57: 34 | O57: 8 | P57: 3 | Q57: 588 | R57: 13 | S57: 620 | T57: 39
B58: 39 | C58: 高知県 | E58: 58 | F58: 28 | G58: 537 | H58: 11 | I58: 22 | J58: 6 | K58: 0 | L58: 8 | M58: 38 | N58: 10 | O58: 0 | P58: 14 | Q58: 595 | R58: 15 | S58: 655 | T58: 30
B59: 40 | C59: 福岡県 | E59: 63 | F59: 32 | G59: 497 | H59: 6 | I59: 1 | J59: 45 | K59: 0 | L59: 8 | M59: 4 | N59: 47 | O59: 3 | P59: 6 | Q59: 560 | R59: 8 | S59: 565 | T59: 44
B60: 41 | C60: 佐賀県 | E60: 51 | F60: 20 | G60: 493 | H60: 5 | I60: 22 | J60: 6 | K60: 0 | L60: 8 | M60: 22 | N60: 26 | O60: 0 | P60: 14 | Q60: 544 | R60: 5 | S60: 588 | T60: 42
B61: 42 | C61: 長崎県 | E61: 43 | F61: 9 | G61: 587 | H61: 34 | I61: 10 | J61: 28 | K61: 0 | L61: 8 | M61: 16 | N61: 34 | O61: 0 | P61: 14 | Q61: 630 | R61: 25 | S61: 656 | T61: 29
B62: 43 | C62: 熊本県 | E62: 56 | F62: 27 | G62: 575 | H62: 28 | I62: 5 | J62: 38 | K62: 1 | L62: 1 | M62: 12 | N62: 43 | O62: 12 | P62: 1 | Q62: 631 | R62: 26 | S62: 648 | T62: 32
B63: 44 | C63: 大分県 | E63: 38 | F63: 3 | G63: 437 | H63: 1 | I63: 10 | J63: 28 | K63: 1 | L63: 1 | M63: 53 | N63: 3 | O63: 0 | P63: 14 | Q63: 475 | R63: 1 | S63: 538 | T63: 45
B64: 45 | C64: 宮崎県 | E64: 35 | F64: 1 | G64: 548 | H64: 15 | I64: 9 | J64: 30 | K64: 0 | L64: 8 | M64: 42 | N64: 8 | O64: 0 | P64: 14 | Q64: 583 | R64: 11 | S64: 634 | T64: 34
B65: 46 | C65: 鹿児島県 | E65: 43 | F65: 9 | G65: 523 | H65: 10 | I65: 18 | J65: 12 | K65: 0 | L65: 8 | M65: 16 | N65: 34 | O65: 3 | P65: 6 | Q65: 566 | R65: 9 | S65: 600 | T65: 40
B66: 47 | C66: 沖縄県 | E66: 48 | F66: 17 | G66: 581 | H66: 30 | I66: 11 | J66: 22 | K66: 1 | L66: 1 | M66: 19 | N66: 30 | O66: 0 | P66: 14 | Q66: 629 | R66: 24 | S66: 659 | T66: 27
B67: 資料等
B68: ○ 総務省「社会生活基本調査」（平成23年）より作成。
B69: ○ 合計特殊出生率との相関係数、単純平均、標準偏差は都道府県別データから機械的に計算。変動係数は、標準偏差／単純平均で機械的に計算。

Sheet ３．（２）一日の行動当たり時間（妻）
B5: ■夫婦と子供の世帯で６歳未満の子供がおり、夫妻ともに有業の場合の、一日の行動当たり時間（平日） 妻
E7: 【実数値】
E9: 一日当たりの時間（H23）
E10: 妻
E11: 通勤・通学 | G11: 仕事 | I11: 家事 | K11: 介護・看護 | M11: 育児 | O11: ボランティア活動・ | Q11: 通勤・通学と | S11: 通勤・通学と
O12: 社会参加活動 | Q12: 仕事の合計 | S12: 仕事と家事と
F13: （順位） | H13: （順位） | J13: （順位） | L13: （順位） | N13: （順位） | P13: （順位） | R13: （順位） | S13: 育児の合計 | T13: （順位）
E14: （分） | F14: （昇順） | G14: （分） | H14: （昇順） | I14: （分） | J14: （降順） | K14: （分） | L14: （降順） | M14: （分） | N14: （降順） | O14: （分） | P14: （降順） | Q14: （分） | R14: （昇順） | S14: （分） | T14: （降順）
B15: （合計特殊出生率との相関係数） | E15: =CORREL('１．（２）少子化関係指標'!$E$20:$E$66,E$20:E$66) -> -0.241340348 | G15: =CORREL('１．（２）少子化関係指標'!$E$20:$E$66,G$20:G$66) -> 0.270627711 | I15: =CORREL('１．（２）少子化関係指標'!$E$20:$E$66,I$20:I$66) -> -0.1092761627 | K15: =CORREL('１．（２）少子化関係指標'!$E$20:$E$66,K$20:K$66) -> 0.4552844004 | M15: =CORREL('１．（２）少子化関係指標'!$E$20:$E$66,M$20:M$66) -> -0.2044322338 | O15: =CORREL('１．（２）少子化関係指標'!$E$20:$E$66,O$20:O$66) -> -0.191107328 | Q15: =CORREL('１．（２）少子化関係指標'!$E$20:$E$66,Q$20:Q$66) -> 0.2042902398 | S15: =CORREL('１．（２）少子化関係指標'!$E$20:$E$66,S$20:S$66) -> 0.007495377747
B16: （単純平均） | E16: =AVERAGE(E$20:E$66) -> 34.36170213 | G16: =AVERAGE(G$20:G$66) -> 273.9361702 | I16: =AVERAGE(I$20:I$66) -> 178.1702128 | K16: =AVERAGE(K$20:K$66) -> 2.638297872 | M16: =AVERAGE(M$20:M$66) -> 143.2978723 | O16: =AVERAGE(O$20:O$66) -> 1.85106383 | Q16: =AVERAGE(Q$20:Q$66) -> 308.2978723 | S16: =AVERAGE(S$20:S$66) -> 629.7659574
B17: （標準偏差） | E17: =STDEVP(E$20:E$66) -> 10.38088573 | G17: =STDEVP(G$20:G$66) -> 54.20387215 | I17: =STDEVP(I$20:I$66) -> 33.56626926 | K17: =STDEVP(K$20:K$66) -> 3.964875206 | M17: =STDEVP(M$20:M$66) -> 39.51940805 | O17: =STDEVP(O$20:O$66) -> 5.214459126 | Q17: =STDEVP(Q$20:Q$66) -> 59.54148023 | S17: =STDEVP(S$20:S$66) -> 55.59550447
B18: （変動係数） | E18: =E17/E16 -> 0.3021062721 | G18: =G17/G16 -> 0.1978704459 | I18: =I17/I16 -> 0.188394394 | K18: =K17/K16 -> 1.502815602 | M18: =M17/M16 -> 0.2757850302 | O18: =O17/O16 -> 2.817006654 | Q18: =Q17/Q16 -> 0.193129715 | S18: =S17/S16 -> 0.08827962804
B19: 全 国 | E19: 35 | G19: 256 | I19: 180 | K19: 3 | M19: 153 | O19: 2 | Q19: 291 | S19: 624
B20: 1 | C20: 北海道 | E20: 32 | F20: 19 | G20: 280 | H20: 26 | I20: 162 | J20: 36 | K20: 4 | L20: 7 | M20: 166 | N20: 13 | O20: 0 | P20: 15 | Q20: 312 | R20: 25 | S20: 640 | T20: 22
B21: 2 | C21: 青森県 | E21: 31 | F21: 17 | G21: 259 | H21: 20 | I21: 194 | J21: 14 | K21: 2 | L21: 17 | M21: 135 | N21: 29 | O21: 0 | P21: 15 | Q21: 290 | R21: 18 | S21: 619 | T21: 29
B22: 3 | C22: 岩手県 | E22: 34 | F22: 23 | G22: 287 | H22: 28 | I22: 135 | J22: 43 | K22: 0 | L22: 34 | M22: 216 | N22: 2 | O22: 0 | P22: 15 | Q22: 321 | R22: 29 | S22: 672 | T22: 10
B23: 4 | C23: 宮城県 | E23: 54 | F23: 45 | G23: 337 | H23: 40 | I23: 169 | J23: 30 | K23: 0 | L23: 34 | M23: 120 | N23: 36 | O23: 0 | P23: 15 | Q23: 391 | R23: 42 | S23: 680 | T23: 5
B24: 5 | C24: 秋田県 | E24: 43 | F24: 37 | G24: 311 | H24: 32 | I24: 163 | J24: 35 | K24: 0 | L24: 34 | M24: 133 | N24: 31 | O24: 7 | P24: 4 | Q24: 354 | R24: 34 | S24: 650 | T24: 16
B25: 6 | C25: 山形県 | E25: 32 | F25: 19 | G25: 347 | H25: 42 | I25: 145 | J25: 39 | K25: 1 | L25: 28 | M25: 81 | N25: 44 | O25: 0 | P25: 15 | Q25: 379 | R25: 40 | S25: 605 | T25: 34
B26: 7 | C26: 福島県 | E26: 18 | F26: 2 | G26: 188 | H26: 4 | I26: 218 | J26: 6 | K26: 1 | L26: 28 | M26: 77 | N26: 45 | O26: 5 | P26: 5 | Q26: 206 | R26: 2 | S26: 501 | T26: 46
B27: 8 | C27: 茨城県 | E27: 47 | F27: 40 | G27: 287 | H27: 28 | I27: 168 | J27: 31 | K27: 2 | L27: 17 | M27: 114 | N27: 37 | O27: 8 | P27: 3 | Q27: 334 | R27: 31 | S27: 616 | T27: 30
B28: 9 | C28: 栃木県 | E28: 29 | F28: 13 | G28: 265 | H28: 22 | I28: 127 | J28: 45 | K28: 0 | L28: 34 | M28: 210 | N28: 3 | O28: 0 | P28: 15 | Q28: 294 | R28: 22 | S28: 631 | T28: 27
B29: 10 | C29: 群馬県 | E29: 23 | F29: 7 | G29: 167 | H29: 1 | I29: 200 | J29: 11 | K29: 3 | L29: 12 | M29: 138 | N29: 26 | O29: 0 | P29: 15 | Q29: 190 | R29: 1 | S29: 528 | T29: 45
B30: 11 | C30: 埼玉県 | E30: 29 | F30: 13 | G30: 185 | H30: 2 | I30: 172 | J30: 26 | K30: 2 | L30: 17 | M30: 246 | N30: 1 | O30: 1 | P30: 13 | Q30: 214 | R30: 3 | S30: 632 | T30: 26
B31: 12 | C31: 千葉県 | E31: 49 | F31: 41 | G31: 243 | H31: 17 | I31: 166 | J31: 32 | K31: 0 | L31: 34 | M31: 139 | N31: 24 | O31: 0 | P31: 15 | Q31: 292 | R31: 20 | S31: 597 | T31: 37
B32: 13 | C32: 東京都 | E32: 35 | F32: 27 | G32: 218 | H32: 10 | I32: 166 | J32: 32 | K32: 3 | L32: 12 | M32: 151 | N32: 14 | O32: 0 | P32: 15 | Q32: 253 | R32: 10 | S32: 570 | T32: 41
B33: 14 | C33: 神奈川県 | E33: 50 | F33: 44 | G33: 210 | H33: 8 | I33: 202 | J33: 10 | K33: 3 | L33: 12 | M33: 190 | N33: 9 | O33: 0 | P33: 15 | Q33: 260 | R33: 12 | S33: 652 | T33: 14
B34: 15 | C34: 新潟県 | E34: 21 | F34: 4 | G34: 229 | H34: 11 | I34: 186 | J34: 15 | K34: 2 | L34: 17 | M34: 169 | N34: 12 | O34: 0 | P34: 15 | Q34: 250 | R34: 9 | S34: 605 | T34: 34
B35: 16 | C35: 富山県 | E35: 35 | F35: 27 | G35: 258 | H35: 19 | I35: 176 | J35: 24 | K35: 4 | L35: 7 | M35: 124 | N35: 34 | O35: 2 | P35: 9 | Q35: 293 | R35: 21 | S35: 593 | T35: 38
B36: 17 | C36: 石川県 | E36: 32 | F36: 19 | G36: 326 | H36: 35 | I36: 127 | J36: 45 | K36: 4 | L36: 7 | M36: 69 | N36: 47 | O36: 0 | P36: 15 | Q36: 358 | R36: 35 | S36: 554 | T36: 44
B37: 18 | C37: 福井県 | E37: 26 | F37: 11 | G37: 264 | H37: 21 | I37: 182 | J37: 18 | K37: 0 | L37: 34 | M37: 143 | N37: 20 | O37: 2 | P37: 9 | Q37: 290 | R37: 18 | S37: 615 | T37: 31
B38: 19 | C38: 山梨県 | E38: 57 | F38: 46 | G38: 358 | H38: 47 | I38: 215 | J38: 7 | K38: 0 | L38: 34 | M38: 130 | N38: 32 | O38: 0 | P38: 15 | Q38: 415 | R38: 47 | S38: 760 | T38: 1
B39: 20 | C39: 長野県 | E39: 38 | F39: 34 | G39: 206 | H39: 7 | I39: 212 | J39: 8 | K39: 0 | L39: 34 | M39: 195 | N39: 7 | O39: 0 | P39: 15 | Q39: 244 | R39: 8 | S39: 651 | T39: 15
B40: 21 | C40: 岐阜県 | E40: 21 | F40: 4 | G40: 237 | H40: 13 | I40: 228 | J40: 4 | K40: 3 | L40: 12 | M40: 193 | N40: 8 | O40: 0 | P40: 15 | Q40: 258 | R40: 11 | S40: 679 | T40: 7
B41: 22 | C41: 静岡県 | E41: 23 | F41: 7 | G41: 239 | H41: 14 | I41: 180 | J41: 20 | K41: 1 | L41: 28 | M41: 142 | N41: 21 | O41: 15 | P41: 2 | Q41: 262 | R41: 13 | S41: 584 | T41: 40
B42: 23 | C42: 愛知県 | E42: 31 | F42: 17 | G42: 288 | H42: 30 | I42: 173 | J42: 25 | K42: 4 | L42: 7 | M42: 144 | N42: 19 | O42: 3 | P42: 7 | Q42: 319 | R42: 27 | S42: 636 | T42: 24
B43: 24 | C43: 三重県 | E43: 24 | F43: 10 | G43: 242 | H43: 16 | I43: 242 | J43: 3 | K43: 6 | L43: 5 | M43: 202 | N43: 4 | O43: 1 | P43: 13 | Q43: 266 | R43: 15 | S43: 710 | T43: 4
B44: 25 | C44: 滋賀県 | E44: 44 | F44: 38 | G44: 187 | H44: 3 | I44: 109 | J44: 47 | K44: 0 | L44: 34 | M44: 136 | N44: 27 | O44: 0 | P44: 15 | Q44: 231 | R44: 6 | S44: 476 | T44: 47
B45: 26 | C45: 京都府 | E45: 34 | F45: 23 | G45: 241 | H45: 15 | I45: 243 | J45: 2 | K45: 0 | L45: 34 | M45: 146 | N45: 16 | O45: 32 | P45: 1 | Q45: 275 | R45: 16 | S45: 664 | T45: 11
B46: 27 | C46: 大阪府 | E46: 35 | F46: 27 | G46: 199 | H46: 5 | I46: 203 | J46: 9 | K46: 6 | L46: 5 | M46: 173 | N46: 11 | O46: 0 | P46: 15 | Q46: 234 | R46: 7 | S46: 610 | T46: 33
B47: 28 | C47: 兵庫県 | E47: 49 | F47: 41 | G47: 267 | H47: 23 | I47: 183 | J47: 17 | K47: 2 | L47: 17 | M47: 136 | N47: 27 | O47: 0 | P47: 15 | Q47: 316 | R47: 26 | S47: 635 | T47: 25
B48: 29 | C48: 奈良県 | E48: 57 | F48: 46 | G48: 351 | H48: 44 | I48: 197 | J48: 12 | K48: 0 | L48: 34 | M48: 139 | N48: 24 | O48: 0 | P48: 15 | Q48: 408 | R48: 46 | S48: 744 | T48: 2
B49: 30 | C49: 和歌山県 | E49: 37 | F49: 30 | G49: 283 | H49: 27 | I49: 164 | J49: 34 | K49: 2 | L49: 17 | M49: 109 | N49: 39 | O49: 4 | P49: 6 | Q49: 320 | R49: 28 | S49: 593 | T49: 38
B50: 31 | C50: 鳥取県 | E50: 21 | F50: 4 | G50: 278 | H50: 25 | I50: 177 | J50: 22 | K50: 2 | L50: 17 | M50: 146 | N50: 16 | O50: 0 | P50: 15 | Q50: 299 | R50: 23 | S50: 622 | T50: 28
B51: 32 | C51: 島根県 | E51: 34 | F51: 23 | G51: 315 | H51: 34 | I51: 182 | J51: 18 | K51: 8 | L51: 3 | M51: 145 | N51: 18 | O51: 0 | P51: 15 | Q51: 349 | R51: 33 | S51: 676 | T51: 8
B52: 33 | C52: 岡山県 | E52: 32 | F52: 19 | G52: 331 | H52: 38 | I52: 219 | J52: 5 | K52: 9 | L52: 2 | M52: 149 | N52: 15 | O52: 0 | P52: 15 | Q52: 363 | R52: 37 | S52: 731 | T52: 3
B53: 34 | C53: 広島県 | E53: 26 | F53: 11 | G53: 202 | H53: 6 | I53: 285 | J53: 1 | K53: 2 | L53: 17 | M53: 140 | N53: 22 | O53: 0 | P53: 15 | Q53: 228 | R53: 4 | S53: 653 | T53: 13
B54: 35 | C54: 山口県 | E54: 20 | F54: 3 | G54: 257 | H54: 18 | I54: 195 | J54: 13 | K54: 0 | L54: 34 | M54: 128 | N54: 33 | O54: 0 | P54: 15 | Q54: 277 | R54: 17 | S54: 600 | T54: 36
B55: 36 | C55: 徳島県 | E55: 29 | F55: 13 | G55: 234 | H55: 12 | I55: 177 | J55: 22 | K55: 3 | L55: 12 | M55: 197 | N55: 6 | O55: 0 | P55: 15 | Q55: 263 | R55: 14 | S55: 637 | T55: 23
B56: 37 | C56: 香川県 | E56: 37 | F56: 30 | G56: 347 | H56: 42 | I56: 151 | J56: 37 | K56: 1 | L56: 28 | M56: 140 | N56: 22 | O56: 0 | P56: 15 | Q56: 384 | R56: 41 | S56: 675 | T56: 9
B57: 38 | C57: 愛媛県 | E57: 37 | F57: 30 | G57: 273 | H57: 24 | I57: 138 | J57: 42 | K57: 7 | L57: 4 | M57: 108 | N57: 40 | O57: 0 | P57: 15 | Q57: 310 | R57: 24 | S57: 556 | T57: 43
B58: 39 | C58: 高知県 | E58: 23 | F58: 7 | G58: 309 | H58: 31 | I58: 146 | J58: 38 | K58: 2 | L58: 17 | M58: 186 | N58: 10 | O58: 0 | P58: 15 | Q58: 332 | R58: 30 | S58: 664 | T58: 11
B59: 40 | C59: 福岡県 | E59: 49 | F59: 41 | G59: 343 | H59: 41 | I59: 179 | J59: 21 | K59: 1 | L59: 28 | M59: 75 | N59: 46 | O59: 2 | P59: 9 | Q59: 392 | R59: 43 | S59: 646 | T59: 18
B60: 41 | C60: 佐賀県 | E60: 37 | F60: 30 | G60: 335 | H60: 39 | I60: 172 | J60: 26 | K60: 4 | L60: 7 | M60: 100 | N60: 42 | O60: 0 | P60: 15 | Q60: 372 | R60: 39 | S60: 644 | T60: 20
B61: 42 | C61: 長崎県 | E61: 39 | F61: 35 | G61: 328 | H61: 36 | I61: 170 | J61: 29 | K61: 2 | L61: 17 | M61: 105 | N61: 41 | O61: 2 | P61: 9 | Q61: 367 | R61: 38 | S61: 642 | T61: 21
B62: 43 | C62: 熊本県 | E62: 30 | F62: 16 | G62: 328 | H62: 36 | I62: 171 | J62: 28 | K62: 1 | L62: 28 | M62: 121 | N62: 35 | O62: 3 | P62: 7 | Q62: 358 | R62: 35 | S62: 650 | T62: 16
B63: 44 | C63: 大分県 | E63: 34 | F63: 23 | G63: 311 | H63: 32 | I63: 133 | J63: 44 | K63: 0 | L63: 34 | M63: 82 | N63: 43 | O63: 0 | P63: 15 | Q63: 345 | R63: 32 | S63: 560 | T63: 42
B64: 45 | C64: 宮崎県 | E64: 13 | F64: 1 | G64: 215 | H64: 9 | I64: 186 | J64: 15 | K64: 2 | L64: 17 | M64: 201 | N64: 5 | O64: 0 | P64: 15 | Q64: 228 | R64: 4 | S64: 615 | T64: 31
B65: 46 | C65: 鹿児島県 | E65: 44 | F65: 38 | G65: 356 | H65: 46 | I65: 145 | J65: 39 | K65: 0 | L65: 34 | M65: 135 | N65: 29 | O65: 0 | P65: 15 | Q65: 400 | R65: 45 | S65: 680 | T65: 5
B66: 47 | C66: 沖縄県 | E66: 40 | F66: 36 | G66: 354 | H66: 45 | I66: 141 | J66: 41 | K66: 25 | L66: 1 | M66: 111 | N66: 38 | O66: 0 | P66: 15 | Q66: 394 | R66: 44 | S66: 646 | T66: 18
B67: 資料等
B68: ○ 総務省「社会生活基本調査」（平成23年）より作成。
B69: ○ 合計特殊出生率との相関係数、単純平均、標準偏差は都道府県別データから機械的に計算。変動係数は、標準偏差／単純平均で機械的に計算。

Sheet ３．（２）待機児童、第３子、小児科
B5: ■保育所等待機児童数等、出生数に占める第3子以降の割合、0～4歳人口千人当たりの小児科医師数
E7: 【実数値】 | L7: 【実数値】 | O7: 【実数値】 | R7: ・・・上位10位を網掛け
R8: ・・・下位10位を網掛け
E9: 保育所等待機児童数等（H28） | L9: 第３子以降出生数の割合（H27） | O9: 0～4歳人口千人当たりの小児科医師数
E10: 保育所等 | G10: 保育所等 | I10: 保育所等 | O10: 主として従事する | Q10: 複数従事する
E11: 定員数 | G11: 入所者数 | I11: 待機児童数 | O11: 診療科の場合 | Q11: 診療科も含む場合
F13: （順位） | H13: （順位） | J13: （順位） | M13: （順位） | P13: （順位） | R13: （順位）
E14: （人） | F14: （降順） | G14: （人） | H14: （降順） | I14: （人） | J14: （昇順） | L14: （％） | M14: （降順） | O14: （人） | P14: （降順） | Q14: （人） | R14: （降順）
B15: （合計特殊出生率との相関係数） | E15: =CORREL('１．（２）少子化関係指標'!$E$20:$E$66,E$20:E$66) -> -0.4439590061 | G15: =CORREL('１．（２）少子化関係指標'!$E$20:$E$66,G$20:G$66) -> -0.4422889707 | I15: =CORREL('１．（２）少子化関係指標'!$E$20:$E$66,I$20:I$66) -> -0.2587650546 | L15: =CORREL('１．（２）少子化関係指標'!$E$20:$E$66,L$20:L$66) -> 0.8249482478 | O15: =CORREL('１．（２）少子化関係指標'!$E$20:$E$66,O$20:O$66) -> -0.1310528125 | Q15: =CORREL('１．（２）少子化関係指標'!$E$20:$E$66,Q$20:Q$66) -> -0.07236595238
B16: （単純平均） | E16: =AVERAGE(E$20:E$66) -> 56053.40426 | G16: =AVERAGE(G$20:G$66) -> 52310.78723 | I16: =AVERAGE(I$20:I$66) -> 501.1276596 | L16: =AVERAGE(L$20:L$66) -> 18.20590022 | O16: =AVERAGE(O$20:O$66) -> 3.439498413 | Q16: =AVERAGE(Q$20:Q$66) -> 6.15346762
B17: （標準偏差） | E17: =STDEVP(E$20:E$66) -> 45664.81621 | G17: =STDEVP(G$20:G$66) -> 43952.36133 | I17: =STDEVP(I$20:I$66) -> 1273.922584 | L17: =STDEVP(L$20:L$66) -> 3.182013291 | O17: =STDEVP(O$20:O$66) -> 0.5509467262 | Q17: =STDEVP(Q$20:Q$66) -> 1.273020576
B18: （変動係数） | E18: =E17/E16 -> 0.8146662422 | G18: =G17/G16 -> 0.8402160176 | I18: =I17/I16 -> 2.542111894 | L18: =L17/L16 -> 0.1747792338 | O18: =O17/O16 -> 0.1601822882 | Q18: =Q17/Q16 -> 0.2068785691
B19: 全 国 | E19: 2634510 | G19: 2458607 | I19: 23553 | L19: 16.3442139 | O19: 3.347437796 | Q19: 5.968179166
B20: 1 | C20: 北海道 | E20: 79811 | F20: =RANK(E20,$E$20:$E$66,0) -> 9 | G20: 72190 | H20: =RANK(G20,$G$20:$G$66,0) -> 9 | I20: 94 | J20: 22 | L20: 16.53358768 | M20: 34 | O20: 3.446517246 | P20: 23 | Q20: 5.373775332 | R20: 32
B21: 2 | C21: 青森県 | E21: 35819 | F21: =RANK(E21,$E$20:$E$66,0) -> 27 | G21: 32781 | H21: =RANK(G21,$G$20:$G$66,0) -> 27 | I21: 0 | J21: 1 | L21: 18.69852685 | M21: 16 | O21: 3.10767875 | P21: 34 | Q21: 6.632806883 | R21: 14
B22: 3 | C22: 岩手県 | E22: 30274 | F22: 32 | G22: 28502 | H22: 32 | I22: 194 | J22: 27 | L22: 20.28590878 | M22: 11 | O22: 3.167685119 | P22: 31 | Q22: 4.627965492 | R22: 45
B23: 4 | C23: 宮城県 | E23: 39361 | F23: 24 | G23: 36550 | H23: 23 | I23: 638 | J23: 39 | L23: 17.04539141 | M23: 27 | O23: 3.018624131 | P23: 38 | Q23: 5.20183568 | R23: 35
B24: 5 | C24: 秋田県 | E24: 26629 | F24: 37 | G24: 23388 | H24: 39 | I24: 33 | J24: 14 | L24: 16.58420065 | M24: 33 | O24: 4.169010356 | P24: 5 | Q24: 6.551301989 | R24: 16
B25: 6 | C25: 山形県 | E25: 25208 | F25: 40 | G25: 23710 | H25: 38 | I25: 0 | J25: 1 | L25: 17.8393564 | M25: 21 | O25: 3.402965796 | P25: 24 | Q25: 5.166546611 | R25: 37
B26: 7 | C26: 福島県 | E26: 30815 | F26: 31 | G26: 28600 | H26: 31 | I26: 462 | J26: 37 | L26: 20.40154984 | M26: 10 | O26: 3.056297893 | P26: 37 | Q26: 6.348831372 | R26: 20
B27: 8 | C27: 茨城県 | E27: 57539 | F27: 14 | G27: 52290 | H27: 15 | I27: 382 | J27: 35 | L27: 16.89400922 | M27: 29 | O27: 2.580939352 | P27: 46 | Q27: 5.681714546 | R27: 27
B28: 9 | C28: 栃木県 | E28: 40168 | F28: 22 | G28: 35720 | H28: 25 | I28: 155 | J28: 25 | L28: 16.05252842 | M28: 38 | O28: 3.282431854 | P28: 27 | Q28: 6.811370448 | R28: 13
B29: 10 | C29: 群馬県 | E29: 45922 | F29: 18 | G29: 43949 | H29: 18 | I29: 5 | J29: 10 | L29: 16.40011223 | M29: 37 | O29: 3.974562798 | P29: 10 | Q29: 7.181159225 | R29: 11
B30: 11 | C30: 埼玉県 | E30: 109912 | F30: 6 | G30: 106279 | H30: 6 | I30: 1026 | J30: 42 | L30: 14.46404052 | M30: 45 | O30: 2.513400708 | P30: 47 | Q30: 5.086477132 | R30: 39
B31: 12 | C31: 千葉県 | E31: 98244 | F31: 7 | G31: 93439 | H31: 8 | I31: 1460 | J31: 45 | L31: 14.86791169 | M31: 43 | O31: 2.693468867 | P31: 42 | Q31: 5.116322337 | R31: 38
B32: 13 | C32: 東京都 | E32: 241945 | F32: 1 | G32: 236103 | H32: 1 | I32: 8466 | J32: 47 | L32: 10.82212838 | M32: 47 | O32: 4.418133524 | P32: 3 | Q32: 7.609746095 | R32: 8
B33: 14 | C33: 神奈川県 | E33: 138721 | F33: 4 | G33: 137299 | H33: 4 | I33: 497 | J33: 38 | L33: 12.77441307 | M33: 46 | O33: 3.062101715 | P33: 35 | Q33: 4.685943534 | R33: 43
B34: 15 | C34: 新潟県 | E34: 68673 | F34: 10 | G34: 61237 | H34: 11 | I34: 0 | J34: 1 | L34: 16.51263847 | M34: 35 | O34: 3.147465932 | P34: 32 | Q34: 4.959643287 | R34: 41
B35: 16 | C35: 富山県 | E35: 32125 | F35: 29 | G35: 29144 | H35: 30 | I35: 0 | J35: 1 | L35: 15.58081142 | M35: 41 | O35: 4.216646587 | P35: 4 | Q35: 6.311874705 | R35: 21
B36: 17 | C36: 石川県 | E36: 38293 | F36: 25 | G36: 34469 | H36: 26 | I36: 0 | J36: 1 | L36: 17.40520282 | M36: 24 | O36: 3.61884415 | P36: 16 | Q36: 4.97046064 | R36: 40
B37: 18 | C37: 福井県 | E37: 27611 | F37: 35 | G37: 25152 | H37: 34 | I37: 0 | J37: 1 | L37: 18.66773676 | M37: 17 | O37: 3.722084367 | P37: 14 | Q37: 7.189667239 | R37: 10
B38: 19 | C38: 山梨県 | E38: 25081 | F38: 41 | G38: 19993 | H38: 45 | I38: 0 | J38: 1 | L38: 17.82194755 | M38: 22 | O38: 3.719185071 | P38: 15 | Q38: 7.701675279 | R38: 7
B39: 20 | C39: 長野県 | E39: 61812 | F39: 13 | G39: 50869 | H39: 16 | I39: 0 | J39: 1 | L39: 17.64292109 | M39: 23 | O39: 3.572984749 | P39: 19 | Q39: 6.934329287 | R39: 12
B40: 21 | C40: 岐阜県 | E40: 46709 | F40: 17 | G40: 39008 | H40: 21 | I40: 23 | J40: 13 | L40: 16.87790998 | M40: 30 | O40: 2.938686059 | P40: 39 | Q40: 8.355331972 | R40: 3
B41: 22 | C41: 静岡県 | E41: 62434 | F41: 12 | G41: 58786 | H41: 12 | I41: 449 | J41: 36 | L41: 15.72728555 | M41: 40 | O41: 3.229570928 | P41: 29 | Q41: 5.190381849 | R41: 36
B42: 23 | C42: 愛知県 | E42: 173810 | F42: 2 | G42: 148573 | H42: 3 | I42: 202 | J42: 28 | L42: 14.77253677 | M42: 44 | O42: 2.644748415 | P42: 44 | Q42: 6.59064026 | R42: 15
B43: 24 | C43: 三重県 | E43: 44352 | F43: 20 | G43: 38875 | H43: 22 | I43: 101 | J43: 23 | L43: 16.97491039 | M43: 28 | O43: 2.934404133 | P43: 40 | Q43: 5.531843199 | R43: 29
B44: 25 | C44: 滋賀県 | E44: 31867 | F44: 30 | G44: 30985 | H44: 29 | I44: 339 | J44: 33 | L44: 16.77230233 | M44: 32 | O44: 3.561043121 | P44: 20 | Q44: 6.422317944 | R44: 17
B45: 26 | C45: 京都府 | E45: 56817 | F45: 15 | G45: 55974 | H45: 13 | I45: 64 | J45: 18 | L45: 15.8478283 | M45: 39 | O45: 4.611310491 | P45: 2 | Q45: 7.310614194 | R45: 9
B46: 27 | C46: 大阪府 | E46: 164461 | F46: 3 | G46: 158808 | H46: 2 | I46: 1434 | J46: 44 | L46: 15.41872061 | M46: 42 | O46: 3.452595113 | P46: 22 | Q46: 6.021697875 | R46: 23
B47: 28 | C47: 兵庫県 | E47: 96799 | F47: 8 | G47: 95060 | H47: 7 | I47: 1050 | J47: 43 | L47: 16.40349881 | M47: 36 | O47: 3.338380429 | P47: 25 | Q47: 5.386102851 | R47: 31
B48: 29 | C48: 奈良県 | E48: 26394 | F48: 38 | G48: 23990 | H48: 37 | I48: 260 | J48: 30 | L48: 17.14808788 | M48: 26 | O48: 3.185091398 | P48: 30 | Q48: 6.370182797 | R48: 19
B49: 30 | C49: 和歌山県 | E49: 23613 | F49: 43 | G49: 20284 | H49: 44 | I49: 10 | J49: 11 | L49: 17.33997155 | M49: 25 | O49: 3.990081797 | P49: 9 | Q49: 7.923162425 | R49: 5
B50: 31 | C50: 鳥取県 | E50: 18831 | F50: 46 | G50: 17260 | H50: 46 | I50: 0 | J50: 1 | L50: 21.34515571 | M50: 8 | O50: 4.950925041 | P50: 1 | Q50: 8.642404239 | R50: 2
B51: 32 | C51: 島根県 | E51: 22760 | F51: 45 | G51: 22146 | H51: 41 | I51: 38 | J51: 15 | L51: 21.96000721 | M51: 7 | O51: 4.024962151 | P51: 7 | Q51: 8.049924301 | R51: 4
B52: 33 | C52: 岡山県 | E52: 45491 | F52: 19 | G52: 42346 | H52: 19 | I52: 875 | J52: 40 | L52: 18.02038592 | M52: 20 | O52: 3.814832892 | P52: 11 | Q52: 7.899401444 | R52: 6
B53: 34 | C53: 広島県 | E53: 68145 | F53: 11 | G53: 61811 | H53: 10 | I53: 161 | J53: 26 | L53: 18.25745418 | M53: 18 | O53: 3.057748234 | P53: 36 | Q53: 4.927295388 | R53: 42
B54: 35 | C54: 山口県 | E54: 27959 | F54: 33 | G54: 25387 | H54: 33 | I54: 65 | J54: 20 | L54: 20.23166023 | M54: 12 | O54: 3.27655253 | P54: 28 | Q54: 5.230987373 | R54: 34
B55: 36 | C55: 徳島県 | E55: 17251 | F55: 47 | G55: 15490 | H55: 47 | I55: 60 | J55: 17 | L55: 16.80988185 | M55: 31 | O55: 3.770485683 | P55: 12 | Q55: 10.19151081 | R55: 1
B56: 37 | C56: 香川県 | E56: 22860 | F56: 44 | G56: 20922 | H56: 42 | I56: 324 | J56: 32 | L56: 18.13706439 | M56: 19 | O56: 3.999576204 | P56: 8 | Q56: 5.72124808 | R56: 26
B57: 38 | C57: 愛媛県 | E57: 27811 | F57: 34 | G57: 24559 | H57: 35 | I57: 110 | J57: 24 | L57: 18.74630396 | M57: 15 | O57: 3.541321837 | P57: 21 | Q57: 5.350475384 | R57: 33
B58: 39 | C58: 高知県 | E58: 27319 | F58: 36 | G58: 20641 | H58: 43 | I58: 42 | J58: 16 | L58: 20.11084719 | M58: 13 | O58: 4.051799476 | P58: 6 | Q58: 6.395487408 | R58: 18
B59: 40 | C59: 福岡県 | E59: 113817 | F59: 5 | G59: 111332 | H59: 5 | I59: 948 | J59: 41 | L59: 19.48270145 | M59: 14 | O59: 3.574898877 | P59: 18 | Q59: 5.409802725 | R59: 30
B60: 41 | C60: 佐賀県 | E60: 24520 | F60: 42 | G60: 22831 | H60: 40 | I60: 18 | J60: 12 | L60: 22.79161948 | M60: 5 | O60: 3.141419477 | P60: 33 | Q60: 6.171638264 | R60: 22
B61: 42 | C61: 長崎県 | E61: 37659 | F61: 26 | G61: 36105 | H61: 24 | I61: 70 | J61: 21 | L61: 23.20326679 | M61: 4 | O61: 3.761225188 | P61: 13 | Q61: 5.740817392 | R61: 25
B62: 43 | C62: 熊本県 | E62: 56601 | F62: 16 | G62: 54411 | H62: 14 | I62: 233 | J62: 29 | L62: 22.69371509 | M62: 6 | O62: 3.307707216 | P62: 26 | Q62: 5.80140836 | R62: 24
B63: 44 | C63: 大分県 | E63: 25549 | F63: 39 | G63: 24281 | H63: 36 | I63: 370 | J63: 34 | L63: 20.64310799 | M63: 9 | O63: 3.610500903 | P63: 17 | Q63: 5.589751397 | R63: 28
B64: 45 | C64: 宮崎県 | E64: 33899 | F64: 28 | G64: 32056 | H64: 28 | I64: 64 | J64: 18 | L64: 24.21417732 | M64: 2 | O64: 2.747717281 | P64: 41 | Q64: 4.121575922 | R64: 46
B65: 46 | C65: 鹿児島県 | E65: 39518 | F65: 23 | G65: 40256 | H65: 20 | I65: 295 | J65: 31 | L65: 23.43362832 | M65: 3 | O65: 2.590196883 | P65: 45 | Q65: 4.628384595 | R65: 44
B66: 47 | C66: 沖縄県 | E66: 43301 | F66: 21 | G66: 44766 | H66: 17 | I66: 2536 | J66: 46 | L66: 29.01835783 | M66: 1 | O66: 2.65761467 | P66: 43 | Q66: 4.095142605 | R66: 47
B67: 資料等
B68: ○ 保育所等待機児童数等は厚生労働省「保育所等関連状況取りまとめ」（平成28年4月1日）より作成。保育所等には幼保連携型認定こども園等の特定教育・保育施設と特定地域型保育事業（うち2号・3号認定）の数値を含む。
B69: ○ 出生数に占める第3子以降の割合は厚生労働省「人口動態統計（確定数）」（平成27年）より作成。
B70: ○ 0～4歳人口千人当たりの小児科医師数については、厚生労働省「医師・歯科医師・薬剤師調査」（平成26年）および総務省「国勢調査」（平成27年）より作成。
B71: なお、人口については年齢・国籍不詳は総務省が按分した値（http://www.stat.go.jp/data/kokusei/2015/kekka/anbun.htm）を用いた。
B72: ○ 合計特殊出生率との相関係数、単純平均、標準偏差は都道府県別データから機械的に計算。変動係数は、標準偏差／単純平均で機械的に計算。

Sheet ３．（２）三世代世帯、父子・母子、産婦人科
B5: ■一般世帯に占める三世代世帯割合、一般世帯に占める父子世帯・母子世帯の割合、25～39歳女性人口千人当たりの産婦人科と産科の医師数
E7: 【実数値】 | P7: 【実数値】 | U7: 【実数値】 | X7: ・・・上位10位を網掛け
X8: ・・・下位10位を網掛け
E9: 一般世帯に占める三世代世帯割合 | P9: 一般世帯に占める父子世帯・母子世帯の割合 | U9: 25～39歳女性人口千人当たりの産婦人科と産科の医師数
E10: 6歳未満のいる | G10: 12歳未満のいる | I10: 15歳未満のいる | K10: 18歳未満のいる | M10: 20歳未満のいる | P10: 6歳未満のいる | R10: 18歳未満のいる | U10: 主として従事する | W10: 複数従事する
E11: 一般世帯 | G11: 一般世帯 | I11: 一般世帯 | K11: 一般世帯 | M11: 一般世帯 | P11: 一般世帯 | R11: 一般世帯 | U11: 診療科の場合 | W11: 診療科も含む場合
E12: （H22） | G12: （H22） | I12: （H22） | K12: （H22） | M12: （H22） | P12: （H27） | R12: （H27）
F13: （順位） | H13: （順位） | J13: （順位） | L13: （順位） | N13: （順位） | Q13: （順位） | S13: （順位） | V13: （順位） | X13: （順位）
E14: （％） | F14: （降順） | G14: （％） | H14: （降順） | I14: （％） | J14: （降順） | K14: （％） | L14: （降順） | M14: （％） | N14: （降順） | P14: （％） | Q14: （昇順） | R14: （％） | S14: （昇順） | U14: （人） | V14: （降順） | W14: （人） | X14: （降順）
